{"text_format":"1","workbook":"xlsx","n_sheets":24,"sheets":["マクロテスト","はじめに","計画書①（事業者概要・目標）","計画書② (取組）","計画書③（任意記載）","事業所排出量内訳 (基準年度)","計画書提出書","計画書（公表用）","報告書①（事業者概要・実績）","報告書② 第1年度(取組）","報告書② 第2年度(取組）","報告書② 第3年度(取組）","報告書③（任意記載）","事業所排出量内訳（第1年度）","事業所排出量内訳（第2年度）","事業所排出量内訳（第3年度）","報告書提出書","報告書（公表用）","委任状","評価点まとめ","係数","産業分類","対策リスト","リスト1"],"not_rendered":{"charts":0,"images":1,"macros":1,"external_links":0,"defined_names":36,"comments":5,"pivot_tables":0},"unopened":[],"bounds":{"document_bytes":16777216,"sheet_cells":100000,"rows_first":2000,"rows_last":500,"rows_between":2000,"halvings":0,"cell_chars":16384,"cell_head_chars":4096},"cells_cut":0,"cells_raw":0,"read":"whole","date_system":"1900"}

{"sheet":"マクロテスト","index":0,"n_rows":153,"n_cols":13,"rows_kept":153,"cut":false,"hidden":false,"merged":[]}
[]
[]
[]
[]
[]
[]
[]
[]
[]
[]
[]
[]
[]
[]
[]
[]
[]
[]
[]
[]
[]
[]
[]
[]
[]
[]
[]
[]
[]
[]
[]
[]
[]
[]
[]
[]
[]
[]
[]
[]
[]
[]
[]
[]
[]
[]
[]
[]
[]
[]
[]
[]
[]
[]
[]
[]
[]
[]
[]
[]
[]
[]
[]
[]
[]
[]
[]
[]
[]
[]
[]
[]
[]
[]
[]
[]
[]
[]
[]
[]
[]
[]
[]
[]
[]
[]
[]
[]
[]
[]
[]
[]
[]
[]
[]
[]
[]
[]
[]
[]
[]
[]
[]
[]
[]
[]
[]
[]
[]
[]
[]
[]
[]
[]
[]
[]
[]
[]
[]
[]
[]
[]
[]
[]
[]
[]
[]
[]
[]
[]
[]
[]
[]
[]
[]
[]
[]
[]
[]
[]
[]
[]
[]
[]
[]
[]
[]
[]
[]
[]
[]
[]
[null,null,null,null,null,null,null,null,null,null,null,null,"以上"]

{"sheet":"はじめに","index":1,"n_rows":30,"n_cols":26,"rows_kept":30,"cut":false,"hidden":true,"merged":[[23,4,23,13],[24,4,24,13],[25,4,25,13],[26,4,26,13],[20,4,20,13],[15,4,15,13],[22,4,22,13],[5,4,5,13],[6,4,6,13],[7,4,7,13],[8,4,8,13],[13,4,13,13],[17,4,17,13]]}
[null,"b","c","d","e","f","g","h","i","j","k","l","m","n","ver.5"]
[null,null,null,null,null,null,null,null,null,null,null,null,null,null,null,null,null,null,null,null,null,null,null,null,null,2013]
[3,"計画書","計画期間",null,{"$f":"IF(E4=\"\",\"\",IF(E4=2025,2025,E4+1))","v":""},"年度","～",2025,"年度"]
[4,null,"基準年度",null,null,"年度"]
[5,null,"提出年月日",null,null,"年",null,"月",null,"日"]
[6,"届出者","法人の名称"]
[7,null,"法人の所在地"]
[8,null,"代表者の職・氏名"]
[9,null,"代理者の職・氏名"]
[10,"該当要件","条例第２条第５号イ",null,null,"①原油換算エネルギー使用量が1,500kL以上の事業所\n　",null,null,null,null,null,null,null,null,null,null,null,null,false]
[11,null,"条例第２条第５号ロ",null,null,"②エネルギー起源CO2を除くいずれかの物質の温室効果ガス排出量が3,000トン以上の事業所",null,null,null,null,null,null,null,null,null,null,null,null,false]
[12,null,"条例第２条第５号ハ",null,null,"③市内に100台以上の自動車を所有する運送事業者",null,null,null,null,null,null,null,null,null,null,null,null,true]
[13,null,"一般事業者",null,null,"④任意提出事業者",null,null,null,null,null,null,null,null,null,null,null,null,false]
[14,"事業所の概要","事業所の名称"]
[15,null,"事業所の所在地",null,"〒",null,"-"]
[16,null,null,null,null,null,null,null,null,null,null,null,null,null,null,null,null,"中分類",{"$f":"E17&F17","v":""}]
[17,null,"産業分類番号",null,null,null,null,null,null,null,null,null,null,null,null,null,null,"主たる業種（中分類）",{"$f":"IFERROR(VLOOKUP(S16,中分類,2,FALSE),\"\")","v":""}]
[18,null,"事業の概要",null,{"$f":"S17","v":""},null,null,null,null,null,null,null,null,null,null,null,null,"小分類",{"$f":"E17&F17&G17","v":""}]
[19,null,null,null,null,null,null,null,null,null,null,null,null,null,null,null,null,"主たる業種（小分類）",{"$f":"IFERROR(VLOOKUP(S18,小分類,2,FALSE),\"\")","v":""}]
[20,null,null,null,null,null,null,null,null,null,null,null,null,null,null,null,null,"細分類",{"$f":"E17&F17&G17&H17","v":""}]
[21,"担当者","所属部署",null,null,null,null,null,null,null,null,null,null,null,null,null,null,"主たる業種（細分類）",{"$f":"IFERROR(VLOOKUP(S20,細分類,2,FALSE),\"\")","v":""}]
[22,null,"住所",null,"〒",null,"-"]
[23]
[24,null,"氏名"]
[25,null,"電話番号"]
[26,null,"FAX番号"]
[27,null,"Eメールアドレス"]
[28]
[29,"報告書","提出対象年度",null,"第",null,"年度"]
[30,null,"提出年月日",null,null,"年",null,"月",null,"日"]

{"sheet":"計画書①（事業者概要・目標）","index":2,"n_rows":28,"n_cols":16,"rows_kept":28,"cut":false,"hidden":true,"merged":[[26,0,26,1],[23,5,23,6],[23,7,23,8],[23,10,23,11],[12,0,12,15],[15,0,15,15],[2,1,2,14],[8,0,8,3],[7,0,7,3],[7,4,7,15],[5,0,5,3],[5,4,5,15],[6,0,6,3],[6,4,6,15],[8,4,8,15],[27,0,27,1],[27,2,27,15],[23,12,23,13],[24,5,24,6],[24,7,24,8],[24,10,24,11],[24,12,24,13],[25,7,25,8],[25,10,25,11],[25,12,25,13],[23,0,23,1],[23,2,23,4],[24,2,25,4],[26,2,26,11],[25,5,25,6],[26,12,26,13]]}
[]
[]
[null,"事業者温室効果ガス削減計画書（第二計画期間）"]
[]
["１　事業者の概要"]
["事業者の名称",null,null,null,{"$f":"IF(はじめに!E6=\"\",\"\",はじめに!E6)","v":""}]
["市内代表事業所の名称",null,null,null,{"$f":"IF(はじめに!E14=\"\",\"\",はじめに!E14)","v":""}]
["市内代表事業所の所在地",null,null,null,{"$f":"IF(はじめに!E16=\"\",\"\",はじめに!E16)","v":""}]
["主たる業種",null,null,null,{"$f":"IF(はじめに!E18=\"\",\"\",はじめに!E18)","v":""}]
[]
[]
["２　温室効果ガス排出抑制のための基本方針"]
[]
[]
["３　温室効果ガス排出抑制のための組織体制"]
[]
[]
[]
[]
[]
[]
[]
["４　温室効果ガスの排出の状況及び排出抑制に係る目標"]
["基準年度",null,"温室効果ガス\nの排出の状況",null,null,"基準排出量",null,{"$f":"IF('事業所排出量内訳 (基準年度)'!N4=0,\"\",'事業所排出量内訳 (基準年度)'!R12)","v":""},null,"t-CO2","基準原単位",null,{"$f":"IF('事業所排出量内訳 (基準年度)'!N4=0,\"\",'事業所排出量内訳 (基準年度)'!R15)","v":""},null,"t-CO2/",{"$f":"IF('事業所排出量内訳 (基準年度)'!D51=\"\",\"\",'事業所排出量内訳 (基準年度)'!D51)","v":""}]
[null,null,"温室効果ガス\n排出抑制に係る\n目標",null,null,"目標排出量",null,null,null,"t-CO2","目標原単位",null,null,null,"t-CO2/",{"$f":"IF(P24=\"\",\"\",P24)","v":""}]
[{"$f":"IF(はじめに!H3=\"\",\"\",はじめに!H3)","v":2025},"年度",null,null,null,"削減率",null,{"$f":"IFERROR((IF($H$25=\"\",\"\",INT(($H$24-H25)/$H$24*10000)/100)),\"\")","v":""},null,"%","削減率",null,{"$f":"IFERROR(IF($M$25=\"\",\"\",INT(($M$24-M25)/$M$24*10000)/100),\"\")","v":""},{"$f":"IF($F$5=\"\",\"\",INT(($F$5-N25)/$F$5*100000)/1000)","v":""},"%"]
["(目標年度)",null,"非化石エネルギー自動車割合（任意入力）",null,null,null,null,null,null,null,null,null,null,null,"%"]
["目標設定の考え方"]

{"sheet":"計画書② (取組）","index":3,"n_rows":49,"n_cols":37,"rows_kept":49,"cut":false,"hidden":true,"merged":[[18,14,18,15],[38,1,38,2]]}
[]
[]
["５の１　重点的に実施する取組の実施計画（基本対策）",null,null,null,null,null,null,null,null,null,null,null,null,null,"基準年度",null,null,null,null,null,null,null,null,null,null,null,null,"項目欄行数","項目数","項目空白欄",null,null,null,null,null,null,"回答白欄"]
["番号","分類","項目","対策内容","実施状況\n（基準年度）","実施予定",null,null,"状況","項目数","評価指標",null,"実施予定","項目数","未実施",null,null,null,null,null,null,null,null,null,null,null,"基本対策",10,{"$f":"COUNTA(C5:C16)","v":12},{"$f":"COUNTBLANK(C5:C16)","v":0},"実施状況","第1年度","第2年度","第3年度","予定なし","空欄",{"$f":"COUNTBLANK(F5:F36)","v":31}]
[1,"一般管理事項","エネルギー管理推進体制の整備","エネルギー管理推進体制が整備されている。エネルギー管理推進体制の中で、エネルギー管理が推進されている。",null,null,null,null,"実施済",{"$f":"COUNTIF($E$5:$E$16,$I5)","v":0},5,null,"第1年度",{"$f":"SUM(O5:O5)","v":0},{"$f":"COUNTIFS($E$5:$E$16,O$4,$F$5:$F$16,$M5)","v":0},null,null,null,null,null,null,null,null,null,null,null,null,null,null,"実施済",{"$f":"J5","v":0},{"$f":"COUNTIFS($E$5:$E$16,$AD5,$F$5:$F$16,AF$4)","v":0},0,{"$f":"COUNTIFS($E$5:$E$16,$AD5,$F$5:$F$16,AH$4)","v":0},{"$f":"COUNTIFS($E$5:$E$16,$AD5,$F$5:$F$16,AI$4)","v":0},{"$f":"COUNTIFS($E$5:$E$16,$AD5,$F$5:$F$16,\"\")","v":0}]
[2,"一般管理事項","省エネルギー教育の実施","省エネルギー、地球温暖化防止に関する研修、教育を定期的に実施し、実施記録を残している。",null,null,null,null,"未実施",{"$f":"COUNTIF($E$5:$E$16,$I6)","v":0},0,null,"第2年度",{"$f":"SUM(O6:O6)","v":0},{"$f":"COUNTIFS($E$5:$E$16,O$4,$F$5:$F$16,$M6)","v":0},null,null,null,null,null,null,null,null,null,null,null,null,null,null,"未実施",{"$f":"J6","v":0},0,0,{"$f":"COUNTIFS($E$5:$E$16,$AD6,$F$5:$F$16,AH$4)","v":0},{"$f":"COUNTIFS($E$5:$E$16,$AD6,$F$5:$F$16,AI$4)","v":0},{"$f":"COUNTIFS($E$5:$E$16,$AD5,$F$5:$F$16,\"\")","v":0}]
[3,"一般管理事項","エネルギー使用量の把握","エネルギー使用量や走行距離を車両別に定期的に把握・記録されている。",null,null,null,null,"非該当",{"$f":"COUNTIF($E$5:$E$16,$I7)","v":0},"-",null,"第3年度",{"$f":"SUM(O7:O7)","v":0},{"$f":"COUNTIFS($E$5:$E$16,O$4,$F$5:$F$16,$M7)","v":0},null,null,null,null,null,null,null,null,null,null,null,null,null,null,"非該当",{"$f":"J7","v":0},0,0,{"$f":"COUNTIFS($E$5:$E$16,$AD7,$F$5:$F$16,AH$4)","v":0},{"$f":"COUNTIFS($E$5:$E$16,$AD7,$F$5:$F$16,AI$4)","v":0},{"$f":"COUNTIFS($E$5:$E$16,$AD6,$F$5:$F$16,\"\")","v":0}]
[4,"一般管理事項","エコドライブ推進体制の整備","エコドライブ推進に関する責任者の設置、実践方法に関するマニュアルを作成するなど、推進体制を整備している。",null,null,null,null,"合計",12,50,null,"予定なし",{"$f":"SUM(O8:O8)","v":0},{"$f":"COUNTIFS($E$5:$E$16,O$4,$F$5:$F$16,$M8)","v":0},null,null,null,null,null,null,null,null,null,null,null,null,null,null,"合計",{"$f":"J8","v":12},{"$f":"SUM(AF5:AF7)","v":0},{"$f":"SUM(AG5:AG7)","v":0},0,0,0]
[5,"一般管理事項","エコドライブ教育の実施","車両を運転する全社員に対するエコドライブに関する研修、教育を定期的に実施している。",null,null,null,null,"基準年度",{"$f":"IF(COUNTBLANK(E5:E16)=12,\"\",IFERROR(J5/(J8-J7),0))","v":""},{"$f":"IF(J9=\"\",\"\",ROUNDUP($J$9*$K$8,0))","v":""},null,"合計",{"$f":"SUM(N5:N8)","v":0},{"$f":"SUM(O5:O8)","v":0},null,null,null,null,null,null,null,null,null,null,null,null,"項目欄行数","項目数","項目空白欄",null,null,null,null,null,null,"回答白欄"]
[6,"ボイラー、工業炉、熱交換器等","エコドライブ実践","エコドライブ10のすすめを実践し、チェックシート等に記録している。",null,null,null,null,"計画期間満了時",{"$f":"IF(COUNTBLANK(E5:E16)=12,\"\",IFERROR(SUM(J5,O5,O6,O7)/(J8-J7),0))","v":""},{"$f":"IF(J10=\"\",\"\",ROUNDUP($J$10*$K$8,0))","v":""},null,null,null,null,null,null,null,null,null,null,null,null,null,null,null,"選択対策",15,{"$f":"COUNTA(C21:C35)","v":0},{"$f":"COUNTBLANK(C21:C35)","v":15},"実施状況","第1年度","第2年度","第3年度",null,"空欄",{"$f":"COUNTBLANK(F41:F60)","v":20}]
[7,"ボイラー、工業炉、熱交換器等","車両の維持管理","車両の点検・整備に関する責任者の設置、マニュアルの作成等、自動車の維持管理体制が整備されている。",null,null,null,null,null,null,null,null,null,null,null,null,null,null,null,null,null,null,null,null,null,null,null,null,null,"実施済",{"$f":"J21","v":0},{"$f":"COUNTIFS($E$21:$E$35,$AD11,$F$21:$F$35,AF$10)","v":0},{"$f":"COUNTIFS($E$21:$E$35,$AD11,$F$21:$F$35,AG$10)","v":0},{"$f":"COUNTIFS($E$21:$E$35,$AD11,$F$21:$F$35,AH$10)","v":0},null,{"$f":"COUNTIFS($E$21:$E$35,$AD11,$F$21:$F$35,\"\")","v":0}]
[8,"ボイラー、工業炉、熱交換器等","車両の性能管理","日常及び定期的な保守・点検、修理が行われ、記録されている。",null,null,null,null,null,null,null,null,null,null,null,null,null,null,null,null,null,null,null,null,null,null,null,null,null,"一部実施済",{"$f":"J22","v":0},{"$f":"COUNTIFS($E$21:$E$35,$AD12,$F$21:$F$35,AF$10)","v":0},{"$f":"COUNTIFS($E$21:$E$35,$AD12,$F$21:$F$35,AG$10)","v":0},{"$f":"COUNTIFS($E$21:$E$35,$AD12,$F$21:$F$35,AH$10)","v":0},null,{"$f":"COUNTIFS($E$21:$E$35,$AD12,$F$21:$F$35,\"\")","v":0}]
[9,"ボイラー、工業炉、熱交換器等","効率的なルート選定","事前に目的地までの効率的なルートを選定し、運転者に伝える仕組みが整備されている。",null,null,null,null,null,null,null,null,null,null,null,null,null,null,null,null,null,null,null,null,null,null,null,null,null,"未実施",{"$f":"J23","v":0},{"$f":"COUNTIFS($E$21:$E$35,$AD13,$F$21:$F$35,AF$10)","v":0},{"$f":"COUNTIFS($E$21:$E$35,$AD13,$F$21:$F$35,AG$10)","v":0},{"$f":"COUNTIFS($E$21:$E$35,$AD13,$F$21:$F$35,AH$10)","v":0},null,{"$f":"COUNTIFS($E$21:$E$35,$AD13,$F$21:$F$35,\"\")","v":0}]
[10,null,"効率的な自動車管理","輸送需要を把握し、目的や輸送量に応じた自動車を使用するなど、適切な車両管理を行っている。"]
[11,null,"照明器具の点灯時間管理","照明器具の点灯時間がルール化されている。不要な照明の使用や消し忘れをチェックする仕組みがある。センサー等による制御が導入されている。"]
[12,"ボイラー、工業炉、熱交換器等","事務所機器の待機電力管理","PC、OA機器等の事務所機器が省エネモードに設定されており、長時間不使用の場合には電源を切ることがルール化されている。PC、OA機器等の事務所機器がルールに従って運転されている。",null,null,null,null,null,null,null,null,null,null,null,null,null,null,null,null,null,null,null,null,null,null,null,null,null,"合計",{"$f":"J24","v":0},{"$f":"SUM(AF11:AF13)","v":0},{"$f":"SUM(AG11:AG13)","v":0},0,null,0]
[null,null,null,null,null,null,null,null,null,null,null,null,null,null,null,null,null,null,null,null,null,null,null,null,null,null,null,"項目欄行数","項目数","項目空白欄",null,null,null,null,null,null,"回答白欄"]
[null,null,null,null,null,null,null,null,null,null,null,null,null,null,null,null,null,null,null,null,null,null,null,null,null,null,"その他の対策",10,{"$f":"COUNTA(C40:C49)","v":0},{"$f":"COUNTBLANK(C40:C49)","v":10},"実施状況","第1年度","第2年度","第3年度",null,"空欄",{"$f":"COUNTBLANK(F40:F49)","v":10}]
["５の２　重点的に実施する取組の実施計画（選択対策）",null,null,null,null,null,null,null,null,null,null,null,null,null,null,null,null,null,null,null,null,null,null,null,null,null,null,null,null,"実施済",{"$f":"J40","v":0},{"$f":"COUNTIFS($E$40:$E$49,$AD19,$F$40:$F$49,AF$18)","v":0},{"$f":"COUNTIFS($E$40:$E$49,$AD19,$F$40:$F$49,AG$18)","v":0},{"$f":"COUNTIFS($E$40:$E$49,$AD19,$F$40:$F$49,AH$18)","v":0},null,{"$f":"COUNTIFS($E$40:$E$49,$AD19,$F$40:$F$49,\"\")","v":0}]
["番号","分類","項目","対策内容","実施状況\n（基準年度）","実施予定",null,null,"状況","項目数","評価指標",null,"実施予定","項目数","一部実施済","未実施",null,null,null,null,null,null,null,null,null,null,null,null,null,"未実施",{"$f":"J41","v":0},{"$f":"COUNTIFS($E$40:$E$49,$AD20,$F$40:$F$49,AF$18)","v":0},0,0,null,{"$f":"COUNTIFS($E$40:$E$49,$AD20,$F$40:$F$49,\"\")","v":0}]
[1,null,null,{"$f":"IFERROR(VLOOKUP(C21,選択対策,2,0),\"\")","v":""},null,null,null,null,"実施済",{"$f":"COUNTIF($E$21:$E$35,$I21)","v":0},5,null,"第1年度",{"$f":"SUM(O21:P21)","v":0},{"$f":"COUNTIFS($E$21:$E$35,O$20,$F$21:$F$35,$M21)","v":0},{"$f":"COUNTIFS($E$21:$E$35,P$20,$F$21:$F$35,$M21)","v":0},null,null,null,null,null,null,null,null,null,null,null,null,null,"合計",{"$f":"J67","v":0},{"$f":"SUM(AF19:AF20)","v":0},{"$f":"SUM(AG19:AG20)","v":0},0,null,0]
[2,null,null,"",null,null,null,null,"一部実施済",{"$f":"COUNTIF($E$21:$E$35,$I22)","v":0},3,null,"第2年度",0,{"$f":"COUNTIFS($E$21:$E$35,O$20,$F$21:$F$35,$M22)","v":0},0]
[3,null,null,"",null,null,null,null,"未実施",{"$f":"COUNTIF($E$21:$E$35,$I23)","v":0},0,null,"第3年度",{"$f":"SUM(O23:P23)","v":0},0,0]
[4,null,null,"",null,null,null,null,"合計",{"$f":"SUM(J21:J23)","v":0},50]
[5,null,null,"",null,null,null,null,"基準年度\n評価点",{"$f":"IF(J21*K21+J22*K22>K24,K24,J21*K21+J22*K22)","v":0}]
[6,null,null,"",null,null,null,null,"計画期間満了時\n評価点",{"$f":"IF((J21+SUM(N21:N23))*K21+(J22-SUM(O21:O23))*K22>K24,K24,(J21+SUM(N21:N23))*K21+(J22-SUM(O21:O23))*K22)","v":0}]
[7,null,null,""]
[8,null,null,""]
[9,null,null,""]
[10,null,null,""]
[11,null,null,""]
[12,null,null,""]
[13,null,null,""]
[14,null,null,""]
[15,null,null,""]
[]
[]
["５の３　重点的に実施する取組の実施計画（その他の対策）"]
["番号","項目",null,"具体的な取組内容（自由記述）","実施状況\n（基準年度）","実施予定",null,null,"状況","項目数","評価指標",null,"実施予定","項目数","評価指標"]
[1,null,null,null,null,null,null,null,"実施済",{"$f":"COUNTIF($E$40:$E$49,$I40)","v":0},5,null,"第1年度",{"$f":"COUNTIFS($E$40:$E$49,$I$41,$F$40:$F$49,$M40)","v":0},5]
[2,null,null,null,null,null,null,null,"未実施",{"$f":"COUNTIF($E$40:$E$49,$I41)","v":0},0,null,"第2年度",{"$f":"COUNTIFS($E$40:$E$49,$I$41,$F$40:$F$49,$M41)","v":0},5]
[3,null,null,null,null,null,null,null,"合計",{"$f":"SUM(J40:J41)","v":0},25,null,"第3年度",{"$f":"COUNTIFS($E$40:$E$49,$I$41,$F$40:$F$49,$M42)","v":0},5]
[4,null,null,null,null,null,null,null,"基準年度\n評価点",{"$f":"IF(J40*K40>K42,K42,J40*K40)","v":0},null,null,"合計",{"$f":"SUM(N40:N42)","v":0},25]
[5,null,null,null,null,null,null,null,"計画期間満了時\n評価点",{"$f":"IF(J40*K40+N43*O40>O43,O43,J40*K40+N43*O40)","v":0}]
[6]
[7]
[8]
[9]
[10]

{"sheet":"計画書③（任意記載）","index":4,"n_rows":26,"n_cols":6,"rows_kept":26,"cut":false,"hidden":true,"merged":[]}
[]
["参考１　これまで実施した削減対策の実績（詳細）"]
["番号","対策内容","実施年度","推計削減量\n（t-CO2/年）",null,"写真"]
[1]
[2]
[3]
[4]
[5]
[6]
[7]
[8]
[9]
[10]
[]
["参考２　計画期間内に実施を予定している削減対策（詳細）"]
["番号","対策内容","実施予定\n年度","推計削減量\n（t-CO2/年）",null,"写真"]
[1]
[2]
[3]
[4]
[5]
[6]
[7]
[8]
[9]
[10]

{"sheet":"事業所排出量内訳 (基準年度)","index":5,"n_rows":68,"n_cols":22,"rows_kept":68,"cut":false,"hidden":true,"merged":[[47,2,48,3],[43,2,43,3],[42,2,42,3],[41,2,41,3],[44,2,44,3],[3,2,4,3],[3,6,4,6],[3,5,4,5],[3,4,4,4],[14,2,15,3],[14,4,15,4],[14,5,15,5],[14,6,15,6],[35,2,36,3],[23,2,24,3],[23,4,24,4],[35,4,36,4],[40,2,40,3],[39,2,39,3],[38,2,38,3],[37,2,37,3],[0,8,0,9],[3,7,4,7],[3,8,4,8],[3,9,4,9],[14,9,15,9],[14,7,15,7],[14,8,15,8],[23,18,24,18],[23,19,24,19],[23,20,24,20],[23,21,24,21],[32,16,33,16],[32,17,33,17],[32,18,33,18],[32,19,33,19],[23,17,24,17],[23,16,24,16],[55,7,56,7],[57,2,59,2],[55,2,56,2],[60,2,62,2],[60,3,62,3],[57,3,59,3],[55,4,56,6],[55,3,56,3],[65,2,66,2],[63,2,64,2],[65,3,66,3],[63,3,64,3],[67,4,67,6]]}
[null,null,"温室効果ガス排出量内訳",null,null,null,null,"基準年度",{"$f":"\"（\"&はじめに!E4&\"年度）\"","v":"（年度）"},null,null,null,null,null,null,{"$f":"はじめに!E4","v":0},"１．エネルギー起源二酸化炭素（CO2）排出量"]
[null,null,null,null,null,null,null,null,null,null,null,null,null,null,null,null,"熱量合計",{"$f":"SUM(I13,I20)","v":0},"GJ"]
[null,null,"１．エネルギー起源二酸化炭素（CO2）排出量",null,null,null,null,null,null,null,null,null,null,null,null,null,"原油換算",{"$f":"R2*0.0258","v":0},"KL"]
[null,null,"燃料の種類",null,"使用量","外部\n供給量","実使用量","単位","熱量\n(GJ)","排出量\n(t-CO2)",null,null,null,{"$f":"IF(R2=0,0,1)","v":0},null,null,"排出量合計",{"$f":"ROUNDDOWN(SUM(J13,J20),0)","v":0},"t-CO2"]
[null,null,null,null,null,null,null,null,null,null,null,"エネルギー名称区分2022","エネルギー名称区分2023","単位発熱量","炭素排出係数"]
[null,null,"揮発油（ガソリン）",null,null,null,{"$f":"IF(AND(E6=\"\",F6=\"\"),\"\",SUM(E6)-SUM(F6))","v":""},"kl",{"$f":"IFERROR(IF(G6=\"\",\"\",$G6*N6),\"-------------\")","v":""},{"$f":"IFERROR(IF(G6=\"\",\"\",$I6*O6*44/12),\"----------\")","v":""},null,"揮発油","揮発油",{"$f":"IF($P$1=2022,VLOOKUP(L6,係数2022,7,0),VLOOKUP(M6,係数2023,7,0))","v":33.4},{"$f":"IF($P$1=2022,VLOOKUP(L6,係数2022,9,0),VLOOKUP(M6,係数2023,9,0))","v":1.8700000000000001E-2},null,"２．エネルギー起源二酸化炭素（CO2）以外の温室効果ガス排出量"]
[null,null,"軽油",null,null,null,{"$f":"IF(AND(E7=\"\",F7=\"\"),\"\",SUM(E7)-SUM(F7))","v":""},"kl",{"$f":"IFERROR(IF(G7=\"\",\"\",$G7*N7),\"-------------\")","v":""},{"$f":"IFERROR(IF(G7=\"\",\"\",$I7*O7*44/12),\"----------\")","v":""},null,"軽油","軽油",{"$f":"IF($P$1=2022,VLOOKUP(L7,係数2022,7,0),VLOOKUP(M7,係数2023,7,0))","v":38},{"$f":"IF($P$1=2022,VLOOKUP(L7,係数2022,9,0),VLOOKUP(M7,係数2023,9,0))","v":1.8800000000000001E-2},null,"排出量合計",{"$f":"SUM(E33)","v":0},"t-CO2"]
[null,null,"液化石油ガス (LPG)",null,null,null,"","t",{"$f":"IFERROR(IF(G8=\"\",\"\",$G8*N8),\"-------------\")","v":""},{"$f":"IFERROR(IF(G8=\"\",\"\",$I8*O8*44/12),\"----------\")","v":""},null,"液化石油ガス     (LPG)","液化石油ガス     (LPG)",{"$f":"IF($P$1=2022,VLOOKUP(L8,係数2022,7,0),VLOOKUP(M8,係数2023,7,0))","v":50.1},{"$f":"IF($P$1=2022,VLOOKUP(L8,係数2022,9,0),VLOOKUP(M8,係数2023,9,0))","v":1.6299999999999999E-2}]
[null,null,"液化天然ガス (LNG)",null,null,null,"","t",{"$f":"IFERROR(IF(G9=\"\",\"\",$G9*N9),\"-------------\")","v":""},{"$f":"IFERROR(IF(G9=\"\",\"\",$I9*O9*44/12),\"----------\")","v":""},null,"液化天然ガス     (LNG)","液化天然ガス     (LNG)",{"$f":"IF($P$1=2022,VLOOKUP(L9,係数2022,7,0),VLOOKUP(M9,係数2023,7,0))","v":54.7},{"$f":"IF($P$1=2022,VLOOKUP(L9,係数2022,9,0),VLOOKUP(M9,係数2023,9,0))","v":1.3899999999999999E-2},null,"３．クレジット等による削減量"]
[null,null,"都市ガス（CNG含む）",null,null,null,"","千m3",{"$f":"IFERROR(IF(G10=\"\",\"\",$G10*N10),\"-------------\")","v":""},{"$f":"IFERROR(IF(G10=\"\",\"\",$I10*O10*44/12),\"----------\")","v":""},null,"都市ガス","都市ガス",{"$f":"IF($P$1=2022,VLOOKUP(L10,係数2022,7,0),VLOOKUP(M10,係数2023,7,0))","v":45},{"$f":"IF($P$1=2022,VLOOKUP(L10,係数2022,9,0),VLOOKUP(M10,係数2023,9,0))","v":1.4E-2},null,"削減量合計",{"$f":"SUM(E45)","v":0},"t-CO2"]
[null,null,{"$f":"\"その他（\"&Q22&\"）\"","v":"その他（）"},null,null,null,""]
[null,null,"水素",null,null,null,"","t",{"$f":"IFERROR(IF(G12=\"\",\"\",$G12*N12),\"-------------\")","v":""},null,null,null,"水素",{"$f":"IF($P$1=2022,VLOOKUP(L12,係数2022,7,0),VLOOKUP(M12,係数2023,7,0))","v":142},{"$f":"IF($P$1=2022,VLOOKUP(L12,係数2022,9,0),VLOOKUP(M12,係数2023,9,0))","v":"ー"},null,"温室効果ガス総排出量",{"$f":"SUM(R4,R7)-R10","v":0},"t-CO2"]
[null,null,"小　　　　　計",null,"－","－","－","－",{"$f":"IF(COUNTBLANK(I6:I12)=7,\"\",SUM(I6:I12))","v":""},{"$f":"IF(COUNTBLANK(J6:J11)=6,\"\",SUM(J6:J11))","v":""}]
[null,null,null,null,null,null,null,null,null,null,null,null,null,null,null,null,"４．原単位の指標"]
[null,null,"電気の種類",null,"使用量","外部\n供給量","実使用量","単位","熱量\n(GJ)","排出量\n(t-CO2)",null,null,null,null,null,null,"排出原単位",{"$f":"IF(R12=\"\",\"\",IFERROR(ROUND(R12/D52,3-INT(LOG(R12/D52))),))","v":0},{"$f":"\"t-CO2/\"&D51","v":"t-CO2/"}]
[null,null,null,null,null,null,null,null,null,null,null,"エネルギー名称区分2022","エネルギー名称区分2023","単位発熱量","炭素排出係数"]
[null,null,"電気事業者","昼間買電",{"$f":"R31","v":""},null,{"$f":"E17","v":""},"千kWh",{"$f":"IFERROR(IF(G17=\"\",\"\",G17*N17),\"----------\")","v":""},{"$f":"U31","v":""},null,"電気事業者_昼間買電","電気事業者_昼間買電",{"$f":"IF($P$1=2022,VLOOKUP(L17,係数2022,7,0),VLOOKUP(M17,係数2023,7,0))","v":8.64},{"$f":"IF($P$1=2022,VLOOKUP(L17,係数2022,9,0),VLOOKUP(M17,係数2023,9,0))","v":"ー"},null,"５．年度末使用車両数"]
[null,null,null,"夜間買電",{"$f":"S31","v":""},null,{"$f":"E18","v":""},"千kWh",{"$f":"IFERROR(IF(G18=\"\",\"\",G18*N18),\"----------\")","v":""},{"$f":"V31","v":""},null,"電気事業者_夜間買電","電気事業者_夜間買電",{"$f":"IF($P$1=2022,VLOOKUP(L18,係数2022,7,0),VLOOKUP(M18,係数2023,7,0))","v":8.64},{"$f":"IF($P$1=2022,VLOOKUP(L18,係数2022,9,0),VLOOKUP(M18,係数2023,9,0))","v":"ー"},null,"非化石エネルギー自動車割合",{"$f":"IF(OR(D68=0,D68=\"\",H68=0,H68=\"\"),0,H68/D68*100)","v":0},"％"]
[null,null,"その他買電",null,{"$f":"R40","v":""},null,{"$f":"E19","v":""},"千kWh",{"$f":"IFERROR(IF(G19=\"\",\"\",G19*N19),\"----------\")","v":""},{"$f":"IF(E19=\"\",\"\",T40)","v":""},null,"その他買電","その他買電",{"$f":"IF($P$1=2022,VLOOKUP(L19,係数2022,7,0),VLOOKUP(M19,係数2023,7,0))","v":8.64},{"$f":"IF($P$1=2022,VLOOKUP(L19,係数2022,9,0),VLOOKUP(M19,係数2023,9,0))","v":"ー"}]
[null,null,"小　　　　　計",null,{"$f":"IF(COUNTBLANK(E17:E19)=3,\"\",SUM(E17:E19))","v":""},null,{"$f":"IF(COUNTBLANK(G17:G19)=3,\"\",SUM(G17:G19))","v":""},"千kWh",{"$f":"IF(COUNTBLANK(I17:I19)=3,\"\",SUM(I17:I19))","v":""},{"$f":"IF(COUNTBLANK(J17:J19)=3,\"\",SUM(J17:J19))","v":""}]
[null,null,null,null,null,null,null,null,null,null,null,null,null,null,null,null,"その他の名称","換算係数","排出係数"]
[]
[null,null,"２．エネルギー起源二酸化炭素（CO2）以外の温室効果ガス排出量"]
[null,null,"温室効果ガスの種類",null,"排出量\n(t-CO2)",null,null,null,null,null,null,null,null,null,null,null,"電気事業者名","昼間買電量\n(千kWh)","夜間買電量\n(千kWh)","排出係数\n(tCO2/千kWh)","昼間排出量\n(t-CO2)","夜間排出量\n(t-CO2)"]
[]
[null,null,"非エネルギー起源二酸化炭素（CO2）",null,null,null,null,null,null,null,null,null,null,null,null,null,null,null,null,null,{"$f":"IF($T26=\"\",\"\",R26*$T26)","v":""},{"$f":"IF($T26=\"\",\"\",S26*$T26)","v":""}]
[null,null,"メタン（CH4）",null,null,null,null,null,null,null,null,null,null,null,null,null,null,null,null,null,{"$f":"IF($T27=\"\",\"\",R27*$T27)","v":""},""]
[null,null,"一酸化二窒素（N2O）",null,null,null,null,null,null,null,null,null,null,null,null,null,null,null,null,null,"",""]
[null,null,"ハイドロフルオロカーボン（HFC）",null,null,null,null,null,null,null,null,null,null,null,null,null,null,null,null,null,"",""]
[null,null,"パーフルオロカーボン（PFC）",null,null,null,null,null,null,null,null,null,null,null,null,null,null,null,null,null,"",""]
[null,null,"六フッ化硫黄（SF6）",null,null,null,null,null,null,null,null,null,null,null,null,null,"合計",{"$f":"IF(COUNTBLANK(R26:S30)=10,\"\",SUM(R26:R30))","v":""},{"$f":"IF(COUNTBLANK(R26:S30)=10,\"\",SUM(S26:S30))","v":""},null,{"$f":"IF(COUNTBLANK(R26:S30)=10,\"\",SUM(U26:U30))","v":""},{"$f":"IF(COUNTBLANK(R26:S30)=10,\"\",SUM(V26:V30))","v":""}]
[null,null,"三フッ化窒素（NF3）"]
[null,null,"合　　　　計",null,{"$f":"IF(COUNTBLANK(E26:E32)=7,\"\",SUM(E26:E32))","v":""},null,null,null,null,null,null,null,null,null,null,null,"その他買電","買電量\n(千kWh)","排出係数\n(tCO2/千kWh)","排出量\n(t-CO2)"]
[]
[null,null,"３．クレジット等による削減量",null,null,null,null,null,null,null,null,null,null,null,null,null,null,null,null,{"$f":"IF(S35=\"\",\"\",R35*S35)","v":""}]
[null,null,"クレジット等の種類",null,"削減量\n(t-CO2)",null,null,null,null,null,null,null,null,null,null,null,null,null,null,{"$f":"IF(S36=\"\",\"\",R36*S36)","v":""}]
[null,null,null,null,null,null,null,null,null,null,null,null,null,null,null,null,null,null,null,{"$f":"IF(S37=\"\",\"\",R37*S37)","v":""}]
[null,null,null,null,null,null,null,null,null,null,null,null,null,null,null,null,null,null,null,{"$f":"IF(S38=\"\",\"\",R38*S38)","v":""}]
[null,null,null,null,null,null,null,null,null,null,null,null,null,null,null,null,null,null,null,{"$f":"IF(S39=\"\",\"\",R39*S39)","v":""}]
[null,null,null,null,null,null,null,null,null,null,null,null,null,null,null,null,"合計",{"$f":"IF(COUNTBLANK(R35:R39)=5,\"\",SUM(R35:R39))","v":""},null,{"$f":"IF(COUNTBLANK(R35:R39)=5,\"\",SUM(T35:T39))","v":""}]
[]
[]
[]
[]
[null,null,"合　　　　計",null,{"$f":"IF(COUNTBLANK(E38:E44)=7,\"\",SUM(E38:E44))","v":""}]
[]
[null,null,"４．原単位の指標"]
[null,null,"原単位の指標（分母）"]
[]
[null,null,"名称"]
[null,null,"単位"]
[null,null,"数値"]
[]
[]
[null,null,"５．年度末使用車両数"]
[null,null,"車種","全台数\n（台）","全台数のうち下記の車種の内訳",null,null,"台数\n（台）"]
[]
[null,null,"トラック",null,"EV・PHV・水素自動車"]
[null,null,null,null,"ハイブリッド自動車"]
[null,null,null,null,"低炭素ディーゼル自動車・天然ガス自動車"]
[null,null,"バス",null,"EV・PHV・水素自動車"]
[null,null,null,null,"ハイブリッド自動車"]
[null,null,null,null,"低炭素ディーゼル自動車・天然ガス自動車"]
[null,null,"タクシー",null,"EV・PHV・水素自動車"]
[null,null,null,null,"ハイブリッド自動車"]
[null,null,"一般車両",null,"EV・PHV・水素自動車"]
[null,null,null,null,"ハイブリッド自動車"]
[null,null,"合　　　　計",{"$f":"IF(COUNTBLANK(D58)+COUNTBLANK(D61)+COUNTBLANK(D64)+COUNTBLANK(D66)=4,\"\",SUM(D58,D61,D64,D66))","v":""},"合　　　　計",null,null,{"$f":"IF(COUNTBLANK(H58:H67)=10,\"\",SUM(H58:H67))","v":""}]

{"sheet":"計画書提出書","index":6,"n_rows":34,"n_cols":17,"rows_kept":34,"cut":false,"hidden":true,"merged":[[20,4,20,16],[11,0,12,16],[14,3,14,16],[15,3,15,16],[7,9,7,15],[8,9,8,15],[9,9,9,15],[15,0,15,2],[16,0,16,2],[16,3,16,16],[18,4,18,16],[19,4,19,16],[18,0,21,2],[21,4,21,16],[2,1,2,15],[27,7,27,16],[28,7,28,16],[32,5,32,6],[29,3,29,6],[24,5,24,6],[23,3,24,4],[27,3,27,6],[28,3,28,6],[26,3,26,6],[23,5,23,6],[14,0,14,2],[9,6,9,7],[7,6,7,7],[8,6,8,7],[32,0,33,0],[32,1,33,4],[23,0,29,2],[33,5,33,6],[25,3,25,6],[32,7,32,16],[33,7,33,16],[29,7,29,16],[23,7,23,16],[24,7,24,16],[25,7,25,16],[26,7,26,16]]}
[]
[]
[null,"事業者温室効果ガス削減計画書　提出書"]
[]
[null,null,null,null,null,null,null,null,null,null,null,{"$f":"IF(はじめに!E5=\"\",\"\",はじめに!E5)","v":""},"年",{"$f":"IF(はじめに!G5=\"\",\"\",はじめに!G5)","v":""},"月",{"$f":"IF(はじめに!I5=\"\",\"\",はじめに!I5)","v":""},"日"]
["（あて先）仙台市長"]
[]
[null,null,null,null,null,null,"住所",null,null,{"$f":"IF(はじめに!E7=\"\",\"\",はじめに!E7)","v":""}]
[null,null,null,null,null,null,"法人の名称",null,null,{"$f":"IF(はじめに!E6=\"\",\"\",はじめに!E6)","v":""}]
[null,null,null,null,null,null,"代表者氏名",null,null,{"$f":"IF(はじめに!E8=\"\",\"\",はじめに!E8)","v":""}]
[]
["　仙台市地球温暖化対策等の推進に関する条例第10条第1項の規定により、別紙のとおり事業者温室効果ガス削減計画書を提出します。"]
[]
[]
["事業者の名称",null,null,{"$f":"IF(J9=\"\",\"\",J9)","v":""}]
["市内代表事業所の\n名称",null,null,{"$f":"IF(はじめに!E14=\"\",\"\",はじめに!E14)","v":""}]
["市内代表事業所の\n所在地",null,null,{"$f":"IF(はじめに!E16=\"\",\"\",はじめに!E16)","v":""}]
[]
["該当する\n事業者の要件",null,null,{"$f":"IF(はじめに!S10=TRUE,\"〇\",\"\")","v":""},"①原油換算エネルギー使用量が1,500kL以上の事業所\n　　（条例第2条第5号イに該当する特定事業者）"]
[null,null,null,{"$f":"IF(はじめに!S11=TRUE,\"〇\",\"\")","v":""},"②エネルギー起源CO2を除くいずれかの物質の温室効果ガス排出量が3,000トン以上の事業所（条例第2条第5号ロに該当する特定事業者）"]
[null,null,null,{"$f":"IF(はじめに!S12=TRUE,\"〇\",\"\")","v":"〇"},"③市内に100台以上の自動車を所有する運送事業者\n　　（条例第2条第5号ハに該当する特定事業者）"]
[null,null,null,{"$f":"IF(はじめに!S13=TRUE,\"〇\",\"\")","v":""},"④任意提出事業者\n　　（条例第15条第1項に該当する一般事業者）"]
[]
["連絡先",null,null,"担当者",null,"部署名",null,{"$f":"IF(はじめに!E21=\"\",\"\",はじめに!E21)","v":""}]
[null,null,null,null,null,"氏名",null,{"$f":"IF(はじめに!E24=\"\",\"\",はじめに!E24)","v":""}]
[null,null,null,"郵便番号",null,null,null,{"$f":"IF(はじめに!F22=\"\",\"\",はじめに!F22 & \"-\")  & IF(はじめに!H22=\"\",\"\",はじめに!H22)","v":""}]
[null,null,null,"所在地",null,null,null,{"$f":"IF(はじめに!E23=\"\",\"\",はじめに!E23)","v":""}]
[null,null,null,"電話番号",null,null,null,{"$f":"IF(はじめに!E25=\"\",\"\",はじめに!E25)","v":""}]
[null,null,null,"ＦＡＸ番号",null,null,null,{"$f":"IF(はじめに!E26=\"\",\"\",はじめに!E26)","v":""}]
[null,null,null,"メールアドレス",null,null,null,{"$f":"IF(はじめに!E27=\"\",\"\",はじめに!E27)","v":""}]
[]
[]
["※受理",null,null,null,null," ※整理番号"]
[null,null,null,null,null,"※備考"]

{"sheet":"計画書（公表用）","index":7,"n_rows":35,"n_cols":17,"rows_kept":35,"cut":false,"hidden":true,"merged":[[30,15,30,16],[31,4,31,7],[34,4,34,7],[34,15,34,16],[34,8,34,14],[33,15,33,16],[32,15,32,16],[31,15,31,16],[17,13,17,14],[18,13,18,14],[19,6,19,16],[32,8,32,14],[33,8,33,14],[32,4,32,7],[33,4,33,7],[26,15,26,16],[27,15,27,16],[25,15,25,16],[23,4,23,14],[22,15,22,16],[29,4,29,7],[25,4,25,14],[29,15,29,16],[30,4,30,7],[2,1,2,15],[8,4,8,16],[13,4,13,16],[18,10,18,11],[16,15,16,16],[16,13,16,14],[17,15,17,16],[7,0,7,3],[5,0,5,3],[6,0,6,3],[5,4,5,16],[9,0,12,3],[9,5,9,16],[17,10,17,11],[10,5,10,16],[11,5,11,16],[6,4,6,16],[7,4,7,16],[8,0,8,3],[16,10,16,11],[31,8,31,14],[16,0,19,3],[19,4,19,5],[16,4,16,5],[18,8,18,9],[29,8,29,14],[30,8,30,14],[17,4,18,5],[17,6,18,6],[17,7,18,7],[22,0,22,3],[23,0,28,3],[29,0,34,3],[12,5,12,16],[28,15,28,16],[23,15,23,16],[24,15,24,16],[13,0,13,3],[16,8,16,9],[17,8,17,9],[22,4,22,6],[22,7,22,8],[22,10,22,12],[22,13,22,14],[26,4,26,14],[27,4,27,14],[28,4,28,14],[24,4,24,14]]}
[]
[]
[null,"事業者温室効果ガス削減計画書概要（第二計画期間）　"]
[]
["１　事業者の概要"]
["事業者の名称",null,null,null,{"$f":"IF(計画書提出書!D15=\"\",\"\",計画書提出書!D15)","v":""}]
["市内代表事業所の名称",null,null,null,{"$f":"IF(計画書提出書!D16=\"\",\"\",計画書提出書!D16)","v":""}]
["市内代表事業所の所在地",null,null,null,{"$f":"IF(計画書提出書!D17=\"\",\"\",計画書提出書!D17)","v":""}]
["主たる事業",null,null,null,{"$f":"IF(はじめに!S17=\"\",\"\",はじめに!S17)","v":""}]
["事業者の該当要件",null,null,null,{"$f":"IF(計画書提出書!D19=\"\",\"\",計画書提出書!D19)","v":""},"条例第2条第5号イに該当する特定事業者"]
[null,null,null,null,{"$f":"IF(計画書提出書!D20=\"\",\"\",計画書提出書!D20)","v":""},"条例第2条第5号ロに該当する特定事業者"]
[null,null,null,null,{"$f":"IF(計画書提出書!D21=\"\",\"\",計画書提出書!D21)","v":"〇"},"条例第2条第5号ハに該当する特定事業者"]
[null,null,null,null,{"$f":"IF(計画書提出書!D22=\"\",\"\",計画書提出書!D22)","v":""},"条例第15条第1項に該当する一般事業者"]
["温室効果ガス\n排出抑制の\nための基本方針",null,null,null,{"$f":"IF('計画書①（事業者概要・目標）'!A13=\"\",\"\",'計画書①（事業者概要・目標）'!A13)","v":""}]
[]
["２　温室効果ガスの削減目標等"]
["温室効果ガスの\n排出状況\n及び削減目標",null,null,null,"基準年度",null,{"$f":"IF(はじめに!E4=\"\",\"\",はじめに!E4)","v":""},"年度","基準排出量",null,{"$f":"IF('計画書①（事業者概要・目標）'!H24=\"\",\"\",'計画書①（事業者概要・目標）'!H24)","v":""},null,"t-CO2","基準原単位",null,{"$f":"IF('計画書①（事業者概要・目標）'!M24=\"\",\"\",'計画書①（事業者概要・目標）'!M24)","v":""}]
[null,null,null,null,"目標年度",null,{"$f":"IF(はじめに!H3=\"\",\"\",はじめに!H3)","v":2025},"年度","目標排出量",null,{"$f":"IF('計画書①（事業者概要・目標）'!H25=\"\",\"\",'計画書①（事業者概要・目標）'!H25)","v":""},null,"t-CO2","目標原単位",null,{"$f":"IF('計画書①（事業者概要・目標）'!M25=\"\",\"\",'計画書①（事業者概要・目標）'!M25)","v":""}]
[null,null,null,null,null,null,null,null,"削減率",null,{"$f":"IF('計画書①（事業者概要・目標）'!H26=\"\",\"\",'計画書①（事業者概要・目標）'!H26)","v":""},null,"％","削減率",null,{"$f":"IF('計画書①（事業者概要・目標）'!M26=\"\",\"\",'計画書①（事業者概要・目標）'!M26)","v":""},"％"]
[null,null,null,null,"目標設定の考え方",null,{"$f":"IF('計画書①（事業者概要・目標）'!C28=\"\",\"\",'計画書①（事業者概要・目標）'!C28)","v":""}]
[]
["３　温室効果ガスの排出抑制に関する取組"]
["基本対策の実施計画",null,null,null,"基準年度実施率",null,null,{"$f":"IF('計画書② (取組）'!J9=\"\",\"\",'計画書② (取組）'!J9*100)","v":""},null,"％","目標年度実施率",null,null,{"$f":"IF('計画書② (取組）'!J10=\"\",\"\",'計画書② (取組）'!J10*100)","v":""},null,"％"]
["選択対策の実施計画",null,null,null,"項目",null,null,null,null,null,null,null,null,null,null,"実施年度"]
[null,null,null,null,{"$f":"IF('計画書② (取組）'!C21=\"\",\"\",'計画書② (取組）'!C21)","v":""},null,null,null,null,null,null,null,null,null,null,{"$f":"IF('計画書（公表用）'!E25=\"\",\"\",IF('計画書② (取組）'!E21=\"実施済\",'計画書② (取組）'!E21,'計画書② (取組）'!F21))","v":""}]
[null,null,null,null,{"$f":"IF('計画書② (取組）'!C22=\"\",\"\",'計画書② (取組）'!C22)","v":""},null,null,null,null,null,null,null,null,null,null,{"$f":"IF('計画書（公表用）'!E26=\"\",\"\",IF('計画書② (取組）'!E22=\"実施済\",'計画書② (取組）'!E22,'計画書② (取組）'!F22))","v":""}]
[null,null,null,null,{"$f":"IF('計画書② (取組）'!C23=\"\",\"\",'計画書② (取組）'!C23)","v":""},null,null,null,null,null,null,null,null,null,null,{"$f":"IF('計画書（公表用）'!E27=\"\",\"\",IF('計画書② (取組）'!E23=\"実施済\",'計画書② (取組）'!E23,'計画書② (取組）'!F23))","v":""}]
[null,null,null,null,{"$f":"IF('計画書② (取組）'!C24=\"\",\"\",'計画書② (取組）'!C24)","v":""},null,null,null,null,null,null,null,null,null,null,{"$f":"IF('計画書（公表用）'!E28=\"\",\"\",IF('計画書② (取組）'!E24=\"実施済\",'計画書② (取組）'!E24,'計画書② (取組）'!F24))","v":""}]
[null,null,null,null,{"$f":"IF('計画書② (取組）'!C25=\"\",\"\",'計画書② (取組）'!C25)","v":""},null,null,null,null,null,null,null,null,null,null,{"$f":"IF('計画書（公表用）'!E29=\"\",\"\",IF('計画書② (取組）'!E25=\"実施済\",'計画書② (取組）'!E25,'計画書② (取組）'!F25))","v":""}]
["その他の対策の\n実施計画",null,null,null,"項目",null,null,null,"具体的な取組内容",null,null,null,null,null,null,"実施年度"]
[null,null,null,null,{"$f":"IF('計画書② (取組）'!C40=\"\",\"\",'計画書② (取組）'!C40)","v":""},null,null,null,{"$f":"IF('計画書② (取組）'!D40=\"\",\"\",'計画書② (取組）'!D40)","v":""},null,null,null,null,null,null,{"$f":"IF(I31=\"\",\"\",IF('計画書② (取組）'!E40=\"実施済\",'計画書② (取組）'!E40,'計画書② (取組）'!F40))","v":""}]
[null,null,null,null,{"$f":"IF('計画書② (取組）'!C41=\"\",\"\",'計画書② (取組）'!C41)","v":""},null,null,null,{"$f":"IF('計画書② (取組）'!D41=\"\",\"\",'計画書② (取組）'!D41)","v":""},null,null,null,null,null,null,{"$f":"IF(I32=\"\",\"\",IF('計画書② (取組）'!E41=\"実施済\",'計画書② (取組）'!E41,'計画書② (取組）'!F41))","v":""}]
[null,null,null,null,{"$f":"IF('計画書② (取組）'!C42=\"\",\"\",'計画書② (取組）'!C42)","v":""},null,null,null,{"$f":"IF('計画書② (取組）'!D42=\"\",\"\",'計画書② (取組）'!D42)","v":""},null,null,null,null,null,null,{"$f":"IF(I33=\"\",\"\",IF('計画書② (取組）'!E42=\"実施済\",'計画書② (取組）'!E42,'計画書② (取組）'!F42))","v":""}]
[null,null,null,null,{"$f":"IF('計画書② (取組）'!C43=\"\",\"\",'計画書② (取組）'!C43)","v":""},null,null,null,{"$f":"IF('計画書② (取組）'!D43=\"\",\"\",'計画書② (取組）'!D43)","v":""},null,null,null,null,null,null,{"$f":"IF(I34=\"\",\"\",IF('計画書② (取組）'!E43=\"実施済\",'計画書② (取組）'!E43,'計画書② (取組）'!F43))","v":""}]
[null,null,null,null,{"$f":"IF('計画書② (取組）'!C44=\"\",\"\",'計画書② (取組）'!C44)","v":""},null,null,null,{"$f":"IF('計画書② (取組）'!D44=\"\",\"\",'計画書② (取組）'!D44)","v":""},null,null,null,null,null,null,{"$f":"IF(I35=\"\",\"\",IF('計画書② (取組）'!E44=\"実施済\",'計画書② (取組）'!E44,'計画書② (取組）'!F44))","v":""}]

{"sheet":"報告書①（事業者概要・実績）","index":8,"n_rows":39,"n_cols":35,"rows_kept":39,"cut":false,"hidden":true,"merged":[[38,0,38,1],[38,2,38,15],[34,0,34,1],[34,2,34,15],[35,2,36,3],[35,4,36,4],[35,5,35,6],[35,7,35,8],[35,10,35,11],[35,12,35,13],[36,5,36,6],[36,7,36,8],[36,10,36,11],[36,12,36,13],[35,0,37,1],[30,0,30,1],[30,2,30,15],[31,2,32,3],[31,4,32,4],[31,5,31,6],[31,7,31,8],[31,10,31,11],[31,12,31,13],[32,5,32,6],[32,7,32,8],[32,10,32,11],[32,12,32,13],[31,0,33,1],[27,12,27,13],[28,5,28,6],[28,7,28,8],[28,10,28,11],[28,12,28,13],[27,2,28,3],[27,4,28,4],[27,5,27,6],[27,7,27,8],[27,0,29,1],[29,2,29,11],[27,10,27,11],[26,0,26,1],[26,2,26,11],[24,10,24,11],[24,12,24,13],[26,12,26,13],[25,10,25,11],[25,12,25,13],[24,5,24,6],[24,7,24,8],[24,2,25,4],[25,5,25,6],[25,7,25,8],[7,0,7,3],[7,4,7,15],[23,0,23,1],[23,5,23,6],[23,7,23,8],[23,10,23,11],[23,12,23,13],[12,0,12,15],[15,0,15,15],[8,0,8,3],[8,4,8,15],[23,2,23,4],[2,2,2,11],[5,0,5,3],[5,4,5,15],[6,0,6,3],[6,4,6,15],[29,12,29,13],[33,2,33,11],[33,12,33,13],[37,2,37,11],[37,12,37,13]]}
[]
[]
[null,null,"事業者温室効果ガス削減報告書（第二計画期間）",null,null,null,null,null,null,null,null,null,{"$f":"\" 第 \"&はじめに!F29&\" 年度分\"","v":" 第  年度分"}]
[]
["１　事業者の概要"]
["事業者の名称",null,null,null,{"$f":"IF(はじめに!E6=\"\",\"\",はじめに!E6)","v":""}]
["市内代表事業所の名称",null,null,null,{"$f":"IF(はじめに!E14=\"\",\"\",はじめに!E14)","v":""}]
["市内代表事業所の所在地",null,null,null,{"$f":"IF(はじめに!E16=\"\",\"\",はじめに!E16)","v":""}]
["主たる業種",null,null,null,{"$f":"IF(はじめに!E18=\"\",\"\",はじめに!E18)","v":""}]
[]
[]
["２　温室効果ガス排出抑制のための基本方針"]
[{"$f":"IF('計画書①（事業者概要・目標）'!A13=\"\",\"\",'計画書①（事業者概要・目標）'!A13)","v":""}]
[]
["３　温室効果ガス排出抑制のための組織体制"]
[{"$f":"IF('計画書①（事業者概要・目標）'!A16=\"\",\"\",'計画書①（事業者概要・目標）'!A16)","v":""}]
[]
[]
[]
[]
[]
[]
["４　温室効果ガスの排出の状況等",null,null,null,null,null,null,null,null,null,null,null,null,null,null,null,null,null,null,null,null,null,null,null,null,null,null,null,null,null,null,null,4,null,50]
["基準年度",null,"温室効果ガス\nの排出の状況",null,null,"基準排出量",null,{"$f":"IF('計画書①（事業者概要・目標）'!H24=\"\",\"\",'計画書①（事業者概要・目標）'!H24)","v":""},null,"t-CO2","基準原単位",null,{"$f":"IF('計画書①（事業者概要・目標）'!M24=\"\",\"\",'計画書①（事業者概要・目標）'!M24)","v":""},null,"t-CO2/",{"$f":"IF('計画書①（事業者概要・目標）'!P24=\"\",\"\",'計画書①（事業者概要・目標）'!P24)","v":""},null,null,null,null,null,null,null,null,null,null,null,null,null,null,null,null,3,4,40]
[null,null,"温室効果ガス\n排出抑制に係る\n目標",null,null,"目標排出量",null,{"$f":"IF('計画書①（事業者概要・目標）'!H25=\"\",\"\",'計画書①（事業者概要・目標）'!H25)","v":""},null,"t-CO2","目標原単位",null,{"$f":"IF('計画書①（事業者概要・目標）'!M25=\"\",\"\",'計画書①（事業者概要・目標）'!M25)","v":""},null,"t-CO2/",{"$f":"IF(P24=\"\",\"\",P24)","v":""},null,null,null,null,"削減率","第1年度","第2年度","第3年度","平均","評価点",null,null,null,null,null,null,2,3,30]
[{"$f":"IF(はじめに!H3=\"\",\"\",はじめに!H3)","v":2025},"年度",null,null,null,"削減率",null,{"$f":"IFERROR((IF($H$25=\"\",\"\",INT(($H$24-H25)/$H$24*10000)/100)),\"\")","v":""},{"$f":"IF($F$5=\"\",\"\",INT(($F$5-I25)/$F$5*100000)/1000)","v":""},"%","削減率",null,{"$f":"IFERROR(IF($M$25=\"\",\"\",INT(($M$24-M25)/$M$24*10000)/100),\"\")","v":""},{"$f":"IF($F$5=\"\",\"\",INT(($F$5-N25)/$F$5*100000)/1000)","v":""},"%"]
["(目標年度)",null,"非化石エネルギー自動車割合（任意入力）",null,null,null,null,null,null,null,null,null,{"$f":"IF('計画書①（事業者概要・目標）'!M27=\"\",\"\",'計画書①（事業者概要・目標）'!M27)","v":""},null,"%",null,null,null,null,null,"排出量",{"$f":"IF(H29=\"\",\"\",H29)","v":""},{"$f":"IF(H33=\"\",\"\",H33)","v":""},{"$f":"IF(H37=\"\",\"\",H37)","v":""},{"$f":"IFERROR(AVERAGE(V27:X27),\"\")","v":""},{"$f":"IF(Y27=\"\",\"\",IF(Y27>=$AG$23,$AI$23,IF(AND(Y27>=$AG$24,Y27<$AH$24),$AI$24,IF(AND(Y27>=$AG$25,Y27<$AH$25),$AI$25,IF(AND(Y27>=$AG$27,Y27<$AH$27),$AI$27,IF(AND(Y27>=$AG$28,Y27<$AH$28),$AI$28,$AI$29))))))","v":""},null,null,null,null,null,null,1,2,20]
["第１年度",null,{"$f":"IF(はじめに!E3=\"\",\"\",はじめに!E3)","v":""},null,"年度","排出量",null,{"$f":"IF('事業所排出量内訳（第1年度）'!N4=0,\"\",'事業所排出量内訳（第1年度）'!R12)","v":""},null,"t-CO2","原単位",null,{"$f":"IF('事業所排出量内訳（第1年度）'!N4=0,\"\",'事業所排出量内訳（第1年度）'!R15)","v":""},null,"t-CO2/",{"$f":"IF('計画書①（事業者概要・目標）'!$P$24=\"\",\"\",'計画書①（事業者概要・目標）'!$P$24)","v":""},null,null,null,null,"原単位",{"$f":"IF(M29=\"\",\"\",M29)","v":""},{"$f":"IF(M33=\"\",\"\",M33)","v":""},{"$f":"IF(M37=\"\",\"\",M37)","v":""},{"$f":"IFERROR(AVERAGE(V28:X28),\"\")","v":""},{"$f":"IF(Y28=\"\",\"\",IF(Y28>=$AG$23,$AI$23,IF(AND(Y28>=$AG$24,Y28<$AH$24),$AI$24,IF(AND(Y28>=$AG$25,Y28<$AH$25),$AI$25,IF(AND(Y28>=$AG$27,Y28<$AH$27),$AI$27,IF(AND(Y28>=$AG$28,Y28<$AH$28),$AI$28,$AI$29))))))","v":""},null,null,null,null,null,null,0,1,10]
[null,null,null,null,null,"削減率",null,{"$f":"IFERROR(IF(H28=\"\",\"\",INT(($H$24-H28)/$H$24*10000)/100),\"\")","v":""},{"$f":"IF($F$7=\"\",\"\",INT(($F$7-I28)/$F$7*100000)/1000)","v":""},"%","削減率",null,{"$f":"IFERROR(IF(M28=\"\",\"\",INT(($M$24-M28)/$M$24*10000)/100),\"\")","v":""},{"$f":"IF($F$7=\"\",\"\",INT(($F$7-N28)/$F$7*100000)/1000)","v":""},"%",null,null,null,null,null,null,null,null,null,null,null,null,null,null,null,null,null,null,0,0]
[null,null,"非化石エネルギー自動車割合（任意入力）",null,null,null,null,null,null,null,null,null,{"$f":"IF(AND('事業所排出量内訳（第1年度）'!R2=0,\n            COUNTBLANK('事業所排出量内訳（第1年度）'!E11:F11)=2),\"\",'事業所排出量内訳（第1年度）'!R18)","v":""},null,"%"]
["排出量等の\n増減理由"]
["第２年度",null,{"$f":"IF(はじめに!E3=\"\",\"\",IF(C28>2024,\"-\",C28+1))","v":""},null,"年度","排出量",null,{"$f":"IF('事業所排出量内訳（第2年度）'!N4=0,\"\",'事業所排出量内訳（第2年度）'!R12)","v":""},null,"t-CO2","原単位",null,{"$f":"IF('事業所排出量内訳（第2年度）'!N4=0,\"\",'事業所排出量内訳（第2年度）'!R15)","v":""},null,"t-CO2/",{"$f":"IF('計画書①（事業者概要・目標）'!$P$24=\"\",\"\",'計画書①（事業者概要・目標）'!$P$24)","v":""}]
[null,null,null,null,null,"削減率",null,{"$f":"IFERROR(IF(H32=\"\",\"\",INT(($H$24-H32)/$H$24*10000)/100),\"\")","v":""},{"$f":"IF($F$7=\"\",\"\",INT(($F$7-I32)/$F$7*100000)/1000)","v":""},"%","削減率",null,{"$f":"IFERROR(IF(M32=\"\",\"\",INT(($M$24-M32)/$M$24*10000)/100),\"\")","v":""},{"$f":"IF($F$7=\"\",\"\",INT(($F$7-N32)/$F$7*100000)/1000)","v":""},"%"]
[null,null,"非化石エネルギー自動車割合（任意入力）",null,null,null,null,null,null,null,null,null,{"$f":"IF(AND('事業所排出量内訳（第2年度）'!R2=0,\n            COUNTBLANK('事業所排出量内訳（第2年度）'!E11:F11)=2),\"\",'事業所排出量内訳（第2年度）'!R18)","v":""},null,"%"]
["排出量等の\n増減理由"]
["第３年度",null,{"$f":"IF(はじめに!E3=\"\",\"\",IF(C32>2024,\"-\",C32+1))","v":""},null,"年度","排出量",null,{"$f":"IF('事業所排出量内訳（第3年度）'!N4=0,\"\",'事業所排出量内訳（第3年度）'!R12)","v":""},null,"t-CO2","原単位",null,{"$f":"IF('事業所排出量内訳（第3年度）'!N4=0,\"\",'事業所排出量内訳（第3年度）'!R15)","v":""},null,"t-CO2/",{"$f":"IF('計画書①（事業者概要・目標）'!$P$24=\"\",\"\",'計画書①（事業者概要・目標）'!$P$24)","v":""}]
[null,null,null,null,null,"削減率",null,{"$f":"IFERROR(IF(H36=\"\",\"\",INT(($H$24-H36)/$H$24*10000)/100),\"\")","v":""},{"$f":"IF($F$7=\"\",\"\",INT(($F$7-I36)/$F$7*100000)/1000)","v":""},"%","削減率",null,{"$f":"IFERROR(IF(M36=\"\",\"\",INT(($M$24-M36)/$M$24*10000)/100),\"\")","v":""},{"$f":"IF($F$7=\"\",\"\",INT(($F$7-N36)/$F$7*100000)/1000)","v":""},"%"]
[null,null,"非化石エネルギー自動車割合（任意入力）",null,null,null,null,null,null,null,null,null,{"$f":"IF(AND('事業所排出量内訳（第3年度）'!R2=0,\n            COUNTBLANK('事業所排出量内訳（第3年度）'!E11:F11)=2),\"\",'事業所排出量内訳（第3年度）'!R18)","v":""},null,"%"]
["排出量等の\n増減理由"]

{"sheet":"報告書② 第1年度(取組）","index":9,"n_rows":130,"n_cols":8,"rows_kept":130,"cut":false,"hidden":true,"merged":[[24,2,25,2],[24,3,25,3],[3,0,4,0],[3,1,4,1],[3,2,4,2],[3,3,4,3],[19,0,19,2],[19,3,19,5],[44,0,45,0],[44,1,45,2],[44,3,45,3],[3,4,3,5],[24,4,24,5],[44,4,44,5],[20,0,20,2],[20,3,20,5],[21,0,21,2],[21,3,21,5],[24,0,25,0],[24,1,25,1]]}
[]
[]
["５の１　重点的に実施する取組の実施状況（基本対策）"]
["番号","分類","項目","対策内容","実施状況"]
[null,null,null,null,"基準年度","第１年度","第２年度","第３年度"]
[1,"一般管理事項","エネルギー管理推進体制の整備","エネルギー管理推進体制が整備されている。エネルギー管理推進体制の中で、エネルギー管理が推進されている。",{"$f":"IF('計画書② (取組）'!E5=\"\",\"\",'計画書② (取組）'!E5)","v":""}]
[2,"一般管理事項","省エネルギー教育の実施","省エネルギー、地球温暖化防止に関する研修、教育を定期的に実施し、実施記録を残している。",{"$f":"IF('計画書② (取組）'!E6=\"\",\"\",'計画書② (取組）'!E6)","v":""}]
[3,"一般管理事項","エネルギー使用量の把握","エネルギー使用量や走行距離を車両別に定期的に把握・記録されている。",{"$f":"IF('計画書② (取組）'!E7=\"\",\"\",'計画書② (取組）'!E7)","v":""}]
[4,"一般管理事項","エコドライブ推進体制の整備","エコドライブ推進に関する責任者の設置、実践方法に関するマニュアルを作成するなど、推進体制を整備している。",{"$f":"IF('計画書② (取組）'!E8=\"\",\"\",'計画書② (取組）'!E8)","v":""}]
[5,"一般管理事項","エコドライブ教育の実施","車両を運転する全社員に対するエコドライブに関する研修、教育を定期的に実施している。",{"$f":"IF('計画書② (取組）'!E9=\"\",\"\",'計画書② (取組）'!E9)","v":""}]
[6,"ボイラー、工業炉、熱交換器等","エコドライブ実践","エコドライブ10のすすめを実践し、チェックシート等に記録している。",{"$f":"IF('計画書② (取組）'!E10=\"\",\"\",'計画書② (取組）'!E10)","v":""}]
[7,"ボイラー、工業炉、熱交換器等","車両の維持管理","車両の点検・整備に関する責任者の設置、マニュアルの作成等、自動車の維持管理体制が整備されている。",{"$f":"IF('計画書② (取組）'!E11=\"\",\"\",'計画書② (取組）'!E11)","v":""}]
[8,"ボイラー、工業炉、熱交換器等","車両の性能管理","日常及び定期的な保守・点検、修理が行われ、記録されている。",{"$f":"IF('計画書② (取組）'!E12=\"\",\"\",'計画書② (取組）'!E12)","v":""}]
[9,"ボイラー、工業炉、熱交換器等","効率的なルート選定","事前に目的地までの効率的なルートを選定し、運転者に伝える仕組みが整備されている。",{"$f":"IF('計画書② (取組）'!E13=\"\",\"\",'計画書② (取組）'!E13)","v":""}]
[10,null,"効率的な自動車管理","輸送需要を把握し、目的や輸送量に応じた自動車を使用するなど、適切な車両管理を行っている。",{"$f":"IF('計画書② (取組）'!E14=\"\",\"\",'計画書② (取組）'!E14)","v":""}]
[11,null,"照明器具の点灯時間管理","照明器具の点灯時間がルール化されている。不要な照明の使用や消し忘れをチェックする仕組みがある。センサー等による制御が導入されている。",{"$f":"IF('計画書② (取組）'!E15=\"\",\"\",'計画書② (取組）'!E15)","v":""}]
[12,"ボイラー、工業炉、熱交換器等","事務所機器の待機電力管理","PC、OA機器等の事務所機器が省エネモードに設定されており、長時間不使用の場合には電源を切ることがルール化されている。PC、OA機器等の事務所機器がルールに従って運転されている。",{"$f":"IF('計画書② (取組）'!E16=\"\",\"\",'計画書② (取組）'!E16)","v":""}]
[]
["基本対策の実施状況に関する説明・特記事項など"]
["第１年度"]
["第２年度"]
["第３年度"]
[]
["５の２　重点的に実施する取組の実施状況（選択対策）"]
["番号","分類","項目","対策内容","実施状況"]
[null,null,null,null,"基準年度","第１年度","第２年度","第３年度"]
[1,null,{"$f":"対策リスト!AV2&\"\"","v":""},{"$f":"IFERROR(VLOOKUP(C27,選択対策,2,0),\"\")","v":""},{"$f":"IF(C27=\"\",\"\",IFERROR(IF(VLOOKUP(C27,'計画書② (取組）'!$C$21:$F$35,3,0)=\"\",\"未入力\",VLOOKUP(C27,'計画書② (取組）'!$C$21:$F$35,3,0)),\"-------\"))","v":""}]
[2,null,{"$f":"対策リスト!AV3&\"\"","v":""},{"$f":"IFERROR(VLOOKUP(C28,選択対策,2,0),\"\")","v":""},{"$f":"IF(C28=\"\",\"\",IFERROR(IF(VLOOKUP(C28,'計画書② (取組）'!$C$21:$F$35,3,0)=\"\",\"未入力\",VLOOKUP(C28,'計画書② (取組）'!$C$21:$F$35,3,0)),\"-------\"))","v":""}]
[3,null,{"$f":"対策リスト!AV4&\"\"","v":""},"",{"$f":"IF(C29=\"\",\"\",IFERROR(IF(VLOOKUP(C29,'計画書② (取組）'!$C$21:$F$35,3,0)=\"\",\"未入力\",VLOOKUP(C29,'計画書② (取組）'!$C$21:$F$35,3,0)),\"-------\"))","v":""}]
[4,null,{"$f":"対策リスト!AV5&\"\"","v":""},"",{"$f":"IF(C30=\"\",\"\",IFERROR(IF(VLOOKUP(C30,'計画書② (取組）'!$C$21:$F$35,3,0)=\"\",\"未入力\",VLOOKUP(C30,'計画書② (取組）'!$C$21:$F$35,3,0)),\"-------\"))","v":""}]
[5,null,{"$f":"対策リスト!AV6&\"\"","v":""},"",{"$f":"IF(C31=\"\",\"\",IFERROR(IF(VLOOKUP(C31,'計画書② (取組）'!$C$21:$F$35,3,0)=\"\",\"未入力\",VLOOKUP(C31,'計画書② (取組）'!$C$21:$F$35,3,0)),\"-------\"))","v":""}]
[6,null,{"$f":"対策リスト!AV7&\"\"","v":""},"",{"$f":"IF(C32=\"\",\"\",IFERROR(IF(VLOOKUP(C32,'計画書② (取組）'!$C$21:$F$35,3,0)=\"\",\"未入力\",VLOOKUP(C32,'計画書② (取組）'!$C$21:$F$35,3,0)),\"-------\"))","v":""}]
[7,null,{"$f":"対策リスト!AV8&\"\"","v":""},"",{"$f":"IF(C33=\"\",\"\",IFERROR(IF(VLOOKUP(C33,'計画書② (取組）'!$C$21:$F$35,3,0)=\"\",\"未入力\",VLOOKUP(C33,'計画書② (取組）'!$C$21:$F$35,3,0)),\"-------\"))","v":""}]
[8,null,{"$f":"対策リスト!AV9&\"\"","v":""},"",{"$f":"IF(C34=\"\",\"\",IFERROR(IF(VLOOKUP(C34,'計画書② (取組）'!$C$21:$F$35,3,0)=\"\",\"未入力\",VLOOKUP(C34,'計画書② (取組）'!$C$21:$F$35,3,0)),\"-------\"))","v":""}]
[9,null,{"$f":"対策リスト!AV10&\"\"","v":""},"",{"$f":"IF(C35=\"\",\"\",IFERROR(IF(VLOOKUP(C35,'計画書② (取組）'!$C$21:$F$35,3,0)=\"\",\"未入力\",VLOOKUP(C35,'計画書② (取組）'!$C$21:$F$35,3,0)),\"-------\"))","v":""}]
[10,null,{"$f":"対策リスト!AV11&\"\"","v":""},"",{"$f":"IF(C36=\"\",\"\",IFERROR(IF(VLOOKUP(C36,'計画書② (取組）'!$C$21:$F$35,3,0)=\"\",\"未入力\",VLOOKUP(C36,'計画書② (取組）'!$C$21:$F$35,3,0)),\"-------\"))","v":""}]
[11,null,{"$f":"対策リスト!AV12&\"\"","v":""},"",{"$f":"IF(C37=\"\",\"\",IFERROR(IF(VLOOKUP(C37,'計画書② (取組）'!$C$21:$F$35,3,0)=\"\",\"未入力\",VLOOKUP(C37,'計画書② (取組）'!$C$21:$F$35,3,0)),\"-------\"))","v":""}]
[12,null,{"$f":"対策リスト!AV13&\"\"","v":""},"",{"$f":"IF(C38=\"\",\"\",IFERROR(IF(VLOOKUP(C38,'計画書② (取組）'!$C$21:$F$35,3,0)=\"\",\"未入力\",VLOOKUP(C38,'計画書② (取組）'!$C$21:$F$35,3,0)),\"-------\"))","v":""}]
[13,null,{"$f":"対策リスト!AV14&\"\"","v":""},"",{"$f":"IF(C39=\"\",\"\",IFERROR(IF(VLOOKUP(C39,'計画書② (取組）'!$C$21:$F$35,3,0)=\"\",\"未入力\",VLOOKUP(C39,'計画書② (取組）'!$C$21:$F$35,3,0)),\"-------\"))","v":""}]
[14,null,{"$f":"対策リスト!AV15&\"\"","v":""},"",{"$f":"IF(C40=\"\",\"\",IFERROR(IF(VLOOKUP(C40,'計画書② (取組）'!$C$21:$F$35,3,0)=\"\",\"未入力\",VLOOKUP(C40,'計画書② (取組）'!$C$21:$F$35,3,0)),\"-------\"))","v":""}]
[15,null,{"$f":"対策リスト!AV16&\"\"","v":""},"",{"$f":"IF(C41=\"\",\"\",IFERROR(IF(VLOOKUP(C41,'計画書② (取組）'!$C$21:$F$35,3,0)=\"\",\"未入力\",VLOOKUP(C41,'計画書② (取組）'!$C$21:$F$35,3,0)),\"-------\"))","v":""}]
[]
[]
["５の３　重点的に実施する取組の実施状況（その他の対策）"]
["番号","項目",null,"具体的な取組内容","実施状況"]
[null,null,null,null,"基準年度","第１年度","第２年度","第３年度"]
[1,null,{"$f":"対策リスト!BV2&\"\"","v":""},{"$f":"対策リスト!BY2&\"\"","v":""},{"$f":"IF(C47=\"\",\"\",IF(対策リスト!CD2=\"\",\"-------\",対策リスト!CD2))","v":""}]
[2,null,{"$f":"対策リスト!BV3&\"\"","v":""},{"$f":"対策リスト!BY3&\"\"","v":""},{"$f":"IF(C48=\"\",\"\",IF(対策リスト!CD3=\"\",\"-------\",対策リスト!CD3))","v":""}]
[3,null,{"$f":"対策リスト!BV4&\"\"","v":""},{"$f":"対策リスト!BY4&\"\"","v":""},{"$f":"IF(C49=\"\",\"\",IF(対策リスト!CD4=\"\",\"-------\",対策リスト!CD4))","v":""}]
[4,null,{"$f":"対策リスト!BV5&\"\"","v":""},{"$f":"対策リスト!BY5&\"\"","v":""},{"$f":"IF(C50=\"\",\"\",IF(対策リスト!CD5=\"\",\"-------\",対策リスト!CD5))","v":""}]
[5,null,{"$f":"対策リスト!BV6&\"\"","v":""},{"$f":"対策リスト!BY6&\"\"","v":""},{"$f":"IF(C51=\"\",\"\",IF(対策リスト!CD6=\"\",\"-------\",対策リスト!CD6))","v":""}]
[6,null,{"$f":"対策リスト!BV7&\"\"","v":""},{"$f":"対策リスト!BY7&\"\"","v":""},{"$f":"IF(C52=\"\",\"\",IF(対策リスト!CD7=\"\",\"-------\",対策リスト!CD7))","v":""}]
[7,null,{"$f":"対策リスト!BV8&\"\"","v":""},{"$f":"対策リスト!BY8&\"\"","v":""},{"$f":"IF(C53=\"\",\"\",IF(対策リスト!CD8=\"\",\"-------\",対策リスト!CD8))","v":""}]
[8,null,{"$f":"対策リスト!BV9&\"\"","v":""},{"$f":"対策リスト!BY9&\"\"","v":""},{"$f":"IF(C54=\"\",\"\",IF(対策リスト!CD9=\"\",\"-------\",対策リスト!CD9))","v":""}]
[9,null,{"$f":"対策リスト!BV10&\"\"","v":""},{"$f":"対策リスト!BY10&\"\"","v":""},{"$f":"IF(C55=\"\",\"\",IF(対策リスト!CD10=\"\",\"-------\",対策リスト!CD10))","v":""}]
[10,null,{"$f":"対策リスト!BV11&\"\"","v":""},{"$f":"対策リスト!BY11&\"\"","v":""},{"$f":"IF(C56=\"\",\"\",IF(対策リスト!CD11=\"\",\"-------\",対策リスト!CD11))","v":""}]
[]
[]
[]
[]
[]
[]
[]
[]
[]
[]
[]
[]
[]
[]
[]
[]
[]
[]
[]
[]
[]
[]
[]
[]
[]
[]
[]
[]
[]
[]
[]
[]
[]
[null,null,"第１年度追加（選択対策）"]
[1]
[2]
[3]
[4]
[5]
[6]
[7]
[8]
[9]
[10]
[11]
[12]
[13]
[14]
[15]
[]
[]
[]
[]
[]
[]
[]
[]
[]
[]
[]
[]
[]
[null,null,"第１年度追加（その他の対策）"]
[null,null,null,"具体的な取組内容"]
[1]
[2]
[3]
[4]
[5]
[6]
[7]
[8]
[9]
[10]

{"sheet":"報告書② 第2年度(取組）","index":10,"n_rows":130,"n_cols":8,"rows_kept":130,"cut":false,"hidden":true,"merged":[[24,2,25,2],[24,3,25,3],[3,0,4,0],[3,1,4,1],[3,2,4,2],[3,3,4,3],[19,0,19,2],[19,3,19,5],[44,0,45,0],[44,1,45,2],[44,3,45,3],[3,4,3,6],[24,4,24,6],[44,4,44,6],[20,0,20,2],[20,3,20,5],[21,0,21,2],[21,3,21,5],[24,0,25,0],[24,1,25,1]]}
[]
[]
["５の１　重点的に実施する取組の実施状況（基本対策）"]
["番号","分類","項目","対策内容","実施状況"]
[null,null,null,null,"基準年度","第１年度","第２年度","第３年度"]
[1,"一般管理事項","エネルギー管理推進体制の整備","エネルギー管理推進体制が整備されている。エネルギー管理推進体制の中で、エネルギー管理が推進されている。",{"$f":"IF('計画書② (取組）'!E5=\"\",\"\",'計画書② (取組）'!E5)","v":""},{"$f":"IF(C6=\"\",\"\",IFERROR(IF(VLOOKUP(C6,'報告書② 第1年度(取組）'!$C$6:$F$17,4,0)=\"\",\"未入力\",VLOOKUP(C6,'報告書② 第1年度(取組）'!$C$6:$F$35,4,0)),\"-------\"))","v":"未入力"}]
[2,"一般管理事項","省エネルギー教育の実施","省エネルギー、地球温暖化防止に関する研修、教育を定期的に実施し、実施記録を残している。",{"$f":"IF('計画書② (取組）'!E6=\"\",\"\",'計画書② (取組）'!E6)","v":""},{"$f":"IF(C7=\"\",\"\",IFERROR(IF(VLOOKUP(C7,'報告書② 第1年度(取組）'!$C$6:$F$17,4,0)=\"\",\"未入力\",VLOOKUP(C7,'報告書② 第1年度(取組）'!$C$6:$F$35,4,0)),\"-------\"))","v":"未入力"}]
[3,"一般管理事項","エネルギー使用量の把握","エネルギー使用量や走行距離を車両別に定期的に把握・記録されている。",{"$f":"IF('計画書② (取組）'!E7=\"\",\"\",'計画書② (取組）'!E7)","v":""},{"$f":"IF(C8=\"\",\"\",IFERROR(IF(VLOOKUP(C8,'報告書② 第1年度(取組）'!$C$6:$F$17,4,0)=\"\",\"未入力\",VLOOKUP(C8,'報告書② 第1年度(取組）'!$C$6:$F$35,4,0)),\"-------\"))","v":"未入力"}]
[4,"一般管理事項","エコドライブ推進体制の整備","エコドライブ推進に関する責任者の設置、実践方法に関するマニュアルを作成するなど、推進体制を整備している。",{"$f":"IF('計画書② (取組）'!E8=\"\",\"\",'計画書② (取組）'!E8)","v":""},{"$f":"IF(C9=\"\",\"\",IFERROR(IF(VLOOKUP(C9,'報告書② 第1年度(取組）'!$C$6:$F$17,4,0)=\"\",\"未入力\",VLOOKUP(C9,'報告書② 第1年度(取組）'!$C$6:$F$35,4,0)),\"-------\"))","v":"未入力"}]
[5,"一般管理事項","エコドライブ教育の実施","車両を運転する全社員に対するエコドライブに関する研修、教育を定期的に実施している。",{"$f":"IF('計画書② (取組）'!E9=\"\",\"\",'計画書② (取組）'!E9)","v":""},{"$f":"IF(C10=\"\",\"\",IFERROR(IF(VLOOKUP(C10,'報告書② 第1年度(取組）'!$C$6:$F$17,4,0)=\"\",\"未入力\",VLOOKUP(C10,'報告書② 第1年度(取組）'!$C$6:$F$35,4,0)),\"-------\"))","v":"未入力"}]
[6,"ボイラー、工業炉、熱交換器等","エコドライブ実践","エコドライブ10のすすめを実践し、チェックシート等に記録している。",{"$f":"IF('計画書② (取組）'!E10=\"\",\"\",'計画書② (取組）'!E10)","v":""},{"$f":"IF(C11=\"\",\"\",IFERROR(IF(VLOOKUP(C11,'報告書② 第1年度(取組）'!$C$6:$F$17,4,0)=\"\",\"未入力\",VLOOKUP(C11,'報告書② 第1年度(取組）'!$C$6:$F$35,4,0)),\"-------\"))","v":"未入力"}]
[7,"ボイラー、工業炉、熱交換器等","車両の維持管理","車両の点検・整備に関する責任者の設置、マニュアルの作成等、自動車の維持管理体制が整備されている。",{"$f":"IF('計画書② (取組）'!E11=\"\",\"\",'計画書② (取組）'!E11)","v":""},{"$f":"IF(C12=\"\",\"\",IFERROR(IF(VLOOKUP(C12,'報告書② 第1年度(取組）'!$C$6:$F$17,4,0)=\"\",\"未入力\",VLOOKUP(C12,'報告書② 第1年度(取組）'!$C$6:$F$35,4,0)),\"-------\"))","v":"未入力"}]
[8,"ボイラー、工業炉、熱交換器等","車両の性能管理","日常及び定期的な保守・点検、修理が行われ、記録されている。",{"$f":"IF('計画書② (取組）'!E12=\"\",\"\",'計画書② (取組）'!E12)","v":""},{"$f":"IF(C13=\"\",\"\",IFERROR(IF(VLOOKUP(C13,'報告書② 第1年度(取組）'!$C$6:$F$17,4,0)=\"\",\"未入力\",VLOOKUP(C13,'報告書② 第1年度(取組）'!$C$6:$F$35,4,0)),\"-------\"))","v":"未入力"}]
[9,"ボイラー、工業炉、熱交換器等","効率的なルート選定","事前に目的地までの効率的なルートを選定し、運転者に伝える仕組みが整備されている。",{"$f":"IF('計画書② (取組）'!E13=\"\",\"\",'計画書② (取組）'!E13)","v":""},{"$f":"IF(C14=\"\",\"\",IFERROR(IF(VLOOKUP(C14,'報告書② 第1年度(取組）'!$C$6:$F$17,4,0)=\"\",\"未入力\",VLOOKUP(C14,'報告書② 第1年度(取組）'!$C$6:$F$35,4,0)),\"-------\"))","v":"未入力"}]
[10,null,"効率的な自動車管理","輸送需要を把握し、目的や輸送量に応じた自動車を使用するなど、適切な車両管理を行っている。",{"$f":"IF('計画書② (取組）'!E14=\"\",\"\",'計画書② (取組）'!E14)","v":""},{"$f":"IF(C15=\"\",\"\",IFERROR(IF(VLOOKUP(C15,'報告書② 第1年度(取組）'!$C$6:$F$17,4,0)=\"\",\"未入力\",VLOOKUP(C15,'報告書② 第1年度(取組）'!$C$6:$F$35,4,0)),\"-------\"))","v":"未入力"}]
[11,null,"照明器具の点灯時間管理","照明器具の点灯時間がルール化されている。不要な照明の使用や消し忘れをチェックする仕組みがある。センサー等による制御が導入されている。",{"$f":"IF('計画書② (取組）'!E15=\"\",\"\",'計画書② (取組）'!E15)","v":""},{"$f":"IF(C16=\"\",\"\",IFERROR(IF(VLOOKUP(C16,'報告書② 第1年度(取組）'!$C$6:$F$17,4,0)=\"\",\"未入力\",VLOOKUP(C16,'報告書② 第1年度(取組）'!$C$6:$F$35,4,0)),\"-------\"))","v":"未入力"}]
[12,"ボイラー、工業炉、熱交換器等","事務所機器の待機電力管理","PC、OA機器等の事務所機器が省エネモードに設定されており、長時間不使用の場合には電源を切ることがルール化されている。PC、OA機器等の事務所機器がルールに従って運転されている。",{"$f":"IF('計画書② (取組）'!E16=\"\",\"\",'計画書② (取組）'!E16)","v":""},{"$f":"IF(C17=\"\",\"\",IFERROR(IF(VLOOKUP(C17,'報告書② 第1年度(取組）'!$C$6:$F$17,4,0)=\"\",\"未入力\",VLOOKUP(C17,'報告書② 第1年度(取組）'!$C$6:$F$35,4,0)),\"-------\"))","v":"未入力"}]
[]
["基本対策の実施状況に関する説明・特記事項など"]
["第１年度",null,null,{"$f":"'報告書② 第1年度(取組）'!D20:F20&\"\"","v":""}]
["第２年度"]
["第３年度"]
[]
["５の２　重点的に実施する取組の実施状況（選択対策）"]
["番号","分類","項目","対策内容","実施状況"]
[null,null,null,null,"基準年度","第１年度","第２年度","第３年度"]
[1,null,{"$f":"対策リスト!AU2&\"\"","v":""},{"$f":"IFERROR(VLOOKUP(C27,選択対策,2,0),\"\")","v":""},{"$f":"IF(C27=\"\",\"\",IFERROR(IF(VLOOKUP(C27,'報告書② 第1年度(取組）'!$C$27:$F$41,3,0)=\"\",\"未入力\",VLOOKUP(C27,'報告書② 第1年度(取組）'!$C$27:$F$41,3,0)),\"-------\"))","v":""},{"$f":"IF(C27=\"\",\"\",IFERROR(IF(VLOOKUP(C27,'報告書② 第1年度(取組）'!$C$27:$F$41,4,0)=\"\",\"未入力\",VLOOKUP(C27,'報告書② 第1年度(取組）'!$C$27:$F$41,4,0)),\"-------\"))","v":""}]
[2,null,{"$f":"対策リスト!AU3&\"\"","v":""},"",{"$f":"IF(C28=\"\",\"\",IFERROR(IF(VLOOKUP(C28,'計画書② (取組）'!$C$21:$F$35,3,0)=\"\",\"未入力\",VLOOKUP(C28,'計画書② (取組）'!$C$21:$F$35,3,0)),\"-------\"))","v":""},{"$f":"IF(C28=\"\",\"\",IFERROR(IF(VLOOKUP(C28,'報告書② 第1年度(取組）'!$C$27:$F$41,4,0)=\"\",\"未入力\",VLOOKUP(C28,'報告書② 第1年度(取組）'!$C$27:$F$41,4,0)),\"-------\"))","v":""}]
[3,null,{"$f":"対策リスト!AU4&\"\"","v":""},"",{"$f":"IF(C29=\"\",\"\",IFERROR(IF(VLOOKUP(C29,'計画書② (取組）'!$C$21:$F$35,3,0)=\"\",\"未入力\",VLOOKUP(C29,'計画書② (取組）'!$C$21:$F$35,3,0)),\"-------\"))","v":""},{"$f":"IF(C29=\"\",\"\",IFERROR(IF(VLOOKUP(C29,'報告書② 第1年度(取組）'!$C$27:$F$41,4,0)=\"\",\"未入力\",VLOOKUP(C29,'報告書② 第1年度(取組）'!$C$27:$F$41,4,0)),\"-------\"))","v":""}]
[4,null,{"$f":"対策リスト!AU5&\"\"","v":""},"",{"$f":"IF(C30=\"\",\"\",IFERROR(IF(VLOOKUP(C30,'計画書② (取組）'!$C$21:$F$35,3,0)=\"\",\"未入力\",VLOOKUP(C30,'計画書② (取組）'!$C$21:$F$35,3,0)),\"-------\"))","v":""},{"$f":"IF(C30=\"\",\"\",IFERROR(IF(VLOOKUP(C30,'報告書② 第1年度(取組）'!$C$27:$F$41,4,0)=\"\",\"未入力\",VLOOKUP(C30,'報告書② 第1年度(取組）'!$C$27:$F$41,4,0)),\"-------\"))","v":""}]
[5,null,{"$f":"対策リスト!AU6&\"\"","v":""},"",{"$f":"IF(C31=\"\",\"\",IFERROR(IF(VLOOKUP(C31,'計画書② (取組）'!$C$21:$F$35,3,0)=\"\",\"未入力\",VLOOKUP(C31,'計画書② (取組）'!$C$21:$F$35,3,0)),\"-------\"))","v":""},{"$f":"IF(C31=\"\",\"\",IFERROR(IF(VLOOKUP(C31,'報告書② 第1年度(取組）'!$C$27:$F$41,4,0)=\"\",\"未入力\",VLOOKUP(C31,'報告書② 第1年度(取組）'!$C$27:$F$41,4,0)),\"-------\"))","v":""}]
[6,null,{"$f":"対策リスト!AU7&\"\"","v":""},"",{"$f":"IF(C32=\"\",\"\",IFERROR(IF(VLOOKUP(C32,'計画書② (取組）'!$C$21:$F$35,3,0)=\"\",\"未入力\",VLOOKUP(C32,'計画書② (取組）'!$C$21:$F$35,3,0)),\"-------\"))","v":""},{"$f":"IF(C32=\"\",\"\",IFERROR(IF(VLOOKUP(C32,'報告書② 第1年度(取組）'!$C$27:$F$41,4,0)=\"\",\"未入力\",VLOOKUP(C32,'報告書② 第1年度(取組）'!$C$27:$F$41,4,0)),\"-------\"))","v":""}]
[7,null,{"$f":"対策リスト!AU8&\"\"","v":""},"",{"$f":"IF(C33=\"\",\"\",IFERROR(IF(VLOOKUP(C33,'計画書② (取組）'!$C$21:$F$35,3,0)=\"\",\"未入力\",VLOOKUP(C33,'計画書② (取組）'!$C$21:$F$35,3,0)),\"-------\"))","v":""},{"$f":"IF(C33=\"\",\"\",IFERROR(IF(VLOOKUP(C33,'報告書② 第1年度(取組）'!$C$27:$F$41,4,0)=\"\",\"未入力\",VLOOKUP(C33,'報告書② 第1年度(取組）'!$C$27:$F$41,4,0)),\"-------\"))","v":""}]
[8,null,{"$f":"対策リスト!AU9&\"\"","v":""},"",{"$f":"IF(C34=\"\",\"\",IFERROR(IF(VLOOKUP(C34,'計画書② (取組）'!$C$21:$F$35,3,0)=\"\",\"未入力\",VLOOKUP(C34,'計画書② (取組）'!$C$21:$F$35,3,0)),\"-------\"))","v":""},{"$f":"IF(C34=\"\",\"\",IFERROR(IF(VLOOKUP(C34,'報告書② 第1年度(取組）'!$C$27:$F$41,4,0)=\"\",\"未入力\",VLOOKUP(C34,'報告書② 第1年度(取組）'!$C$27:$F$41,4,0)),\"-------\"))","v":""}]
[9,null,{"$f":"対策リスト!AU10&\"\"","v":""},"",{"$f":"IF(C35=\"\",\"\",IFERROR(IF(VLOOKUP(C35,'計画書② (取組）'!$C$21:$F$35,3,0)=\"\",\"未入力\",VLOOKUP(C35,'計画書② (取組）'!$C$21:$F$35,3,0)),\"-------\"))","v":""},{"$f":"IF(C35=\"\",\"\",IFERROR(IF(VLOOKUP(C35,'報告書② 第1年度(取組）'!$C$27:$F$41,4,0)=\"\",\"未入力\",VLOOKUP(C35,'報告書② 第1年度(取組）'!$C$27:$F$41,4,0)),\"-------\"))","v":""}]
[10,null,{"$f":"対策リスト!AU11&\"\"","v":""},"",{"$f":"IF(C36=\"\",\"\",IFERROR(IF(VLOOKUP(C36,'計画書② (取組）'!$C$21:$F$35,3,0)=\"\",\"未入力\",VLOOKUP(C36,'計画書② (取組）'!$C$21:$F$35,3,0)),\"-------\"))","v":""},{"$f":"IF(C36=\"\",\"\",IFERROR(IF(VLOOKUP(C36,'報告書② 第1年度(取組）'!$C$27:$F$41,4,0)=\"\",\"未入力\",VLOOKUP(C36,'報告書② 第1年度(取組）'!$C$27:$F$41,4,0)),\"-------\"))","v":""}]
[11,null,{"$f":"対策リスト!AU12&\"\"","v":""},"",{"$f":"IF(C37=\"\",\"\",IFERROR(IF(VLOOKUP(C37,'計画書② (取組）'!$C$21:$F$35,3,0)=\"\",\"未入力\",VLOOKUP(C37,'計画書② (取組）'!$C$21:$F$35,3,0)),\"-------\"))","v":""},{"$f":"IF(C37=\"\",\"\",IFERROR(IF(VLOOKUP(C37,'報告書② 第1年度(取組）'!$C$27:$F$41,4,0)=\"\",\"未入力\",VLOOKUP(C37,'報告書② 第1年度(取組）'!$C$27:$F$41,4,0)),\"-------\"))","v":""}]
[12,null,{"$f":"対策リスト!AU13&\"\"","v":""},"",{"$f":"IF(C38=\"\",\"\",IFERROR(IF(VLOOKUP(C38,'計画書② (取組）'!$C$21:$F$35,3,0)=\"\",\"未入力\",VLOOKUP(C38,'計画書② (取組）'!$C$21:$F$35,3,0)),\"-------\"))","v":""},{"$f":"IF(C38=\"\",\"\",IFERROR(IF(VLOOKUP(C38,'報告書② 第1年度(取組）'!$C$27:$F$41,4,0)=\"\",\"未入力\",VLOOKUP(C38,'報告書② 第1年度(取組）'!$C$27:$F$41,4,0)),\"-------\"))","v":""}]
[13,null,{"$f":"対策リスト!AU14&\"\"","v":""},"",{"$f":"IF(C39=\"\",\"\",IFERROR(IF(VLOOKUP(C39,'計画書② (取組）'!$C$21:$F$35,3,0)=\"\",\"未入力\",VLOOKUP(C39,'計画書② (取組）'!$C$21:$F$35,3,0)),\"-------\"))","v":""},{"$f":"IF(C39=\"\",\"\",IFERROR(IF(VLOOKUP(C39,'報告書② 第1年度(取組）'!$C$27:$F$41,4,0)=\"\",\"未入力\",VLOOKUP(C39,'報告書② 第1年度(取組）'!$C$27:$F$41,4,0)),\"-------\"))","v":""}]
[14,null,{"$f":"対策リスト!AU15&\"\"","v":""},"",{"$f":"IF(C40=\"\",\"\",IFERROR(IF(VLOOKUP(C40,'計画書② (取組）'!$C$21:$F$35,3,0)=\"\",\"未入力\",VLOOKUP(C40,'計画書② (取組）'!$C$21:$F$35,3,0)),\"-------\"))","v":""},{"$f":"IF(C40=\"\",\"\",IFERROR(IF(VLOOKUP(C40,'報告書② 第1年度(取組）'!$C$27:$F$41,4,0)=\"\",\"未入力\",VLOOKUP(C40,'報告書② 第1年度(取組）'!$C$27:$F$41,4,0)),\"-------\"))","v":""}]
[15,null,{"$f":"対策リスト!AU16&\"\"","v":""},"",{"$f":"IF(C41=\"\",\"\",IFERROR(IF(VLOOKUP(C41,'計画書② (取組）'!$C$21:$F$35,3,0)=\"\",\"未入力\",VLOOKUP(C41,'計画書② (取組）'!$C$21:$F$35,3,0)),\"-------\"))","v":""},{"$f":"IF(C41=\"\",\"\",IFERROR(IF(VLOOKUP(C41,'報告書② 第1年度(取組）'!$C$27:$F$41,4,0)=\"\",\"未入力\",VLOOKUP(C41,'報告書② 第1年度(取組）'!$C$27:$F$41,4,0)),\"-------\"))","v":""}]
[]
[]
["５の３　重点的に実施する取組の実施状況（その他の対策）"]
["番号","項目",null,"具体的な取組内容","実施状況"]
[null,null,null,null,"基準年度","第１年度","第２年度","第３年度"]
[1,null,{"$f":"対策リスト!BU2&\"\"","v":""},{"$f":"対策リスト!BX2&\"\"","v":""},{"$f":"IF(C47=\"\",\"\",IF(対策リスト!CD2=\"\",\"-------\",対策リスト!CD2))","v":""},{"$f":"IF(C47=\"\",\"\",IF(対策リスト!CC2=\"\",\"-------\",対策リスト!CC2))","v":""}]
[2,null,{"$f":"対策リスト!BU3&\"\"","v":""},{"$f":"対策リスト!BX3&\"\"","v":""},{"$f":"IF(C48=\"\",\"\",IF(対策リスト!CD3=\"\",\"-------\",対策リスト!CD3))","v":""},{"$f":"IF(C48=\"\",\"\",IF(対策リスト!CC3=\"\",\"-------\",対策リスト!CC3))","v":""}]
[3,null,{"$f":"対策リスト!BU4&\"\"","v":""},{"$f":"対策リスト!BX4&\"\"","v":""},{"$f":"IF(C49=\"\",\"\",IF(対策リスト!CD4=\"\",\"-------\",対策リスト!CD4))","v":""},{"$f":"IF(C49=\"\",\"\",IF(対策リスト!CC4=\"\",\"-------\",対策リスト!CC4))","v":""}]
[4,null,{"$f":"対策リスト!BU5&\"\"","v":""},{"$f":"対策リスト!BX5&\"\"","v":""},{"$f":"IF(C50=\"\",\"\",IF(対策リスト!CD5=\"\",\"-------\",対策リスト!CD5))","v":""},{"$f":"IF(C50=\"\",\"\",IF(対策リスト!CC5=\"\",\"-------\",対策リスト!CC5))","v":""}]
[5,null,{"$f":"対策リスト!BU6&\"\"","v":""},{"$f":"対策リスト!BX6&\"\"","v":""},{"$f":"IF(C51=\"\",\"\",IF(対策リスト!CD6=\"\",\"-------\",対策リスト!CD6))","v":""},{"$f":"IF(C51=\"\",\"\",IF(対策リスト!CC6=\"\",\"-------\",対策リスト!CC6))","v":""}]
[6,null,{"$f":"対策リスト!BU7&\"\"","v":""},{"$f":"対策リスト!BX7&\"\"","v":""},{"$f":"IF(C52=\"\",\"\",IF(対策リスト!CD7=\"\",\"-------\",対策リスト!CD7))","v":""},{"$f":"IF(C52=\"\",\"\",IF(対策リスト!CC7=\"\",\"-------\",対策リスト!CC7))","v":""}]
[7,null,{"$f":"対策リスト!BU8&\"\"","v":""},{"$f":"対策リスト!BX8&\"\"","v":""},{"$f":"IF(C53=\"\",\"\",IF(対策リスト!CD8=\"\",\"-------\",対策リスト!CD8))","v":""},{"$f":"IF(C53=\"\",\"\",IF(対策リスト!CC8=\"\",\"-------\",対策リスト!CC8))","v":""}]
[8,null,{"$f":"対策リスト!BU9&\"\"","v":""},{"$f":"対策リスト!BX9&\"\"","v":""},{"$f":"IF(C54=\"\",\"\",IF(対策リスト!CD9=\"\",\"-------\",対策リスト!CD9))","v":""},{"$f":"IF(C54=\"\",\"\",IF(対策リスト!CC9=\"\",\"-------\",対策リスト!CC9))","v":""}]
[9,null,{"$f":"対策リスト!BU10&\"\"","v":""},{"$f":"対策リスト!BX10&\"\"","v":""},{"$f":"IF(C55=\"\",\"\",IF(対策リスト!CD10=\"\",\"-------\",対策リスト!CD10))","v":""},{"$f":"IF(C55=\"\",\"\",IF(対策リスト!CC10=\"\",\"-------\",対策リスト!CC10))","v":""}]
[10,null,{"$f":"対策リスト!BU11&\"\"","v":""},{"$f":"対策リスト!BX11&\"\"","v":""},{"$f":"IF(C56=\"\",\"\",IF(対策リスト!CD11=\"\",\"-------\",対策リスト!CD11))","v":""},{"$f":"IF(C56=\"\",\"\",IF(対策リスト!CC11=\"\",\"-------\",対策リスト!CC11))","v":""}]
[]
[]
[]
[]
[]
[]
[]
[]
[]
[]
[]
[]
[]
[]
[]
[]
[]
[]
[]
[]
[]
[]
[]
[]
[]
[]
[]
[]
[]
[]
[]
[]
[]
[null,null,"第２年度追加（選択対策）"]
[1]
[2]
[3]
[4]
[5]
[6]
[7]
[8]
[9]
[10]
[11]
[12]
[13]
[14]
[15]
[]
[]
[]
[]
[]
[]
[]
[]
[]
[]
[]
[]
[]
[null,null,"第２年度追加（その他の対策）"]
[null,null,null,"具体的な取組内容"]
[1]
[2]
[3]
[4]
[5]
[6]
[7]
[8]
[9]
[10]

{"sheet":"報告書② 第3年度(取組）","index":11,"n_rows":130,"n_cols":21,"rows_kept":130,"cut":false,"hidden":true,"merged":[[19,0,19,2],[19,3,19,5],[3,0,4,0],[3,1,4,1],[3,2,4,2],[3,3,4,3],[3,4,3,7],[24,0,25,0],[24,1,25,1],[24,2,25,2],[24,3,25,3],[24,4,24,7],[20,0,20,2],[20,3,20,5],[21,0,21,2],[21,3,21,5],[23,16,23,17],[43,16,43,17],[44,0,45,0],[44,1,45,2],[44,3,45,3],[44,4,44,7]]}
[]
[null,null,null,null,null,null,null,null,null,{"$f":"はじめに!F29","v":0}]
["５の１　重点的に実施する取組の実施状況（基本対策）"]
["番号","分類","項目","対策内容","実施状況"]
[null,null,null,null,"基準年度","第１年度","第２年度","第３年度",null,null,"第３年度状況","項目数","評価指標",null,"実施状況","項目数","実施済","未実施","非該当"]
[1,"一般管理事項","エネルギー管理推進体制の整備","エネルギー管理推進体制が整備されている。エネルギー管理推進体制の中で、エネルギー管理が推進されている。",{"$f":"IF('計画書② (取組）'!E5=\"\",\"\",'計画書② (取組）'!E5)","v":""},{"$f":"IF(C6=\"\",\"\",IFERROR(IF(VLOOKUP(C6,'報告書② 第2年度(取組）'!$C$6:$G17,4,0)=\"\",\"未入力\",VLOOKUP(C6,'報告書② 第2年度(取組）'!$C$6:$G$17,4,0)),\"------\"))","v":"未入力"},{"$f":"IF(C6=\"\",\"\",IFERROR(IF(VLOOKUP(C6,'報告書② 第2年度(取組）'!$C$6:$G17,5,0)=\"\",\"未入力\",VLOOKUP(C6,'報告書② 第2年度(取組）'!$C$6:$G$17,5,0)),\"------\"))","v":"未入力"},null,null,null,"実施済",{"$f":"COUNTIFS($H$6:$H$17,$K6,$E$6:$E$17,\"<>非該当\")","v":0},5,null,"第1年度",{"$f":"IF($J$2>0,$L$9,\"\")","v":""},{"$f":"IF($J$2>0,COUNTIFS($F$6:$F$17,Q$5),\"\")","v":""},{"$f":"IF($J$2>0,COUNTIFS($F$6:$F$17,R$5),\"\")","v":""},{"$f":"IF($J$2>0,COUNTIFS($F$6:$F$17,S$5),\"\")","v":""},{"$f":"IFERROR(IF(P6=\"\",\"\",Q6/(P6-S6)),0)","v":""},{"$f":"IF(P6=\"\",\"\",ROUNDUP($T6*$M$9,0))","v":""}]
[2,"一般管理事項","省エネルギー教育の実施","省エネルギー、地球温暖化防止に関する研修、教育を定期的に実施し、実施記録を残している。",{"$f":"IF('計画書② (取組）'!E6=\"\",\"\",'計画書② (取組）'!E6)","v":""},{"$f":"IF(C7=\"\",\"\",IFERROR(IF(VLOOKUP(C7,'報告書② 第2年度(取組）'!$C$6:$G18,4,0)=\"\",\"未入力\",VLOOKUP(C7,'報告書② 第2年度(取組）'!$C$6:$G$17,4,0)),\"------\"))","v":"未入力"},{"$f":"IF(C7=\"\",\"\",IFERROR(IF(VLOOKUP(C7,'報告書② 第2年度(取組）'!$C$6:$G18,5,0)=\"\",\"未入力\",VLOOKUP(C7,'報告書② 第2年度(取組）'!$C$6:$G$17,5,0)),\"------\"))","v":"未入力"},null,null,null,"未実施",{"$f":"COUNTIFS($H$6:$H$17,$K7,$E$6:$E$17,\"<>非該当\")","v":0},0,null,"第2年度",{"$f":"IF($J$2>1,$L$9,\"\")","v":""},{"$f":"IF($J$2>1,COUNTIFS($G$6:$G$17,Q$5),\"\")","v":""},{"$f":"IF($J$2>1,COUNTIFS($G$6:$G$17,R$5),\"\")","v":""},{"$f":"IF($J$2>1,COUNTIFS($G$6:$G$17,S$5),\"\")","v":""},{"$f":"IFERROR(IF(P7=\"\",\"\",Q7/(P7-S7)),0)","v":""},{"$f":"IF(P7=\"\",\"\",ROUNDUP($T7*$M$9,0))","v":""}]
[3,"一般管理事項","エネルギー使用量の把握","エネルギー使用量や走行距離を車両別に定期的に把握・記録されている。",{"$f":"IF('計画書② (取組）'!E7=\"\",\"\",'計画書② (取組）'!E7)","v":""},{"$f":"IF(C8=\"\",\"\",IFERROR(IF(VLOOKUP(C8,'報告書② 第2年度(取組）'!$C$6:$G19,4,0)=\"\",\"未入力\",VLOOKUP(C8,'報告書② 第2年度(取組）'!$C$6:$G$17,4,0)),\"------\"))","v":"未入力"},{"$f":"IF(C8=\"\",\"\",IFERROR(IF(VLOOKUP(C8,'報告書② 第2年度(取組）'!$C$6:$G19,5,0)=\"\",\"未入力\",VLOOKUP(C8,'報告書② 第2年度(取組）'!$C$6:$G$17,5,0)),\"------\"))","v":"未入力"},null,null,null,"非該当",{"$f":"COUNTIF($H$6:$H$17,$K8)+COUNTIF($E$6:$E$17,$K8)","v":0},"-",null,"第3年度",{"$f":"IF($J$2>2,$L$9,\"\")","v":""},{"$f":"IF($J$2>2,COUNTIFS($H$6:$H$17,Q$5),\"\")","v":""},{"$f":"IF($J$2>2,COUNTIFS($H$6:$H$17,R$5),\"\")","v":""},{"$f":"IF($J$2>2,COUNTIFS($H$6:$H$17,S$5),\"\")","v":""},"",{"$f":"IF(P8=\"\",\"\",ROUNDUP($T8*$M$9,0))","v":""}]
[4,"一般管理事項","エコドライブ推進体制の整備","エコドライブ推進に関する責任者の設置、実践方法に関するマニュアルを作成するなど、推進体制を整備している。",{"$f":"IF('計画書② (取組）'!E8=\"\",\"\",'計画書② (取組）'!E8)","v":""},{"$f":"IF(C9=\"\",\"\",IFERROR(IF(VLOOKUP(C9,'報告書② 第2年度(取組）'!$C$6:$G20,4,0)=\"\",\"未入力\",VLOOKUP(C9,'報告書② 第2年度(取組）'!$C$6:$G$17,4,0)),\"------\"))","v":"未入力"},{"$f":"IF(C9=\"\",\"\",IFERROR(IF(VLOOKUP(C9,'報告書② 第2年度(取組）'!$C$6:$G20,5,0)=\"\",\"未入力\",VLOOKUP(C9,'報告書② 第2年度(取組）'!$C$6:$G$17,5,0)),\"------\"))","v":"未入力"},null,null,null,"合計",12,50,null,"平均",{"$f":"IFERROR(ROUNDUP(AVERAGE(P6:P8),0),\"\")","v":""},{"$f":"IFERROR(ROUNDUP(AVERAGE(Q6:Q8),0),\"\")","v":""},{"$f":"IFERROR(ROUNDUP(AVERAGE(R6:R8),0),\"\")","v":""},"",{"$f":"IFERROR(AVERAGE(T6:T8),\"\")","v":""},{"$f":"IFERROR(ROUNDUP(AVERAGE(U6:U8),0),\"\")","v":""}]
[5,"一般管理事項","エコドライブ教育の実施","車両を運転する全社員に対するエコドライブに関する研修、教育を定期的に実施している。",{"$f":"IF('計画書② (取組）'!E9=\"\",\"\",'計画書② (取組）'!E9)","v":""},{"$f":"IF(C10=\"\",\"\",IFERROR(IF(VLOOKUP(C10,'報告書② 第2年度(取組）'!$C$6:$G21,4,0)=\"\",\"未入力\",VLOOKUP(C10,'報告書② 第2年度(取組）'!$C$6:$G$17,4,0)),\"------\"))","v":"未入力"},{"$f":"IF(C10=\"\",\"\",IFERROR(IF(VLOOKUP(C10,'報告書② 第2年度(取組）'!$C$6:$G21,5,0)=\"\",\"未入力\",VLOOKUP(C10,'報告書② 第2年度(取組）'!$C$6:$G$17,5,0)),\"------\"))","v":"未入力"},null,null,null,"最終年度",{"$f":"L6/(L9-L8)","v":0},{"$f":"ROUNDUP($L$10*$M$9,0)","v":0}]
[6,"ボイラー、工業炉、熱交換器等","エコドライブ実践","エコドライブ10のすすめを実践し、チェックシート等に記録している。",{"$f":"IF('計画書② (取組）'!E10=\"\",\"\",'計画書② (取組）'!E10)","v":""},{"$f":"IF(C11=\"\",\"\",IFERROR(IF(VLOOKUP(C11,'報告書② 第2年度(取組）'!$C$6:$G22,4,0)=\"\",\"未入力\",VLOOKUP(C11,'報告書② 第2年度(取組）'!$C$6:$G$17,4,0)),\"------\"))","v":"未入力"},{"$f":"IF(C11=\"\",\"\",IFERROR(IF(VLOOKUP(C11,'報告書② 第2年度(取組）'!$C$6:$G22,5,0)=\"\",\"未入力\",VLOOKUP(C11,'報告書② 第2年度(取組）'!$C$6:$G$17,5,0)),\"------\"))","v":"未入力"}]
[7,"ボイラー、工業炉、熱交換器等","車両の維持管理","車両の点検・整備に関する責任者の設置、マニュアルの作成等、自動車の維持管理体制が整備されている。",{"$f":"IF('計画書② (取組）'!E11=\"\",\"\",'計画書② (取組）'!E11)","v":""},{"$f":"IF(C12=\"\",\"\",IFERROR(IF(VLOOKUP(C12,'報告書② 第2年度(取組）'!$C$6:$G23,4,0)=\"\",\"未入力\",VLOOKUP(C12,'報告書② 第2年度(取組）'!$C$6:$G$17,4,0)),\"------\"))","v":"未入力"},{"$f":"IF(C12=\"\",\"\",IFERROR(IF(VLOOKUP(C12,'報告書② 第2年度(取組）'!$C$6:$G23,5,0)=\"\",\"未入力\",VLOOKUP(C12,'報告書② 第2年度(取組）'!$C$6:$G$17,5,0)),\"------\"))","v":"未入力"}]
[8,"ボイラー、工業炉、熱交換器等","車両の性能管理","日常及び定期的な保守・点検、修理が行われ、記録されている。",{"$f":"IF('計画書② (取組）'!E12=\"\",\"\",'計画書② (取組）'!E12)","v":""},{"$f":"IF(C13=\"\",\"\",IFERROR(IF(VLOOKUP(C13,'報告書② 第2年度(取組）'!$C$6:$G24,4,0)=\"\",\"未入力\",VLOOKUP(C13,'報告書② 第2年度(取組）'!$C$6:$G$17,4,0)),\"------\"))","v":"未入力"},{"$f":"IF(C13=\"\",\"\",IFERROR(IF(VLOOKUP(C13,'報告書② 第2年度(取組）'!$C$6:$G24,5,0)=\"\",\"未入力\",VLOOKUP(C13,'報告書② 第2年度(取組）'!$C$6:$G$17,5,0)),\"------\"))","v":"未入力"}]
[9,"ボイラー、工業炉、熱交換器等","効率的なルート選定","事前に目的地までの効率的なルートを選定し、運転者に伝える仕組みが整備されている。",{"$f":"IF('計画書② (取組）'!E13=\"\",\"\",'計画書② (取組）'!E13)","v":""},{"$f":"IF(C14=\"\",\"\",IFERROR(IF(VLOOKUP(C14,'報告書② 第2年度(取組）'!$C$6:$G25,4,0)=\"\",\"未入力\",VLOOKUP(C14,'報告書② 第2年度(取組）'!$C$6:$G$17,4,0)),\"------\"))","v":"未入力"},{"$f":"IF(C14=\"\",\"\",IFERROR(IF(VLOOKUP(C14,'報告書② 第2年度(取組）'!$C$6:$G25,5,0)=\"\",\"未入力\",VLOOKUP(C14,'報告書② 第2年度(取組）'!$C$6:$G$17,5,0)),\"------\"))","v":"未入力"}]
[10,null,"効率的な自動車管理","輸送需要を把握し、目的や輸送量に応じた自動車を使用するなど、適切な車両管理を行っている。",{"$f":"IF('計画書② (取組）'!E14=\"\",\"\",'計画書② (取組）'!E14)","v":""},{"$f":"IF(C15=\"\",\"\",IFERROR(IF(VLOOKUP(C15,'報告書② 第2年度(取組）'!$C$6:$G26,4,0)=\"\",\"未入力\",VLOOKUP(C15,'報告書② 第2年度(取組）'!$C$6:$G$17,4,0)),\"------\"))","v":"未入力"},{"$f":"IF(C15=\"\",\"\",IFERROR(IF(VLOOKUP(C15,'報告書② 第2年度(取組）'!$C$6:$G26,5,0)=\"\",\"未入力\",VLOOKUP(C15,'報告書② 第2年度(取組）'!$C$6:$G$17,5,0)),\"------\"))","v":"未入力"}]
[11,null,"照明器具の点灯時間管理","照明器具の点灯時間がルール化されている。不要な照明の使用や消し忘れをチェックする仕組みがある。センサー等による制御が導入されている。",{"$f":"IF('計画書② (取組）'!E15=\"\",\"\",'計画書② (取組）'!E15)","v":""},{"$f":"IF(C16=\"\",\"\",IFERROR(IF(VLOOKUP(C16,'報告書② 第2年度(取組）'!$C$6:$G27,4,0)=\"\",\"未入力\",VLOOKUP(C16,'報告書② 第2年度(取組）'!$C$6:$G$17,4,0)),\"------\"))","v":"未入力"},{"$f":"IF(C16=\"\",\"\",IFERROR(IF(VLOOKUP(C16,'報告書② 第2年度(取組）'!$C$6:$G27,5,0)=\"\",\"未入力\",VLOOKUP(C16,'報告書② 第2年度(取組）'!$C$6:$G$17,5,0)),\"------\"))","v":"未入力"}]
[12,"ボイラー、工業炉、熱交換器等","事務所機器の待機電力管理","PC、OA機器等の事務所機器が省エネモードに設定されており、長時間不使用の場合には電源を切ることがルール化されている。PC、OA機器等の事務所機器がルールに従って運転されている。",{"$f":"IF('計画書② (取組）'!E16=\"\",\"\",'計画書② (取組）'!E16)","v":""},{"$f":"IF(C17=\"\",\"\",IFERROR(IF(VLOOKUP(C17,'報告書② 第2年度(取組）'!$C$6:$G28,4,0)=\"\",\"未入力\",VLOOKUP(C17,'報告書② 第2年度(取組）'!$C$6:$G$17,4,0)),\"------\"))","v":"未入力"},{"$f":"IF(C17=\"\",\"\",IFERROR(IF(VLOOKUP(C17,'報告書② 第2年度(取組）'!$C$6:$G28,5,0)=\"\",\"未入力\",VLOOKUP(C17,'報告書② 第2年度(取組）'!$C$6:$G$17,5,0)),\"------\"))","v":"未入力"}]
[]
["基本対策の実施状況に関する説明・特記事項など"]
["第１年度",null,null,{"$f":"'報告書② 第2年度(取組）'!D20:F20&\"\"","v":""}]
["第２年度",null,null,{"$f":"'報告書② 第2年度(取組）'!D21:F21&\"\"","v":""}]
["第３年度"]
[]
["５の２　重点的に実施する取組の実施状況（選択対策）"]
["番号","分類","項目","対策内容","実施状況",null,null,null,null,null,"第３年度"]
[null,null,null,null,"基準年度","第１年度","第２年度","第３年度",null,null,"状況","項目数","評価指標",null,"実施状況","項目数","実施済","一部実施済","未実施","評価点"]
[1,null,{"$f":"対策リスト!AT2&\"\"","v":""},{"$f":"IFERROR(VLOOKUP(C27,選択対策,2,0),\"\")","v":""},{"$f":"IF(C27=\"\",\"\",IFERROR(IF(VLOOKUP(C27,'報告書② 第2年度(取組）'!$C$27:$G$41,3,0)=\"\",\"未入力\",VLOOKUP(C27,'報告書② 第2年度(取組）'!C27:G41,3,0)),\"-------\"))","v":""},{"$f":"IF(C27=\"\",\"\",IFERROR(IF(VLOOKUP(C27,'報告書② 第2年度(取組）'!$C$27:$G$41,4,0)=\"\",\"未入力\",VLOOKUP(C27,'報告書② 第2年度(取組）'!C27:G41,4,0)),\"-------\"))","v":""},{"$f":"IF(C27=\"\",\"\",IFERROR(IF(VLOOKUP(C27,'報告書② 第2年度(取組）'!$C$27:$G$41,5,0)=\"\",\"未入力\",VLOOKUP(C27,'報告書② 第2年度(取組）'!C27:G41,5,0)),\"-------\"))","v":""},null,null,null,"実施済",{"$f":"COUNTIF($H$27:$H$41,$K27)","v":0},5,null,"第1年度",{"$f":"IF($J$2>0,SUM(Q27:S27),\"\")","v":""},{"$f":"IF($J$2>0,COUNTIF($F$27:$F$41,Q$26),\"\")","v":""},{"$f":"IF($J$2>0,COUNTIF($F$27:$F$41,R$26),\"\")","v":""},{"$f":"IF($J$2>0,COUNTIF($F$27:$F$41,S$26),\"\")","v":""},{"$f":"IF($J$2>0,Q27*$M$27+R27*$M$28,\"\")","v":""}]
[2,null,{"$f":"対策リスト!AT3&\"\"","v":""},{"$f":"IFERROR(VLOOKUP(C28,選択対策,2,0),\"\")","v":""},{"$f":"IF(C28=\"\",\"\",IFERROR(IF(VLOOKUP(C28,'報告書② 第2年度(取組）'!$C$27:$G$41,3,0)=\"\",\"未入力\",VLOOKUP(C28,'報告書② 第2年度(取組）'!C28:G42,3,0)),\"-------\"))","v":""},{"$f":"IF(C28=\"\",\"\",IFERROR(IF(VLOOKUP(C28,'報告書② 第2年度(取組）'!$C$27:$G$41,4,0)=\"\",\"未入力\",VLOOKUP(C28,'報告書② 第2年度(取組）'!C28:G42,4,0)),\"-------\"))","v":""},{"$f":"IF(C28=\"\",\"\",IFERROR(IF(VLOOKUP(C28,'報告書② 第2年度(取組）'!$C$27:$G$41,5,0)=\"\",\"未入力\",VLOOKUP(C28,'報告書② 第2年度(取組）'!C28:G42,5,0)),\"-------\"))","v":""},null,null,null,"一部実施済",{"$f":"COUNTIF($H$27:$H$41,$K28)","v":0},3,null,"第2年度",{"$f":"IF($J$2>1,SUM(Q28:S28),\"\")","v":""},{"$f":"IF($J$2>1,COUNTIF($G$27:$G$41,Q$26),\"\")","v":""},{"$f":"IF($J$2>1,COUNTIF($G$27:$G$41,R$26),\"\")","v":""},{"$f":"IF($J$2>1,COUNTIF($G$27:$G$41,S$26),\"\")","v":""},{"$f":"IF($J$2>1,Q28*$M$27+R28*$M$28,\"\")","v":""}]
[3,null,{"$f":"対策リスト!AT4&\"\"","v":""},"",{"$f":"IF(C29=\"\",\"\",IFERROR(IF(VLOOKUP(C29,'報告書② 第2年度(取組）'!$C$27:$G$41,3,0)=\"\",\"未入力\",VLOOKUP(C29,'報告書② 第2年度(取組）'!C29:G43,3,0)),\"-------\"))","v":""},{"$f":"IF(C29=\"\",\"\",IFERROR(IF(VLOOKUP(C29,'報告書② 第2年度(取組）'!$C$27:$G$41,4,0)=\"\",\"未入力\",VLOOKUP(C29,'報告書② 第2年度(取組）'!C29:G43,4,0)),\"-------\"))","v":""},{"$f":"IF(C29=\"\",\"\",IFERROR(IF(VLOOKUP(C29,'報告書② 第2年度(取組）'!$C$27:$G$41,5,0)=\"\",\"未入力\",VLOOKUP(C29,'報告書② 第2年度(取組）'!C29:G43,5,0)),\"-------\"))","v":""},null,null,null,"未実施",{"$f":"COUNTIF($H$27:$H$41,$K29)","v":0},0,null,"第3年度",{"$f":"IF($J$2>2,SUM(Q29:S29),\"\")","v":""},{"$f":"IF($J$2>2,COUNTIF($H$27:$H$41,Q$26),\"\")","v":""},{"$f":"IF($J$2>2,COUNTIF($H$27:$H$41,R$26),\"\")","v":""},{"$f":"IF($J$2>2,COUNTIF($H$27:$H$41,S$26),\"\")","v":""},{"$f":"IF($J$2>2,Q29*$M$27+R29*$M$28,\"\")","v":""}]
[4,null,{"$f":"対策リスト!AT5&\"\"","v":""},"",{"$f":"IF(C30=\"\",\"\",IFERROR(IF(VLOOKUP(C30,'報告書② 第2年度(取組）'!$C$27:$G$41,3,0)=\"\",\"未入力\",VLOOKUP(C30,'報告書② 第2年度(取組）'!C30:G44,3,0)),\"-------\"))","v":""},{"$f":"IF(C30=\"\",\"\",IFERROR(IF(VLOOKUP(C30,'報告書② 第2年度(取組）'!$C$27:$G$41,4,0)=\"\",\"未入力\",VLOOKUP(C30,'報告書② 第2年度(取組）'!C30:G44,4,0)),\"-------\"))","v":""},{"$f":"IF(C30=\"\",\"\",IFERROR(IF(VLOOKUP(C30,'報告書② 第2年度(取組）'!$C$27:$G$41,5,0)=\"\",\"未入力\",VLOOKUP(C30,'報告書② 第2年度(取組）'!C30:G44,5,0)),\"-------\"))","v":""},null,null,null,"合計",{"$f":"SUM(L27:L29)","v":0},50,null,"平均",{"$f":"IFERROR(ROUNDUP(AVERAGE(P27:P29),0),\"\")","v":""},{"$f":"IFERROR(ROUNDUP(AVERAGE(Q27:Q29),0),\"\")","v":""},{"$f":"IFERROR(ROUNDUP(AVERAGE(R27:R29),0),\"\")","v":""},"",{"$f":"IFERROR(ROUNDUP(AVERAGE(T27:T29),0),\"\")","v":""}]
[5,null,{"$f":"対策リスト!AT6&\"\"","v":""},"",{"$f":"IF(C31=\"\",\"\",IFERROR(IF(VLOOKUP(C31,'報告書② 第2年度(取組）'!$C$27:$G$41,3,0)=\"\",\"未入力\",VLOOKUP(C31,'報告書② 第2年度(取組）'!C31:G45,3,0)),\"-------\"))","v":""},{"$f":"IF(C31=\"\",\"\",IFERROR(IF(VLOOKUP(C31,'報告書② 第2年度(取組）'!$C$27:$G$41,4,0)=\"\",\"未入力\",VLOOKUP(C31,'報告書② 第2年度(取組）'!C31:G45,4,0)),\"-------\"))","v":""},{"$f":"IF(C31=\"\",\"\",IFERROR(IF(VLOOKUP(C31,'報告書② 第2年度(取組）'!$C$27:$G$41,5,0)=\"\",\"未入力\",VLOOKUP(C31,'報告書② 第2年度(取組）'!C31:G45,5,0)),\"-------\"))","v":""},null,null,null,"最終年度\n評価点",{"$f":"IF(L27*M27+L28*M28>M30,M30,L27*M27+L28*M28)","v":0}]
[6,null,{"$f":"対策リスト!AT7&\"\"","v":""},"",{"$f":"IF(C32=\"\",\"\",IFERROR(IF(VLOOKUP(C32,'報告書② 第2年度(取組）'!$C$27:$G$41,3,0)=\"\",\"未入力\",VLOOKUP(C32,'報告書② 第2年度(取組）'!C32:G46,3,0)),\"-------\"))","v":""},{"$f":"IF(C32=\"\",\"\",IFERROR(IF(VLOOKUP(C32,'報告書② 第2年度(取組）'!$C$27:$G$41,4,0)=\"\",\"未入力\",VLOOKUP(C32,'報告書② 第2年度(取組）'!C32:G46,4,0)),\"-------\"))","v":""},{"$f":"IF(C32=\"\",\"\",IFERROR(IF(VLOOKUP(C32,'報告書② 第2年度(取組）'!$C$27:$G$41,5,0)=\"\",\"未入力\",VLOOKUP(C32,'報告書② 第2年度(取組）'!C32:G46,5,0)),\"-------\"))","v":""}]
[7,null,{"$f":"対策リスト!AT8&\"\"","v":""},"",{"$f":"IF(C33=\"\",\"\",IFERROR(IF(VLOOKUP(C33,'報告書② 第2年度(取組）'!$C$27:$G$41,3,0)=\"\",\"未入力\",VLOOKUP(C33,'報告書② 第2年度(取組）'!C33:G47,3,0)),\"-------\"))","v":""},{"$f":"IF(C33=\"\",\"\",IFERROR(IF(VLOOKUP(C33,'報告書② 第2年度(取組）'!$C$27:$G$41,4,0)=\"\",\"未入力\",VLOOKUP(C33,'報告書② 第2年度(取組）'!C33:G47,4,0)),\"-------\"))","v":""},{"$f":"IF(C33=\"\",\"\",IFERROR(IF(VLOOKUP(C33,'報告書② 第2年度(取組）'!$C$27:$G$41,5,0)=\"\",\"未入力\",VLOOKUP(C33,'報告書② 第2年度(取組）'!C33:G47,5,0)),\"-------\"))","v":""}]
[8,null,{"$f":"対策リスト!AT9&\"\"","v":""},"",{"$f":"IF(C34=\"\",\"\",IFERROR(IF(VLOOKUP(C34,'報告書② 第2年度(取組）'!$C$27:$G$41,3,0)=\"\",\"未入力\",VLOOKUP(C34,'報告書② 第2年度(取組）'!C34:G48,3,0)),\"-------\"))","v":""},{"$f":"IF(C34=\"\",\"\",IFERROR(IF(VLOOKUP(C34,'報告書② 第2年度(取組）'!$C$27:$G$41,4,0)=\"\",\"未入力\",VLOOKUP(C34,'報告書② 第2年度(取組）'!C34:G48,4,0)),\"-------\"))","v":""},{"$f":"IF(C34=\"\",\"\",IFERROR(IF(VLOOKUP(C34,'報告書② 第2年度(取組）'!$C$27:$G$41,5,0)=\"\",\"未入力\",VLOOKUP(C34,'報告書② 第2年度(取組）'!C34:G48,5,0)),\"-------\"))","v":""}]
[9,null,{"$f":"対策リスト!AT10&\"\"","v":""},"",{"$f":"IF(C35=\"\",\"\",IFERROR(IF(VLOOKUP(C35,'報告書② 第2年度(取組）'!$C$27:$G$41,3,0)=\"\",\"未入力\",VLOOKUP(C35,'報告書② 第2年度(取組）'!C35:G49,3,0)),\"-------\"))","v":""},{"$f":"IF(C35=\"\",\"\",IFERROR(IF(VLOOKUP(C35,'報告書② 第2年度(取組）'!$C$27:$G$41,4,0)=\"\",\"未入力\",VLOOKUP(C35,'報告書② 第2年度(取組）'!C35:G49,4,0)),\"-------\"))","v":""},{"$f":"IF(C35=\"\",\"\",IFERROR(IF(VLOOKUP(C35,'報告書② 第2年度(取組）'!$C$27:$G$41,5,0)=\"\",\"未入力\",VLOOKUP(C35,'報告書② 第2年度(取組）'!C35:G49,5,0)),\"-------\"))","v":""}]
[10,null,{"$f":"対策リスト!AT11&\"\"","v":""},"",{"$f":"IF(C36=\"\",\"\",IFERROR(IF(VLOOKUP(C36,'報告書② 第2年度(取組）'!$C$27:$G$41,3,0)=\"\",\"未入力\",VLOOKUP(C36,'報告書② 第2年度(取組）'!C36:G50,3,0)),\"-------\"))","v":""},{"$f":"IF(C36=\"\",\"\",IFERROR(IF(VLOOKUP(C36,'報告書② 第2年度(取組）'!$C$27:$G$41,4,0)=\"\",\"未入力\",VLOOKUP(C36,'報告書② 第2年度(取組）'!C36:G50,4,0)),\"-------\"))","v":""},{"$f":"IF(C36=\"\",\"\",IFERROR(IF(VLOOKUP(C36,'報告書② 第2年度(取組）'!$C$27:$G$41,5,0)=\"\",\"未入力\",VLOOKUP(C36,'報告書② 第2年度(取組）'!C36:G50,5,0)),\"-------\"))","v":""}]
[11,null,{"$f":"対策リスト!AT12&\"\"","v":""},"",{"$f":"IF(C37=\"\",\"\",IFERROR(IF(VLOOKUP(C37,'報告書② 第2年度(取組）'!$C$27:$G$41,3,0)=\"\",\"未入力\",VLOOKUP(C37,'報告書② 第2年度(取組）'!C37:G51,3,0)),\"-------\"))","v":""},{"$f":"IF(C37=\"\",\"\",IFERROR(IF(VLOOKUP(C37,'報告書② 第2年度(取組）'!$C$27:$G$41,4,0)=\"\",\"未入力\",VLOOKUP(C37,'報告書② 第2年度(取組）'!C37:G51,4,0)),\"-------\"))","v":""},{"$f":"IF(C37=\"\",\"\",IFERROR(IF(VLOOKUP(C37,'報告書② 第2年度(取組）'!$C$27:$G$41,5,0)=\"\",\"未入力\",VLOOKUP(C37,'報告書② 第2年度(取組）'!C37:G51,5,0)),\"-------\"))","v":""}]
[12,null,{"$f":"対策リスト!AT13&\"\"","v":""},"",{"$f":"IF(C38=\"\",\"\",IFERROR(IF(VLOOKUP(C38,'報告書② 第2年度(取組）'!$C$27:$G$41,3,0)=\"\",\"未入力\",VLOOKUP(C38,'報告書② 第2年度(取組）'!C38:G52,3,0)),\"-------\"))","v":""},{"$f":"IF(C38=\"\",\"\",IFERROR(IF(VLOOKUP(C38,'報告書② 第2年度(取組）'!$C$27:$G$41,4,0)=\"\",\"未入力\",VLOOKUP(C38,'報告書② 第2年度(取組）'!C38:G52,4,0)),\"-------\"))","v":""},{"$f":"IF(C38=\"\",\"\",IFERROR(IF(VLOOKUP(C38,'報告書② 第2年度(取組）'!$C$27:$G$41,5,0)=\"\",\"未入力\",VLOOKUP(C38,'報告書② 第2年度(取組）'!C38:G52,5,0)),\"-------\"))","v":""}]
[13,null,{"$f":"対策リスト!AT14&\"\"","v":""},"",{"$f":"IF(C39=\"\",\"\",IFERROR(IF(VLOOKUP(C39,'報告書② 第2年度(取組）'!$C$27:$G$41,3,0)=\"\",\"未入力\",VLOOKUP(C39,'報告書② 第2年度(取組）'!C39:G53,3,0)),\"-------\"))","v":""},{"$f":"IF(C39=\"\",\"\",IFERROR(IF(VLOOKUP(C39,'報告書② 第2年度(取組）'!$C$27:$G$41,4,0)=\"\",\"未入力\",VLOOKUP(C39,'報告書② 第2年度(取組）'!C39:G53,4,0)),\"-------\"))","v":""},{"$f":"IF(C39=\"\",\"\",IFERROR(IF(VLOOKUP(C39,'報告書② 第2年度(取組）'!$C$27:$G$41,5,0)=\"\",\"未入力\",VLOOKUP(C39,'報告書② 第2年度(取組）'!C39:G53,5,0)),\"-------\"))","v":""}]
[14,null,{"$f":"対策リスト!AT15&\"\"","v":""},"",{"$f":"IF(C40=\"\",\"\",IFERROR(IF(VLOOKUP(C40,'報告書② 第2年度(取組）'!$C$27:$G$41,3,0)=\"\",\"未入力\",VLOOKUP(C40,'報告書② 第2年度(取組）'!C40:G54,3,0)),\"-------\"))","v":""},{"$f":"IF(C40=\"\",\"\",IFERROR(IF(VLOOKUP(C40,'報告書② 第2年度(取組）'!$C$27:$G$41,4,0)=\"\",\"未入力\",VLOOKUP(C40,'報告書② 第2年度(取組）'!C40:G54,4,0)),\"-------\"))","v":""},{"$f":"IF(C40=\"\",\"\",IFERROR(IF(VLOOKUP(C40,'報告書② 第2年度(取組）'!$C$27:$G$41,5,0)=\"\",\"未入力\",VLOOKUP(C40,'報告書② 第2年度(取組）'!C40:G54,5,0)),\"-------\"))","v":""}]
[15,null,{"$f":"対策リスト!AT16&\"\"","v":""},"",{"$f":"IF(C41=\"\",\"\",IFERROR(IF(VLOOKUP(C41,'報告書② 第2年度(取組）'!$C$27:$G$41,3,0)=\"\",\"未入力\",VLOOKUP(C41,'報告書② 第2年度(取組）'!C41:G55,3,0)),\"-------\"))","v":""},{"$f":"IF(C41=\"\",\"\",IFERROR(IF(VLOOKUP(C41,'報告書② 第2年度(取組）'!$C$27:$G$41,4,0)=\"\",\"未入力\",VLOOKUP(C41,'報告書② 第2年度(取組）'!C41:G55,4,0)),\"-------\"))","v":""},{"$f":"IF(C41=\"\",\"\",IFERROR(IF(VLOOKUP(C41,'報告書② 第2年度(取組）'!$C$27:$G$41,5,0)=\"\",\"未入力\",VLOOKUP(C41,'報告書② 第2年度(取組）'!C41:G55,5,0)),\"-------\"))","v":""}]
[]
[null,null,null,null,null,null,null,null,null,null,{"$f":"VLOOKUP(C47,'報告書② 第2年度(取組）'!$C$47:$G$56,5,0)","v":0}]
["５の３　重点的に実施する取組の実施状況（その他の対策）"]
["番号","項目",null,"具体的な取組内容","実施状況",null,null,null,null,null,"第３年度"]
[null,null,null,null,"基準年度","第１年度","第２年度","第３年度",null,null,"状況","項目数","評価指標",null,"実施状況","項目数","実施済","未実施","評価点"]
[1,null,{"$f":"対策リスト!BT2&\"\"","v":""},{"$f":"対策リスト!BW2&\"\"","v":""},{"$f":"IF(C47=\"\",\"\",IF(対策リスト!CD2=\"\",\"-------\",対策リスト!CD2))","v":""},{"$f":"IF(C47=\"\",\"\",IF(対策リスト!CC2=\"\",\"-------\",対策リスト!CC2))","v":""},{"$f":"IF(C47=\"\",\"\",IF(対策リスト!CB2=\"\",\"-------\",対策リスト!CB2))","v":""},null,null,null,"実施済",{"$f":"COUNTIF($H$47:$H$56,$K47)","v":0},5,null,"第1年度",{"$f":"IF($J$2>0,SUM(Q47:R47),\"\")","v":""},{"$f":"IF($J$2>0,COUNTIF($F$47:$F$56,Q$46),\"\")","v":""},{"$f":"IF($J$2>0,COUNTIF($F$47:$F$56,R$46),\"\")","v":""},{"$f":"IF($J$2>0,Q47*$M$47,\"\")","v":""}]
[2,null,{"$f":"対策リスト!BT3&\"\"","v":""},{"$f":"対策リスト!BW3&\"\"","v":""},{"$f":"IF(C48=\"\",\"\",IF(対策リスト!CD3=\"\",\"-------\",対策リスト!CD3))","v":""},{"$f":"IF(C48=\"\",\"\",IF(対策リスト!CC3=\"\",\"-------\",対策リスト!CC3))","v":""},{"$f":"IF(C48=\"\",\"\",IF(対策リスト!CB3=\"\",\"-------\",対策リスト!CB3))","v":""},null,null,null,"未実施",{"$f":"COUNTIF($H$47:$H$56,$K48)","v":0},0,null,"第2年度",{"$f":"IF($J$2>1,SUM(Q48:R48),\"\")","v":""},{"$f":"IF($J$2>0,COUNTIF($G$47:$G$56,Q$46),\"\")","v":""},{"$f":"IF($J$2>0,COUNTIF($G$47:$G$56,R$46),\"\")","v":""},{"$f":"IF($J$2>1,Q48*$M$47,\"\")","v":""}]
[3,null,{"$f":"対策リスト!BT4&\"\"","v":""},{"$f":"対策リスト!BW4&\"\"","v":""},{"$f":"IF(C49=\"\",\"\",IF(対策リスト!CD4=\"\",\"-------\",対策リスト!CD4))","v":""},{"$f":"IF(C49=\"\",\"\",IF(対策リスト!CC4=\"\",\"-------\",対策リスト!CC4))","v":""},{"$f":"IF(C49=\"\",\"\",IF(対策リスト!CB4=\"\",\"-------\",対策リスト!CB4))","v":""},null,null,null,"合計",{"$f":"SUM(L47:L48)","v":0},25,null,"第3年度",{"$f":"IF($J$2>2,SUM(Q49:R49),\"\")","v":""},{"$f":"IF($J$2>0,COUNTIF($H$47:$H$56,Q$46),\"\")","v":""},{"$f":"IF($J$2>0,COUNTIF($H$47:$H$56,R$46),\"\")","v":""},{"$f":"IF($J$2>2,Q49*$M$47,\"\")","v":""}]
[4,null,{"$f":"対策リスト!BT5&\"\"","v":""},{"$f":"対策リスト!BW5&\"\"","v":""},{"$f":"IF(C50=\"\",\"\",IF(対策リスト!CD5=\"\",\"-------\",対策リスト!CD5))","v":""},{"$f":"IF(C50=\"\",\"\",IF(対策リスト!CC5=\"\",\"-------\",対策リスト!CC5))","v":""},{"$f":"IF(C50=\"\",\"\",IF(対策リスト!CB5=\"\",\"-------\",対策リスト!CB5))","v":""},null,null,null,"最終年度\n評価点",{"$f":"IF(L47*M47>M49,M49,L47*M47)","v":0},null,null,"平均",{"$f":"IFERROR(ROUNDUP(AVERAGE(P47:P49),0),\"\")","v":""},{"$f":"IFERROR(ROUNDUP(AVERAGE(Q47:Q49),0),\"\")","v":""},{"$f":"IFERROR(ROUNDUP(AVERAGE(R47:R49),0),\"\")","v":""},{"$f":"IFERROR(ROUNDUP(AVERAGE(S47:S49),0),\"\")","v":""}]
[5,null,{"$f":"対策リスト!BT6&\"\"","v":""},{"$f":"対策リスト!BW6&\"\"","v":""},{"$f":"IF(C51=\"\",\"\",IF(対策リスト!CD6=\"\",\"-------\",対策リスト!CD6))","v":""},{"$f":"IF(C51=\"\",\"\",IF(対策リスト!CC6=\"\",\"-------\",対策リスト!CC6))","v":""},{"$f":"IF(C51=\"\",\"\",IF(対策リスト!CB6=\"\",\"-------\",対策リスト!CB6))","v":""}]
[6,null,{"$f":"対策リスト!BT7&\"\"","v":""},{"$f":"対策リスト!BW7&\"\"","v":""},{"$f":"IF(C52=\"\",\"\",IF(対策リスト!CD7=\"\",\"-------\",対策リスト!CD7))","v":""},{"$f":"IF(C52=\"\",\"\",IF(対策リスト!CC7=\"\",\"-------\",対策リスト!CC7))","v":""},{"$f":"IF(C52=\"\",\"\",IF(対策リスト!CB7=\"\",\"-------\",対策リスト!CB7))","v":""}]
[7,null,{"$f":"対策リスト!BT8&\"\"","v":""},{"$f":"対策リスト!BW8&\"\"","v":""},{"$f":"IF(C53=\"\",\"\",IF(対策リスト!CD8=\"\",\"-------\",対策リスト!CD8))","v":""},{"$f":"IF(C53=\"\",\"\",IF(対策リスト!CC8=\"\",\"-------\",対策リスト!CC8))","v":""},{"$f":"IF(C53=\"\",\"\",IF(対策リスト!CB8=\"\",\"-------\",対策リスト!CB8))","v":""}]
[8,null,{"$f":"対策リスト!BT9&\"\"","v":""},{"$f":"対策リスト!BW9&\"\"","v":""},{"$f":"IF(C54=\"\",\"\",IF(対策リスト!CD9=\"\",\"-------\",対策リスト!CD9))","v":""},{"$f":"IF(C54=\"\",\"\",IF(対策リスト!CC9=\"\",\"-------\",対策リスト!CC9))","v":""},{"$f":"IF(C54=\"\",\"\",IF(対策リスト!CB9=\"\",\"-------\",対策リスト!CB9))","v":""}]
[9,null,{"$f":"対策リスト!BT10&\"\"","v":""},{"$f":"対策リスト!BW10&\"\"","v":""},{"$f":"IF(C55=\"\",\"\",IF(対策リスト!CD10=\"\",\"-------\",対策リスト!CD10))","v":""},{"$f":"IF(C55=\"\",\"\",IF(対策リスト!CC10=\"\",\"-------\",対策リスト!CC10))","v":""},{"$f":"IF(C55=\"\",\"\",IF(対策リスト!CB10=\"\",\"-------\",対策リスト!CB10))","v":""}]
[10,null,{"$f":"対策リスト!BT11&\"\"","v":""},{"$f":"対策リスト!BW11&\"\"","v":""},{"$f":"IF(C56=\"\",\"\",IF(対策リスト!CD11=\"\",\"-------\",対策リスト!CD11))","v":""},{"$f":"IF(C56=\"\",\"\",IF(対策リスト!CC11=\"\",\"-------\",対策リスト!CC11))","v":""},{"$f":"IF(C56=\"\",\"\",IF(対策リスト!CB11=\"\",\"-------\",対策リスト!CB11))","v":""}]
[]
[]
[]
[]
[]
[]
[]
[]
[]
[]
[]
[]
[]
[]
[]
[]
[]
[]
[]
[]
[]
[]
[]
[]
[]
[]
[]
[]
[]
[]
[]
[]
[]
[null,null,"第３年度追加（選択対策）"]
[1]
[2]
[3]
[4]
[5]
[6]
[7]
[8]
[9]
[10]
[11]
[12]
[13]
[14]
[15]
[]
[]
[]
[]
[]
[]
[]
[]
[]
[]
[]
[]
[]
[null,null,"第３年度追加（その他の対策）"]
[null,null,null,"具体的な取組内容"]
[1]
[2]
[3]
[4]
[5]
[6]
[7]
[8]
[9]
[10]

{"sheet":"報告書③（任意記載）","index":12,"n_rows":13,"n_cols":6,"rows_kept":13,"cut":false,"hidden":true,"merged":[]}
[]
["参考１　計画期間内に実施した削減対策（詳細）"]
["番号","対策内容","実施年度","推計削減量\n（t-CO2/年）",null,"写真"]
[1]
[2]
[3]
[4]
[5]
[6]
[7]
[8]
[9]
[10]

{"sheet":"事業所排出量内訳（第1年度）","index":13,"n_rows":68,"n_cols":22,"rows_kept":68,"cut":false,"hidden":true,"merged":[[63,2,64,2],[63,3,64,3],[65,2,66,2],[65,3,66,3],[67,4,67,6],[55,4,56,6],[55,7,56,7],[57,2,59,2],[57,3,59,3],[60,2,62,2],[60,3,62,3],[55,2,56,2],[55,3,56,3],[41,2,41,3],[42,2,42,3],[43,2,43,3],[44,2,44,3],[47,2,48,3],[40,2,40,3],[23,19,24,19],[23,20,24,20],[23,21,24,21],[32,16,33,16],[32,17,33,17],[32,18,33,18],[32,19,33,19],[23,18,24,18],[35,2,36,3],[35,4,36,4],[37,2,37,3],[38,2,38,3],[39,2,39,3],[14,9,15,9],[23,2,24,3],[23,4,24,4],[23,16,24,16],[23,17,24,17],[14,2,15,3],[14,4,15,4],[14,5,15,5],[14,6,15,6],[14,7,15,7],[14,8,15,8],[0,8,0,9],[3,2,4,3],[3,4,4,4],[3,5,4,5],[3,6,4,6],[3,7,4,7],[3,8,4,8],[3,9,4,9]]}
[null,null,"温室効果ガス排出量内訳",null,null,null,null,"第１年度",{"$f":"\"（\"&はじめに!E4+1&\"年度）\"","v":"（1年度）"},null,null,null,null,null,null,{"$f":"はじめに!E4+1","v":1},"１．エネルギー起源二酸化炭素（CO2）排出量"]
[null,null,null,null,null,null,null,null,null,null,null,null,null,null,null,null,"熱量合計",{"$f":"SUM(I13,I20)","v":0},"GJ"]
[null,null,"１．エネルギー起源二酸化炭素（CO2）排出量",null,null,null,null,null,null,null,null,null,null,null,null,null,"原油換算",{"$f":"R2*0.0258","v":0},"KL"]
[null,null,"燃料の種類",null,"使用量","外部\n供給量","実使用量","単位","熱量\n(GJ)","排出量\n(t-CO2)",null,null,null,{"$f":"IF(R2=0,0,1)","v":0},null,null,"排出量合計",{"$f":"ROUNDDOWN(SUM(J13,J20),0)","v":0},"t-CO2"]
[null,null,null,null,null,null,null,null,null,null,null,"エネルギー名称区分2022","エネルギー名称区分2023","単位発熱量","炭素排出係数"]
[null,null,"揮発油（ガソリン）",null,null,null,{"$f":"IF(AND(E6=\"\",F6=\"\"),\"\",SUM(E6)-SUM(F6))","v":""},"kl",{"$f":"IFERROR(IF(G6=\"\",\"\",$G6*N6),\"-------------\")","v":""},{"$f":"IFERROR(IF(G6=\"\",\"\",$I6*O6*44/12),\"----------\")","v":""},null,"揮発油","揮発油",{"$f":"IF($P$1=2022,VLOOKUP(L6,係数2022,7,0),VLOOKUP(M6,係数2023,7,0))","v":33.4},{"$f":"IF($P$1=2022,VLOOKUP(L6,係数2022,9,0),VLOOKUP(M6,係数2023,9,0))","v":1.8700000000000001E-2},null,"２．エネルギー起源二酸化炭素（CO2）以外の温室効果ガス排出量"]
[null,null,"軽油",null,null,null,{"$f":"IF(AND(E7=\"\",F7=\"\"),\"\",SUM(E7)-SUM(F7))","v":""},"kl",{"$f":"IFERROR(IF(G7=\"\",\"\",$G7*N7),\"-------------\")","v":""},{"$f":"IFERROR(IF(G7=\"\",\"\",$I7*O7*44/12),\"----------\")","v":""},null,"軽油","軽油",{"$f":"IF($P$1=2022,VLOOKUP(L7,係数2022,7,0),VLOOKUP(M7,係数2023,7,0))","v":38},{"$f":"IF($P$1=2022,VLOOKUP(L7,係数2022,9,0),VLOOKUP(M7,係数2023,9,0))","v":1.8800000000000001E-2},null,"排出量合計",{"$f":"SUM(E33)","v":0},"t-CO2"]
[null,null,"液化石油ガス (LPG)",null,null,null,"","t",{"$f":"IFERROR(IF(G8=\"\",\"\",$G8*N8),\"-------------\")","v":""},{"$f":"IFERROR(IF(G8=\"\",\"\",$I8*O8*44/12),\"----------\")","v":""},null,"液化石油ガス     (LPG)","液化石油ガス     (LPG)",{"$f":"IF($P$1=2022,VLOOKUP(L8,係数2022,7,0),VLOOKUP(M8,係数2023,7,0))","v":50.1},{"$f":"IF($P$1=2022,VLOOKUP(L8,係数2022,9,0),VLOOKUP(M8,係数2023,9,0))","v":1.6299999999999999E-2}]
[null,null,"液化天然ガス (LNG)",null,null,null,"","t",{"$f":"IFERROR(IF(G9=\"\",\"\",$G9*N9),\"-------------\")","v":""},{"$f":"IFERROR(IF(G9=\"\",\"\",$I9*O9*44/12),\"----------\")","v":""},null,"液化天然ガス     (LNG)","液化天然ガス     (LNG)",{"$f":"IF($P$1=2022,VLOOKUP(L9,係数2022,7,0),VLOOKUP(M9,係数2023,7,0))","v":54.7},{"$f":"IF($P$1=2022,VLOOKUP(L9,係数2022,9,0),VLOOKUP(M9,係数2023,9,0))","v":1.3899999999999999E-2},null,"３．クレジット等による削減量"]
[null,null,"都市ガス（CNG含む）",null,null,null,"","千m3",{"$f":"IFERROR(IF(G10=\"\",\"\",$G10*N10),\"-------------\")","v":""},{"$f":"IFERROR(IF(G10=\"\",\"\",$I10*O10*44/12),\"----------\")","v":""},null,"都市ガス","都市ガス",{"$f":"IF($P$1=2022,VLOOKUP(L10,係数2022,7,0),VLOOKUP(M10,係数2023,7,0))","v":45},{"$f":"IF($P$1=2022,VLOOKUP(L10,係数2022,9,0),VLOOKUP(M10,係数2023,9,0))","v":1.4E-2},null,"削減量合計",{"$f":"SUM(E45)","v":0},"t-CO2"]
[null,null,{"$f":"\"その他（\"&Q22&\"）\"","v":"その他（）"},null,null,null,""]
[null,null,"水素",null,null,null,"","t",{"$f":"IFERROR(IF(G12=\"\",\"\",$G12*N12),\"-------------\")","v":""},null,null,null,"水素",{"$f":"IF($P$1=2022,VLOOKUP(L12,係数2022,7,0),VLOOKUP(M12,係数2023,7,0))","v":142},{"$f":"IF($P$1=2022,VLOOKUP(L12,係数2022,9,0),VLOOKUP(M12,係数2023,9,0))","v":"ー"},null,"温室効果ガス総排出量",{"$f":"SUM(R4,R7)-R10","v":0},"t-CO2"]
[null,null,"小　　　　　計",null,"－","－","－","－",{"$f":"IF(COUNTBLANK(I6:I12)=7,\"\",SUM(I6:I12))","v":""},{"$f":"IF(COUNTBLANK(J6:J11)=6,\"\",SUM(J6:J11))","v":""}]
[null,null,null,null,null,null,null,null,null,null,null,null,null,null,null,null,"４．原単位の指標"]
[null,null,"電気の種類",null,"使用量","外部\n供給量","実使用量","単位","熱量\n(GJ)","排出量\n(t-CO2)",null,null,null,null,null,null,"排出原単位",{"$f":"IF(R12=\"\",\"\",IFERROR(ROUND(R12/D52,3-INT(LOG(R12/D52))),))","v":0},{"$f":"\"t-CO2/\"&D51","v":"t-CO2/"}]
[null,null,null,null,null,null,null,null,null,null,null,"エネルギー名称区分2022","エネルギー名称区分2023","単位発熱量","炭素排出係数"]
[null,null,"電気事業者","昼間買電",{"$f":"R31","v":""},null,{"$f":"E17","v":""},"千kWh",{"$f":"IFERROR(IF(G17=\"\",\"\",G17*N17),\"----------\")","v":""},{"$f":"U31","v":""},null,"電気事業者_昼間買電","電気事業者_昼間買電",{"$f":"IF($P$1=2022,VLOOKUP(L17,係数2022,7,0),VLOOKUP(M17,係数2023,7,0))","v":8.64},{"$f":"IF($P$1=2022,VLOOKUP(L17,係数2022,9,0),VLOOKUP(M17,係数2023,9,0))","v":"ー"},null,"５．年度末使用車両数"]
[null,null,null,"夜間買電",{"$f":"S31","v":""},null,{"$f":"E18","v":""},"千kWh",{"$f":"IFERROR(IF(G18=\"\",\"\",G18*N18),\"----------\")","v":""},{"$f":"V31","v":""},null,"電気事業者_夜間買電","電気事業者_夜間買電",{"$f":"IF($P$1=2022,VLOOKUP(L18,係数2022,7,0),VLOOKUP(M18,係数2023,7,0))","v":8.64},{"$f":"IF($P$1=2022,VLOOKUP(L18,係数2022,9,0),VLOOKUP(M18,係数2023,9,0))","v":"ー"},null,"非化石エネルギー自動車割合",{"$f":"IF(OR(D68=0,D68=\"\",H68=0,H68=\"\"),0,H68/D68*100)","v":0},"％"]
[null,null,"その他買電",null,{"$f":"R40","v":""},null,{"$f":"E19","v":""},"千kWh",{"$f":"IFERROR(IF(G19=\"\",\"\",G19*N19),\"----------\")","v":""},{"$f":"IF(E19=\"\",\"\",T40)","v":""},null,"その他買電","その他買電",{"$f":"IF($P$1=2022,VLOOKUP(L19,係数2022,7,0),VLOOKUP(M19,係数2023,7,0))","v":8.64},{"$f":"IF($P$1=2022,VLOOKUP(L19,係数2022,9,0),VLOOKUP(M19,係数2023,9,0))","v":"ー"}]
[null,null,"小　　　　　計",null,{"$f":"IF(COUNTBLANK(E17:E19)=3,\"\",SUM(E17:E19))","v":""},null,{"$f":"IF(COUNTBLANK(G17:G19)=3,\"\",SUM(G17:G19))","v":""},"千kWh",{"$f":"IF(COUNTBLANK(I17:I19)=3,\"\",SUM(I17:I19))","v":""},{"$f":"IF(COUNTBLANK(J17:J19)=3,\"\",SUM(J17:J19))","v":""}]
[null,null,null,null,null,null,null,null,null,null,null,null,null,null,null,null,"その他の名称","換算係数","排出係数"]
[]
[null,null,"２．エネルギー起源二酸化炭素（CO2）以外の温室効果ガス排出量"]
[null,null,"温室効果ガスの種類",null,"排出量\n(t-CO2)",null,null,null,null,null,null,null,null,null,null,null,"電気事業者名","昼間買電量\n(千kWh)","夜間買電量\n(千kWh)","排出係数\n(tCO2/千kWh)","昼間排出量\n(t-CO2)","夜間排出量\n(t-CO2)"]
[]
[null,null,"非エネルギー起源二酸化炭素（CO2）",null,null,null,null,null,null,null,null,null,null,null,null,null,null,null,null,null,{"$f":"IF($T26=\"\",\"\",R26*$T26)","v":""},{"$f":"IF($T26=\"\",\"\",S26*$T26)","v":""}]
[null,null,"メタン（CH4）",null,null,null,null,null,null,null,null,null,null,null,null,null,null,null,null,null,{"$f":"IF($T27=\"\",\"\",R27*$T27)","v":""},""]
[null,null,"一酸化二窒素（N2O）",null,null,null,null,null,null,null,null,null,null,null,null,null,null,null,null,null,"",""]
[null,null,"ハイドロフルオロカーボン（HFC）",null,null,null,null,null,null,null,null,null,null,null,null,null,null,null,null,null,"",""]
[null,null,"パーフルオロカーボン（PFC）",null,null,null,null,null,null,null,null,null,null,null,null,null,null,null,null,null,"",""]
[null,null,"六フッ化硫黄（SF6）",null,null,null,null,null,null,null,null,null,null,null,null,null,"合計",{"$f":"IF(COUNTBLANK(R26:S30)=10,\"\",SUM(R26:R30))","v":""},{"$f":"IF(COUNTBLANK(R26:S30)=10,\"\",SUM(S26:S30))","v":""},null,{"$f":"IF(COUNTBLANK(R26:S30)=10,\"\",SUM(U26:U30))","v":""},{"$f":"IF(COUNTBLANK(R26:S30)=10,\"\",SUM(V26:V30))","v":""}]
[null,null,"三フッ化窒素（NF3）"]
[null,null,"合　　　　計",null,{"$f":"IF(COUNTBLANK(E26:E32)=7,\"\",SUM(E26:E32))","v":""},null,null,null,null,null,null,null,null,null,null,null,"その他買電","買電量\n(千kWh)","排出係数\n(tCO2/千kWh)","排出量\n(t-CO2)"]
[]
[null,null,"３．クレジット等による削減量",null,null,null,null,null,null,null,null,null,null,null,null,null,null,null,null,{"$f":"IF(S35=\"\",\"\",R35*S35)","v":""}]
[null,null,"クレジット等の種類",null,"削減量\n(t-CO2)",null,null,null,null,null,null,null,null,null,null,null,null,null,null,{"$f":"IF(S36=\"\",\"\",R36*S36)","v":""}]
[null,null,null,null,null,null,null,null,null,null,null,null,null,null,null,null,null,null,null,{"$f":"IF(S37=\"\",\"\",R37*S37)","v":""}]
[null,null,null,null,null,null,null,null,null,null,null,null,null,null,null,null,null,null,null,{"$f":"IF(S38=\"\",\"\",R38*S38)","v":""}]
[null,null,null,null,null,null,null,null,null,null,null,null,null,null,null,null,null,null,null,{"$f":"IF(S39=\"\",\"\",R39*S39)","v":""}]
[null,null,null,null,null,null,null,null,null,null,null,null,null,null,null,null,"合計",{"$f":"IF(COUNTBLANK(R35:R39)=5,\"\",SUM(R35:R39))","v":""},null,{"$f":"IF(COUNTBLANK(R35:R39)=5,\"\",SUM(T35:T39))","v":""}]
[]
[]
[]
[]
[null,null,"合　　　　計",null,{"$f":"IF(COUNTBLANK(E38:E44)=7,\"\",SUM(E38:E44))","v":""}]
[]
[null,null,"４．原単位の指標"]
[null,null,"原単位の指標（分母）"]
[]
[null,null,"名称",{"$f":"'事業所排出量内訳 (基準年度)'!D50&\"\"","v":""}]
[null,null,"単位",{"$f":"'事業所排出量内訳 (基準年度)'!D51&\"\"","v":""}]
[null,null,"数値"]
[]
[]
[null,null,"５．年度末使用車両数"]
[null,null,"車種","全台数\n（台）","全台数のうち下記の車種の内訳",null,null,"台数\n（台）"]
[]
[null,null,"トラック",null,"EV・PHV・水素自動車"]
[null,null,null,null,"ハイブリッド自動車"]
[null,null,null,null,"低炭素ディーゼル自動車・天然ガス自動車"]
[null,null,"バス",null,"EV・PHV・水素自動車"]
[null,null,null,null,"ハイブリッド自動車"]
[null,null,null,null,"低炭素ディーゼル自動車・天然ガス自動車"]
[null,null,"タクシー",null,"EV・PHV・水素自動車"]
[null,null,null,null,"ハイブリッド自動車"]
[null,null,"一般車両",null,"EV・PHV・水素自動車"]
[null,null,null,null,"ハイブリッド自動車"]
[null,null,"合　　　　計",{"$f":"IF(COUNTBLANK(D58)+COUNTBLANK(D61)+COUNTBLANK(D64)+COUNTBLANK(D66)=4,\"\",SUM(D58,D61,D64,D66))","v":""},"合　　　　計",null,null,{"$f":"IF(COUNTBLANK(H58:H67)=10,\"\",SUM(H58:H67))","v":""}]

{"sheet":"事業所排出量内訳（第2年度）","index":14,"n_rows":68,"n_cols":22,"rows_kept":68,"cut":false,"hidden":true,"merged":[[63,2,64,2],[63,3,64,3],[65,2,66,2],[65,3,66,3],[67,4,67,6],[55,4,56,6],[55,7,56,7],[57,2,59,2],[57,3,59,3],[60,2,62,2],[60,3,62,3],[55,2,56,2],[55,3,56,3],[41,2,41,3],[42,2,42,3],[43,2,43,3],[44,2,44,3],[47,2,48,3],[40,2,40,3],[23,19,24,19],[23,20,24,20],[23,21,24,21],[32,16,33,16],[32,17,33,17],[32,18,33,18],[32,19,33,19],[23,18,24,18],[35,2,36,3],[35,4,36,4],[37,2,37,3],[38,2,38,3],[39,2,39,3],[14,9,15,9],[23,2,24,3],[23,4,24,4],[23,16,24,16],[23,17,24,17],[14,2,15,3],[14,4,15,4],[14,5,15,5],[14,6,15,6],[14,7,15,7],[14,8,15,8],[0,8,0,9],[3,2,4,3],[3,4,4,4],[3,5,4,5],[3,6,4,6],[3,7,4,7],[3,8,4,8],[3,9,4,9]]}
[null,null,"温室効果ガス排出量内訳",null,null,null,null,"第２年度",{"$f":"\"（\"&はじめに!E4+2&\"年度）\"","v":"（2年度）"},null,null,null,null,null,null,{"$f":"はじめに!E4+2","v":2},"１．エネルギー起源二酸化炭素（CO2）排出量"]
[null,null,null,null,null,null,null,null,null,null,null,null,null,null,null,null,"熱量合計",{"$f":"SUM(I13,I20)","v":0},"GJ"]
[null,null,"１．エネルギー起源二酸化炭素（CO2）排出量",null,null,null,null,null,null,null,null,null,null,null,null,null,"原油換算",{"$f":"R2*0.0258","v":0},"KL"]
[null,null,"燃料の種類",null,"使用量","外部\n供給量","実使用量","単位","熱量\n(GJ)","排出量\n(t-CO2)",null,null,null,{"$f":"IF(R2=0,0,1)","v":0},null,null,"排出量合計",{"$f":"ROUNDDOWN(SUM(J13,J20),0)","v":0},"t-CO2"]
[null,null,null,null,null,null,null,null,null,null,null,"エネルギー名称区分2022","エネルギー名称区分2023","単位発熱量","炭素排出係数"]
[null,null,"揮発油（ガソリン）",null,null,null,{"$f":"IF(AND(E6=\"\",F6=\"\"),\"\",SUM(E6)-SUM(F6))","v":""},"kl",{"$f":"IFERROR(IF(G6=\"\",\"\",$G6*N6),\"-------------\")","v":""},{"$f":"IFERROR(IF(G6=\"\",\"\",$I6*O6*44/12),\"----------\")","v":""},null,"揮発油","揮発油",{"$f":"IF($P$1=2022,VLOOKUP(L6,係数2022,7,0),VLOOKUP(M6,係数2023,7,0))","v":33.4},{"$f":"IF($P$1=2022,VLOOKUP(L6,係数2022,9,0),VLOOKUP(M6,係数2023,9,0))","v":1.8700000000000001E-2},null,"２．エネルギー起源二酸化炭素（CO2）以外の温室効果ガス排出量"]
[null,null,"軽油",null,null,null,{"$f":"IF(AND(E7=\"\",F7=\"\"),\"\",SUM(E7)-SUM(F7))","v":""},"kl",{"$f":"IFERROR(IF(G7=\"\",\"\",$G7*N7),\"-------------\")","v":""},{"$f":"IFERROR(IF(G7=\"\",\"\",$I7*O7*44/12),\"----------\")","v":""},null,"軽油","軽油",{"$f":"IF($P$1=2022,VLOOKUP(L7,係数2022,7,0),VLOOKUP(M7,係数2023,7,0))","v":38},{"$f":"IF($P$1=2022,VLOOKUP(L7,係数2022,9,0),VLOOKUP(M7,係数2023,9,0))","v":1.8800000000000001E-2},null,"排出量合計",{"$f":"SUM(E33)","v":0},"t-CO2"]
[null,null,"液化石油ガス (LPG)",null,null,null,"","t",{"$f":"IFERROR(IF(G8=\"\",\"\",$G8*N8),\"-------------\")","v":""},{"$f":"IFERROR(IF(G8=\"\",\"\",$I8*O8*44/12),\"----------\")","v":""},null,"液化石油ガス     (LPG)","液化石油ガス     (LPG)",{"$f":"IF($P$1=2022,VLOOKUP(L8,係数2022,7,0),VLOOKUP(M8,係数2023,7,0))","v":50.1},{"$f":"IF($P$1=2022,VLOOKUP(L8,係数2022,9,0),VLOOKUP(M8,係数2023,9,0))","v":1.6299999999999999E-2}]
[null,null,"液化天然ガス (LNG)",null,null,null,"","t",{"$f":"IFERROR(IF(G9=\"\",\"\",$G9*N9),\"-------------\")","v":""},{"$f":"IFERROR(IF(G9=\"\",\"\",$I9*O9*44/12),\"----------\")","v":""},null,"液化天然ガス     (LNG)","液化天然ガス     (LNG)",{"$f":"IF($P$1=2022,VLOOKUP(L9,係数2022,7,0),VLOOKUP(M9,係数2023,7,0))","v":54.7},{"$f":"IF($P$1=2022,VLOOKUP(L9,係数2022,9,0),VLOOKUP(M9,係数2023,9,0))","v":1.3899999999999999E-2},null,"３．クレジット等による削減量"]
[null,null,"都市ガス（CNG含む）",null,null,null,"","千m3",{"$f":"IFERROR(IF(G10=\"\",\"\",$G10*N10),\"-------------\")","v":""},{"$f":"IFERROR(IF(G10=\"\",\"\",$I10*O10*44/12),\"----------\")","v":""},null,"都市ガス","都市ガス",{"$f":"IF($P$1=2022,VLOOKUP(L10,係数2022,7,0),VLOOKUP(M10,係数2023,7,0))","v":45},{"$f":"IF($P$1=2022,VLOOKUP(L10,係数2022,9,0),VLOOKUP(M10,係数2023,9,0))","v":1.4E-2},null,"削減量合計",{"$f":"SUM(E45)","v":0},"t-CO2"]
[null,null,{"$f":"\"その他（\"&Q22&\"）\"","v":"その他（）"},null,null,null,""]
[null,null,"水素",null,null,null,"","t",{"$f":"IFERROR(IF(G12=\"\",\"\",$G12*N12),\"-------------\")","v":""},null,null,null,"水素",{"$f":"IF($P$1=2022,VLOOKUP(L12,係数2022,7,0),VLOOKUP(M12,係数2023,7,0))","v":142},{"$f":"IF($P$1=2022,VLOOKUP(L12,係数2022,9,0),VLOOKUP(M12,係数2023,9,0))","v":"ー"},null,"温室効果ガス総排出量",{"$f":"SUM(R4,R7)-R10","v":0},"t-CO2"]
[null,null,"小　　　　　計",null,"－","－","－","－",{"$f":"IF(COUNTBLANK(I6:I12)=7,\"\",SUM(I6:I12))","v":""},{"$f":"IF(COUNTBLANK(J6:J11)=6,\"\",SUM(J6:J11))","v":""}]
[null,null,null,null,null,null,null,null,null,null,null,null,null,null,null,null,"４．原単位の指標"]
[null,null,"電気の種類",null,"使用量","外部\n供給量","実使用量","単位","熱量\n(GJ)","排出量\n(t-CO2)",null,null,null,null,null,null,"排出原単位",{"$f":"IF(R12=\"\",\"\",IFERROR(ROUND(R12/D52,3-INT(LOG(R12/D52))),))","v":0},{"$f":"\"t-CO2/\"&D51","v":"t-CO2/"}]
[null,null,null,null,null,null,null,null,null,null,null,"エネルギー名称区分2022","エネルギー名称区分2023","単位発熱量","炭素排出係数"]
[null,null,"電気事業者","昼間買電",{"$f":"R31","v":""},null,{"$f":"E17","v":""},"千kWh",{"$f":"IFERROR(IF(G17=\"\",\"\",G17*N17),\"----------\")","v":""},{"$f":"U31","v":""},null,"電気事業者_昼間買電","電気事業者_昼間買電",{"$f":"IF($P$1=2022,VLOOKUP(L17,係数2022,7,0),VLOOKUP(M17,係数2023,7,0))","v":8.64},{"$f":"IF($P$1=2022,VLOOKUP(L17,係数2022,9,0),VLOOKUP(M17,係数2023,9,0))","v":"ー"},null,"５．年度末使用車両数"]
[null,null,null,"夜間買電",{"$f":"S31","v":""},null,{"$f":"E18","v":""},"千kWh",{"$f":"IFERROR(IF(G18=\"\",\"\",G18*N18),\"----------\")","v":""},{"$f":"V31","v":""},null,"電気事業者_夜間買電","電気事業者_夜間買電",{"$f":"IF($P$1=2022,VLOOKUP(L18,係数2022,7,0),VLOOKUP(M18,係数2023,7,0))","v":8.64},{"$f":"IF($P$1=2022,VLOOKUP(L18,係数2022,9,0),VLOOKUP(M18,係数2023,9,0))","v":"ー"},null,"非化石エネルギー自動車割合",{"$f":"IF(OR(D68=0,D68=\"\",H68=0,H68=\"\"),0,H68/D68*100)","v":0},"％"]
[null,null,"その他買電",null,{"$f":"R40","v":""},null,{"$f":"E19","v":""},"千kWh",{"$f":"IFERROR(IF(G19=\"\",\"\",G19*N19),\"----------\")","v":""},{"$f":"IF(E19=\"\",\"\",T40)","v":""},null,"その他買電","その他買電",{"$f":"IF($P$1=2022,VLOOKUP(L19,係数2022,7,0),VLOOKUP(M19,係数2023,7,0))","v":8.64},{"$f":"IF($P$1=2022,VLOOKUP(L19,係数2022,9,0),VLOOKUP(M19,係数2023,9,0))","v":"ー"}]
[null,null,"小　　　　　計",null,{"$f":"IF(COUNTBLANK(E17:E19)=3,\"\",SUM(E17:E19))","v":""},null,{"$f":"IF(COUNTBLANK(G17:G19)=3,\"\",SUM(G17:G19))","v":""},"千kWh",{"$f":"IF(COUNTBLANK(I17:I19)=3,\"\",SUM(I17:I19))","v":""},{"$f":"IF(COUNTBLANK(J17:J19)=3,\"\",SUM(J17:J19))","v":""}]
[null,null,null,null,null,null,null,null,null,null,null,null,null,null,null,null,"その他の名称","換算係数","排出係数"]
[]
[null,null,"２．エネルギー起源二酸化炭素（CO2）以外の温室効果ガス排出量"]
[null,null,"温室効果ガスの種類",null,"排出量\n(t-CO2)",null,null,null,null,null,null,null,null,null,null,null,"電気事業者名","昼間買電量\n(千kWh)","夜間買電量\n(千kWh)","排出係数\n(tCO2/千kWh)","昼間排出量\n(t-CO2)","夜間排出量\n(t-CO2)"]
[]
[null,null,"非エネルギー起源二酸化炭素（CO2）",null,null,null,null,null,null,null,null,null,null,null,null,null,null,null,null,null,{"$f":"IF($T26=\"\",\"\",R26*$T26)","v":""},{"$f":"IF($T26=\"\",\"\",S26*$T26)","v":""}]
[null,null,"メタン（CH4）",null,null,null,null,null,null,null,null,null,null,null,null,null,null,null,null,null,{"$f":"IF($T27=\"\",\"\",R27*$T27)","v":""},""]
[null,null,"一酸化二窒素（N2O）",null,null,null,null,null,null,null,null,null,null,null,null,null,null,null,null,null,"",""]
[null,null,"ハイドロフルオロカーボン（HFC）",null,null,null,null,null,null,null,null,null,null,null,null,null,null,null,null,null,"",""]
[null,null,"パーフルオロカーボン（PFC）",null,null,null,null,null,null,null,null,null,null,null,null,null,null,null,null,null,"",""]
[null,null,"六フッ化硫黄（SF6）",null,null,null,null,null,null,null,null,null,null,null,null,null,"合計",{"$f":"IF(COUNTBLANK(R26:S30)=10,\"\",SUM(R26:R30))","v":""},{"$f":"IF(COUNTBLANK(R26:S30)=10,\"\",SUM(S26:S30))","v":""},null,{"$f":"IF(COUNTBLANK(R26:S30)=10,\"\",SUM(U26:U30))","v":""},{"$f":"IF(COUNTBLANK(R26:S30)=10,\"\",SUM(V26:V30))","v":""}]
[null,null,"三フッ化窒素（NF3）"]
[null,null,"合　　　　計",null,{"$f":"IF(COUNTBLANK(E26:E32)=7,\"\",SUM(E26:E32))","v":""},null,null,null,null,null,null,null,null,null,null,null,"その他買電","買電量\n(千kWh)","排出係数\n(tCO2/千kWh)","排出量\n(t-CO2)"]
[]
[null,null,"３．クレジット等による削減量",null,null,null,null,null,null,null,null,null,null,null,null,null,null,null,null,{"$f":"IF(S35=\"\",\"\",R35*S35)","v":""}]
[null,null,"クレジット等の種類",null,"削減量\n(t-CO2)",null,null,null,null,null,null,null,null,null,null,null,null,null,null,{"$f":"IF(S36=\"\",\"\",R36*S36)","v":""}]
[null,null,null,null,null,null,null,null,null,null,null,null,null,null,null,null,null,null,null,{"$f":"IF(S37=\"\",\"\",R37*S37)","v":""}]
[null,null,null,null,null,null,null,null,null,null,null,null,null,null,null,null,null,null,null,{"$f":"IF(S38=\"\",\"\",R38*S38)","v":""}]
[null,null,null,null,null,null,null,null,null,null,null,null,null,null,null,null,null,null,null,{"$f":"IF(S39=\"\",\"\",R39*S39)","v":""}]
[null,null,null,null,null,null,null,null,null,null,null,null,null,null,null,null,"合計",{"$f":"IF(COUNTBLANK(R35:R39)=5,\"\",SUM(R35:R39))","v":""},null,{"$f":"IF(COUNTBLANK(R35:R39)=5,\"\",SUM(T35:T39))","v":""}]
[]
[]
[]
[]
[null,null,"合　　　　計",null,{"$f":"IF(COUNTBLANK(E38:E44)=7,\"\",SUM(E38:E44))","v":""}]
[]
[null,null,"４．原単位の指標"]
[null,null,"原単位の指標（分母）"]
[]
[null,null,"名称",{"$f":"'事業所排出量内訳 (基準年度)'!D50&\"\"","v":""}]
[null,null,"単位",{"$f":"'事業所排出量内訳 (基準年度)'!D51&\"\"","v":""}]
[null,null,"数値"]
[]
[]
[null,null,"５．年度末使用車両数"]
[null,null,"車種","全台数\n（台）","全台数のうち下記の車種の内訳",null,null,"台数\n（台）"]
[]
[null,null,"トラック",null,"EV・PHV・水素自動車"]
[null,null,null,null,"ハイブリッド自動車"]
[null,null,null,null,"低炭素ディーゼル自動車・天然ガス自動車"]
[null,null,"バス",null,"EV・PHV・水素自動車"]
[null,null,null,null,"ハイブリッド自動車"]
[null,null,null,null,"低炭素ディーゼル自動車・天然ガス自動車"]
[null,null,"タクシー",null,"EV・PHV・水素自動車"]
[null,null,null,null,"ハイブリッド自動車"]
[null,null,"一般車両",null,"EV・PHV・水素自動車"]
[null,null,null,null,"ハイブリッド自動車"]
[null,null,"合　　　　計",{"$f":"IF(COUNTBLANK(D58)+COUNTBLANK(D61)+COUNTBLANK(D64)+COUNTBLANK(D66)=4,\"\",SUM(D58,D61,D64,D66))","v":""},"合　　　　計",null,null,{"$f":"IF(COUNTBLANK(H58:H67)=10,\"\",SUM(H58:H67))","v":""}]

{"sheet":"事業所排出量内訳（第3年度）","index":15,"n_rows":68,"n_cols":22,"rows_kept":68,"cut":false,"hidden":true,"merged":[[63,2,64,2],[63,3,64,3],[65,2,66,2],[65,3,66,3],[67,4,67,6],[55,4,56,6],[55,7,56,7],[57,2,59,2],[57,3,59,3],[60,2,62,2],[60,3,62,3],[55,2,56,2],[55,3,56,3],[41,2,41,3],[42,2,42,3],[43,2,43,3],[44,2,44,3],[47,2,48,3],[40,2,40,3],[23,19,24,19],[23,20,24,20],[23,21,24,21],[32,16,33,16],[32,17,33,17],[32,18,33,18],[32,19,33,19],[23,18,24,18],[35,2,36,3],[35,4,36,4],[37,2,37,3],[38,2,38,3],[39,2,39,3],[14,9,15,9],[23,2,24,3],[23,4,24,4],[23,16,24,16],[23,17,24,17],[14,2,15,3],[14,4,15,4],[14,5,15,5],[14,6,15,6],[14,7,15,7],[14,8,15,8],[0,8,0,9],[3,2,4,3],[3,4,4,4],[3,5,4,5],[3,6,4,6],[3,7,4,7],[3,8,4,8],[3,9,4,9]]}
[null,null,"温室効果ガス排出量内訳",null,null,null,null,"第３年度",{"$f":"\"（\"&はじめに!E4+3&\"年度）\"","v":"（3年度）"},null,null,null,null,null,null,{"$f":"はじめに!E4+3","v":3},"１．エネルギー起源二酸化炭素（CO2）排出量"]
[null,null,null,null,null,null,null,null,null,null,null,null,null,null,null,null,"熱量合計",{"$f":"SUM(I13,I20)","v":0},"GJ"]
[null,null,"１．エネルギー起源二酸化炭素（CO2）排出量",null,null,null,null,null,null,null,null,null,null,null,null,null,"原油換算",{"$f":"R2*0.0258","v":0},"KL"]
[null,null,"燃料の種類",null,"使用量","外部\n供給量","実使用量","単位","熱量\n(GJ)","排出量\n(t-CO2)",null,null,null,{"$f":"IF(R2=0,0,1)","v":0},null,null,"排出量合計",{"$f":"ROUNDDOWN(SUM(J13,J20),0)","v":0},"t-CO2"]
[null,null,null,null,null,null,null,null,null,null,null,"エネルギー名称区分2022","エネルギー名称区分2023","単位発熱量","炭素排出係数"]
[null,null,"揮発油（ガソリン）",null,null,null,{"$f":"IF(AND(E6=\"\",F6=\"\"),\"\",SUM(E6)-SUM(F6))","v":""},"kl",{"$f":"IFERROR(IF(G6=\"\",\"\",$G6*N6),\"-------------\")","v":""},{"$f":"IFERROR(IF(G6=\"\",\"\",$I6*O6*44/12),\"----------\")","v":""},null,"揮発油","揮発油",{"$f":"IF($P$1=2022,VLOOKUP(L6,係数2022,7,0),VLOOKUP(M6,係数2023,7,0))","v":33.4},{"$f":"IF($P$1=2022,VLOOKUP(L6,係数2022,9,0),VLOOKUP(M6,係数2023,9,0))","v":1.8700000000000001E-2},null,"２．エネルギー起源二酸化炭素（CO2）以外の温室効果ガス排出量"]
[null,null,"軽油",null,null,null,{"$f":"IF(AND(E7=\"\",F7=\"\"),\"\",SUM(E7)-SUM(F7))","v":""},"kl",{"$f":"IFERROR(IF(G7=\"\",\"\",$G7*N7),\"-------------\")","v":""},{"$f":"IFERROR(IF(G7=\"\",\"\",$I7*O7*44/12),\"----------\")","v":""},null,"軽油","軽油",{"$f":"IF($P$1=2022,VLOOKUP(L7,係数2022,7,0),VLOOKUP(M7,係数2023,7,0))","v":38},{"$f":"IF($P$1=2022,VLOOKUP(L7,係数2022,9,0),VLOOKUP(M7,係数2023,9,0))","v":1.8800000000000001E-2},null,"排出量合計",{"$f":"SUM(E33)","v":0},"t-CO2"]
[null,null,"液化石油ガス (LPG)",null,null,null,"","t",{"$f":"IFERROR(IF(G8=\"\",\"\",$G8*N8),\"-------------\")","v":""},{"$f":"IFERROR(IF(G8=\"\",\"\",$I8*O8*44/12),\"----------\")","v":""},null,"液化石油ガス     (LPG)","液化石油ガス     (LPG)",{"$f":"IF($P$1=2022,VLOOKUP(L8,係数2022,7,0),VLOOKUP(M8,係数2023,7,0))","v":50.1},{"$f":"IF($P$1=2022,VLOOKUP(L8,係数2022,9,0),VLOOKUP(M8,係数2023,9,0))","v":1.6299999999999999E-2}]
[null,null,"液化天然ガス (LNG)",null,null,null,"","t",{"$f":"IFERROR(IF(G9=\"\",\"\",$G9*N9),\"-------------\")","v":""},{"$f":"IFERROR(IF(G9=\"\",\"\",$I9*O9*44/12),\"----------\")","v":""},null,"液化天然ガス     (LNG)","液化天然ガス     (LNG)",{"$f":"IF($P$1=2022,VLOOKUP(L9,係数2022,7,0),VLOOKUP(M9,係数2023,7,0))","v":54.7},{"$f":"IF($P$1=2022,VLOOKUP(L9,係数2022,9,0),VLOOKUP(M9,係数2023,9,0))","v":1.3899999999999999E-2},null,"３．クレジット等による削減量"]
[null,null,"都市ガス（CNG含む）",null,null,null,"","千m3",{"$f":"IFERROR(IF(G10=\"\",\"\",$G10*N10),\"-------------\")","v":""},{"$f":"IFERROR(IF(G10=\"\",\"\",$I10*O10*44/12),\"----------\")","v":""},null,"都市ガス","都市ガス",{"$f":"IF($P$1=2022,VLOOKUP(L10,係数2022,7,0),VLOOKUP(M10,係数2023,7,0))","v":45},{"$f":"IF($P$1=2022,VLOOKUP(L10,係数2022,9,0),VLOOKUP(M10,係数2023,9,0))","v":1.4E-2},null,"削減量合計",{"$f":"SUM(E45)","v":0},"t-CO2"]
[null,null,{"$f":"\"その他（\"&Q22&\"）\"","v":"その他（）"},null,null,null,""]
[null,null,"水素",null,null,null,"","t",{"$f":"IFERROR(IF(G12=\"\",\"\",$G12*N12),\"-------------\")","v":""},null,null,null,"水素",{"$f":"IF($P$1=2022,VLOOKUP(L12,係数2022,7,0),VLOOKUP(M12,係数2023,7,0))","v":142},{"$f":"IF($P$1=2022,VLOOKUP(L12,係数2022,9,0),VLOOKUP(M12,係数2023,9,0))","v":"ー"},null,"温室効果ガス総排出量",{"$f":"SUM(R4,R7)-R10","v":0},"t-CO2"]
[null,null,"小　　　　　計",null,"－","－","－","－",{"$f":"IF(COUNTBLANK(I6:I12)=7,\"\",SUM(I6:I12))","v":""},{"$f":"IF(COUNTBLANK(J6:J11)=6,\"\",SUM(J6:J11))","v":""}]
[null,null,null,null,null,null,null,null,null,null,null,null,null,null,null,null,"４．原単位の指標"]
[null,null,"電気の種類",null,"使用量","外部\n供給量","実使用量","単位","熱量\n(GJ)","排出量\n(t-CO2)",null,null,null,null,null,null,"排出原単位",{"$f":"IF(R12=\"\",\"\",IFERROR(ROUND(R12/D52,3-INT(LOG(R12/D52))),))","v":0},{"$f":"\"t-CO2/\"&D51","v":"t-CO2/"}]
[null,null,null,null,null,null,null,null,null,null,null,"エネルギー名称区分2022","エネルギー名称区分2023","単位発熱量","炭素排出係数"]
[null,null,"電気事業者","昼間買電",{"$f":"R31","v":""},null,{"$f":"E17","v":""},"千kWh",{"$f":"IFERROR(IF(G17=\"\",\"\",G17*N17),\"----------\")","v":""},{"$f":"U31","v":""},null,"電気事業者_昼間買電","電気事業者_昼間買電",{"$f":"IF($P$1=2022,VLOOKUP(L17,係数2022,7,0),VLOOKUP(M17,係数2023,7,0))","v":8.64},{"$f":"IF($P$1=2022,VLOOKUP(L17,係数2022,9,0),VLOOKUP(M17,係数2023,9,0))","v":"ー"},null,"５．年度末使用車両数"]
[null,null,null,"夜間買電",{"$f":"S31","v":""},null,{"$f":"E18","v":""},"千kWh",{"$f":"IFERROR(IF(G18=\"\",\"\",G18*N18),\"----------\")","v":""},{"$f":"V31","v":""},null,"電気事業者_夜間買電","電気事業者_夜間買電",{"$f":"IF($P$1=2022,VLOOKUP(L18,係数2022,7,0),VLOOKUP(M18,係数2023,7,0))","v":8.64},{"$f":"IF($P$1=2022,VLOOKUP(L18,係数2022,9,0),VLOOKUP(M18,係数2023,9,0))","v":"ー"},null,"非化石エネルギー自動車割合",{"$f":"IF(OR(D68=0,D68=\"\",H68=0,H68=\"\"),0,H68/D68*100)","v":0},"％"]
[null,null,"その他買電",null,{"$f":"R40","v":""},null,{"$f":"E19","v":""},"千kWh","",{"$f":"IF(E19=\"\",\"\",T40)","v":""},null,"その他買電","その他買電",{"$f":"IF($P$1=2022,VLOOKUP(L19,係数2022,7,0),VLOOKUP(M19,係数2023,7,0))","v":8.64},{"$f":"IF($P$1=2022,VLOOKUP(L19,係数2022,9,0),VLOOKUP(M19,係数2023,9,0))","v":"ー"}]
[null,null,"小　　　　　計",null,{"$f":"IF(COUNTBLANK(E17:E19)=3,\"\",SUM(E17:E19))","v":""},null,{"$f":"IF(COUNTBLANK(G17:G19)=3,\"\",SUM(G17:G19))","v":""},"千kWh",{"$f":"IF(COUNTBLANK(I17:I19)=3,\"\",SUM(I17:I19))","v":""},{"$f":"IF(COUNTBLANK(J17:J19)=3,\"\",SUM(J17:J19))","v":""}]
[null,null,null,null,null,null,null,null,null,null,null,null,null,null,null,null,"その他の名称","換算係数","排出係数"]
[]
[null,null,"２．エネルギー起源二酸化炭素（CO2）以外の温室効果ガス排出量"]
[null,null,"温室効果ガスの種類",null,"排出量\n(t-CO2)",null,null,null,null,null,null,null,null,null,null,null,"電気事業者名","昼間買電量\n(千kWh)","夜間買電量\n(千kWh)","排出係数\n(tCO2/千kWh)","昼間排出量\n(t-CO2)","夜間排出量\n(t-CO2)"]
[]
[null,null,"非エネルギー起源二酸化炭素（CO2）",null,null,null,null,null,null,null,null,null,null,null,null,null,null,null,null,null,{"$f":"IF($T26=\"\",\"\",R26*$T26)","v":""},{"$f":"IF($T26=\"\",\"\",S26*$T26)","v":""}]
[null,null,"メタン（CH4）",null,null,null,null,null,null,null,null,null,null,null,null,null,null,null,null,null,{"$f":"IF($T27=\"\",\"\",R27*$T27)","v":""},""]
[null,null,"一酸化二窒素（N2O）",null,null,null,null,null,null,null,null,null,null,null,null,null,null,null,null,null,"",""]
[null,null,"ハイドロフルオロカーボン（HFC）",null,null,null,null,null,null,null,null,null,null,null,null,null,null,null,null,null,"",""]
[null,null,"パーフルオロカーボン（PFC）",null,null,null,null,null,null,null,null,null,null,null,null,null,null,null,null,null,"",""]
[null,null,"六フッ化硫黄（SF6）",null,null,null,null,null,null,null,null,null,null,null,null,null,"合計",{"$f":"IF(COUNTBLANK(R26:S30)=10,\"\",SUM(R26:R30))","v":""},{"$f":"IF(COUNTBLANK(R26:S30)=10,\"\",SUM(S26:S30))","v":""},null,{"$f":"IF(COUNTBLANK(R26:S30)=10,\"\",SUM(U26:U30))","v":""},{"$f":"IF(COUNTBLANK(R26:S30)=10,\"\",SUM(V26:V30))","v":""}]
[null,null,"三フッ化窒素（NF3）"]
[null,null,"合　　　　計",null,{"$f":"IF(COUNTBLANK(E26:E32)=7,\"\",SUM(E26:E32))","v":""},null,null,null,null,null,null,null,null,null,null,null,"その他買電","買電量\n(千kWh)","排出係数\n(tCO2/千kWh)","排出量\n(t-CO2)"]
[]
[null,null,"３．クレジット等による削減量",null,null,null,null,null,null,null,null,null,null,null,null,null,null,null,null,{"$f":"IF(S35=\"\",\"\",R35*S35)","v":""}]
[null,null,"クレジット等の種類",null,"削減量\n(t-CO2)",null,null,null,null,null,null,null,null,null,null,null,null,null,null,{"$f":"IF(S36=\"\",\"\",R36*S36)","v":""}]
[null,null,null,null,null,null,null,null,null,null,null,null,null,null,null,null,null,null,null,{"$f":"IF(S37=\"\",\"\",R37*S37)","v":""}]
[null,null,null,null,null,null,null,null,null,null,null,null,null,null,null,null,null,null,null,{"$f":"IF(S38=\"\",\"\",R38*S38)","v":""}]
[null,null,null,null,null,null,null,null,null,null,null,null,null,null,null,null,null,null,null,{"$f":"IF(S39=\"\",\"\",R39*S39)","v":""}]
[null,null,null,null,null,null,null,null,null,null,null,null,null,null,null,null,"合計",{"$f":"IF(COUNTBLANK(R35:R39)=5,\"\",SUM(R35:R39))","v":""},null,{"$f":"IF(COUNTBLANK(R35:R39)=5,\"\",SUM(T35:T39))","v":""}]
[]
[]
[]
[]
[null,null,"合　　　　計",null,{"$f":"IF(COUNTBLANK(E38:E44)=7,\"\",SUM(E38:E44))","v":""}]
[]
[null,null,"４．原単位の指標"]
[null,null,"原単位の指標（分母）"]
[]
[null,null,"名称",{"$f":"'事業所排出量内訳 (基準年度)'!D50&\"\"","v":""}]
[null,null,"単位",{"$f":"'事業所排出量内訳 (基準年度)'!D51&\"\"","v":""}]
[null,null,"数値"]
[]
[]
[null,null,"５．年度末使用車両数"]
[null,null,"車種","全台数\n（台）","全台数のうち下記の車種の内訳",null,null,"台数\n（台）"]
[]
[null,null,"トラック",null,"EV・PHV・水素自動車"]
[null,null,null,null,"ハイブリッド自動車"]
[null,null,null,null,"低炭素ディーゼル自動車・天然ガス自動車"]
[null,null,"バス",null,"EV・PHV・水素自動車"]
[null,null,null,null,"ハイブリッド自動車"]
[null,null,null,null,"低炭素ディーゼル自動車・天然ガス自動車"]
[null,null,"タクシー",null,"EV・PHV・水素自動車"]
[null,null,null,null,"ハイブリッド自動車"]
[null,null,"一般車両",null,"EV・PHV・水素自動車"]
[null,null,null,null,"ハイブリッド自動車"]
[null,null,"合　　　　計",{"$f":"IF(COUNTBLANK(D58)+COUNTBLANK(D61)+COUNTBLANK(D64)+COUNTBLANK(D66)=4,\"\",SUM(D58,D61,D64,D66))","v":""},"合　　　　計",null,null,{"$f":"IF(COUNTBLANK(H58:H67)=10,\"\",SUM(H58:H67))","v":""}]

{"sheet":"報告書提出書","index":16,"n_rows":34,"n_cols":17,"rows_kept":34,"cut":false,"hidden":true,"merged":[[16,0,16,2],[16,3,16,16],[2,1,2,15],[7,6,7,7],[7,9,7,15],[8,6,8,7],[8,9,8,15],[9,6,9,7],[9,9,9,15],[11,0,12,16],[14,0,14,2],[14,3,14,16],[15,0,15,2],[15,3,15,16],[23,0,29,2],[23,3,24,4],[23,5,23,6],[23,7,23,16],[24,5,24,6],[24,7,24,16],[25,3,25,6],[25,7,25,16],[26,3,26,6],[26,7,26,16],[28,3,28,6],[28,7,28,16],[29,3,29,6],[29,7,29,16],[27,3,27,6],[27,7,27,16],[18,0,21,2],[18,4,18,16],[19,4,19,16],[20,4,20,16],[21,4,21,16],[32,0,33,0],[32,1,33,4],[32,7,32,16],[33,5,33,6],[33,7,33,16]]}
[]
[]
[null,"事業者温室効果ガス削減報告書　提出書"]
[]
[null,null,null,null,null,null,null,null,null,null,null,{"$f":"IF(はじめに!E30=\"\",\"\",はじめに!E30)","v":""},"年",{"$f":"IF(はじめに!G30=\"\",\"\",はじめに!G30)","v":""},"月",{"$f":"IF(はじめに!I30=\"\",\"\",はじめに!I30)","v":""},"日"]
["（あて先）仙台市長"]
[]
[null,null,null,null,null,null,"住所",null,null,{"$f":"IF(はじめに!E7=\"\",\"\",はじめに!E7)","v":""}]
[null,null,null,null,null,null,"法人の名称",null,null,{"$f":"IF(はじめに!E6=\"\",\"\",はじめに!E6)","v":""}]
[null,null,null,null,null,null,"代表者氏名",null,null,{"$f":"IF(はじめに!E8=\"\",\"\",はじめに!E8)","v":""}]
[]
["　仙台市地球温暖化対策等の推進に関する条例第11条第1項の規定により、別紙のとおり事業者温室効果ガス削減報告書を提出します。"]
[]
[]
["事業者の名称",null,null,{"$f":"IF(J9=\"\",\"\",J9)","v":""}]
["市内代表事業所の\n名称",null,null,{"$f":"IF(はじめに!E14=\"\",\"\",はじめに!E14)","v":""}]
["市内代表事業所の\n所在地",null,null,{"$f":"IF(はじめに!E16=\"\",\"\",はじめに!E16)","v":""}]
[]
["該当する\n事業者の要件",null,null,{"$f":"IF(はじめに!S10=TRUE,\"〇\",\"\")","v":""},"①原油換算エネルギー使用量が1,500kL以上の事業所\n　　（条例第2条第5号イに該当する特定事業者）"]
[null,null,null,{"$f":"IF(はじめに!S11=TRUE,\"〇\",\"\")","v":""},"②エネルギー起源CO2を除くいずれかの物質の温室効果ガス排出量が3,000トン以上の事業所（条例第2条第5号ロに該当する特定事業者）"]
[null,null,null,{"$f":"IF(はじめに!S12=TRUE,\"〇\",\"\")","v":"〇"},"③市内に100台以上の自動車を所有する運送事業者\n　　（条例第2条第5号ハに該当する特定事業者）"]
[null,null,null,{"$f":"IF(はじめに!S13=TRUE,\"〇\",\"\")","v":""},"④任意提出事業者\n　　（条例第15条第1項に該当する一般事業者）"]
[]
["連絡先",null,null,"担当者",null,"部署名",null,{"$f":"IF(はじめに!E21=\"\",\"\",はじめに!E21)","v":""}]
[null,null,null,null,null,"氏名",null,{"$f":"IF(はじめに!E24=\"\",\"\",はじめに!E24)","v":""}]
[null,null,null,"郵便番号",null,null,null,{"$f":"IF(はじめに!F22=\"\",\"\",はじめに!F22 & \"-\")  & IF(はじめに!H22=\"\",\"\",はじめに!H22)","v":""}]
[null,null,null,"住所",null,null,null,{"$f":"IF(はじめに!E23=\"\",\"\",はじめに!E23)","v":""}]
[null,null,null,"電話番号",null,null,null,{"$f":"IF(はじめに!E25=\"\",\"\",はじめに!E25)","v":""}]
[null,null,null,"ＦＡＸ番号",null,null,null,{"$f":"IF(はじめに!E26=\"\",\"\",はじめに!E26)","v":""}]
[null,null,null,"メールアドレス",null,null,null,{"$f":"IF(はじめに!E27=\"\",\"\",はじめに!E27)","v":""}]
[]
[]
["※受理",null,null,null,null," ※整理番号"]
[null,null,null,null,null,"※備考"]

{"sheet":"報告書（公表用）","index":17,"n_rows":49,"n_cols":17,"rows_kept":49,"cut":false,"hidden":true,"merged":[[2,1,2,12],[2,13,2,15],[5,0,5,3],[5,4,5,16],[6,0,6,3],[6,4,6,16],[30,8,30,9],[7,0,7,3],[7,4,7,16],[8,0,8,3],[8,4,8,16],[9,0,12,3],[9,5,9,16],[10,5,10,16],[11,5,11,16],[12,5,12,16],[17,7,18,7],[17,8,17,9],[17,10,17,11],[17,13,17,14],[17,15,17,16],[18,8,18,9],[18,10,18,11],[18,13,18,14],[13,0,13,3],[13,4,13,16],[16,0,18,3],[16,4,16,5],[16,8,16,9],[16,10,16,11],[16,13,16,14],[16,15,16,16],[17,4,18,5],[17,6,18,6],[21,4,21,5],[21,6,21,16],[19,0,27,3],[19,4,20,5],[19,6,20,6],[19,7,20,7],[19,8,19,9],[19,10,19,11],[22,4,23,5],[22,6,23,6],[22,7,23,7],[22,8,22,9],[22,10,22,11],[22,13,22,14],[22,15,22,16],[23,8,23,9],[23,10,23,11],[23,13,23,14],[19,13,19,14],[19,15,19,16],[20,8,20,9],[20,10,20,11],[20,13,20,14],[27,4,27,5],[30,0,33,3],[30,4,30,5],[30,12,30,13],[31,4,31,5],[24,4,24,5],[24,6,24,16],[25,4,26,5],[25,6,26,6],[25,7,26,7],[25,8,25,9],[25,10,25,11],[25,13,25,14],[25,15,25,16],[26,8,26,9],[31,8,31,9],[31,10,31,16],[32,4,32,5],[32,8,32,9],[32,10,32,16],[33,4,33,5],[33,8,33,9],[33,10,33,16],[26,10,26,11],[26,13,26,14],[27,6,27,16],[41,15,41,16],[42,4,42,14],[42,15,42,16],[43,0,48,3],[43,4,43,7],[43,8,43,14],[43,15,43,16],[44,4,44,7],[44,8,44,14],[44,15,44,16],[37,0,42,3],[37,4,37,14],[37,15,37,16],[38,4,38,14],[38,15,38,16],[39,4,39,14],[39,15,39,16],[40,4,40,14],[40,15,40,16],[41,4,41,14],[47,4,47,7],[47,8,47,14],[47,15,47,16],[48,4,48,7],[48,8,48,14],[48,15,48,16],[45,4,45,7],[45,8,45,14],[45,15,45,16],[46,4,46,7],[46,8,46,14],[46,15,46,16]]}
[]
[]
[null,"事業者温室効果ガス削減報告書概要（第二計画期間）　",null,null,null,null,null,null,null,null,null,null,null,{"$f":"\" 第 \"&はじめに!F29&\" 年度分\"","v":" 第  年度分"}]
[]
["１　事業者の概要"]
["事業者の名称",null,null,null,{"$f":"IF(はじめに!E6=\"\",\"\",はじめに!E6)","v":""}]
["市内代表事業所の名称",null,null,null,{"$f":"IF(はじめに!E14=\"\",\"\",はじめに!E14)","v":""}]
["市内代表事業所の所在地",null,null,null,{"$f":"IF(はじめに!E16=\"\",\"\",はじめに!E16)","v":""}]
["主たる事業",null,null,null,{"$f":"IF(はじめに!S17=\"\",\"\",はじめに!S17)","v":""}]
["事業者の該当要件",null,null,null,{"$f":"IF(報告書提出書!D19=\"\",\"\",報告書提出書!D19)","v":""},"条例第2条第5号イに該当する特定事業者"]
[null,null,null,null,{"$f":"IF(報告書提出書!D20=\"\",\"\",報告書提出書!D20)","v":""},"条例第2条第5号ロに該当する特定事業者"]
[null,null,null,null,{"$f":"IF(報告書提出書!D21=\"\",\"\",報告書提出書!D21)","v":"〇"},"条例第2条第5号ハに該当する特定事業者"]
[null,null,null,null,{"$f":"IF(報告書提出書!D22=\"\",\"\",報告書提出書!D22)","v":""},"条例第15条第1項に該当する一般事業者"]
["温室効果ガス\n排出抑制の\nための基本方針",null,null,null,{"$f":"IF('報告書①（事業者概要・実績）'!A13=\"\",\"\",'報告書①（事業者概要・実績）'!A13)","v":""}]
[]
["２　温室効果ガスの排出状況等"]
["温室効果ガスの\n削減目標",null,null,null,"基準年度",null,{"$f":"IF(はじめに!E4=\"\",\"\",はじめに!E4)","v":""},"年度","基準排出量",null,{"$f":"IF('報告書①（事業者概要・実績）'!H24=\"\",\"\",'報告書①（事業者概要・実績）'!H24)","v":""},null,"t-CO2","基準原単位",null,{"$f":"IF('報告書①（事業者概要・実績）'!M24=\"\",\"\",'報告書①（事業者概要・実績）'!M24)","v":""}]
[null,null,null,null,"目標年度",null,{"$f":"IF(はじめに!H3=\"\",\"\",はじめに!H3)","v":2025},"年度","目標排出量",null,{"$f":"IF('報告書①（事業者概要・実績）'!H25=\"\",\"\",'報告書①（事業者概要・実績）'!H25)","v":""},null,"t-CO2","目標原単位",null,{"$f":"IF('報告書①（事業者概要・実績）'!M25=\"\",\"\",'報告書①（事業者概要・実績）'!M25)","v":""}]
[null,null,null,null,null,null,null,null,"削減率",null,{"$f":"IF('報告書①（事業者概要・実績）'!H26=\"\",\"\",'報告書①（事業者概要・実績）'!H26)","v":""},null,"％","削減率",null,{"$f":"IF('報告書①（事業者概要・実績）'!M26=\"\",\"\",'報告書①（事業者概要・実績）'!M26)","v":""},"％"]
["温室効果ガスの\n排出状況",null,null,null,"第１年度",null,{"$f":"IF('報告書①（事業者概要・実績）'!C28=\"\",\"\",'報告書①（事業者概要・実績）'!C28)","v":""},"年度","排出量",null,{"$f":"IF('報告書①（事業者概要・実績）'!H28=\"\",\"\",'報告書①（事業者概要・実績）'!H28)","v":""},null,"t-CO2","排出原単位",null,{"$f":"IF('報告書①（事業者概要・実績）'!M28=\"\",\"\",'報告書①（事業者概要・実績）'!M28)","v":""}]
[null,null,null,null,null,null,null,null,"削減率",null,{"$f":"IF('報告書①（事業者概要・実績）'!H29=\"\",\"\",'報告書①（事業者概要・実績）'!H29)","v":""},null,"％","削減率",null,{"$f":"IF('報告書①（事業者概要・実績）'!M29=\"\",\"\",'報告書①（事業者概要・実績）'!M29)","v":""},"％"]
[null,null,null,null,"排出量等の\n増減理由",null,{"$f":"IF('報告書①（事業者概要・実績）'!C31=\"\",\"\",'報告書①（事業者概要・実績）'!C31)","v":""}]
[null,null,null,null,"第２年度",null,{"$f":"IF('報告書①（事業者概要・実績）'!C32=\"\",\"\",'報告書①（事業者概要・実績）'!C32)","v":""},"年度","排出量",null,{"$f":"IF('報告書①（事業者概要・実績）'!H32=\"\",\"\",'報告書①（事業者概要・実績）'!H32)","v":""},null,"t-CO2","排出原単位",null,{"$f":"IF('報告書①（事業者概要・実績）'!M32=\"\",\"\",'報告書①（事業者概要・実績）'!M32)","v":""}]
[null,null,null,null,null,null,null,null,"削減率",null,{"$f":"IF('報告書①（事業者概要・実績）'!H33=\"\",\"\",'報告書①（事業者概要・実績）'!H33)","v":""},null,"％","削減率",null,{"$f":"IF('報告書①（事業者概要・実績）'!M33=\"\",\"\",'報告書①（事業者概要・実績）'!M33)","v":""},"％"]
[null,null,null,null,"排出量等の\n増減理由",null,{"$f":"IF('報告書①（事業者概要・実績）'!C35=\"\",\"\",'報告書①（事業者概要・実績）'!C35)","v":""}]
[null,null,null,null,"第３年度",null,{"$f":"IF('報告書①（事業者概要・実績）'!C36=\"\",\"\",'報告書①（事業者概要・実績）'!C36)","v":""},"年度","排出量",null,{"$f":"IF('報告書①（事業者概要・実績）'!H36=\"\",\"\",'報告書①（事業者概要・実績）'!H36)","v":""},null,"t-CO2","排出原単位",null,{"$f":"IF('報告書①（事業者概要・実績）'!M36=\"\",\"\",'報告書①（事業者概要・実績）'!M36)","v":""}]
[null,null,null,null,null,null,null,null,"削減率",null,{"$f":"IF('報告書①（事業者概要・実績）'!H37=\"\",\"\",'報告書①（事業者概要・実績）'!H37)","v":""},null,"％","削減率",null,{"$f":"IF('報告書①（事業者概要・実績）'!M37=\"\",\"\",'報告書①（事業者概要・実績）'!M37)","v":""},"％"]
[null,null,null,null,"排出量等の\n増減理由",null,{"$f":"IF('報告書①（事業者概要・実績）'!C39=\"\",\"\",'報告書①（事業者概要・実績）'!C39)","v":""}]
[]
["３　温室効果ガスの排出抑制に関する取組"]
["基本対策の実施状況",null,null,null,"基準年度",null,{"$f":"IF('計画書② (取組）'!J9=\"\",\"\",'計画書② (取組）'!J9*100)","v":""},"％","目標年度",null,{"$f":"IF('計画書② (取組）'!J10=\"\",\"\",'計画書② (取組）'!J10*100)","v":""},"％"]
[null,null,null,null,"第１年度",null,{"$f":"IF('報告書② 第3年度(取組）'!T6=\"\",\"\",'報告書② 第3年度(取組）'!T6*100)","v":""},"％","実施状況の説明等",null,{"$f":"IF('報告書② 第1年度(取組）'!D20=\"\",\"\",'報告書② 第1年度(取組）'!D20)","v":""}]
[null,null,null,null,"第２年度",null,{"$f":"IF('報告書② 第3年度(取組）'!T7=\"\",\"\",'報告書② 第3年度(取組）'!T7*100)","v":""},"％","実施状況の説明等",null,{"$f":"IF('報告書② 第2年度(取組）'!D21=\"\",\"\",'報告書② 第2年度(取組）'!D21)","v":""}]
[null,null,null,null,"第３年度",null,{"$f":"IF('報告書② 第3年度(取組）'!T8=\"\",\"\",'報告書② 第3年度(取組）'!T8*100)","v":""},"％","実施状況の説明等",null,{"$f":"IF('報告書② 第3年度(取組）'!D22=\"\",\"\",'報告書② 第3年度(取組）'!D22)","v":""}]
[]
[]
[]
["選択対策の実施状況",null,null,null,"項目",null,null,null,null,null,null,null,null,null,null,"実施状況"]
[null,null,null,null,{"$f":"IF(はじめに!$F$29=1,'報告書② 第1年度(取組）'!C27&\"\",IF(はじめに!$F$29=2,'報告書② 第2年度(取組）'!C27&\"\",'報告書② 第3年度(取組）'!C27&\"\"))","v":""},null,null,null,null,null,null,null,null,null,null,{"$f":"IF(はじめに!$F$29=1,'報告書② 第1年度(取組）'!F27&\"\",IF(はじめに!$F$29=2,'報告書② 第2年度(取組）'!G27&\"\",'報告書② 第3年度(取組）'!H27&\"\"))","v":""}]
[null,null,null,null,{"$f":"IF(はじめに!$F$29=1,'報告書② 第1年度(取組）'!C28&\"\",IF(はじめに!$F$29=2,'報告書② 第2年度(取組）'!C28&\"\",'報告書② 第3年度(取組）'!C28&\"\"))","v":""},null,null,null,null,null,null,null,null,null,null,{"$f":"IF(はじめに!$F$29=1,'報告書② 第1年度(取組）'!F28&\"\",IF(はじめに!$F$29=2,'報告書② 第2年度(取組）'!G28&\"\",'報告書② 第3年度(取組）'!H28&\"\"))","v":""}]
[null,null,null,null,{"$f":"IF(はじめに!$F$29=1,'報告書② 第1年度(取組）'!C29&\"\",IF(はじめに!$F$29=2,'報告書② 第2年度(取組）'!C29&\"\",'報告書② 第3年度(取組）'!C29&\"\"))","v":""},null,null,null,null,null,null,null,null,null,null,{"$f":"IF(はじめに!$F$29=1,'報告書② 第1年度(取組）'!F29&\"\",IF(はじめに!$F$29=2,'報告書② 第2年度(取組）'!G29&\"\",'報告書② 第3年度(取組）'!H29&\"\"))","v":""}]
[null,null,null,null,{"$f":"IF(はじめに!$F$29=1,'報告書② 第1年度(取組）'!C30&\"\",IF(はじめに!$F$29=2,'報告書② 第2年度(取組）'!C30&\"\",'報告書② 第3年度(取組）'!C30&\"\"))","v":""},null,null,null,null,null,null,null,null,null,null,{"$f":"IF(はじめに!$F$29=1,'報告書② 第1年度(取組）'!F30&\"\",IF(はじめに!$F$29=2,'報告書② 第2年度(取組）'!G30&\"\",'報告書② 第3年度(取組）'!H30&\"\"))","v":""}]
[null,null,null,null,{"$f":"IF(はじめに!$F$29=1,'報告書② 第1年度(取組）'!C31&\"\",IF(はじめに!$F$29=2,'報告書② 第2年度(取組）'!C31&\"\",'報告書② 第3年度(取組）'!C31&\"\"))","v":""},null,null,null,null,null,null,null,null,null,null,{"$f":"IF(はじめに!$F$29=1,'報告書② 第1年度(取組）'!F31&\"\",IF(はじめに!$F$29=2,'報告書② 第2年度(取組）'!G31&\"\",'報告書② 第3年度(取組）'!H31&\"\"))","v":""}]
["その他の対策の\n実施状況",null,null,null,"項目",null,null,null,"具体的な取組内容",null,null,null,null,null,null,"実施状況"]
[null,null,null,null,{"$f":"IF(はじめに!$F$29=1,'報告書② 第1年度(取組）'!C47&\"\",IF(はじめに!$F$29=2,'報告書② 第2年度(取組）'!C47&\"\",'報告書② 第3年度(取組）'!C47&\"\"))","v":""},null,null,null,{"$f":"IF(はじめに!$F$29=1,'報告書② 第1年度(取組）'!D47&\"\",IF(はじめに!$F$29=2,'報告書② 第2年度(取組）'!D47&\"\",'報告書② 第3年度(取組）'!D47&\"\"))","v":""},null,null,null,null,null,null,{"$f":"IF(はじめに!$F$29=1,'報告書② 第1年度(取組）'!F47&\"\",IF(はじめに!$F$29=2,'報告書② 第2年度(取組）'!G47&\"\",'報告書② 第3年度(取組）'!H47&\"\"))","v":""}]
[null,null,null,null,{"$f":"IF(はじめに!$F$29=1,'報告書② 第1年度(取組）'!C48&\"\",IF(はじめに!$F$29=2,'報告書② 第2年度(取組）'!C48&\"\",'報告書② 第3年度(取組）'!C48&\"\"))","v":""},null,null,null,{"$f":"IF(はじめに!$F$29=1,'報告書② 第1年度(取組）'!D48&\"\",IF(はじめに!$F$29=2,'報告書② 第2年度(取組）'!D48&\"\",'報告書② 第3年度(取組）'!D48&\"\"))","v":""},null,null,null,null,null,null,{"$f":"IF(はじめに!$F$29=1,'報告書② 第1年度(取組）'!F48&\"\",IF(はじめに!$F$29=2,'報告書② 第2年度(取組）'!G48&\"\",'報告書② 第3年度(取組）'!H48&\"\"))","v":""}]
[null,null,null,null,{"$f":"IF(はじめに!$F$29=1,'報告書② 第1年度(取組）'!C49&\"\",IF(はじめに!$F$29=2,'報告書② 第2年度(取組）'!C49&\"\",'報告書② 第3年度(取組）'!C49&\"\"))","v":""},null,null,null,{"$f":"IF(はじめに!$F$29=1,'報告書② 第1年度(取組）'!D49&\"\",IF(はじめに!$F$29=2,'報告書② 第2年度(取組）'!D49&\"\",'報告書② 第3年度(取組）'!D49&\"\"))","v":""},null,null,null,null,null,null,{"$f":"IF(はじめに!$F$29=1,'報告書② 第1年度(取組）'!F49&\"\",IF(はじめに!$F$29=2,'報告書② 第2年度(取組）'!G49&\"\",'報告書② 第3年度(取組）'!H49&\"\"))","v":""}]
[null,null,null,null,{"$f":"IF(はじめに!$F$29=1,'報告書② 第1年度(取組）'!C50&\"\",IF(はじめに!$F$29=2,'報告書② 第2年度(取組）'!C50&\"\",'報告書② 第3年度(取組）'!C50&\"\"))","v":""},null,null,null,{"$f":"IF(はじめに!$F$29=1,'報告書② 第1年度(取組）'!D50&\"\",IF(はじめに!$F$29=2,'報告書② 第2年度(取組）'!D50&\"\",'報告書② 第3年度(取組）'!D50&\"\"))","v":""},null,null,null,null,null,null,{"$f":"IF(はじめに!$F$29=1,'報告書② 第1年度(取組）'!F50&\"\",IF(はじめに!$F$29=2,'報告書② 第2年度(取組）'!G50&\"\",'報告書② 第3年度(取組）'!H50&\"\"))","v":""}]
[null,null,null,null,{"$f":"IF(はじめに!$F$29=1,'報告書② 第1年度(取組）'!C51&\"\",IF(はじめに!$F$29=2,'報告書② 第2年度(取組）'!C51&\"\",'報告書② 第3年度(取組）'!C51&\"\"))","v":""},null,null,null,{"$f":"IF(はじめに!$F$29=1,'報告書② 第1年度(取組）'!D51&\"\",IF(はじめに!$F$29=2,'報告書② 第2年度(取組）'!D51&\"\",'報告書② 第3年度(取組）'!D51&\"\"))","v":""},null,null,null,null,null,null,{"$f":"IF(はじめに!$F$29=1,'報告書② 第1年度(取組）'!F51&\"\",IF(はじめに!$F$29=2,'報告書② 第2年度(取組）'!G51&\"\",'報告書② 第3年度(取組）'!H51&\"\"))","v":""}]

{"sheet":"委任状","index":18,"n_rows":27,"n_cols":15,"rows_kept":27,"cut":false,"hidden":true,"merged":[[12,6,12,7],[12,8,12,13],[15,0,16,14],[2,1,2,13],[4,8,4,9],[8,6,8,7],[8,8,8,13],[10,6,10,7],[10,8,10,13],[22,1,22,2],[24,1,24,2],[26,1,26,2],[22,4,22,13],[24,4,24,13],[26,4,26,13]]}
[]
[]
[null,"委任状"]
[]
[null,null,null,null,null,null,null,null,null,null,"年",null,"月",null,"日"]
[]
["（あて先）仙台市長"]
[]
[null,null,null,null,null,null,"住所",null,{"$f":"IF(計画書提出書!J8=\"\",\"\",計画書提出書!J8)","v":""}]
[]
[null,null,null,null,null,null,"法人の名称",null,{"$f":"IF(計画書提出書!J9=\"\",\"\",計画書提出書!J9)","v":""}]
[]
[null,null,null,null,null,null,"代表者氏名",null,{"$f":"IF(計画書提出書!J10=\"\",\"\",計画書提出書!J10)","v":""}]
[]
[]
["　下記の者を代理人と定め、仙台市地球温暖化対策等の推進に関する条例第10条及び第11条に基づく手続きに関する一切の権限を委任します。"]
[]
[]
[]
[null,null,null,null,null,null,null,"記"]
[]
[]
[null,"住所"]
[]
[null,"名称"]
[]
[null,"氏名"]

{"sheet":"評価点まとめ","index":19,"n_rows":11,"n_cols":11,"rows_kept":11,"cut":false,"hidden":true,"merged":[[7,0,7,1],[1,0,1,1],[2,0,3,0],[2,8,2,9],[2,10,3,10],[4,0,6,0],[5,2,6,2],[5,3,6,3]]}
[]
["評価項目",null,"配点（最大）","評価点"]
["定量項目","排出量",50,{"$f":"'報告書①（事業者概要・実績）'!Z27","v":""},null,null,null,null,"評価点",null,"評価"]
[null,"原単位",50,{"$f":"'報告書①（事業者概要・実績）'!Z28","v":""},null,null,null,null,"以上","未満"]
["定性項目","基本対策",50,{"$f":"  '報告書② 第3年度(取組）'!U9","v":""},"（内訳）",null,null,null,160,null,"S"]
[null,"選択対策","50\n（うち、その他対策25）",{"$f":"IF(SUM(E6:E7)>=50,50,SUM(E6:E7))","v":0},{"$f":"  '報告書② 第3年度(取組）'!T30","v":""},null,null,null,130,160,"A"]
[null,"その他対策",null,null,{"$f":"  '報告書② 第3年度(取組）'!S50","v":""},null,null,null,null,130,"B"]
["合計",null,200,{"$f":"SUM(D3:D7)","v":0}]
[]
[]
[null,null,"評価",{"$f":"IF(D8>=I5,K5,IF(AND(D8>=I6,D8<J6),K6,IF(D8<J7,K7,\"-\")))","v":"B"}]

{"sheet":"係数","index":20,"n_rows":80,"n_cols":26,"rows_kept":80,"cut":false,"hidden":true,"merged":[[17,19,19,19],[20,5,21,5],[20,19,21,19],[31,1,47,1],[31,15,47,15],[41,4,42,4],[41,18,42,18],[2,1,30,1],[2,15,30,15],[13,4,14,4],[13,18,14,18],[15,4,16,4],[15,18,16,18],[17,4,22,4],[17,5,19,5],[17,18,22,18],[60,18,61,18],[64,4,67,4],[64,5,65,5],[64,18,67,18],[71,4,73,4],[71,18,73,18],[48,1,59,1],[48,15,59,15],[60,1,79,1],[60,4,61,4],[60,15,79,15],[72,5,73,5],[64,19,65,19],[66,5,67,5],[66,19,67,19],[68,4,70,4],[68,18,70,18],[69,5,70,5],[69,19,70,19],[72,19,73,19],[74,4,79,4],[74,18,79,18],[78,5,79,5],[78,19,79,19]]}
[null,"2022年度　燃料種別の単位発熱量及び炭素排出係数",null,null,null,null,null,null,null,null,null,null,null,null,null,"2023年度　燃料種別の単位発熱量及び炭素排出係数"]
[null,null,"エネルギー名称区分","エネルギー区分","エネルギーの種類",null,null,"単位","単位発熱量",null,"炭素排出係数",null,null,null,null,null,"エネルギー名称区分","エネルギー区分","燃料及び熱の種類",null,null,"単位","単位発熱量",null,"炭素排出係数"]
[null,"化\n石\n燃\n料","原油（コンデンセートを除く。）","化石燃料","原油（コンデンセートを除く。）",null,null,"kl",38.200000000000003,"GＪ/ｋｌ",1.8700000000000001E-2,"tC/GJ",null,null,null,"化\n石\n燃\n料","原油（コンデンセートを除く。）","化石燃料","原油（コンデンセートを除く。）",null,null,"kl",38.299999999999997,"GＪ/ｋｌ",1.9E-2,"tC/GJ"]
[null,null,"原油のうちコンデンセート(NGL)","化石燃料","原油のうちコンデンセート(NGL)",null,null,"kl",35.299999999999997,"GＪ/ｋｌ",1.84E-2,"tC/GJ",null,null,null,null,"原油のうちコンデンセート(NGL)","化石燃料","原油のうちコンデンセート(NGL)",null,null,"kl",34.799999999999997,"GＪ/ｋｌ",1.83E-2,"tC/GJ"]
[null,null,"揮発油","化石燃料","揮発油",null,null,"kl",34.6,"GＪ/ｋｌ",1.83E-2,"tC/GJ",null,null,null,null,"揮発油","化石燃料","揮発油",null,null,"kl",33.4,"GＪ/ｋｌ",1.8700000000000001E-2,"tC/GJ"]
[null,null,"ナフサ","化石燃料","ナフサ",null,null,"kl",33.6,"GＪ/ｋｌ",1.8200000000000001E-2,"tC/GJ",null,null,null,null,"ナフサ","化石燃料","ナフサ",null,null,"kl",33.299999999999997,"GＪ/ｋｌ",1.8599999999999998E-2,"tC/GJ"]
[null,null,"ジェット燃料油","化石燃料","ジェット燃料油",null,null,"kl",36.700000000000003,"GＪ/ｋｌ",1.83E-2,"tC/GJ",null,null,null,null,"ジェット燃料油","化石燃料","ジェット燃料油",null,null,"kl",36.299999999999997,"GＪ/ｋｌ",1.8599999999999998E-2,"tC/GJ"]
[null,null,"灯油","化石燃料","灯油",null,null,"kl",36.700000000000003,"GＪ/ｋｌ",1.8499999999999999E-2,"tC/GJ",null,null,null,null,"灯油","化石燃料","灯油",null,null,"kl",36.5,"GＪ/ｋｌ",1.8700000000000001E-2,"tC/GJ"]
[null,null,"軽油","化石燃料","軽油",null,null,"kl",37.700000000000003,"GＪ/ｋｌ",1.8700000000000001E-2,"tC/GJ",null,null,null,null,"軽油","化石燃料","軽油",null,null,"kl",38,"GＪ/ｋｌ",1.8800000000000001E-2,"tC/GJ"]
[null,null,"Ａ重油","化石燃料","Ａ重油",null,null,"kl",39.1,"GＪ/ｋｌ",1.89E-2,"tC/GJ",null,null,null,null,"Ａ重油","化石燃料","Ａ重油",null,null,"kl",38.9,"GＪ/ｋｌ",1.9300000000000001E-2,"tC/GJ"]
[null,null,"Ｂ・Ｃ重油","化石燃料","Ｂ・Ｃ重油",null,null,"kl",41.9,"GＪ/ｋｌ",1.95E-2,"tC/GJ",null,null,null,null,"Ｂ・Ｃ重油","化石燃料","Ｂ・Ｃ重油",null,null,"kl",41.8,"GＪ/ｋｌ",2.0199999999999999E-2,"tC/GJ"]
[null,null,"石油アスファルト","化石燃料","石油アスファルト",null,null,"t",40.9,"GＪ/ｔ",2.0799999999999999E-2,"tC/GJ",null,null,null,null,"石油アスファルト","化石燃料","石油アスファルト",null,null,"t",40,"GＪ/ｔ",2.0400000000000001E-2,"tC/GJ"]
[null,null,"石油コークス","化石燃料","石油コークス",null,null,"t",29.9,"GＪ/ｔ",2.5399999999999999E-2,"tC/GJ",null,null,null,null,"石油コークス","化石燃料","石油コークス",null,null,"t",34.1,"GＪ/ｔ",2.4500000000000001E-2,"tC/GJ"]
[null,null,"液化石油ガス     (LPG)","化石燃料","石油ガス","液化石油ガス     (LPG)",null,"t",50.8,"GＪ/ｔ",1.61E-2,"tC/GJ",null,null,null,null,"液化石油ガス     (LPG)","化石燃料","石油ガス","液化石油ガス     (LPG)",null,"t",50.1,"GＪ/ｔ",1.6299999999999999E-2,"tC/GJ"]
[null,null,"石油系炭化水素ガス","化石燃料",null,"石油系炭化水素ガス",null,"千Nm3",44.9,"GＪ/千ｍ３",1.4200000000000001E-2,"tC/GJ",null,null,null,null,"石油系炭化水素ガス","化石燃料",null,"石油系炭化水素ガス",null,"千Nm3",46.1,"GＪ/千ｍ３",1.44E-2,"tC/GJ"]
[null,null,"液化天然ガス     (LNG)","化石燃料","可燃性\n天然ガス","液化天然ガス     (LNG)",null,"t",54.6,"GＪ/ｔ",1.35E-2,"tC/GJ",null,null,null,null,"液化天然ガス     (LNG)","化石燃料","可燃性\n天然ガス","液化天然ガス     (LNG)",null,"t",54.7,"GＪ/ｔ",1.3899999999999999E-2,"tC/GJ"]
[null,null,"その他可燃性天然ガス","化石燃料",null,"その他可燃性天然ガス",null,"千Nm3",43.5,"GＪ/千ｍ３",1.3899999999999999E-2,"tC/GJ",null,null,null,null,"その他可燃性天然ガス","化石燃料",null,"その他可燃性天然ガス",null,"千Nm3",38.4,"GＪ/千ｍ３",1.3899999999999999E-2,"tC/GJ"]
[null,null,"原料炭","化石燃料","石炭","原料炭","輸入原料炭","t",29,"GＪ/ｔ",2.4500000000000001E-2,"tC/GJ",null,null,null,null,"輸入原料炭","化石燃料","石炭","原料炭","輸入原料炭","t",28.7,"GＪ/ｔ",2.46E-2,"tC/GJ"]
[null,null,null,"化石燃料",null,null,"コークス用原料炭","t","ー",null,"ー",null,null,null,null,null,"コークス用原料炭","化石燃料",null,null,"コークス用原料炭","t",28.9,"GＪ/ｔ",2.4500000000000001E-2,"tC/GJ"]
[null,null,null,"化石燃料",null,null,"吹込用原料炭","t","ー",null,"ー",null,null,null,null,null,"吹込用原料炭","化石燃料",null,null,"吹込用原料炭","t",28.3,"GＪ/ｔ",2.5100000000000001E-2,"tC/GJ"]
[null,null,"一般炭","化石燃料",null,"一般炭","輸入一般炭","t",25.7,"GＪ/ｔ",2.47E-2,"tC/GJ",null,null,null,null,"輸入一般炭","化石燃料",null,"一般炭","輸入一般炭","t",26.1,"GＪ/ｔ",2.4299999999999999E-2,"tC/GJ"]
[null,null,null,"化石燃料",null,null,"国産一般炭","t","ー",null,"ー",null,null,null,null,null,"国産一般炭","化石燃料",null,null,"国産一般炭","t",24.2,"GＪ/ｔ",2.4199999999999999E-2,"tC/GJ"]
[null,null,"無煙炭","化石燃料",null,"輸入無煙炭",null,"t",26.9,"GＪ/ｔ",2.5499999999999998E-2,"tC/GJ",null,null,null,null,"輸入無煙炭","化石燃料",null,"輸入無煙炭",null,"t",27.8,"GＪ/ｔ",2.5899999999999999E-2,"tC/GJ"]
[null,null,"石炭コークス","化石燃料","石炭コークス",null,null,"t",29.4,"GＪ/ｔ",2.9399999999999999E-2,"tC/GJ",null,null,null,null,"石炭コークス","化石燃料","石炭コークス",null,null,"t",29,"GＪ/ｔ",2.9899999999999999E-2,"tC/GJ"]
[null,null,"コールタール","化石燃料","コールタール",null,null,"t",37.299999999999997,"GＪ/ｔ",2.0899999999999998E-2,"tC/GJ",null,null,null,null,"コールタール","化石燃料","コールタール",null,null,"t",37.299999999999997,"GＪ/ｔ",2.0899999999999998E-2,"tC/GJ"]
[null,null,"コークス炉ガス","化石燃料","コークス炉ガス",null,null,"千Nm3",21.1,"GＪ/千ｍ３",1.0999999999999999E-2,"tC/GJ",null,null,null,null,"コークス炉ガス","化石燃料","コークス炉ガス",null,null,"千Nm3",18.399999999999999,"GＪ/千ｍ３",1.09E-2,"tC/GJ"]
[null,null,"高炉ガス","化石燃料","高炉ガス",null,null,"千Nm3",3.41,"GＪ/千ｍ３",2.63E-2,"tC/GJ",null,null,null,null,"高炉ガス","化石燃料","高炉ガス",null,null,"千Nm3",3.23,"GＪ/千ｍ３",2.64E-2,"tC/GJ"]
[null,null,null,"化石燃料","発電用高炉ガス",null,null,"千Nm3","ー",null,"ー",null,null,null,null,null,"発電用高炉ガス","化石燃料","発電用高炉ガス",null,null,"千Nm3",3.45,"GＪ/千ｍ３",2.64E-2,"tC/GJ"]
[null,null,"転炉ガス","化石燃料","転炉ガス",null,null,"千Nm3",8.41,"GＪ/千ｍ３",3.8399999999999997E-2,"tC/GJ",null,null,null,null,"転炉ガス","化石燃料","転炉ガス",null,null,"千Nm3",7.53,"GＪ/千ｍ３",4.2000000000000003E-2,"tC/GJ"]
[null,null,"都市ガス","化石燃料","都市ガス",null,null,"千m3",45,"GＪ/千ｍ３",1.3599999999999999E-2,"tC/GJ",null,null,null,null,"都市ガス","化石燃料","都市ガス",null,null,"千m3",45,"GＪ/千ｍ３",1.4E-2,"tC/GJ"]
[null,null,"テナント空調等推計値","化石燃料","テナント空調等推計値",null,null,"GJ",1,"GＪ/GＪ",5.7000000000000002E-2,"tCO2/GJ",null,null,null,null,"テナント空調等推計値","化石燃料","テナント空調等推計値",null,null,"GJ",1.19,"GＪ/GＪ","ー"]
[null,"非\n化\n石\n燃\n料","黒液","非化石燃料","黒液",null,null,"t","ー",null,"ー",null,null,null,null,"非\n化\n石\n燃\n料","黒液","非化石燃料","黒液",null,null,"t",13.6,"GJ/t","ー"]
[null,null,"木材","非化石燃料","木材",null,null,"t","ー",null,"ー",null,null,null,null,null,"木材","非化石燃料","木材",null,null,"t",13.2,"GJ/t","ー"]
[null,null,"木質廃材","非化石燃料","木質廃材",null,null,"t","ー",null,"ー",null,null,null,null,null,"木質廃材","非化石燃料","木質廃材",null,null,"t",17.100000000000001,"GJ/t","ー"]
[null,null,"バイオエタノール","非化石燃料","バイオエタノール",null,null,"kl","ー",null,"ー",null,null,null,null,null,"バイオエタノール","非化石燃料","バイオエタノール",null,null,"kl",23.4,"GJ/kl","ー"]
[null,null,"バイオディーゼル","非化石燃料","バイオディーゼル",null,null,"kl","ー",null,"ー",null,null,null,null,null,"バイオディーゼル","非化石燃料","バイオディーゼル",null,null,"kl",35.6,"GJ/kl","ー"]
[null,null,"バイオガス","非化石燃料","バイオガス",null,null,"千㎥","ー",null,"ー",null,null,null,null,null,"バイオガス","非化石燃料","バイオガス",null,null,"千㎥",21.2,"GJ/千㎥","ー"]
[null,null,"その他バイオマス","非化石燃料","その他バイオマス",null,null,"t","ー",null,"ー",null,null,null,null,null,"その他バイオマス","非化石燃料","その他バイオマス",null,null,"t",13.2,"GJ/t","ー"]
[null,null,"RDF","非化石燃料","RDF",null,null,"t","ー",null,"ー",null,null,null,null,null,"RDF","非化石燃料","RDF",null,null,"t",18,"GJ/t",1.6199999999999999E-2,"tC/GJ"]
[null,null,"RPF","非化石燃料","RPF",null,null,"t","ー",null,"ー",null,null,null,null,null,"RPF","非化石燃料","RPF",null,null,"t",26.9,"GJ/t",1.66E-2,"tC/GJ"]
[null,null,"廃タイヤ","非化石燃料","廃タイヤ",null,null,"t","ー",null,"ー",null,null,null,null,null,"廃タイヤ","非化石燃料","廃タイヤ",null,null,"t",33.200000000000003,"GJ/t",1.35E-2,"tC/GJ"]
[null,null,"廃プラスチック_一般廃棄物","非化石燃料","廃プラスチック","一般廃棄物",null,"t","ー",null,"ー",null,null,null,null,null,"廃プラスチック_一般廃棄物","非化石燃料","廃プラスチック","一般廃棄物",null,"t",29.3,"GJ/t",2.5700000000000001E-2,"tC/GJ"]
[null,null,"廃プラスチック_産業廃棄物","非化石燃料",null,"産業廃棄物",null,"t","ー",null,"ー",null,null,null,null,null,"廃プラスチック_産業廃棄物","非化石燃料",null,"産業廃棄物",null,"t",29.3,"GJ/t",2.3900000000000001E-2,"tC/GJ"]
[null,null,"廃油","非化石燃料","廃油",null,null,"kl","ー",null,"ー",null,null,null,null,null,"廃油","非化石燃料","廃油",null,null,"kl",40.200000000000003,"GJ/kl",1.7899999999999999E-2,"tC/GJ"]
[null,null,"廃棄物ガス","非化石燃料","廃棄物ガス",null,null,"千㎥","ー",null,"ー",null,null,null,null,null,"廃棄物ガス","非化石燃料","廃棄物ガス",null,null,"千㎥",21.2,"GJ/千㎥","ー"]
[null,null,"混合廃材","非化石燃料","混合廃材",null,null,"t","ー",null,"ー",null,null,null,null,null,"混合廃材","非化石燃料","混合廃材",null,null,"t",17.100000000000001,"GJ/t","ー"]
[null,null,"水素","非化石燃料","水素",null,null,"t","ー",null,"ー",null,null,null,null,null,"水素","非化石燃料","水素",null,null,"t",142,"GJ/t","ー"]
[null,null,"アンモニア","非化石燃料","アンモニア",null,null,"t","ー",null,"ー",null,null,null,null,null,"アンモニア","非化石燃料","アンモニア",null,null,"t",22.5,"GJ/t","ー"]
[null,"熱","産業用蒸気","熱","産業用蒸気",null,null,"GJ",1.02,"GＪ/GＪ",0.06,"tCO2/GJ",null,null,null,"熱","産業用蒸気_化石","熱","産業用蒸気",null,null,"GJ",1.17,"GＪ/GＪ",6.54E-2,"tCO2/GJ"]
[null,null,"産業用以外の蒸気","熱","産業用以外の蒸気",null,null,"GJ",1.36,"GＪ/GＪ",5.7000000000000002E-2,"tCO2/GJ",null,null,null,null,"産業用以外の蒸気_化石","熱","産業用以外の蒸気",null,null,"GJ",1.19,"GＪ/GＪ","ー"]
[null,null,"温水","熱","温水",null,null,"GJ",1.36,"GＪ/GＪ",5.7000000000000002E-2,"tCO2/GJ",null,null,null,null,"温水_化石","熱","温水",null,null,"GJ",1.19,"GＪ/GＪ","ー"]
[null,null,"冷水","熱","冷水",null,null,"GJ",1.36,"GＪ/GＪ",5.7000000000000002E-2,"tCO2/GJ",null,null,null,null,"冷水_化石","熱","冷水",null,null,"GJ",1.19,"GＪ/GＪ","ー"]
[null,null,"産業用蒸気_非化石","熱","産業用蒸気",null,null,"GJ","ー",null,"ー",null,null,null,null,null,"産業用蒸気_非化石","熱","産業用蒸気",null,null,"GJ",1.17,"GＪ/GＪ","ー"]
[null,null,"産業用以外の蒸気_非化石","熱","産業用以外の蒸気",null,null,"GJ","ー",null,"ー",null,null,null,null,null,"産業用以外の蒸気_非化石","熱","産業用以外の蒸気",null,null,"GJ",1.19,"GＪ/GＪ","ー"]
[null,null,"温水_非化石","熱","温水",null,null,"GJ","ー",null,"ー",null,null,null,null,null,"温水_非化石","熱","温水",null,null,"GJ",1.19,"GＪ/GＪ","ー"]
[null,null,"冷水_非化石","熱","冷水",null,null,"GJ","ー",null,"ー",null,null,null,null,null,"冷水_非化石","熱","冷水",null,null,"GJ",1.19,"GＪ/GＪ","ー"]
[null,null,"地熱","熱","地熱",null,null,"GJ","ー",null,"ー",null,null,null,null,null,"地熱","熱","地熱",null,null,"GJ","ー",null,"ー"]
[null,null,"温泉熱","熱","温泉熱",null,null,"GJ","ー",null,"ー",null,null,null,null,null,"温泉熱","熱","温泉熱",null,null,"GJ","ー",null,"ー"]
[null,null,"太陽熱","熱","太陽熱",null,null,"GJ","ー",null,"ー",null,null,null,null,null,"太陽熱","熱","太陽熱",null,null,"GJ","ー",null,"ー"]
[null,null,"雪氷熱","熱","雪氷熱",null,null,"GJ","ー",null,"ー",null,null,null,null,null,"雪氷熱","熱","雪氷熱",null,null,"GJ","ー",null,"ー"]
[null,"電\n気","電気事業者_昼間買電","電気","電気\n事業者","昼間買電",null,"千kWh",9.9700000000000006,"GＪ/千kWh","ー",null,null,null,null,"電\n気","電気事業者_昼間買電","電気","電気\n事業者","昼間買電",null,"千kWh",8.64,"GＪ/千kWh","ー"]
[null,null,"電気事業者_夜間買電","電気",null,"夜間買電",null,"千kWh",9.2799999999999994,"GＪ/千kWh","ー",null,null,null,null,null,"電気事業者_夜間買電","電気",null,"夜間買電",null,"千kWh",8.64,"GＪ/千kWh","ー"]
[null,null,"自家発電","電気","自家発電",null,null,"千kWh",9.76,"GＪ/千kWh","ー",null,null,null,null,null,"自家発電","電気","自家発電",null,null,"千kWh","ー",null,"ー"]
[null,null,"その他買電","電気","その他買電",null,null,"千kWh",9.76,"GＪ/千kWh","ー",null,null,null,null,null,"その他買電","電気","その他買電",null,null,"千kWh",8.64,"GＪ/千kWh","ー"]
[null,null,"自己託送以外_電気事業者からの買電_化石分","電気","自己託送\n以外","電気事業者\nからの買電","化石分","千kWh","ー",null,"ー",null,null,null,null,null,"自己託送以外_電気事業者からの買電_化石分","電気","自己託送\n以外","電気事業者\nからの買電","化石分","千kWh",8.64,"GＪ/千kWh","ー"]
[null,null,"自己託送以外_電気事業者からの買電_非化石分","電気",null,null,"非化石分","千kWh","ー",null,"ー",null,null,null,null,null,"自己託送以外_電気事業者からの買電_非化石分","電気",null,null,"非化石分","千kWh",8.64,"GＪ/千kWh","ー"]
[null,null,"自己託送以外_オフサイト型PPA_非化石重み付けなし","電気",null,"オフサイト型\nPPA","非化石\n重み付けなし","千kWh","ー",null,"ー",null,null,null,null,null,"自己託送以外_オフサイト型PPA_非化石重み付けなし","電気",null,"オフサイト型\nPPA","非化石\n重み付けなし","千kWh",3.6,"GＪ/千kWh","ー"]
[null,null,"自己託送以外_オフサイト型PPA_非化石重み付けあり","電気",null,null,"非化石\n重み付けあり","千kWh","ー",null,"ー",null,null,null,null,null,"自己託送以外_オフサイト型PPA_非化石重み付けあり","電気",null,null,"非化石\n重み付けあり","千kWh",3.6,"GＪ/千kWh","ー"]
[null,null,"自己託送_非燃料由来の非化石電気","電気","自己託送","非燃料由来の非化石電気",null,"千kWh","ー",null,"ー",null,null,null,null,null,"自己託送_非燃料由来の非化石電気","電気","自己託送","非燃料由来の非化石電気",null,"千kWh",3.6,"GＪ/千kWh","ー"]
[null,null,"自己託送_上記以外_化石分","電気",null,"上記以外","化石分","千kWh","ー",null,"ー",null,null,null,null,null,"自己託送_上記以外_化石分","電気",null,"上記以外","化石分","千kWh",8.64,"GＪ/千kWh","ー"]
[null,null,"自己託送_上記以外_非化石分","電気",null,null,"非化石分","千kWh","ー",null,"ー",null,null,null,null,null,"自己託送_上記以外_非化石分","電気",null,null,"非化石分","千kWh",8.64,"GＪ/千kWh","ー"]
[null,null,"自営線_非燃料由来の非化石電気","電気","自営線","非燃料由来の非化石電気",null,"千kWh","ー",null,"ー",null,null,null,null,null,"自営線_非燃料由来の非化石電気","電気","自営線","非燃料由来の非化石電気",null,"千kWh",3.6,"GＪ/千kWh","ー"]
[null,null,"自営線_上記以外_化石分","電気",null,"上記以外","化石分","千kWh","ー",null,"ー",null,null,null,null,null,"自営線_上記以外_化石分","電気",null,"上記以外","化石分","千kWh",8.64,"GＪ/千kWh","ー"]
[null,null,"自営線_上記以外_非化石分","電気",null,null,"非化石分","千kWh","ー",null,"ー",null,null,null,null,null,"自営線_上記以外_非化石分","電気",null,null,"非化石分","千kWh",8.64,"GＪ/千kWh","ー"]
[null,null,"自家発電_太陽光","電気","自家発電","太陽光",null,"千kWh","ー",null,"ー",null,null,null,null,null,"自家発電_太陽光","電気","自家発電","太陽光",null,"千kWh",3.6,"GＪ/千kWh","ー"]
[null,null,"自家発電_風力","電気",null,"風力",null,"千kWh","ー",null,"ー",null,null,null,null,null,"自家発電_風力","電気",null,"風力",null,"千kWh",3.6,"GＪ/千kWh","ー"]
[null,null,"自家発電_地熱","電気",null,"地熱",null,"千kWh","ー",null,"ー",null,null,null,null,null,"自家発電_地熱","電気",null,"地熱",null,"千kWh",3.6,"GＪ/千kWh","ー"]
[null,null,"自家発電_水力","電気",null,"水力",null,"千kWh","ー",null,"ー",null,null,null,null,null,"自家発電_水力","電気",null,"水力",null,"千kWh",3.6,"GＪ/千kWh","ー"]
[null,null,"自家発電_その他_非燃料由来の非化石","電気",null,"その他","非燃料由来\nの非化石","千kWh","ー",null,"ー",null,null,null,null,null,"自家発電_その他_非燃料由来の非化石","電気",null,"その他","非燃料由来\nの非化石","千kWh",3.6,"GＪ/千kWh","ー"]
[null,null,"自家発電_その他_上記以外","電気",null,null,"上記以外","千kWh","ー",null,"ー",null,null,null,null,null,"自家発電_その他_上記以外","電気",null,null,"上記以外","千kWh","ー",null,"ー"]

{"sheet":"産業分類","index":21,"n_rows":1460,"n_cols":8,"rows_kept":1460,"cut":false,"hidden":true,"merged":[]}
["中分類","名称",null,"小分類","名称",null,"細分類","名称"]
["01","農業",null,"010","管理，補助的経済活動を行う事業所（01農業）",null,"0100","主として管理事務を行う本社等"]
["02","林業",null,"011","耕種農業",null,"0109","その他の管理，補助的経済活動を行う事業所"]
["03","漁業（水産養殖業を除く）",null,"012","畜産農業",null,"0111","米作農業"]
["04","水産養殖業",null,"013","農業サービス業（園芸サービス業を除く）",null,"0112","米作以外の穀作農業"]
["05","鉱業、採石業、砂利採取業",null,"014","園芸サービス業",null,"0113","野菜作農業（きのこ類の栽培を含む）"]
["06","総合工事業",null,"020","管理，補助的経済活動を行う事業所（02林業）",null,"0114","果樹作農業"]
["07","職別工事業(設備工事業を除く)",null,"021","育林業",null,"0115","花き作農業"]
["08","設備工事業",null,"022","素材生産業",null,"0116","工芸農作物農業"]
["09","食料品製造業",null,"023","特用林産物生産業（きのこ類の栽培を除く）",null,"0117","ばれいしょ・かんしょ作農業"]
["10","飲料・たばこ・飼料製造業",null,"024","林業サービス業",null,"0119","その他の耕種農業"]
["11","繊維工業",null,"029","その他の林業",null,"0121","酪農業"]
["12","木材・木製品製造業（家具を除く）",null,"030","管理，補助的経済活動を行う事業所（03漁業）",null,"0122","肉用牛生産業"]
["13","家具・装備品製造業",null,"031","海面漁業",null,"0123","養豚業"]
["14","パルプ・紙・紙加工品製造業",null,"032","内水面漁業",null,"0124","養鶏業"]
["15","印刷・同関連業",null,"040","管理，補助的経済活動を行う事業所（04水産養殖業）",null,"0125","畜産類似業"]
["16","化学工業",null,"041","海面養殖業",null,"0126","養蚕農業"]
["17","石油製品・石炭製品製造業",null,"042","内水面養殖業",null,"0129","その他の畜産農業"]
["18","プラスチック製品製造業（別掲を除く）",null,"050","管理，補助的経済活動を行う事業所（05鉱業，採石業，砂利採取業）",null,"0131","穀作サービス業"]
["19","ゴム製品製造業",null,"051","金属鉱業",null,"0132","野菜作・果樹作サービス業"]
["20","なめし革・同製品・毛皮製造業",null,"052","石炭・亜炭鉱業",null,"0133","穀作，野菜作・果樹作以外の耕種サービス業"]
["21","窯業・土石製品製造業",null,"053","原油・天然ガス鉱業",null,"0134","畜産サービス業（獣医業を除く）"]
["22","鉄鋼業",null,"054","採石業，砂・砂利・玉石採取業",null,"0141","園芸サービス業"]
["23","非鉄金属製造業",null,"055","窯業原料用鉱物鉱業（耐火物・陶磁器・ガラス・セメント原料用に限る）",null,"0200","主として管理事務を行う本社等"]
["24","金属製品製造業",null,"059","その他の鉱業",null,"0209","その他の管理，補助的経済活動を行う事業所"]
["25","はん用機械器具製造業",null,"060","管理，補助的経済活動を行う事業所（06総合工事業）",null,"0211","育林業"]
["26","生産用機械器具製造業",null,"061","一般土木建築工事業",null,"0221","素材生産業"]
["27","業務用機械器具製造業",null,"062","土木工事業（舗装工事業を除く）",null,"0231","製薪炭業"]
["28","電子部品・デバイス・電子回路製造業",null,"063","舗装工事業",null,"0239","その他の特用林産物生産業（きのこ類の栽培を除く）"]
["29","電気機械器具製造業",null,"064","建築工事業(木造建築工事業を除く)",null,"0241","育林サービス業"]
["30","情報通信機械器具製造業",null,"065","木造建築工事業",null,"0242","素材生産サービス業"]
["31","輸送用機械器具製造業",null,"066","建築リフォーム工事業",null,"0243","山林種苗生産サービス業"]
["32","その他の製造業",null,"070","管理，補助的経済活動を行う事業所（07職別工事業）",null,"0249","その他の林業サービス業"]
["33","電気業",null,"071","大工工事業",null,"0299","その他の林業"]
["34","ガス業",null,"072","とび・土工・コンクリート工事業",null,"0300","主として管理事務を行う本社等"]
["35","熱供給業",null,"073","鉄骨・鉄筋工事業",null,"0309","その他の管理，補助的経済活動を行う事業所"]
["36","水道業",null,"074","石工・れんが・タイル・ブロック工事業",null,"0311","底びき網漁業"]
["37","通信業",null,"075","左官工事業",null,"0312","まき網漁業"]
["38","放送業",null,"076","板金・金物工事業",null,"0313","刺網漁業"]
["39","情報サービス業",null,"077","塗装工事業",null,"0314","釣・はえ縄漁業"]
["40","インターネット附随サービス業",null,"078","床・内装工事業",null,"0315","定置網漁業"]
["41","映像・音声・文字情報制作業",null,"079","その他の職別工事業",null,"0316","地びき網・船びき網漁業"]
["42","鉄道業",null,"080","管理，補助的経済活動を行う事業所（08設備工事業）",null,"0317","採貝・採藻業"]
["43","道路旅客運送業",null,"081","電気工事業",null,"0318","捕鯨業"]
["44","道路貨物運送業",null,"082","電気通信・信号装置工事業",null,"0319","その他の海面漁業"]
["45","水運業",null,"083","管工事業（さく井工事業を除く）",null,"0321","内水面漁業"]
["46","航空運輸業",null,"084","機械器具設置工事業",null,"0400","主として管理事務を行う本社等"]
["47","倉庫業",null,"089","その他の設備工事業",null,"0409","その他の管理，補助的経済活動を行う事業所"]
["48","運輸に附帯するサービス業",null,"090","管理，補助的経済活動を行う事業所（09食料品製造業）",null,"0411","魚類養殖業"]
["49","郵便業（信書便事業を含む）",null,"091","畜産食料品製造業",null,"0412","貝類養殖業"]
["50","各種商品卸売業",null,"092","水産食料品製造業",null,"0413","藻類養殖業"]
["51","繊維・衣服等卸売業",null,"093","野菜缶詰・果実缶詰・農産保存食料品製造業",null,"0414","真珠養殖業"]
["52","飲食料品卸売業",null,"094","調味料製造業",null,"0415","種苗養殖業"]
["53","建築材料、鉱物・金属材料等卸売業",null,"095","糖類製造業",null,"0419","その他の海面養殖業"]
["54","機械器具卸売業",null,"096","精穀・製粉業",null,"0421","内水面養殖業"]
["55","その他の卸売業",null,"097","パン・菓子製造業",null,"0500","主として管理事務を行う本社等"]
["56","各種商品小売業",null,"098","動植物油脂製造業",null,"0509","その他の管理，補助的経済活動を行う事業所"]
["57","織物・衣服・身の回り品小売業",null,"099","その他の食料品製造業",null,"0511","金・銀鉱業"]
["58","飲食料品小売業",null,"100","管理，補助的経済活動を行う事業所（10飲料・たばこ・飼料製造業）",null,"0512","鉛・亜鉛鉱業"]
["59","機械器具小売業",null,"101","清涼飲料製造業",null,"0513","鉄鉱業"]
["60","その他の小売業",null,"102","酒類製造業",null,"0519","その他の金属鉱業"]
["61","無店舗小売業",null,"103","茶・コーヒー製造業（清涼飲料を除く）",null,"0521","石炭鉱業（石炭選別業を含む）"]
["62","銀行業",null,"104","製氷業",null,"0522","亜炭鉱業"]
["63","協同組織金融業",null,"105","たばこ製造業",null,"0531","原油鉱業"]
["64","貸金業、クレジットカード業等非預金信用機関",null,"106","飼料・有機質肥料製造業",null,"0532","天然ガス鉱業"]
["65","金融商品取引業、商品先物取引業",null,"110","管理，補助的経済活動を行う事業所（11繊維工業）",null,"0541","花こう岩・同類似岩石採石業"]
["66","補助的金融業等",null,"111","製糸業，紡績業，化学繊維・ねん糸等製造業",null,"0542","石英粗面岩・同類似岩石採石業"]
["67","保険業（保険媒介代理業、保険サービス業を含む）",null,"112","織物業",null,"0543","安山岩・同類似岩石採石業"]
["68","不動産取引業",null,"113","ニット生地製造業",null,"0544","大理石採石業"]
["69","不動産賃貸業・管理業",null,"114","染色整理業",null,"0545","ぎょう灰岩採石業"]
["70","物品賃貸業",null,"115","綱・網・レース・繊維粗製品製造業",null,"0546","砂岩採石業"]
["71","学術・開発研究機関",null,"116","外衣・シャツ製造業（和式を除く）",null,"0547","粘板岩採石業"]
["72","専門サービス業（他に分類されないもの）",null,"117","下着類製造業",null,"0548","砂・砂利・玉石採取業"]
["73","広告業",null,"118","和装製品・その他の衣服・繊維製身の回り品製造業",null,"0549","その他の採石業，砂・砂利・玉石採取業"]
["74","技術サービス業（他に分類されないもの）",null,"119","その他の繊維製品製造業",null,"0551","耐火粘土鉱業"]
["75","宿泊業",null,"120","管理，補助的経済活動を行う事業所（12木材・木製品製造業）",null,"0552","ろう石鉱業"]
["76","飲食店",null,"121","製材業，木製品製造業",null,"0553","ドロマイト鉱業"]
["77","持ち帰り・配達飲食サービス業",null,"122","造作材・合板・建築用組立材料製造業",null,"0554","長石鉱業"]
["78","洗濯・理容・美容・浴場業",null,"123","木製容器製造業（竹，とうを含む）",null,"0555","けい石鉱業"]
["79","その他の生活関連サービス業",null,"129","その他の木製品製造業(竹，とうを含む)",null,"0556","天然けい砂鉱業"]
["80","娯楽業",null,"130","管理，補助的経済活動を行う事業所（13家具・装備品製造業）",null,"0557","石灰石鉱業"]
["81","学校教育",null,"131","家具製造業",null,"0559","その他の窯業原料用鉱物鉱業"]
["82","その他の教育、学習支援業",null,"132","宗教用具製造業",null,"0591","酸性白土鉱業"]
["83","医療業",null,"133","建具製造業",null,"0592","ベントナイト鉱業"]
["84","保健衛生",null,"139","その他の家具・装備品製造業",null,"0593","けいそう土鉱業"]
["85","社会保険・社会福祉・介護事業",null,"140","管理，補助的経済活動を行う事業所（14パルプ・紙・紙加工品製造業）",null,"0594","滑石鉱業"]
["86","郵便局",null,"141","パルプ製造業",null,"0599","他に分類されない鉱業"]
["87","協同組合（他に分類されないもの）",null,"142","紙製造業",null,"0600","主として管理事務を行う本社等"]
["88","廃棄物処理業",null,"143","加工紙製造業",null,"0609","その他の管理，補助的経済活動を行う事業所"]
["89","自動車整備業",null,"144","紙製品製造業",null,"0611","一般土木建築工事業"]
["90","機械等修理業（別掲を除く）",null,"145","紙製容器製造業",null,"0621","土木工事業(別掲を除く)"]
["91","職業紹介・労働者派遣業",null,"149","その他のパルプ・紙・紙加工品製造業",null,"0622","造園工事業"]
["92","その他の事業サービス業",null,"150","管理，補助的経済活動を行う事業所（15印刷・同関連業）",null,"0623","しゅんせつ工事業"]
["93","政治・経済・文化団体",null,"151","印刷業",null,"0631","舗装工事業"]
["94","宗教",null,"152","製版業",null,"0641","建築工事業(木造建築工事業を除く)"]
["95","その他のサービス業",null,"153","製本業，印刷物加工業",null,"0651","木造建築工事業"]
["96","外国公務",null,"159","印刷関連サービス業",null,"0661","建築リフォーム工事業"]
["97","国家公務",null,"160","管理，補助的経済活動を行う事業所（16化学工業）",null,"0700","主として管理事務を行う本社等"]
["98","地方公務",null,"161","化学肥料製造業",null,"0709","その他の管理，補助的経済活動を行う事業所"]
["99","分類不能の産業",null,"162","無機化学工業製品製造業",null,"0711","大工工事業(型枠大工工事業を除く)"]
[null,null,null,"163","有機化学工業製品製造業",null,"0712","型枠大工工事業"]
[null,null,null,"164","油脂加工製品・石けん・合成洗剤・界面活性剤・塗料製造業",null,"0721","とび工事業"]
[null,null,null,"165","医薬品製造業",null,"0722","土工・コンクリート工事業"]
[null,null,null,"166","化粧品・歯磨・その他の化粧用調整品製造業",null,"0723","特殊コンクリート工事業"]
[null,null,null,"169","その他の化学工業",null,"0731","鉄骨工事業"]
[null,null,null,"170","管理，補助的経済活動を行う事業所（17石油製品・石炭製品製造業）",null,"0732","鉄筋工事業"]
[null,null,null,"171","石油精製業",null,"0741","石工工事業"]
[null,null,null,"172","潤滑油・グリース製造業（石油精製業によらないもの）",null,"0742","れんが工事業"]
[null,null,null,"173","コークス製造業",null,"0743","タイル工事業"]
[null,null,null,"174","舗装材料製造業",null,"0744","コンクリートブロック工事業"]
[null,null,null,"179","その他の石油製品・石炭製品製造業",null,"0751","左官工事業"]
[null,null,null,"180","管理，補助的経済活動を行う事業所（18プラスチック製品製造業）",null,"0761","金属製屋根工事業"]
[null,null,null,"181","プラスチック板・棒・管・継手・異形押出製品製造業",null,"0762","板金工事業"]
[null,null,null,"182","プラスチックフィルム・シート・床材・合成皮革製造業",null,"0763","建築金物工事業"]
[null,null,null,"183","工業用プラスチック製品製造業",null,"0771","塗装工事業（道路標示・区画線工事業を除く）"]
[null,null,null,"184","発泡・強化プラスチック製品製造業",null,"0772","道路標示・区画線工事業"]
[null,null,null,"185","プラスチック成形材料製造業（廃プラスチックを含む）",null,"0781","床工事業"]
[null,null,null,"189","その他のプラスチック製品製造業",null,"0782","内装工事業"]
[null,null,null,"190","管理，補助的経済活動を行う事業所（19ゴム製品製造業）",null,"0791","ガラス工事業"]
[null,null,null,"191","タイヤ・チューブ製造業",null,"0792","金属製建具工事業"]
[null,null,null,"192","ゴム製・プラスチック製履物・同附属品製造業",null,"0793","木製建具工事業"]
[null,null,null,"193","ゴムベルト・ゴムホース・工業用ゴム製品製造業",null,"0794","屋根工事業（金属製屋根工事業を除く）"]
[null,null,null,"199","その他のゴム製品製造業",null,"0795","防水工事業"]
[null,null,null,"200","管理，補助的経済活動を行う事業所（20なめし革・同製品・毛皮製造業）",null,"0796","はつり・解体工事業"]
[null,null,null,"201","なめし革製造業",null,"0799","他に分類されない職別工事業"]
[null,null,null,"202","工業用革製品製造業（手袋を除く）",null,"0800","主として管理事務を行う本社等"]
[null,null,null,"203","革製履物用材料・同附属品製造業",null,"0809","その他の管理，補助的経済活動を行う事業所"]
[null,null,null,"204","革製履物製造業",null,"0811","一般電気工事業"]
[null,null,null,"205","革製手袋製造業",null,"0812","電気配線工事業"]
[null,null,null,"206","かばん製造業",null,"0821","電気通信工事業（有線テレビジョン放送設備設置工事業を除く）"]
[null,null,null,"207","袋物製造業",null,"0822","有線テレビジョン放送設備設置工事業"]
[null,null,null,"208","毛皮製造業",null,"0823","信号装置工事業"]
[null,null,null,"209","その他のなめし革製品製造業",null,"0831","一般管工事業"]
[null,null,null,"210","管理，補助的経済活動を行う事業所（21窯業・土石製品製造業）",null,"0832","冷暖房設備工事業"]
[null,null,null,"211","ガラス・同製品製造業",null,"0833","給排水・衛生設備工事業"]
[null,null,null,"212","セメント・同製品製造業",null,"0839","その他の管工事業"]
[null,null,null,"213","建設用粘土製品製造業（陶磁器製を除く)",null,"0841","機械器具設置工事業（昇降設備工事業を除く）"]
[null,null,null,"214","陶磁器・同関連製品製造業",null,"0842","昇降設備工事業"]
[null,null,null,"215","耐火物製造業",null,"0891","築炉工事業"]
[null,null,null,"216","炭素・黒鉛製品製造業",null,"0892","熱絶縁工事業"]
[null,null,null,"217","研磨材・同製品製造業",null,"0893","道路標識設置工事業"]
[null,null,null,"218","骨材・石工品等製造業",null,"0894","さく井工事業"]
[null,null,null,"219","その他の窯業・土石製品製造業",null,"0900","主として管理事務を行う本社等"]
[null,null,null,"220","管理，補助的経済活動を行う事業所（22鉄鋼業）",null,"0909","その他の管理，補助的経済活動を行う事業所"]
[null,null,null,"221","製鉄業",null,"0911","部分肉・冷凍肉製造業"]
[null,null,null,"222","製鋼・製鋼圧延業",null,"0912","肉加工品製造業"]
[null,null,null,"223","製鋼を行わない鋼材製造業（表面処理鋼材を除く）",null,"0913","処理牛乳・乳飲料製造業"]
[null,null,null,"224","表面処理鋼材製造業",null,"0914","乳製品製造業（処理牛乳，乳飲料を除く）"]
[null,null,null,"225","鉄素形材製造業",null,"0919","その他の畜産食料品製造業"]
[null,null,null,"229","その他の鉄鋼業",null,"0921","水産缶詰・瓶詰製造業"]
[null,null,null,"230","管理，補助的経済活動を行う事業所（23非鉄金属製造業）",null,"0922","海藻加工業"]
[null,null,null,"231","非鉄金属第1次製錬・精製業",null,"0923","水産練製品製造業"]
[null,null,null,"232","非鉄金属第2次製錬・精製業（非鉄金属合金製造業を含む）",null,"0924","塩干・塩蔵品製造業"]
[null,null,null,"233","非鉄金属・同合金圧延業（抽伸，押出しを含む）",null,"0925","冷凍水産物製造業"]
[null,null,null,"234","電線・ケーブル製造業",null,"0926","冷凍水産食品製造業"]
[null,null,null,"235","非鉄金属素形材製造業",null,"0929","その他の水産食料品製造業"]
[null,null,null,"239","その他の非鉄金属製造業",null,"0931","野菜缶詰・果実缶詰・農産保存食料品製造業（野菜漬物を除く）"]
[null,null,null,"240","管理，補助的経済活動を行う事業所（24金属製品製造業）",null,"0932","野菜漬物製造業（缶詰，瓶詰，つぼ詰を除く）"]
[null,null,null,"241","ブリキ缶・その他のめっき板等製品製造業",null,"0941","味そ製造業"]
[null,null,null,"242","洋食器・刃物・手道具・金物類製造業",null,"0942","しょう油・食用アミノ酸製造業"]
[null,null,null,"243","暖房・調理等装置,配管工事用附属品製造業",null,"0943","ソース製造業"]
[null,null,null,"244","建設用・建築用金属製品製造業（製缶板金業を含む)",null,"0944","食酢製造業"]
[null,null,null,"245","金属素形材製品製造業",null,"0949","その他の調味料製造業"]
[null,null,null,"246","金属被覆・彫刻業，熱処理業（ほうろう鉄器を除く）",null,"0951","砂糖製造業（砂糖精製業を除く）"]
[null,null,null,"247","金属線製品製造業（ねじ類を除く)",null,"0952","砂糖精製業"]
[null,null,null,"248","ボルト・ナット・リベット・小ねじ・木ねじ等製造業",null,"0953","ぶどう糖・水あめ・異性化糖製造業"]
[null,null,null,"249","その他の金属製品製造業",null,"0961","精米・精麦業"]
[null,null,null,"250","管理，補助的経済活動を行う事業所（25はん用機械器具製造業）",null,"0962","小麦粉製造業"]
[null,null,null,"251","ボイラ・原動機製造業",null,"0969","その他の精穀・製粉業"]
[null,null,null,"252","ポンプ・圧縮機器製造業",null,"0971","パン製造業"]
[null,null,null,"253","一般産業用機械・装置製造業",null,"0972","生菓子製造業"]
[null,null,null,"259","その他のはん用機械・同部分品製造業",null,"0973","ビスケット類・干菓子製造業"]
[null,null,null,"260","管理，補助的経済活動を行う事業所（26生産用機械器具製造業）",null,"0974","米菓製造業"]
[null,null,null,"261","農業用機械製造業（農業用器具を除く）",null,"0979","その他のパン・菓子製造業"]
[null,null,null,"262","建設機械・鉱山機械製造業",null,"0981","動植物油脂製造業（食用油脂加工業を除く）"]
[null,null,null,"263","繊維機械製造業",null,"0982","食用油脂加工業"]
[null,null,null,"264","生活関連産業用機械製造業",null,"0991","でんぷん製造業"]
[null,null,null,"265","基礎素材産業用機械製造業",null,"0992","めん類製造業"]
[null,null,null,"266","金属加工機械製造業",null,"0993","豆腐・油揚製造業"]
[null,null,null,"267","半導体・フラットパネルディスプレイ製造装置製造業",null,"0994","あん類製造業"]
[null,null,null,"269","その他の生産用機械・同部分品製造業",null,"0995","冷凍調理食品製造業"]
[null,null,null,"270","管理，補助的経済活動を行う事業所（27業務用機械器具製造業）",null,"0996","そう（惣）菜製造業"]
[null,null,null,"271","事務用機械器具製造業",null,"0997","すし・弁当・調理パン製造業"]
[null,null,null,"272","サービス用・娯楽用機械器具製造業",null,"0998","レトルト食品製造業"]
[null,null,null,"273","計量器・測定器・分析機器・試験機・測量機械器具・理化学機械器具製造業",null,"0999","他に分類されない食料品製造業"]
[null,null,null,"274","医療用機械器具・医療用品製造業",null,"1000","主として管理事務を行う本社等"]
[null,null,null,"275","光学機械器具・レンズ製造業",null,"1009","その他の管理，補助的経済活動を行う事業所"]
[null,null,null,"276","武器製造業",null,"1011","清涼飲料製造業"]
[null,null,null,"280","管理，補助的経済活動を行う事業所（28電子部品・デバイス・電子回路製造業）",null,"1021","果実酒製造業"]
[null,null,null,"281","電子デバイス製造業",null,"1022","ビール類製造業"]
[null,null,null,"282","電子部品製造業",null,"1023","清酒製造業"]
[null,null,null,"283","記録メディア製造業",null,"1024","蒸留酒・混成酒製造業"]
[null,null,null,"284","電子回路製造業",null,"1031","製茶業"]
[null,null,null,"285","ユニット部品製造業",null,"1032","コーヒー製造業"]
[null,null,null,"289","その他の電子部品・デバイス・電子回路製造業",null,"1041","製氷業"]
[null,null,null,"290","管理，補助的経済活動を行う事業所（29電気機械器具製造業）",null,"1051","たばこ製造業（葉たばこ処理業を除く)"]
[null,null,null,"291","発電用・送電用・配電用電気機械器具製造業",null,"1052","葉たばこ処理業"]
[null,null,null,"292","産業用電気機械器具製造業",null,"1061","配合飼料製造業"]
[null,null,null,"293","民生用電気機械器具製造業",null,"1062","単体飼料製造業"]
[null,null,null,"294","電球・電気照明器具製造業",null,"1063","有機質肥料製造業"]
[null,null,null,"295","電池製造業",null,"1100","主として管理事務を行う本社等"]
[null,null,null,"296","電子応用装置製造業",null,"1109","その他の管理，補助的経済活動を行う事業所"]
[null,null,null,"297","電気計測器製造業",null,"1111","製糸業"]
[null,null,null,"299","その他の電気機械器具製造業",null,"1112","化学繊維製造業"]
[null,null,null,"300","管理，補助的経済活動を行う事業所（30情報通信機械器具製造業）",null,"1113","炭素繊維製造業"]
[null,null,null,"301","通信機械器具・同関連機械器具製造業",null,"1114","綿紡績業"]
[null,null,null,"302","映像・音響機械器具製造業",null,"1115","化学繊維紡績業"]
[null,null,null,"303","電子計算機・同附属装置製造業",null,"1116","毛紡績業"]
[null,null,null,"310","管理，補助的経済活動を行う事業所（31輸送用機械器具製造業）",null,"1117","ねん糸製造業（かさ高加工糸を除く）"]
[null,null,null,"311","自動車・同附属品製造業",null,"1118","かさ高加工糸製造業"]
[null,null,null,"312","鉄道車両・同部分品製造業",null,"1119","その他の紡績業"]
[null,null,null,"313","船舶製造・修理業，舶用機関製造業",null,"1121","綿・スフ織物業"]
[null,null,null,"314","航空機・同附属品製造業",null,"1122","絹・人絹織物業"]
[null,null,null,"315","産業用運搬車両・同部分品・附属品製造業",null,"1123","毛織物業"]
[null,null,null,"319","その他の輸送用機械器具製造業",null,"1124","麻織物業"]
[null,null,null,"320","管理，補助的経済活動を行う事業所（32その他の製造業）",null,"1125","細幅織物業"]
[null,null,null,"321","貴金属・宝石製品製造業",null,"1129","その他の織物業"]
[null,null,null,"322","装身具・装飾品・ボタン・同関連品製造業（貴金属・宝石製を除く）",null,"1131","丸編ニット生地製造業"]
[null,null,null,"323","時計・同部分品製造業",null,"1132","たて編ニット生地製造業"]
[null,null,null,"324","楽器製造業",null,"1133","横編ニット生地製造業"]
[null,null,null,"325","がん具・運動用具製造業",null,"1141","綿・スフ・麻織物機械染色業"]
[null,null,null,"326","ペン・鉛筆・絵画用品・その他の事務用品製造業",null,"1142","絹・人絹織物機械染色業"]
[null,null,null,"327","漆器製造業",null,"1143","毛織物機械染色整理業"]
[null,null,null,"328","畳等生活雑貨製品製造業",null,"1144","織物整理業"]
[null,null,null,"329","他に分類されない製造業",null,"1145","織物手加工染色整理業"]
[null,null,null,"330","管理，補助的経済活動を行う事業所（33電気業）",null,"1146","綿状繊維・糸染色整理業"]
[null,null,null,"331","電気業",null,"1147","ニット・レース染色整理業"]
[null,null,null,"340","管理，補助的経済活動を行う事業所（34ガス業）",null,"1148","繊維雑品染色整理業"]
[null,null,null,"341","ガス業",null,"1151","綱製造業"]
[null,null,null,"350","管理，補助的経済活動を行う事業所（35熱供給業）",null,"1152","漁網製造業"]
[null,null,null,"351","熱供給業",null,"1153","網地製造業（漁網を除く）"]
[null,null,null,"360","管理，補助的経済活動を行う事業所（36水道業）",null,"1154","レース製造業"]
[null,null,null,"361","上水道業",null,"1155","組ひも製造業"]
[null,null,null,"362","工業用水道業",null,"1156","整毛業"]
[null,null,null,"363","下水道業",null,"1157","フェルト・不織布製造業"]
[null,null,null,"370","管理，補助的経済活動を行う事業所（37通信業）",null,"1158","上塗りした織物・防水した織物製造業"]
[null,null,null,"371","固定電気通信業",null,"1159","その他の繊維粗製品製造業"]
[null,null,null,"372","移動電気通信業",null,"1161","織物製成人男子・少年服製造業（不織布製及びレース製を含む）"]
[null,null,null,"373","電気通信に附帯するサービス業",null,"1162","織物製成人女子・少女服製造業（不織布製及びレース製を含む）"]
[null,null,null,"380","管理，補助的経済活動を行う事業所（38放送業）",null,"1163","織物製乳幼児服製造業（不織布製及びレース製を含む）"]
[null,null,null,"381","公共放送業（有線放送業を除く）",null,"1164","織物製シャツ製造業（不織布製及びレース製を含み、下着を除く）"]
[null,null,null,"382","民間放送業（有線放送業を除く）",null,"1165","織物製事務用・作業用・衛生用・スポーツ用衣服・学校服製造業（不織布製及びレース製を含む）"]
[null,null,null,"383","有線放送業",null,"1166","ニット製外衣製造業（アウターシャツ類，セーター類などを除く）"]
[null,null,null,"390","管理，補助的経済活動を行う事業所（39情報サービス業）",null,"1167","ニット製アウターシャツ類製造業"]
[null,null,null,"391","ソフトウェア業",null,"1168","セーター類製造業"]
[null,null,null,"392","情報処理・提供サービス業",null,"1169","その他の外衣・シャツ製造業"]
[null,null,null,"400","管理，補助的経済活動を行う事業所（40インターネット附随サービス業）",null,"1171","織物製下着製造業"]
[null,null,null,"401","インターネット附随サービス業",null,"1172","ニット製下着製造業"]
[null,null,null,"410","管理，補助的経済活動を行う事業所（41映像・音声・文字情報制作業）",null,"1173","織物製・ニット製寝着類製造業"]
[null,null,null,"411","映像情報制作・配給業",null,"1174","補整着製造業"]
[null,null,null,"412","音声情報制作業",null,"1181","和装製品製造業（足袋を含む）"]
[null,null,null,"413","新聞業",null,"1182","ネクタイ製造業"]
[null,null,null,"414","出版業",null,"1183","スカーフ・マフラー・ハンカチーフ製造業"]
[null,null,null,"415","広告制作業",null,"1184","靴下製造業"]
[null,null,null,"416","映像・音声・文字情報制作に附帯するサービス業",null,"1185","手袋製造業"]
[null,null,null,"420","管理，補助的経済活動を行う事業所（42鉄道業）",null,"1186","帽子製造業（帽体を含む）"]
[null,null,null,"421","鉄道業",null,"1189","他に分類されない衣服・繊維製身の回り品製造業"]
[null,null,null,"430","管理，補助的経済活動を行う事業所（43道路旅客運送業）",null,"1191","寝具製造業"]
[null,null,null,"431","一般乗合旅客自動車運送業",null,"1192","毛布製造業"]
[null,null,null,"432","一般乗用旅客自動車運送業",null,"1193","じゅうたん・その他の繊維製床敷物製造業"]
[null,null,null,"433","一般貸切旅客自動車運送業",null,"1194","帆布製品製造業"]
[null,null,null,"439","その他の道路旅客運送業",null,"1195","繊維製袋製造業"]
[null,null,null,"440","管理，補助的経済活動を行う事業所（44道路貨物運送業）",null,"1196","刺しゅう業"]
[null,null,null,"441","一般貨物自動車運送業",null,"1197","タオル製造業"]
[null,null,null,"442","特定貨物自動車運送業",null,"1198","繊維製衛生材料製造業"]
[null,null,null,"443","貨物軽自動車運送業",null,"1199","他に分類されない繊維製品製造業"]
[null,null,null,"444","集配利用運送業",null,"1200","主として管理事務を行う本社等"]
[null,null,null,"449","その他の道路貨物運送業",null,"1209","その他の管理，補助的経済活動を行う事業所"]
[null,null,null,"450","管理，補助的経済活動を行う事業所（45水運業）",null,"1211","一般製材業"]
[null,null,null,"451","外航海運業",null,"1212","単板（ベニヤ）製造業"]
[null,null,null,"452","沿海海運業",null,"1213","木材チップ製造業"]
[null,null,null,"453","内陸水運業",null,"1219","その他の特殊製材業"]
[null,null,null,"454","船舶貸渡業",null,"1221","造作材製造業（建具を除く）"]
[null,null,null,"460","管理，補助的経済活動を行う事業所（46航空運輸業）",null,"1222","合板製造業"]
[null,null,null,"461","航空運送業",null,"1223","集成材製造業"]
[null,null,null,"462","航空機使用業（航空運送業を除く）",null,"1224","建築用木製組立材料製造業"]
[null,null,null,"470","管理，補助的経済活動を行う事業所（47倉庫業）",null,"1225","パーティクルボード製造業"]
[null,null,null,"471","倉庫業（冷蔵倉庫業を除く）",null,"1226","繊維板製造業"]
[null,null,null,"472","冷蔵倉庫業",null,"1227","銘木製造業"]
[null,null,null,"480","管理，補助的経済活動を行う事業所（48運輸に附帯するサービス業）",null,"1228","床板製造業"]
[null,null,null,"481","港湾運送業",null,"1231","竹・とう・きりゅう等容器製造業"]
[null,null,null,"482","貨物運送取扱業（集配利用運送業を除く）",null,"1232","木箱製造業"]
[null,null,null,"483","運送代理店",null,"1233","たる・おけ製造業"]
[null,null,null,"484","こん包業",null,"1291","木材薬品処理業"]
[null,null,null,"485","運輸施設提供業",null,"1292","コルク加工基礎資材・コルク製品製造業"]
[null,null,null,"489","その他の運輸に附帯するサービス業",null,"1299","他に分類されない木製品製造業(竹，とうを含む)"]
[null,null,null,"490","管理，補助的経済活動を行う事業所（49郵便業）",null,"1300","主として管理事務を行う本社等"]
[null,null,null,"491","郵便業（信書便事業を含む）",null,"1309","その他の管理，補助的経済活動を行う事業所"]
[null,null,null,"500","管理，補助的経済活動を行う事業所（50各種商品卸売業）",null,"1311","木製家具製造業（漆塗りを除く）"]
[null,null,null,"501","各種商品卸売業",null,"1312","金属製家具製造業"]
[null,null,null,"510","管理，補助的経済活動を行う事業所（51繊維・衣服等卸売業）",null,"1313","マットレス・組スプリング製造業"]
[null,null,null,"511","繊維品卸売業（衣服，身の回り品を除く）",null,"1321","宗教用具製造業"]
[null,null,null,"512","衣服卸売業",null,"1331","建具製造業"]
[null,null,null,"513","身の回り品卸売業",null,"1391","事務所用・店舗用装備品製造業"]
[null,null,null,"520","管理，補助的経済活動を行う事業所（52飲食料品卸売業）",null,"1392","窓用・扉用日よけ，日本びょうぶ等製造業"]
[null,null,null,"521","農畜産物・水産物卸売業",null,"1393","鏡縁・額縁製造業"]
[null,null,null,"522","食料・飲料卸売業",null,"1399","他に分類されない家具・装備品製造業"]
[null,null,null,"530","管理，補助的経済活動を行う事業所（53建築材料，鉱物・金属材料等卸売業）",null,"1400","主として管理事務を行う本社等"]
[null,null,null,"531","建築材料卸売業",null,"1409","その他の管理，補助的経済活動を行う事業所"]
[null,null,null,"532","化学製品卸売業",null,"1411","パルプ製造業"]
[null,null,null,"533","石油・鉱物卸売業",null,"1421","洋紙製造業"]
[null,null,null,"534","鉄鋼製品卸売業",null,"1422","板紙製造業"]
[null,null,null,"535","非鉄金属卸売業",null,"1423","機械すき和紙製造業"]
[null,null,null,"536","再生資源卸売業",null,"1424","手すき和紙製造業"]
[null,null,null,"540","管理，補助的経済活動を行う事業所（54機械器具卸売業）",null,"1431","塗工紙製造業（印刷用紙を除く）"]
[null,null,null,"541","産業機械器具卸売業",null,"1432","段ボール製造業"]
[null,null,null,"542","自動車卸売業",null,"1433","壁紙・ふすま紙製造業"]
[null,null,null,"543","電気機械器具卸売業",null,"1441","事務用・学用紙製品製造業"]
[null,null,null,"549","その他の機械器具卸売業",null,"1442","日用紙製品製造業"]
[null,null,null,"550","管理，補助的経済活動を行う事業所（55その他の卸売業）",null,"1449","その他の紙製品製造業"]
[null,null,null,"551","家具・建具・じゅう器等卸売業",null,"1451","重包装紙袋製造業"]
[null,null,null,"552","医薬品・化粧品等卸売業",null,"1452","角底紙袋製造業"]
[null,null,null,"553","紙・紙製品卸売業",null,"1453","段ボール箱製造業"]
[null,null,null,"559","他に分類されない卸売業",null,"1454","紙器製造業"]
[null,null,null,"560","管理，補助的経済活動を行う事業所（56各種商品小売業）",null,"1499","その他のパルプ・紙・紙加工品製造業"]
[null,null,null,"561","百貨店，総合スーパー",null,"1500","主として管理事務を行う本社等"]
[null,null,null,"569","その他の各種商品小売業（従業者が常時50人未満のもの）",null,"1509","その他の管理，補助的経済活動を行う事業所"]
[null,null,null,"570","管理，補助的経済活動を行う事業所（57織物・衣服・身の回り品小売業）",null,"1511","オフセット印刷業（紙に対するもの）"]
[null,null,null,"571","呉服・服地・寝具小売業",null,"1512","オフセット印刷以外の印刷業（紙に対するもの）"]
[null,null,null,"572","男子服小売業",null,"1513","紙以外の印刷業"]
[null,null,null,"573","婦人・子供服小売業",null,"1521","製版業"]
[null,null,null,"574","靴・履物小売業",null,"1531","製本業"]
[null,null,null,"579","その他の織物・衣服・身の回り品小売業",null,"1532","印刷物加工業"]
[null,null,null,"580","管理，補助的経済活動を行う事業所（58飲食料品小売業）",null,"1591","印刷関連サービス業"]
[null,null,null,"581","各種食料品小売業",null,"1600","主として管理事務を行う本社等"]
[null,null,null,"582","野菜・果実小売業",null,"1609","その他の管理，補助的経済活動を行う事業所"]
[null,null,null,"583","食肉小売業",null,"1611","窒素質・りん酸質肥料製造業"]
[null,null,null,"584","鮮魚小売業",null,"1612","複合肥料製造業"]
[null,null,null,"585","酒小売業",null,"1619","その他の化学肥料製造業"]
[null,null,null,"586","菓子・パン小売業",null,"1621","ソーダ工業"]
[null,null,null,"589","その他の飲食料品小売業",null,"1622","無機顔料製造業"]
[null,null,null,"590","管理，補助的経済活動を行う事業所（59機械器具小売業）",null,"1623","圧縮ガス・液化ガス製造業"]
[null,null,null,"591","自動車小売業",null,"1624","塩製造業"]
[null,null,null,"592","自転車小売業",null,"1629","その他の無機化学工業製品製造業"]
[null,null,null,"593","機械器具小売業（自動車，自転車を除く）",null,"1631","石油化学系基礎製品製造業（一貫して生産される誘導品を含む）"]
[null,null,null,"600","管理，補助的経済活動を行う事業所（60その他の小売業）",null,"1632","脂肪族系中間物製造業（脂肪族系溶剤を含む）"]
[null,null,null,"601","家具・建具・畳小売業",null,"1633","発酵工業"]
[null,null,null,"602","じゅう器小売業",null,"1634","環式中間物・合成染料・有機顔料製造業"]
[null,null,null,"603","医薬品・化粧品小売業",null,"1635","プラスチック製造業"]
[null,null,null,"604","農耕用品小売業",null,"1636","合成ゴム製造業"]
[null,null,null,"605","燃料小売業",null,"1639","その他の有機化学工業製品製造業"]
[null,null,null,"606","書籍・文房具小売業",null,"1641","脂肪酸・硬化油・グリセリン製造業"]
[null,null,null,"607","スポーツ用品・がん具・娯楽用品・楽器小売業",null,"1642","石けん・合成洗剤製造業"]
[null,null,null,"608","写真機・時計・眼鏡小売業",null,"1643","界面活性剤製造業（石けん，合成洗剤を除く）"]
[null,null,null,"609","他に分類されない小売業",null,"1644","塗料製造業"]
[null,null,null,"610","管理，補助的経済活動を行う事業所（61無店舗小売業）",null,"1645","印刷インキ製造業"]
[null,null,null,"611","通信販売・訪問販売小売業",null,"1646","洗浄剤・磨用剤製造業"]
[null,null,null,"612","自動販売機による小売業",null,"1647","ろうそく製造業"]
[null,null,null,"619","その他の無店舗小売業",null,"1651","医薬品原薬製造業"]
[null,null,null,"620","管理，補助的経済活動を行う事業所（62銀行業）",null,"1652","医薬品製剤製造業"]
[null,null,null,"621","中央銀行",null,"1653","生物学的製剤製造業"]
[null,null,null,"622","銀行（中央銀行を除く）",null,"1654","生薬・漢方製剤製造業"]
[null,null,null,"630","管理，補助的経済活動を行う事業所（63協同組織金融業）",null,"1655","動物用医薬品製造業"]
[null,null,null,"631","中小企業等金融業",null,"1661","仕上用・皮膚用化粧品製造業（香水，オーデコロンを含む）"]
[null,null,null,"632","農林水産金融業",null,"1662","頭髪用化粧品製造業"]
[null,null,null,"640","管理，補助的経済活動を行う事業所（64貸金業，クレジットカード業等非預金信用機関）",null,"1669","その他の化粧品・歯磨・化粧用調整品製造業"]
[null,null,null,"641","貸金業",null,"1691","火薬類製造業"]
[null,null,null,"642","質屋",null,"1692","農薬製造業"]
[null,null,null,"643","クレジットカード業，割賦金融業",null,"1693","香料製造業"]
[null,null,null,"649","その他の非預金信用機関",null,"1694","ゼラチン・接着剤製造業"]
[null,null,null,"650","管理，補助的経済活動を行う事業所（65金融商品取引業，商品先物取引業）",null,"1695","写真感光材料製造業"]
[null,null,null,"651","金融商品取引業",null,"1696","天然樹脂製品・木材化学製品製造業"]
[null,null,null,"652","商品先物取引業，商品投資顧問業",null,"1697","試薬製造業"]
[null,null,null,"660","管理，補助的経済活動を行う事業所（66補助的金融業等）",null,"1699","他に分類されない化学工業製品製造業"]
[null,null,null,"661","補助的金融業，金融附帯業",null,"1700","主として管理事務を行う本社等"]
[null,null,null,"662","信託業",null,"1709","その他の管理，補助的経済活動を行う事業所"]
[null,null,null,"663","金融代理業",null,"1711","石油精製業"]
[null,null,null,"670","管理，補助的経済活動を行う事業所（67保険業）",null,"1721","潤滑油・グリース製造業（石油精製業によらないもの）"]
[null,null,null,"671","生命保険業",null,"1731","コークス製造業"]
[null,null,null,"672","損害保険業",null,"1741","舗装材料製造業"]
[null,null,null,"673","共済事業，少額短期保険業",null,"1799","その他の石油製品・石炭製品製造業"]
[null,null,null,"674","保険媒介代理業",null,"1800","主として管理事務を行う本社等"]
[null,null,null,"675","保険サービス業",null,"1809","その他の管理，補助的経済活動を行う事業所"]
[null,null,null,"680","管理，補助的経済活動を行う事業所（68不動産取引業）",null,"1811","プラスチック板・棒製造業"]
[null,null,null,"681","建物売買業，土地売買業",null,"1812","プラスチック管製造業"]
[null,null,null,"682","不動産代理業・仲介業",null,"1813","プラスチック継手製造業"]
[null,null,null,"690","管理，補助的経済活動を行う事業所（69不動産賃貸業・管理業）",null,"1814","プラスチック異形押出製品製造業"]
[null,null,null,"691","不動産賃貸業（貸家業，貸間業を除く）",null,"1815","プラスチック板・棒・管・継手・異形押出製品加工業"]
[null,null,null,"692","貸家業，貸間業",null,"1821","プラスチックフィルム製造業"]
[null,null,null,"693","駐車場業",null,"1822","プラスチックシート製造業"]
[null,null,null,"694","不動産管理業",null,"1823","プラスチック床材製造業"]
[null,null,null,"700","管理，補助的経済活動を行う事業所（70物品賃貸業）",null,"1824","合成皮革製造業"]
[null,null,null,"701","各種物品賃貸業",null,"1825","プラスチックフィルム・シート・床材・合成皮革加工業"]
[null,null,null,"702","産業用機械器具賃貸業",null,"1831","電気機械器具用プラスチック製品製造業（加工業を除く）"]
[null,null,null,"703","事務用機械器具賃貸業",null,"1832","輸送機械器具用プラスチック製品製造業（加工業を除く）"]
[null,null,null,"704","自動車賃貸業",null,"1833","その他の工業用プラスチック製品製造業（加工業を除く）"]
[null,null,null,"705","スポーツ・娯楽用品賃貸業",null,"1834","工業用プラスチック製品加工業"]
[null,null,null,"709","その他の物品賃貸業",null,"1841","軟質プラスチック発泡製品製造業（半硬質性を含む）"]
[null,null,null,"710","管理，補助的経済活動を行う事業所（71学術・開発研究機関）",null,"1842","硬質プラスチック発泡製品製造業"]
[null,null,null,"711","自然科学研究所",null,"1843","強化プラスチック製板・棒・管・継手製造業"]
[null,null,null,"712","人文・社会科学研究所",null,"1844","強化プラスチック製容器・浴槽等製造業"]
[null,null,null,"720","管理，補助的経済活動を行う事業所（72専門サービス業）",null,"1845","発泡・強化プラスチック製品加工業"]
[null,null,null,"721","法律事務所，特許事務所",null,"1851","プラスチック成形材料製造業"]
[null,null,null,"722","公証人役場，司法書士事務所，土地家屋調査士事務所",null,"1852","廃プラスチック製品製造業"]
[null,null,null,"723","行政書士事務所",null,"1891","プラスチック製日用雑貨・食卓用品製造業"]
[null,null,null,"724","公認会計士事務所，税理士事務所",null,"1892","プラスチック製容器製造業"]
[null,null,null,"725","社会保険労務士事務所",null,"1897","他に分類されないプラスチック製品製造業"]
[null,null,null,"726","デザイン業",null,"1898","他に分類されないプラスチック製品加工業"]
[null,null,null,"727","著述・芸術家業",null,"1900","主として管理事務を行う本社等"]
[null,null,null,"728","経営コンサルタント業，純粋持株会社",null,"1909","その他の管理，補助的経済活動を行う事業所"]
[null,null,null,"729","その他の専門サービス業",null,"1911","自動車タイヤ・チューブ製造業"]
[null,null,null,"730","管理，補助的経済活動を行う事業所（73広告業）",null,"1919","その他のタイヤ・チューブ製造業"]
[null,null,null,"731","広告業",null,"1921","ゴム製履物・同附属品製造業"]
[null,null,null,"740","管理，補助的経済活動を行う事業所（74技術サービス業）",null,"1922","プラスチック製履物・同附属品製造業"]
[null,null,null,"741","獣医業",null,"1931","ゴムベルト製造業"]
[null,null,null,"742","土木建築サービス業",null,"1932","ゴムホース製造業"]
[null,null,null,"743","機械設計業",null,"1933","工業用ゴム製品製造業"]
[null,null,null,"744","商品・非破壊検査業",null,"1991","ゴム引布・同製品製造業"]
[null,null,null,"745","計量証明業",null,"1992","医療・衛生用ゴム製品製造業"]
[null,null,null,"746","写真業",null,"1993","ゴム練生地製造業"]
[null,null,null,"749","その他の技術サービス業",null,"1994","更生タイヤ製造業"]
[null,null,null,"750","管理，補助的経済活動を行う事業所（75宿泊業）",null,"1995","再生ゴム製造業"]
[null,null,null,"751","旅館，ホテル",null,"1999","他に分類されないゴム製品製造業"]
[null,null,null,"752","簡易宿所",null,"2000","主として管理事務を行う本社等"]
[null,null,null,"753","下宿業",null,"2009","その他の管理，補助的経済活動を行う事業所"]
[null,null,null,"759","その他の宿泊業",null,"2011","なめし革製造業"]
[null,null,null,"760","管理，補助的経済活動を行う事業所（76飲食店）",null,"2021","工業用革製品製造業（手袋を除く）"]
[null,null,null,"761","食堂，レストラン（専門料理店を除く）",null,"2031","革製履物用材料・同附属品製造業"]
[null,null,null,"762","専門料理店",null,"2041","革製履物製造業"]
[null,null,null,"763","そば・うどん店",null,"2051","革製手袋製造業"]
[null,null,null,"764","すし店",null,"2061","かばん製造業"]
[null,null,null,"765","酒場，ビヤホール",null,"2071","袋物製造業（ハンドバッグを除く）"]
[null,null,null,"766","バー，キャバレー，ナイトクラブ",null,"2072","ハンドバッグ製造業"]
[null,null,null,"767","喫茶店",null,"2081","毛皮製造業"]
[null,null,null,"769","その他の飲食店",null,"2099","その他のなめし革製品製造業"]
[null,null,null,"770","管理，補助的経済活動を行う事業所（77持ち帰り・配達飲食サービス業）",null,"2100","主として管理事務を行う本社等"]
[null,null,null,"771","持ち帰り飲食サービス業",null,"2109","その他の管理，補助的経済活動を行う事業所"]
[null,null,null,"772","配達飲食サービス業",null,"2111","板ガラス製造業"]
[null,null,null,"780","管理，補助的経済活動を行う事業所（78洗濯・理容・美容・浴場業）",null,"2112","板ガラス加工業"]
[null,null,null,"781","洗濯業",null,"2113","ガラス製加工素材製造業"]
[null,null,null,"782","理容業",null,"2114","ガラス容器製造業"]
[null,null,null,"783","美容業",null,"2115","理化学用・医療用ガラス器具製造業"]
[null,null,null,"784","一般公衆浴場業",null,"2116","卓上用・ちゅう房用ガラス器具製造業"]
[null,null,null,"785","その他の公衆浴場業",null,"2117","ガラス繊維・同製品製造業"]
[null,null,null,"789","その他の洗濯・理容・美容・浴場業",null,"2119","その他のガラス・同製品製造業"]
[null,null,null,"790","管理，補助的経済活動を行う事業所（79その他の生活関連サービス業）",null,"2121","セメント製造業"]
[null,null,null,"791","旅行業",null,"2122","生コンクリート製造業"]
[null,null,null,"792","家事サービス業",null,"2123","コンクリート製品製造業"]
[null,null,null,"793","衣服裁縫修理業",null,"2129","その他のセメント製品製造業"]
[null,null,null,"794","物品預り業",null,"2131","粘土かわら製造業"]
[null,null,null,"795","火葬・墓地管理業",null,"2132","普通れんが製造業"]
[null,null,null,"796","冠婚葬祭業",null,"2139","その他の建設用粘土製品製造業"]
[null,null,null,"799","他に分類されない生活関連サービス業",null,"2141","衛生陶器製造業"]
[null,null,null,"800","管理，補助的経済活動を行う事業所（80娯楽業）",null,"2142","食卓用・ちゅう房用陶磁器製造業"]
[null,null,null,"801","映画館",null,"2143","陶磁器製置物製造業"]
[null,null,null,"802","興行場（別掲を除く），興行団",null,"2144","電気用陶磁器製造業"]
[null,null,null,"803","競輪・競馬等の競走場，競技団",null,"2145","理化学用・工業用陶磁器製造業"]
[null,null,null,"804","スポーツ施設提供業",null,"2146","陶磁器製タイル製造業"]
[null,null,null,"805","公園，遊園地",null,"2147","陶磁器絵付業"]
[null,null,null,"806","遊戯場",null,"2148","陶磁器用はい（坏）土製造業"]
[null,null,null,"809","その他の娯楽業",null,"2149","その他の陶磁器・同関連製品製造業"]
[null,null,null,"810","管理，補助的経済活動を行う事業所（81学校教育）",null,"2151","耐火れんが製造業"]
[null,null,null,"811","幼稚園",null,"2152","不定形耐火物製造業"]
[null,null,null,"812","小学校",null,"2159","その他の耐火物製造業"]
[null,null,null,"813","中学校",null,"2161","炭素質電極製造業"]
[null,null,null,"814","高等学校，中等教育学校",null,"2169","その他の炭素・黒鉛製品製造業"]
[null,null,null,"815","特別支援学校",null,"2171","研磨材製造業"]
[null,null,null,"816","高等教育機関",null,"2172","研削と石製造業"]
[null,null,null,"817","専修学校，各種学校",null,"2173","研磨布紙製造業"]
[null,null,null,"818","学校教育支援機関",null,"2179","その他の研磨材・同製品製造業"]
[null,null,null,"819","幼保連携型認定こども園",null,"2181","砕石製造業"]
[null,null,null,"820","管理，補助的経済活動を行う事業所（82その他の教育，学習支援業）",null,"2182","再生骨材製造業"]
[null,null,null,"821","社会教育",null,"2183","人工骨材製造業"]
[null,null,null,"822","職業・教育支援施設",null,"2184","石工品製造業"]
[null,null,null,"823","学習塾",null,"2185","けいそう土・同製品製造業"]
[null,null,null,"824","教養・技能教授業",null,"2186","鉱物・土石粉砕等処理業"]
[null,null,null,"829","他に分類されない教育，学習支援業",null,"2191","ロックウール・同製品製造業"]
[null,null,null,"830","管理，補助的経済活動を行う事業所（83医療業）",null,"2192","石こう（膏）製品製造業"]
[null,null,null,"831","病院",null,"2193","石灰製造業"]
[null,null,null,"832","一般診療所",null,"2194","鋳型製造業（中子を含む）"]
[null,null,null,"833","歯科診療所",null,"2199","他に分類されない窯業・土石製品製造業"]
[null,null,null,"834","助産・看護業",null,"2200","主として管理事務を行う本社等"]
[null,null,null,"835","療術業",null,"2209","その他の管理，補助的経済活動を行う事業所"]
[null,null,null,"836","医療に附帯するサービス業",null,"2211","高炉による製鉄業"]
[null,null,null,"840","管理，補助的経済活動を行う事業所（84保健衛生）",null,"2212","高炉によらない製鉄業"]
[null,null,null,"841","保健所",null,"2213","フェロアロイ製造業"]
[null,null,null,"842","健康相談施設",null,"2221","製鋼・製鋼圧延業"]
[null,null,null,"849","その他の保健衛生",null,"2231","熱間圧延業（鋼管，伸鉄を除く）"]
[null,null,null,"850","管理，補助的経済活動を行う事業所（85社会保険・社会福祉・介護事業）",null,"2232","冷間圧延業（鋼管，伸鉄を除く）"]
[null,null,null,"851","社会保険事業団体",null,"2233","冷間ロール成型形鋼製造業"]
[null,null,null,"852","福祉事務所",null,"2234","鋼管製造業"]
[null,null,null,"853","児童福祉事業",null,"2235","伸鉄業"]
[null,null,null,"854","老人福祉・介護事業",null,"2236","磨棒鋼製造業"]
[null,null,null,"855","障害者福祉事業",null,"2237","引抜鋼管製造業"]
[null,null,null,"859","その他の社会保険・社会福祉・介護事業",null,"2238","伸線業"]
[null,null,null,"860","管理，補助的経済活動を行う事業所（86郵便局）",null,"2239","その他の製鋼を行わない鋼材製造業（表面処理鋼材を除く)"]
[null,null,null,"861","郵便局",null,"2241","亜鉛鉄板製造業"]
[null,null,null,"862","郵便局受託業",null,"2249","その他の表面処理鋼材製造業"]
[null,null,null,"870","管理，補助的経済活動を行う事業所（87協同組合）",null,"2251","銑鉄鋳物製造業（鋳鉄管，可鍛鋳鉄を除く）"]
[null,null,null,"871","農林水産業協同組合（他に分類されないもの）",null,"2252","可鍛鋳鉄製造業"]
[null,null,null,"872","事業協同組合（他に分類されないもの）",null,"2253","鋳鋼製造業"]
[null,null,null,"880","管理，補助的経済活動を行う事業所（88廃棄物処理業）",null,"2254","鍛工品製造業"]
[null,null,null,"881","一般廃棄物処理業",null,"2255","鍛鋼製造業"]
[null,null,null,"882","産業廃棄物処理業",null,"2291","鉄鋼シャースリット業"]
[null,null,null,"889","その他の廃棄物処理業",null,"2292","鉄スクラップ加工処理業"]
[null,null,null,"890","管理，補助的経済活動を行う事業所（89自動車整備業）",null,"2293","鋳鉄管製造業"]
[null,null,null,"891","自動車整備業",null,"2299","他に分類されない鉄鋼業"]
[null,null,null,"900","管理，補助的経済活動を行う事業所（90機械等修理業）",null,"2300","主として管理事務を行う本社等"]
[null,null,null,"901","機械修理業（電気機械器具を除く）",null,"2309","その他の管理，補助的経済活動を行う事業所"]
[null,null,null,"902","電気機械器具修理業",null,"2311","銅第１次製錬・精製業"]
[null,null,null,"903","表具業",null,"2312","亜鉛第１次製錬・精製業"]
[null,null,null,"909","その他の修理業",null,"2319","その他の非鉄金属第１次製錬・精製業"]
[null,null,null,"910","管理，補助的経済活動を行う事業所（91職業紹介・労働者派遣業）",null,"2321","鉛第２次製錬・精製業（鉛合金製造業を含む)"]
[null,null,null,"911","職業紹介業",null,"2322","アルミニウム第２次製錬・精製業（アルミニウム合金製造業を含む）"]
[null,null,null,"912","労働者派遣業",null,"2329","その他の非鉄金属第２次製錬・精製業（非鉄金属合金製造業を含む）"]
[null,null,null,"920","管理，補助的経済活動を行う事業所（92その他の事業サービス業）",null,"2331","伸銅品製造業"]
[null,null,null,"921","速記・ワープロ入力・複写業",null,"2332","アルミニウム・同合金圧延業（抽伸，押出しを含む）"]
[null,null,null,"922","建物サービス業",null,"2339","その他の非鉄金属・同合金圧延業（抽伸，押出しを含む）"]
[null,null,null,"923","警備業",null,"2341","電線・ケーブル製造業（光ファイバケーブルを除く）"]
[null,null,null,"929","他に分類されない事業サービス業",null,"2342","光ファイバケーブル製造業（通信複合ケーブルを含む）"]
[null,null,null,"931","経済団体",null,"2351","銅・同合金鋳物製造業（ダイカストを除く）"]
[null,null,null,"932","労働団体",null,"2352","非鉄金属鋳物製造業（銅・同合金鋳物及びダイカストを除く）"]
[null,null,null,"933","学術・文化団体",null,"2353","アルミニウム・同合金ダイカスト製造業"]
[null,null,null,"934","政治団体",null,"2354","非鉄金属ダイカスト製造業（アルミニウム・同合金ダイカストを除く）"]
[null,null,null,"939","他に分類されない非営利的団体",null,"2355","非鉄金属鍛造品製造業"]
[null,null,null,"941","神道系宗教",null,"2391","核燃料製造業"]
[null,null,null,"942","仏教系宗教",null,"2399","他に分類されない非鉄金属製造業"]
[null,null,null,"943","キリスト教系宗教",null,"2400","主として管理事務を行う本社等"]
[null,null,null,"949","その他の宗教",null,"2409","その他の管理，補助的経済活動を行う事業所"]
[null,null,null,"950","管理，補助的経済活動を行う事業所（95その他のサービス業）",null,"2411","ブリキ缶・その他のめっき板等製品製造業"]
[null,null,null,"951","集会場",null,"2421","洋食器製造業"]
[null,null,null,"952","と畜場",null,"2422","機械刃物製造業"]
[null,null,null,"959","他に分類されないサービス業",null,"2423","利器工匠具・手道具製造業（やすり，のこぎり，食卓用刃物を除く）"]
[null,null,null,"961","外国公館",null,"2424","作業工具製造業"]
[null,null,null,"969","その他の外国公務",null,"2425","手引のこぎり・のこ刃製造業"]
[null,null,null,"971","立法機関",null,"2426","農業用器具製造業（農業用機械を除く）"]
[null,null,null,"972","司法機関",null,"2429","その他の金物類製造業"]
[null,null,null,"973","行政機関",null,"2431","配管工事用附属品製造業（バルブ，コックを除く）"]
[null,null,null,"981","都道府県機関",null,"2432","ガス機器・石油機器製造業"]
[null,null,null,"982","市町村機関",null,"2433","温風・温水暖房装置製造業"]
[null,null,null,"999","分類不能の産業",null,"2439","その他の暖房・調理装置製造業（電気機械器具，ガス機器，石油機器を除く）"]
[null,null,null,null,null,null,"2441","鉄骨製造業"]
[null,null,null,null,null,null,"2442","建設用金属製品製造業（鉄骨を除く）"]
[null,null,null,null,null,null,"2443","金属製サッシ・ドア製造業"]
[null,null,null,null,null,null,"2444","鉄骨系プレハブ住宅製造業"]
[null,null,null,null,null,null,"2445","建築用金属製品製造業（サッシ，ドア，建築用金物を除く）"]
[null,null,null,null,null,null,"2446","製缶板金業"]
[null,null,null,null,null,null,"2451","アルミニウム・同合金プレス製品製造業"]
[null,null,null,null,null,null,"2452","金属プレス製品製造業（アルミニウム・同合金を除く）"]
[null,null,null,null,null,null,"2453","粉末や金製品製造業"]
[null,null,null,null,null,null,"2461","金属製品塗装業"]
[null,null,null,null,null,null,"2462","溶融めっき業（表面処理鋼材製造業を除く）"]
[null,null,null,null,null,null,"2463","金属彫刻業"]
[null,null,null,null,null,null,"2464","電気めっき業（表面処理鋼材製造業を除く）"]
[null,null,null,null,null,null,"2465","金属熱処理業"]
[null,null,null,null,null,null,"2469","その他の金属表面処理業"]
[null,null,null,null,null,null,"2471","くぎ製造業"]
[null,null,null,null,null,null,"2479","その他の金属線製品製造業"]
[null,null,null,null,null,null,"2481","ボルト・ナット・リベット・小ねじ・木ねじ等製造業"]
[null,null,null,null,null,null,"2491","金庫製造業"]
[null,null,null,null,null,null,"2492","金属製スプリング製造業"]
[null,null,null,null,null,null,"2499","他に分類されない金属製品製造業"]
[null,null,null,null,null,null,"2500","主として管理事務を行う本社等"]
[null,null,null,null,null,null,"2509","その他の管理，補助的経済活動を行う事業所"]
[null,null,null,null,null,null,"2511","ボイラ製造業"]
[null,null,null,null,null,null,"2512","蒸気機関・タービン・水力タービン製造業（舶用を除く）"]
[null,null,null,null,null,null,"2513","はん用内燃機関製造業"]
[null,null,null,null,null,null,"2519","その他の原動機製造業"]
[null,null,null,null,null,null,"2521","ポンプ・同装置製造業"]
[null,null,null,null,null,null,"2522","空気圧縮機・ガス圧縮機・送風機製造業"]
[null,null,null,null,null,null,"2523","油圧・空圧機器製造業"]
[null,null,null,null,null,null,"2531","動力伝導装置製造業（玉軸受，ころ軸受を除く）"]
[null,null,null,null,null,null,"2532","エレベータ・エスカレータ製造業"]
[null,null,null,null,null,null,"2533","物流運搬設備製造業"]
[null,null,null,null,null,null,"2534","工業窯炉製造業"]
[null,null,null,null,null,null,"2535","冷凍機・温湿調整装置製造業"]
[null,null,null,null,null,null,"2591","消火器具・消火装置製造業"]
[null,null,null,null,null,null,"2592","弁・同附属品製造業"]
[null,null,null,null,null,null,"2593","パイプ加工・パイプ附属品加工業"]
[null,null,null,null,null,null,"2594","玉軸受・ころ軸受製造業"]
[null,null,null,null,null,null,"2595","ピストンリング製造業"]
[null,null,null,null,null,null,"2596","他に分類されないはん用機械・装置製造業"]
[null,null,null,null,null,null,"2599","各種機械・同部分品製造修理業（注文製造・修理）"]
[null,null,null,null,null,null,"2600","主として管理事務を行う本社等"]
[null,null,null,null,null,null,"2609","その他の管理，補助的経済活動を行う事業所"]
[null,null,null,null,null,null,"2611","農業用機械製造業（農業用器具を除く）"]
[null,null,null,null,null,null,"2621","建設機械・鉱山機械製造業"]
[null,null,null,null,null,null,"2631","化学繊維機械・紡績機械製造業"]
[null,null,null,null,null,null,"2632","製織機械・編組機械製造業"]
[null,null,null,null,null,null,"2633","染色整理仕上機械製造業"]
[null,null,null,null,null,null,"2634","繊維機械部分品・取付具・附属品製造業"]
[null,null,null,null,null,null,"2635","縫製機械製造業"]
[null,null,null,null,null,null,"2641","食品機械・同装置製造業"]
[null,null,null,null,null,null,"2642","木材加工機械製造業"]
[null,null,null,null,null,null,"2643","パルプ装置・製紙機械製造業"]
[null,null,null,null,null,null,"2644","印刷・製本・紙工機械製造業"]
[null,null,null,null,null,null,"2645","包装・荷造機械製造業"]
[null,null,null,null,null,null,"2651","鋳造装置製造業"]
[null,null,null,null,null,null,"2652","化学機械・同装置製造業"]
[null,null,null,null,null,null,"2653","プラスチック加工機械・同附属装置製造業"]
[null,null,null,null,null,null,"2661","金属工作機械製造業"]
[null,null,null,null,null,null,"2662","金属加工機械製造業（金属工作機械を除く）"]
[null,null,null,null,null,null,"2663","金属工作機械用・金属加工機械用部分品・附属品製造業（機械工具，金型を除く）"]
[null,null,null,null,null,null,"2664","機械工具製造業（粉末や金業を除く）"]
[null,null,null,null,null,null,"2671","半導体製造装置製造業"]
[null,null,null,null,null,null,"2672","フラットパネルディスプレイ製造装置製造業"]
[null,null,null,null,null,null,"2691","金属用金型・同部分品・附属品製造業"]
[null,null,null,null,null,null,"2692","非金属用金型・同部分品・附属品製造業"]
[null,null,null,null,null,null,"2693","真空装置・真空機器製造業"]
[null,null,null,null,null,null,"2694","ロボット製造業"]
[null,null,null,null,null,null,"2699","他に分類されない生産用機械・同部分品製造業"]
[null,null,null,null,null,null,"2700","主として管理事務を行う本社等"]
[null,null,null,null,null,null,"2709","その他の管理，補助的経済活動を行う事業所"]
[null,null,null,null,null,null,"2711","複写機製造業"]
[null,null,null,null,null,null,"2719","その他の事務用機械器具製造業"]
[null,null,null,null,null,null,"2721","サービス用機械器具製造業"]
[null,null,null,null,null,null,"2722","娯楽用機械製造業"]
[null,null,null,null,null,null,"2723","自動販売機製造業"]
[null,null,null,null,null,null,"2729","その他のサービス用・娯楽用機械器具製造業"]
[null,null,null,null,null,null,"2731","体積計製造業"]
[null,null,null,null,null,null,"2732","はかり製造業"]
[null,null,null,null,null,null,"2733","圧力計・流量計・液面計等製造業"]
[null,null,null,null,null,null,"2734","精密測定器製造業"]
[null,null,null,null,null,null,"2735","分析機器製造業"]
[null,null,null,null,null,null,"2736","試験機製造業"]
[null,null,null,null,null,null,"2737","測量機械器具製造業"]
[null,null,null,null,null,null,"2738","理化学機械器具製造業"]
[null,null,null,null,null,null,"2739","その他の計量器・測定器・分析機器・試験機・測量機械器具・理化学機械器具製造業"]
[null,null,null,null,null,null,"2741","医療用機械器具製造業"]
[null,null,null,null,null,null,"2742","歯科用機械器具製造業"]
[null,null,null,null,null,null,"2743","医療用品製造業（動物用医療機械器具を含む）"]
[null,null,null,null,null,null,"2744","歯科材料製造業"]
[null,null,null,null,null,null,"2751","顕微鏡・望遠鏡等製造業"]
[null,null,null,null,null,null,"2752","写真機・映画用機械・同附属品製造業"]
[null,null,null,null,null,null,"2753","光学機械用レンズ・プリズム製造業"]
[null,null,null,null,null,null,"2761","武器製造業"]
[null,null,null,null,null,null,"2800","主として管理事務を行う本社等"]
[null,null,null,null,null,null,"2809","その他の管理，補助的経済活動を行う事業所"]
[null,null,null,null,null,null,"2811","電子管製造業"]
[null,null,null,null,null,null,"2812","光電変換素子製造業"]
[null,null,null,null,null,null,"2813","半導体素子製造業（光電変換素子を除く）"]
[null,null,null,null,null,null,"2814","集積回路製造業"]
[null,null,null,null,null,null,"2815","液晶パネル・フラットパネル製造業"]
[null,null,null,null,null,null,"2821","抵抗器・コンデンサ・変成器・複合部品製造業"]
[null,null,null,null,null,null,"2822","音響部品・磁気ヘッド・小形モータ製造業"]
[null,null,null,null,null,null,"2823","コネクタ・スイッチ・リレー製造業"]
[null,null,null,null,null,null,"2831","半導体メモリメディア製造業"]
[null,null,null,null,null,null,"2832","光ディスク・磁気ディスク・磁気テープ製造業"]
[null,null,null,null,null,null,"2841","電子回路基板製造業"]
[null,null,null,null,null,null,"2842","電子回路実装基板製造業"]
[null,null,null,null,null,null,"2851","電源ユニット・高周波ユニット・コントロールユニット製造業"]
[null,null,null,null,null,null,"2859","その他のユニット部品製造業"]
[null,null,null,null,null,null,"2899","その他の電子部品・デバイス・電子回路製造業"]
[null,null,null,null,null,null,"2900","主として管理事務を行う本社等"]
[null,null,null,null,null,null,"2909","その他の管理，補助的経済活動を行う事業所"]
[null,null,null,null,null,null,"2911","発電機・電動機・その他の回転電気機械製造業"]
[null,null,null,null,null,null,"2912","変圧器類製造業（電子機器用を除く)"]
[null,null,null,null,null,null,"2913","電力開閉装置製造業"]
[null,null,null,null,null,null,"2914","配電盤・電力制御装置製造業"]
[null,null,null,null,null,null,"2915","配線器具・配線附属品製造業"]
[null,null,null,null,null,null,"2921","電気溶接機製造業"]
[null,null,null,null,null,null,"2922","内燃機関電装品製造業"]
[null,null,null,null,null,null,"2929","その他の産業用電気機械器具製造業（車両用，船舶用を含む）"]
[null,null,null,null,null,null,"2931","ちゅう房機器製造業"]
[null,null,null,null,null,null,"2932","空調・住宅関連機器製造業"]
[null,null,null,null,null,null,"2933","衣料衛生関連機器製造業"]
[null,null,null,null,null,null,"2939","その他の民生用電気機械器具製造業"]
[null,null,null,null,null,null,"2941","電球製造業"]
[null,null,null,null,null,null,"2942","電気照明器具製造業"]
[null,null,null,null,null,null,"2951","蓄電池製造業"]
[null,null,null,null,null,null,"2952","一次電池（乾電池，湿電池）製造業"]
[null,null,null,null,null,null,"2961","Ｘ線装置製造業"]
[null,null,null,null,null,null,"2962","医療用電子応用装置製造業"]
[null,null,null,null,null,null,"2969","その他の電子応用装置製造業"]
[null,null,null,null,null,null,"2971","電気計測器製造業（別掲を除く）"]
[null,null,null,null,null,null,"2972","工業計器製造業"]
[null,null,null,null,null,null,"2973","医療用計測器製造業"]
[null,null,null,null,null,null,"2999","その他の電気機械器具製造業"]
[null,null,null,null,null,null,"3000","主として管理事務を行う本社等"]
[null,null,null,null,null,null,"3009","その他の管理，補助的経済活動を行う事業所"]
[null,null,null,null,null,null,"3011","有線通信機械器具製造業"]
[null,null,null,null,null,null,"3012","携帯電話機・ＰＨＳ電話機製造業"]
[null,null,null,null,null,null,"3013","無線通信機械器具製造業"]
[null,null,null,null,null,null,"3014","ラジオ受信機・テレビジョン受信機製造業"]
[null,null,null,null,null,null,"3015","交通信号保安装置製造業"]
[null,null,null,null,null,null,"3019","その他の通信機械器具・同関連機械器具製造業"]
[null,null,null,null,null,null,"3021","ビデオ機器製造業"]
[null,null,null,null,null,null,"3022","デジタルカメラ製造業"]
[null,null,null,null,null,null,"3023","電気音響機械器具製造業"]
[null,null,null,null,null,null,"3031","電子計算機製造業（パーソナルコンピュータを除く）"]
[null,null,null,null,null,null,"3032","パーソナルコンピュータ製造業"]
[null,null,null,null,null,null,"3033","外部記憶装置製造業"]
[null,null,null,null,null,null,"3034","印刷装置製造業"]
[null,null,null,null,null,null,"3035","表示装置製造業"]
[null,null,null,null,null,null,"3039","その他の附属装置製造業"]
[null,null,null,null,null,null,"3100","主として管理事務を行う本社等"]
[null,null,null,null,null,null,"3109","その他の管理，補助的経済活動を行う事業所"]
[null,null,null,null,null,null,"3111","自動車製造業（二輪自動車を含む）"]
[null,null,null,null,null,null,"3112","自動車車体・附随車製造業"]
[null,null,null,null,null,null,"3113","自動車部分品・附属品製造業"]
[null,null,null,null,null,null,"3121","鉄道車両製造業"]
[null,null,null,null,null,null,"3122","鉄道車両用部分品製造業"]
[null,null,null,null,null,null,"3131","船舶製造・修理業"]
[null,null,null,null,null,null,"3132","船体ブロック製造業"]
[null,null,null,null,null,null,"3133","舟艇製造・修理業"]
[null,null,null,null,null,null,"3134","舶用機関製造業"]
[null,null,null,null,null,null,"3141","航空機製造業"]
[null,null,null,null,null,null,"3142","航空機用原動機製造業"]
[null,null,null,null,null,null,"3149","その他の航空機部分品・補助装置製造業"]
[null,null,null,null,null,null,"3151","フォークリフトトラック・同部分品・附属品製造業"]
[null,null,null,null,null,null,"3159","その他の産業用運搬車両・同部分品・附属品製造業"]
[null,null,null,null,null,null,"3191","自転車・同部分品製造業"]
[null,null,null,null,null,null,"3199","他に分類されない輸送用機械器具製造業"]
[null,null,null,null,null,null,"3200","主として管理事務を行う本社等"]
[null,null,null,null,null,null,"3209","その他の管理，補助的経済活動を行う事業所"]
[null,null,null,null,null,null,"3211","貴金属・宝石製装身具（ジュエリー）製品製造業"]
[null,null,null,null,null,null,"3212","貴金属・宝石製装身具（ジュエリー）附属品・同材料加工業"]
[null,null,null,null,null,null,"3219","その他の貴金属製品製造業"]
[null,null,null,null,null,null,"3221","装身具・装飾品製造業（貴金属・宝石製を除く）"]
[null,null,null,null,null,null,"3222","造花・装飾用羽毛製造業"]
[null,null,null,null,null,null,"3223","ボタン製造業"]
[null,null,null,null,null,null,"3224","針・ピン・ホック・スナップ・同関連品製造業"]
[null,null,null,null,null,null,"3229","その他の装身具・装飾品製造業"]
[null,null,null,null,null,null,"3231","時計・同部分品製造業"]
[null,null,null,null,null,null,"3241","ピアノ製造業"]
[null,null,null,null,null,null,"3249","その他の楽器・楽器部品・同材料製造業"]
[null,null,null,null,null,null,"3251","娯楽用具・がん具製造業（人形を除く）"]
[null,null,null,null,null,null,"3252","人形製造業"]
[null,null,null,null,null,null,"3253","運動用具製造業"]
[null,null,null,null,null,null,"3261","万年筆・ペン類・鉛筆製造業"]
[null,null,null,null,null,null,"3262","毛筆・絵画用品製造業（鉛筆を除く）"]
[null,null,null,null,null,null,"3269","その他の事務用品製造業"]
[null,null,null,null,null,null,"3271","漆器製造業"]
[null,null,null,null,null,null,"3281","麦わら・パナマ類帽子・わら工品製造業"]
[null,null,null,null,null,null,"3282","畳製造業"]
[null,null,null,null,null,null,"3283","うちわ・扇子・ちょうちん製造業"]
[null,null,null,null,null,null,"3284","ほうき・ブラシ製造業"]
[null,null,null,null,null,null,"3285","喫煙用具製造業（貴金属・宝石製を除く）"]
[null,null,null,null,null,null,"3289","その他の生活雑貨製品製造業"]
[null,null,null,null,null,null,"3291","煙火製造業"]
[null,null,null,null,null,null,"3292","看板・標識機製造業"]
[null,null,null,null,null,null,"3293","パレット製造業"]
[null,null,null,null,null,null,"3294","モデル・模型製造業"]
[null,null,null,null,null,null,"3295","工業用模型製造業"]
[null,null,null,null,null,null,"3296","情報記録物製造業（新聞，書籍等の印刷物を除く）"]
[null,null,null,null,null,null,"3297","眼鏡製造業（枠を含む）"]
[null,null,null,null,null,null,"3299","他に分類されないその他の製造業"]
[null,null,null,null,null,null,"3300","主として管理事務を行う本社等"]
[null,null,null,null,null,null,"3309","その他の管理，補助的経済活動を行う事業所"]
[null,null,null,null,null,null,"3311","発電所"]
[null,null,null,null,null,null,"3312","変電所"]
[null,null,null,null,null,null,"3400","主として管理事務を行う本社等"]
[null,null,null,null,null,null,"3409","その他の管理，補助的経済活動を行う事業所"]
[null,null,null,null,null,null,"3411","ガス製造工場"]
[null,null,null,null,null,null,"3412","ガス供給所"]
[null,null,null,null,null,null,"3500","主として管理事務を行う本社等"]
[null,null,null,null,null,null,"3509","その他の管理，補助的経済活動を行う事業所"]
[null,null,null,null,null,null,"3511","熱供給業"]
[null,null,null,null,null,null,"3600","主として管理事務を行う本社等"]
[null,null,null,null,null,null,"3609","その他の管理，補助的経済活動を行う事業所"]
[null,null,null,null,null,null,"3611","上水道業"]
[null,null,null,null,null,null,"3621","工業用水道業"]
[null,null,null,null,null,null,"3631","下水道処理施設維持管理業"]
[null,null,null,null,null,null,"3632","下水道管路施設維持管理業"]
[null,null,null,null,null,null,"3700","主として管理事務を行う本社等"]
[null,null,null,null,null,null,"3709","その他の管理，補助的経済活動を行う事業所"]
[null,null,null,null,null,null,"3711","地域電気通信業（有線放送電話業を除く）"]
[null,null,null,null,null,null,"3712","長距離電気通信業"]
[null,null,null,null,null,null,"3713","有線放送電話業"]
[null,null,null,null,null,null,"3719","その他の固定電気通信業"]
[null,null,null,null,null,null,"3721","移動電気通信業"]
[null,null,null,null,null,null,"3731","電気通信に附帯するサービス業"]
[null,null,null,null,null,null,"3800","主として管理事務を行う本社等"]
[null,null,null,null,null,null,"3809","その他の管理，補助的経済活動を行う事業所"]
[null,null,null,null,null,null,"3811","公共放送業（有線放送業を除く）"]
[null,null,null,null,null,null,"3821","テレビジョン放送業（衛星放送業を除く）"]
[null,null,null,null,null,null,"3822","ラジオ放送業（衛星放送業を除く）"]
[null,null,null,null,null,null,"3823","衛星放送業"]
[null,null,null,null,null,null,"3829","その他の民間放送業"]
[null,null,null,null,null,null,"3831","有線テレビジョン放送業"]
[null,null,null,null,null,null,"3832","有線ラジオ放送業"]
[null,null,null,null,null,null,"3900","主として管理事務を行う本社等"]
[null,null,null,null,null,null,"3909","その他の管理，補助的経済活動を行う事業所"]
[null,null,null,null,null,null,"3911","受託開発ソフトウェア業"]
[null,null,null,null,null,null,"3912","組込みソフトウェア業"]
[null,null,null,null,null,null,"3913","パッケージソフトウェア業"]
[null,null,null,null,null,null,"3914","ゲームソフトウェア業"]
[null,null,null,null,null,null,"3921","情報処理サービス業"]
[null,null,null,null,null,null,"3922","情報提供サービス業"]
[null,null,null,null,null,null,"3923","市場調査・世論調査・社会調査業"]
[null,null,null,null,null,null,"3929","その他の情報処理・提供サービス業"]
[null,null,null,null,null,null,"4000","主として管理事務を行う本社等"]
[null,null,null,null,null,null,"4009","その他の管理，補助的経済活動を行う事業所"]
[null,null,null,null,null,null,"4011","ポータルサイト・サーバ運営業"]
[null,null,null,null,null,null,"4012","アプリケーション・サービス・コンテンツ・プロバイダ"]
[null,null,null,null,null,null,"4013","インターネット利用サポート業"]
[null,null,null,null,null,null,"4100","主として管理事務を行う本社等"]
[null,null,null,null,null,null,"4109","その他の管理，補助的経済活動を行う事業所"]
[null,null,null,null,null,null,"4111","映画・ビデオ制作業（テレビジョン番組制作業，アニメーション制作業を除く）"]
[null,null,null,null,null,null,"4112","テレビジョン番組制作業（アニメーション制作業を除く）"]
[null,null,null,null,null,null,"4113","アニメーション制作業"]
[null,null,null,null,null,null,"4114","映画・ビデオ・テレビジョン番組配給業"]
[null,null,null,null,null,null,"4121","レコード制作業"]
[null,null,null,null,null,null,"4122","ラジオ番組制作業"]
[null,null,null,null,null,null,"4131","新聞業"]
[null,null,null,null,null,null,"4141","出版業"]
[null,null,null,null,null,null,"4151","広告制作業"]
[null,null,null,null,null,null,"4161","ニュース供給業"]
[null,null,null,null,null,null,"4169","その他の映像・音声・文字情報制作に附帯するサービス業"]
[null,null,null,null,null,null,"4200","主として管理事務を行う本社等"]
[null,null,null,null,null,null,"4209","その他の管理，補助的経済活動を行う事業所"]
[null,null,null,null,null,null,"4211","普通鉄道業"]
[null,null,null,null,null,null,"4212","軌道業"]
[null,null,null,null,null,null,"4213","地下鉄道業"]
[null,null,null,null,null,null,"4214","モノレール鉄道業（地下鉄道業を除く）"]
[null,null,null,null,null,null,"4215","案内軌条式鉄道業（地下鉄道業を除く）"]
[null,null,null,null,null,null,"4216","鋼索鉄道業"]
[null,null,null,null,null,null,"4217","索道業"]
[null,null,null,null,null,null,"4219","その他の鉄道業"]
[null,null,null,null,null,null,"4300","主として管理事務を行う本社等"]
[null,null,null,null,null,null,"4309","その他の管理，補助的経済活動を行う事業所"]
[null,null,null,null,null,null,"4311","一般乗合旅客自動車運送業"]
[null,null,null,null,null,null,"4321","一般乗用旅客自動車運送業"]
[null,null,null,null,null,null,"4331","一般貸切旅客自動車運送業"]
[null,null,null,null,null,null,"4391","特定旅客自動車運送業"]
[null,null,null,null,null,null,"4399","他に分類されない道路旅客運送業"]
[null,null,null,null,null,null,"4400","主として管理事務を行う本社等"]
[null,null,null,null,null,null,"4409","その他の管理，補助的経済活動を行う事業所"]
[null,null,null,null,null,null,"4411","一般貨物自動車運送業（特別積合せ貨物運送業を除く）"]
[null,null,null,null,null,null,"4412","特別積合せ貨物運送業"]
[null,null,null,null,null,null,"4421","特定貨物自動車運送業"]
[null,null,null,null,null,null,"4431","貨物軽自動車運送業"]
[null,null,null,null,null,null,"4441","集配利用運送業"]
[null,null,null,null,null,null,"4499","その他の道路貨物運送業"]
[null,null,null,null,null,null,"4500","主として管理事務を行う本社等"]
[null,null,null,null,null,null,"4509","その他の管理，補助的経済活動を行う事業所"]
[null,null,null,null,null,null,"4511","外航旅客海運業"]
[null,null,null,null,null,null,"4512","外航貨物海運業"]
[null,null,null,null,null,null,"4521","沿海旅客海運業"]
[null,null,null,null,null,null,"4522","沿海貨物海運業"]
[null,null,null,null,null,null,"4531","港湾旅客海運業"]
[null,null,null,null,null,null,"4532","河川水運業"]
[null,null,null,null,null,null,"4533","湖沼水運業"]
[null,null,null,null,null,null,"4541","船舶貸渡業（内航船舶貸渡業を除く）"]
[null,null,null,null,null,null,"4542","内航船舶貸渡業"]
[null,null,null,null,null,null,"4600","主として管理事務を行う本社等"]
[null,null,null,null,null,null,"4609","その他の管理，補助的経済活動を行う事業所"]
[null,null,null,null,null,null,"4611","航空運送業"]
[null,null,null,null,null,null,"4621","航空機使用業（航空運送業を除く）"]
[null,null,null,null,null,null,"4700","主として管理事務を行う本社等"]
[null,null,null,null,null,null,"4709","その他の管理，補助的経済活動を行う事業所"]
[null,null,null,null,null,null,"4711","倉庫業（冷蔵倉庫業を除く）"]
[null,null,null,null,null,null,"4721","冷蔵倉庫業"]
[null,null,null,null,null,null,"4800","主として管理事務を行う本社等"]
[null,null,null,null,null,null,"4809","その他の管理，補助的経済活動を行う事業所"]
[null,null,null,null,null,null,"4811","港湾運送業"]
[null,null,null,null,null,null,"4821","利用運送業（集配利用運送業を除く）"]
[null,null,null,null,null,null,"4822","運送取次業"]
[null,null,null,null,null,null,"4831","運送代理店"]
[null,null,null,null,null,null,"4841","こん包業（組立こん包業を除く）"]
[null,null,null,null,null,null,"4842","組立こん包業"]
[null,null,null,null,null,null,"4851","鉄道施設提供業"]
[null,null,null,null,null,null,"4852","道路運送固定施設業"]
[null,null,null,null,null,null,"4853","自動車ターミナル業"]
[null,null,null,null,null,null,"4854","貨物荷扱固定施設業"]
[null,null,null,null,null,null,"4855","桟橋泊きょ業"]
[null,null,null,null,null,null,"4856","飛行場業"]
[null,null,null,null,null,null,"4891","海運仲立業"]
[null,null,null,null,null,null,"4899","他に分類されない運輸に附帯するサービス業"]
[null,null,null,null,null,null,"4901","管理，補助的経済活動を行う事業所"]
[null,null,null,null,null,null,"4911","郵便業（信書便事業を含む）"]
[null,null,null,null,null,null,"5000","主として管理事務を行う本社等"]
[null,null,null,null,null,null,"5008","自家用倉庫"]
[null,null,null,null,null,null,"5009","その他の管理，補助的経済活動を行う事業所"]
[null,null,null,null,null,null,"5011","各種商品卸売業（従業者が常時100人以上のもの）"]
[null,null,null,null,null,null,"5019","その他の各種商品卸売業"]
[null,null,null,null,null,null,"5100","主として管理事務を行う本社等"]
[null,null,null,null,null,null,"5108","自家用倉庫"]
[null,null,null,null,null,null,"5109","その他の管理，補助的経済活動を行う事業所"]
[null,null,null,null,null,null,"5111","繊維原料卸売業"]
[null,null,null,null,null,null,"5112","糸卸売業"]
[null,null,null,null,null,null,"5113","織物卸売業（室内装飾繊維品を除く）"]
[null,null,null,null,null,null,"5121","男子服卸売業"]
[null,null,null,null,null,null,"5122","婦人・子供服卸売業"]
[null,null,null,null,null,null,"5123","下着類卸売業"]
[null,null,null,null,null,null,"5129","その他の衣服卸売業"]
[null,null,null,null,null,null,"5131","寝具類卸売業"]
[null,null,null,null,null,null,"5132","靴・履物卸売業"]
[null,null,null,null,null,null,"5133","かばん・袋物卸売業"]
[null,null,null,null,null,null,"5139","その他の身の回り品卸売業"]
[null,null,null,null,null,null,"5200","主として管理事務を行う本社等"]
[null,null,null,null,null,null,"5208","自家用倉庫"]
[null,null,null,null,null,null,"5209","その他の管理，補助的経済活動を行う事業所"]
[null,null,null,null,null,null,"5211","米麦卸売業"]
[null,null,null,null,null,null,"5212","雑穀・豆類卸売業"]
[null,null,null,null,null,null,"5213","野菜卸売業"]
[null,null,null,null,null,null,"5214","果実卸売業"]
[null,null,null,null,null,null,"5215","食肉卸売業"]
[null,null,null,null,null,null,"5216","生鮮魚介卸売業"]
[null,null,null,null,null,null,"5219","その他の農畜産物・水産物卸売業"]
[null,null,null,null,null,null,"5221","砂糖・味そ・しょう油卸売業"]
[null,null,null,null,null,null,"5222","酒類卸売業"]
[null,null,null,null,null,null,"5223","乾物卸売業"]
[null,null,null,null,null,null,"5224","菓子・パン類卸売業"]
[null,null,null,null,null,null,"5225","飲料卸売業（別掲を除く）"]
[null,null,null,null,null,null,"5226","茶類卸売業"]
[null,null,null,null,null,null,"5227","牛乳・乳製品卸売業"]
[null,null,null,null,null,null,"5229","その他の食料・飲料卸売業"]
[null,null,null,null,null,null,"5300","主として管理事務を行う本社等"]
[null,null,null,null,null,null,"5308","自家用倉庫"]
[null,null,null,null,null,null,"5309","その他の管理，補助的経済活動を行う事業所"]
[null,null,null,null,null,null,"5311","木材・竹材卸売業"]
[null,null,null,null,null,null,"5312","セメント卸売業"]
[null,null,null,null,null,null,"5313","板ガラス卸売業"]
[null,null,null,null,null,null,"5314","建築用金属製品卸売業（建築用金物を除く）"]
[null,null,null,null,null,null,"5319","その他の建築材料卸売業"]
[null,null,null,null,null,null,"5321","塗料卸売業"]
[null,null,null,null,null,null,"5322","プラスチック卸売業"]
[null,null,null,null,null,null,"5329","その他の化学製品卸売業"]
[null,null,null,null,null,null,"5331","石油卸売業"]
[null,null,null,null,null,null,"5332","鉱物卸売業（石油を除く）"]
[null,null,null,null,null,null,"5341","鉄鋼粗製品卸売業"]
[null,null,null,null,null,null,"5342","鉄鋼一次製品卸売業"]
[null,null,null,null,null,null,"5349","その他の鉄鋼製品卸売業"]
[null,null,null,null,null,null,"5351","非鉄金属地金卸売業"]
[null,null,null,null,null,null,"5352","非鉄金属製品卸売業"]
[null,null,null,null,null,null,"5361","空瓶・空缶等空容器卸売業"]
[null,null,null,null,null,null,"5362","鉄スクラップ卸売業"]
[null,null,null,null,null,null,"5363","非鉄金属スクラップ卸売業"]
[null,null,null,null,null,null,"5364","古紙卸売業"]
[null,null,null,null,null,null,"5369","その他の再生資源卸売業"]
[null,null,null,null,null,null,"5400","主として管理事務を行う本社等"]
[null,null,null,null,null,null,"5408","自家用倉庫"]
[null,null,null,null,null,null,"5409","その他の管理，補助的経済活動を行う事業所"]
[null,null,null,null,null,null,"5411","農業用機械器具卸売業"]
[null,null,null,null,null,null,"5412","建設機械・鉱山機械卸売業"]
[null,null,null,null,null,null,"5413","金属加工機械卸売業"]
[null,null,null,null,null,null,"5414","事務用機械器具卸売業"]
[null,null,null,null,null,null,"5419","その他の産業機械器具卸売業"]
[null,null,null,null,null,null,"5421","自動車卸売業（二輪自動車を含む）"]
[null,null,null,null,null,null,"5422","自動車部分品・附属品卸売業（中古品を除く）"]
[null,null,null,null,null,null,"5423","自動車中古部品卸売業"]
[null,null,null,null,null,null,"5431","家庭用電気機械器具卸売業"]
[null,null,null,null,null,null,"5432","電気機械器具卸売業（家庭用電気機械器具を除く）"]
[null,null,null,null,null,null,"5491","輸送用機械器具卸売業（自動車を除く）"]
[null,null,null,null,null,null,"5492","計量器・理化学機械器具・光学機械器具等卸売業"]
[null,null,null,null,null,null,"5493","医療用機械器具卸売業（歯科用機械器具を含む）"]
[null,null,null,null,null,null,"5500","主として管理事務を行う本社等"]
[null,null,null,null,null,null,"5508","自家用倉庫"]
[null,null,null,null,null,null,"5509","その他の管理，補助的経済活動を行う事業所"]
[null,null,null,null,null,null,"5511","家具・建具卸売業"]
[null,null,null,null,null,null,"5512","荒物卸売業"]
[null,null,null,null,null,null,"5513","畳卸売業"]
[null,null,null,null,null,null,"5514","室内装飾繊維品卸売業"]
[null,null,null,null,null,null,"5515","陶磁器・ガラス器卸売業"]
[null,null,null,null,null,null,"5519","その他のじゅう器卸売業"]
[null,null,null,null,null,null,"5521","医薬品卸売業"]
[null,null,null,null,null,null,"5522","医療用品卸売業"]
[null,null,null,null,null,null,"5523","化粧品卸売業"]
[null,null,null,null,null,null,"5524","合成洗剤卸売業"]
[null,null,null,null,null,null,"5531","紙卸売業"]
[null,null,null,null,null,null,"5532","紙製品卸売業"]
[null,null,null,null,null,null,"5591","金物卸売業"]
[null,null,null,null,null,null,"5592","肥料・飼料卸売業"]
[null,null,null,null,null,null,"5593","スポーツ用品卸売業"]
[null,null,null,null,null,null,"5594","娯楽用品・がん具卸売業"]
[null,null,null,null,null,null,"5595","たばこ卸売業"]
[null,null,null,null,null,null,"5596","ジュエリー製品卸売業"]
[null,null,null,null,null,null,"5597","書籍・雑誌卸売業"]
[null,null,null,null,null,null,"5598","代理商，仲立業"]
[null,null,null,null,null,null,"5599","他に分類されないその他の卸売業"]
[null,null,null,null,null,null,"5600","主として管理事務を行う本社等"]
[null,null,null,null,null,null,"5608","自家用倉庫"]
[null,null,null,null,null,null,"5609","その他の管理，補助的経済活動を行う事業所"]
[null,null,null,null,null,null,"5611","百貨店，総合スーパー"]
[null,null,null,null,null,null,"5699","その他の各種商品小売業（従業者が常時50人未満のもの）"]
[null,null,null,null,null,null,"5700","主として管理事務を行う本社等"]
[null,null,null,null,null,null,"5708","自家用倉庫"]
[null,null,null,null,null,null,"5709","その他の管理，補助的経済活動を行う事業所"]
[null,null,null,null,null,null,"5711","呉服・服地小売業"]
[null,null,null,null,null,null,"5712","寝具小売業"]
[null,null,null,null,null,null,"5721","男子服小売業"]
[null,null,null,null,null,null,"5731","婦人服小売業"]
[null,null,null,null,null,null,"5732","子供服小売業"]
[null,null,null,null,null,null,"5741","靴小売業"]
[null,null,null,null,null,null,"5742","履物小売業（靴を除く）"]
[null,null,null,null,null,null,"5791","かばん・袋物小売業"]
[null,null,null,null,null,null,"5792","下着類小売業"]
[null,null,null,null,null,null,"5793","洋品雑貨・小間物小売業"]
[null,null,null,null,null,null,"5799","他に分類されない織物・衣服・身の回り品小売業"]
[null,null,null,null,null,null,"5800","主として管理事務を行う本社等"]
[null,null,null,null,null,null,"5808","自家用倉庫"]
[null,null,null,null,null,null,"5809","その他の管理，補助的経済活動を行う事業所"]
[null,null,null,null,null,null,"5811","各種食料品小売業"]
[null,null,null,null,null,null,"5821","野菜小売業"]
[null,null,null,null,null,null,"5822","果実小売業"]
[null,null,null,null,null,null,"5831","食肉小売業（卵，鳥肉を除く）"]
[null,null,null,null,null,null,"5832","卵・鳥肉小売業"]
[null,null,null,null,null,null,"5841","鮮魚小売業"]
[null,null,null,null,null,null,"5851","酒小売業"]
[null,null,null,null,null,null,"5861","菓子小売業（製造小売）"]
[null,null,null,null,null,null,"5862","菓子小売業（製造小売でないもの）"]
[null,null,null,null,null,null,"5863","パン小売業（製造小売）"]
[null,null,null,null,null,null,"5864","パン小売業（製造小売でないもの）"]
[null,null,null,null,null,null,"5891","コンビニエンスストア（飲食料品を中心とするものに限る）"]
[null,null,null,null,null,null,"5892","牛乳小売業"]
[null,null,null,null,null,null,"5893","飲料小売業（別掲を除く）"]
[null,null,null,null,null,null,"5894","茶類小売業"]
[null,null,null,null,null,null,"5895","料理品小売業"]
[null,null,null,null,null,null,"5896","米穀類小売業"]
[null,null,null,null,null,null,"5897","豆腐・かまぼこ等加工食品小売業"]
[null,null,null,null,null,null,"5898","乾物小売業"]
[null,null,null,null,null,null,"5899","他に分類されない飲食料品小売業"]
[null,null,null,null,null,null,"5900","主として管理事務を行う本社等"]
[null,null,null,null,null,null,"5908","自家用倉庫"]
[null,null,null,null,null,null,"5909","その他の管理，補助的経済活動を行う事業所"]
[null,null,null,null,null,null,"5911","自動車（新車）小売業"]
[null,null,null,null,null,null,"5912","中古自動車小売業"]
[null,null,null,null,null,null,"5913","自動車部分品・附属品小売業"]
[null,null,null,null,null,null,"5914","二輪自動車小売業（原動機付自転車を含む）"]
[null,null,null,null,null,null,"5921","自転車小売業"]
[null,null,null,null,null,null,"5931","電気機械器具小売業（中古品を除く）"]
[null,null,null,null,null,null,"5932","電気事務機械器具小売業（中古品を除く）"]
[null,null,null,null,null,null,"5933","中古電気製品小売業"]
[null,null,null,null,null,null,"5939","その他の機械器具小売業"]
[null,null,null,null,null,null,"6000","主として管理事務を行う本社等"]
[null,null,null,null,null,null,"6008","自家用倉庫"]
[null,null,null,null,null,null,"6009","その他の管理，補助的経済活動を行う事業所"]
[null,null,null,null,null,null,"6011","家具小売業"]
[null,null,null,null,null,null,"6012","建具小売業"]
[null,null,null,null,null,null,"6013","畳小売業"]
[null,null,null,null,null,null,"6014","宗教用具小売業"]
[null,null,null,null,null,null,"6021","金物小売業"]
[null,null,null,null,null,null,"6022","荒物小売業"]
[null,null,null,null,null,null,"6023","陶磁器・ガラス器小売業"]
[null,null,null,null,null,null,"6029","他に分類されないじゅう器小売業"]
[null,null,null,null,null,null,"6031","ドラッグストア"]
[null,null,null,null,null,null,"6032","医薬品小売業（調剤薬局を除く）"]
[null,null,null,null,null,null,"6033","調剤薬局"]
[null,null,null,null,null,null,"6034","化粧品小売業"]
[null,null,null,null,null,null,"6041","農業用機械器具小売業"]
[null,null,null,null,null,null,"6042","苗・種子小売業"]
[null,null,null,null,null,null,"6043","肥料・飼料小売業"]
[null,null,null,null,null,null,"6051","ガソリンスタンド"]
[null,null,null,null,null,null,"6052","燃料小売業（ガソリンスタンドを除く）"]
[null,null,null,null,null,null,"6061","書籍・雑誌小売業（古本を除く）"]
[null,null,null,null,null,null,"6062","古本小売業"]
[null,null,null,null,null,null,"6063","新聞小売業"]
[null,null,null,null,null,null,"6064","紙・文房具小売業"]
[null,null,null,null,null,null,"6071","スポーツ用品小売業"]
[null,null,null,null,null,null,"6072","がん具・娯楽用品小売業"]
[null,null,null,null,null,null,"6073","楽器小売業"]
[null,null,null,null,null,null,"6081","写真機・写真材料小売業"]
[null,null,null,null,null,null,"6082","時計・眼鏡・光学機械小売業"]
[null,null,null,null,null,null,"6091","ホームセンター"]
[null,null,null,null,null,null,"6092","たばこ・喫煙具専門小売業"]
[null,null,null,null,null,null,"6093","花・植木小売業"]
[null,null,null,null,null,null,"6094","建築材料小売業"]
[null,null,null,null,null,null,"6095","ジュエリー製品小売業"]
[null,null,null,null,null,null,"6096","ペット・ペット用品小売業"]
[null,null,null,null,null,null,"6097","骨とう品小売業"]
[null,null,null,null,null,null,"6098","中古品小売業（骨とう品を除く）"]
[null,null,null,null,null,null,"6099","他に分類されないその他の小売業"]
[null,null,null,null,null,null,"6100","主として管理事務を行う本社等"]
[null,null,null,null,null,null,"6108","自家用倉庫"]
[null,null,null,null,null,null,"6109","その他の管理，補助的経済活動を行う事業所"]
[null,null,null,null,null,null,"6111","無店舗小売業（各種商品小売）"]
[null,null,null,null,null,null,"6112","無店舗小売業（織物・衣服・身の回り品小売）"]
[null,null,null,null,null,null,"6113","無店舗小売業（飲食料品小売）"]
[null,null,null,null,null,null,"6114","無店舗小売業（機械器具小売）"]
[null,null,null,null,null,null,"6119","無店舗小売業（その他の小売）"]
[null,null,null,null,null,null,"6121","自動販売機による小売業"]
[null,null,null,null,null,null,"6199","その他の無店舗小売業"]
[null,null,null,null,null,null,"6200","主として管理事務を行う本社等"]
[null,null,null,null,null,null,"6209","その他の管理，補助的経済活動を行う事業所"]
[null,null,null,null,null,null,"6211","中央銀行"]
[null,null,null,null,null,null,"6221","普通銀行"]
[null,null,null,null,null,null,"6222","郵便貯金銀行"]
[null,null,null,null,null,null,"6223","信託銀行"]
[null,null,null,null,null,null,"6229","その他の銀行"]
[null,null,null,null,null,null,"6300","主として管理事務を行う本社等"]
[null,null,null,null,null,null,"6309","その他の管理，補助的経済活動を行う事業所"]
[null,null,null,null,null,null,"6311","信用金庫・同連合会"]
[null,null,null,null,null,null,"6312","信用協同組合・同連合会"]
[null,null,null,null,null,null,"6313","商工組合中央金庫"]
[null,null,null,null,null,null,"6314","労働金庫・同連合会"]
[null,null,null,null,null,null,"6321","農林中央金庫"]
[null,null,null,null,null,null,"6322","信用農業協同組合連合会"]
[null,null,null,null,null,null,"6323","信用漁業協同組合連合会，信用水産加工業協同組合連合会"]
[null,null,null,null,null,null,"6324","農業協同組合"]
[null,null,null,null,null,null,"6325","漁業協同組合，水産加工業協同組合"]
[null,null,null,null,null,null,"6400","主として管理事務を行う本社等"]
[null,null,null,null,null,null,"6409","その他の管理，補助的経済活動を行う事業所"]
[null,null,null,null,null,null,"6411","消費者向け貸金業"]
[null,null,null,null,null,null,"6412","事業者向け貸金業"]
[null,null,null,null,null,null,"6421","質屋"]
[null,null,null,null,null,null,"6431","クレジットカード業"]
[null,null,null,null,null,null,"6432","割賦金融業"]
[null,null,null,null,null,null,"6491","政府関係金融機関"]
[null,null,null,null,null,null,"6492","住宅専門金融業"]
[null,null,null,null,null,null,"6493","証券金融業"]
[null,null,null,null,null,null,"6499","他に分類されない非預金信用機関"]
[null,null,null,null,null,null,"6500","主として管理事務を行う本社等"]
[null,null,null,null,null,null,"6509","その他の管理，補助的経済活動を行う事業所"]
[null,null,null,null,null,null,"6511","金融商品取引業（投資助言・代理・運用業，補助的金融商品取引業を除く）"]
[null,null,null,null,null,null,"6512","投資助言・代理業"]
[null,null,null,null,null,null,"6513","投資運用業"]
[null,null,null,null,null,null,"6514","補助的金融商品取引業"]
[null,null,null,null,null,null,"6521","商品先物取引業"]
[null,null,null,null,null,null,"6522","商品投資顧問業"]
[null,null,null,null,null,null,"6529","その他の商品先物取引業，商品投資顧問業"]
[null,null,null,null,null,null,"6600","主として管理事務を行う本社等"]
[null,null,null,null,null,null,"6609","その他の管理，補助的経済活動を行う事業所"]
[null,null,null,null,null,null,"6611","短資業"]
[null,null,null,null,null,null,"6612","手形交換所"]
[null,null,null,null,null,null,"6613","両替業"]
[null,null,null,null,null,null,"6614","信用保証機関"]
[null,null,null,null,null,null,"6615","信用保証再保険機関"]
[null,null,null,null,null,null,"6616","預・貯金等保険機関"]
[null,null,null,null,null,null,"6617","金融商品取引所"]
[null,null,null,null,null,null,"6618","商品取引所"]
[null,null,null,null,null,null,"6619","その他の補助的金融業，金融附帯業"]
[null,null,null,null,null,null,"6621","運用型信託業"]
[null,null,null,null,null,null,"6622","管理型信託業"]
[null,null,null,null,null,null,"6631","金融商品仲介業"]
[null,null,null,null,null,null,"6632","信託契約代理業"]
[null,null,null,null,null,null,"6639","その他の金融代理業"]
[null,null,null,null,null,null,"6700","主として管理事務を行う本社等"]
[null,null,null,null,null,null,"6709","その他の管理，補助的経済活動を行う事業所"]
[null,null,null,null,null,null,"6711","生命保険業（郵便保険業，生命保険再保険業を除く）"]
[null,null,null,null,null,null,"6712","郵便保険業"]
[null,null,null,null,null,null,"6713","生命保険再保険業"]
[null,null,null,null,null,null,"6719","その他の生命保険業"]
[null,null,null,null,null,null,"6721","損害保険業（損害保険再保険業を除く）"]
[null,null,null,null,null,null,"6722","損害保険再保険業"]
[null,null,null,null,null,null,"6729","その他の損害保険業"]
[null,null,null,null,null,null,"6731","共済事業（各種災害補償法によるもの）"]
[null,null,null,null,null,null,"6732","共済事業（各種協同組合法等によるもの）"]
[null,null,null,null,null,null,"6733","少額短期保険業"]
[null,null,null,null,null,null,"6741","生命保険媒介業"]
[null,null,null,null,null,null,"6742","損害保険代理業"]
[null,null,null,null,null,null,"6743","共済事業媒介代理業・少額短期保険代理業"]
[null,null,null,null,null,null,"6751","保険料率算出団体"]
[null,null,null,null,null,null,"6752","損害査定業"]
[null,null,null,null,null,null,"6759","その他の保険サービス業"]
[null,null,null,null,null,null,"6800","主として管理事務を行う本社等"]
[null,null,null,null,null,null,"6809","その他の管理，補助的経済活動を行う事業所"]
[null,null,null,null,null,null,"6811","建物売買業"]
[null,null,null,null,null,null,"6812","土地売買業"]
[null,null,null,null,null,null,"6821","不動産代理業・仲介業"]
[null,null,null,null,null,null,"6900","主として管理事務を行う本社等"]
[null,null,null,null,null,null,"6909","その他の管理，補助的経済活動を行う事業所"]
[null,null,null,null,null,null,"6911","貸事務所業"]
[null,null,null,null,null,null,"6912","土地賃貸業"]
[null,null,null,null,null,null,"6919","その他の不動産賃貸業"]
[null,null,null,null,null,null,"6921","貸家業"]
[null,null,null,null,null,null,"6922","貸間業"]
[null,null,null,null,null,null,"6931","駐車場業"]
[null,null,null,null,null,null,"6941","不動産管理業"]
[null,null,null,null,null,null,"7000","主として管理事務を行う本社等"]
[null,null,null,null,null,null,"7009","その他の管理，補助的経済活動を行う事業所"]
[null,null,null,null,null,null,"7011","総合リース業"]
[null,null,null,null,null,null,"7019","その他の各種物品賃貸業"]
[null,null,null,null,null,null,"7021","産業用機械器具賃貸業（建設機械器具を除く）"]
[null,null,null,null,null,null,"7022","建設機械器具賃貸業"]
[null,null,null,null,null,null,"7031","事務用機械器具賃貸業（電子計算機を除く）"]
[null,null,null,null,null,null,"7032","電子計算機・同関連機器賃貸業"]
[null,null,null,null,null,null,"7041","自動車賃貸業"]
[null,null,null,null,null,null,"7051","スポーツ・娯楽用品賃貸業"]
[null,null,null,null,null,null,"7091","映画・演劇用品賃貸業"]
[null,null,null,null,null,null,"7092","音楽・映像記録物賃貸業（別掲を除く）"]
[null,null,null,null,null,null,"7093","貸衣しょう業（別掲を除く）"]
[null,null,null,null,null,null,"7099","他に分類されない物品賃貸業"]
[null,null,null,null,null,null,"7101","管理，補助的経済活動を行う事業所"]
[null,null,null,null,null,null,"7111","理学研究所"]
[null,null,null,null,null,null,"7112","工学研究所"]
[null,null,null,null,null,null,"7113","農学研究所"]
[null,null,null,null,null,null,"7114","医学・薬学研究所"]
[null,null,null,null,null,null,"7121","人文・社会科学研究所"]
[null,null,null,null,null,null,"7201","管理，補助的経済活動を行う事業所"]
[null,null,null,null,null,null,"7211","法律事務所"]
[null,null,null,null,null,null,"7212","特許事務所"]
[null,null,null,null,null,null,"7221","公証人役場，司法書士事務所"]
[null,null,null,null,null,null,"7222","土地家屋調査士事務所"]
[null,null,null,null,null,null,"7231","行政書士事務所"]
[null,null,null,null,null,null,"7241","公認会計士事務所"]
[null,null,null,null,null,null,"7242","税理士事務所"]
[null,null,null,null,null,null,"7251","社会保険労務士事務所"]
[null,null,null,null,null,null,"7261","デザイン業"]
[null,null,null,null,null,null,"7271","著述家業"]
[null,null,null,null,null,null,"7272","芸術家業"]
[null,null,null,null,null,null,"7281","経営コンサルタント業"]
[null,null,null,null,null,null,"7282","純粋持株会社"]
[null,null,null,null,null,null,"7291","興信所"]
[null,null,null,null,null,null,"7292","翻訳業（著述家業を除く）"]
[null,null,null,null,null,null,"7293","通訳業，通訳案内業"]
[null,null,null,null,null,null,"7294","不動産鑑定業"]
[null,null,null,null,null,null,"7299","他に分類されない専門サービス業"]
[null,null,null,null,null,null,"7300","主として管理事務を行う本社等"]
[null,null,null,null,null,null,"7309","その他の管理，補助的経済活動を行う事業所"]
[null,null,null,null,null,null,"7311","広告業"]
[null,null,null,null,null,null,"7401","管理，補助的経済活動を行う事業所"]
[null,null,null,null,null,null,"7411","獣医業"]
[null,null,null,null,null,null,"7421","建築設計業"]
[null,null,null,null,null,null,"7422","測量業"]
[null,null,null,null,null,null,"7429","その他の土木建築サービス業"]
[null,null,null,null,null,null,"7431","機械設計業"]
[null,null,null,null,null,null,"7441","商品検査業"]
[null,null,null,null,null,null,"7442","非破壊検査業"]
[null,null,null,null,null,null,"7451","一般計量証明業"]
[null,null,null,null,null,null,"7452","環境計量証明業"]
[null,null,null,null,null,null,"7459","その他の計量証明業"]
[null,null,null,null,null,null,"7461","写真業（商業写真業を除く）"]
[null,null,null,null,null,null,"7462","商業写真業"]
[null,null,null,null,null,null,"7499","その他の技術サービス業"]
[null,null,null,null,null,null,"7500","主として管理事務を行う本社等"]
[null,null,null,null,null,null,"7509","その他の管理，補助的経済活動を行う事業所"]
[null,null,null,null,null,null,"7511","旅館，ホテル"]
[null,null,null,null,null,null,"7521","簡易宿所"]
[null,null,null,null,null,null,"7531","下宿業"]
[null,null,null,null,null,null,"7591","会社・団体の宿泊所"]
[null,null,null,null,null,null,"7592","リゾートクラブ"]
[null,null,null,null,null,null,"7599","他に分類されない宿泊業"]
[null,null,null,null,null,null,"7600","主として管理事務を行う本社等"]
[null,null,null,null,null,null,"7609","その他の管理，補助的経済活動を行う事業所"]
[null,null,null,null,null,null,"7611","食堂，レストラン（専門料理店を除く）"]
[null,null,null,null,null,null,"7621","日本料理店"]
[null,null,null,null,null,null,"7622","料亭"]
[null,null,null,null,null,null,"7623","中華料理店"]
[null,null,null,null,null,null,"7624","ラーメン店"]
[null,null,null,null,null,null,"7625","焼肉店"]
[null,null,null,null,null,null,"7629","その他の専門料理店"]
[null,null,null,null,null,null,"7631","そば・うどん店"]
[null,null,null,null,null,null,"7641","すし店"]
[null,null,null,null,null,null,"7651","酒場，ビヤホール"]
[null,null,null,null,null,null,"7661","バー，キャバレー，ナイトクラブ"]
[null,null,null,null,null,null,"7671","喫茶店"]
[null,null,null,null,null,null,"7691","ハンバーガー店"]
[null,null,null,null,null,null,"7692","お好み焼き・焼きそば・たこ焼店"]
[null,null,null,null,null,null,"7699","他に分類されない飲食店"]
[null,null,null,null,null,null,"7700","主として管理事務を行う本社等"]
[null,null,null,null,null,null,"7709","その他の管理，補助的経済活動を行う事業所"]
[null,null,null,null,null,null,"7711","持ち帰り飲食サービス業"]
[null,null,null,null,null,null,"7721","配達飲食サービス業"]
[null,null,null,null,null,null,"7800","主として管理事務を行う本社等"]
[null,null,null,null,null,null,"7809","その他の管理，補助的経済活動を行う事業所"]
[null,null,null,null,null,null,"7811","普通洗濯業"]
[null,null,null,null,null,null,"7812","洗濯物取次業"]
[null,null,null,null,null,null,"7813","リネンサプライ業"]
[null,null,null,null,null,null,"7821","理容業"]
[null,null,null,null,null,null,"7831","美容業"]
[null,null,null,null,null,null,"7841","一般公衆浴場業"]
[null,null,null,null,null,null,"7851","その他の公衆浴場業"]
[null,null,null,null,null,null,"7891","洗張・染物業"]
[null,null,null,null,null,null,"7892","エステティック業"]
[null,null,null,null,null,null,"7893","リラクゼーション業（手技を用いるもの）"]
[null,null,null,null,null,null,"7894","ネイルサービス業"]
[null,null,null,null,null,null,"7899","他に分類されない洗濯・理容・美容・浴場業"]
[null,null,null,null,null,null,"7900","主として管理事務を行う本社等"]
[null,null,null,null,null,null,"7909","その他の管理，補助的経済活動を行う事業所"]
[null,null,null,null,null,null,"7911","旅行業(旅行業者代理業を除く)"]
[null,null,null,null,null,null,"7912","旅行業者代理業"]
[null,null,null,null,null,null,"7921","家事サービス業（住込みのもの）"]
[null,null,null,null,null,null,"7922","家事サービス業（住込みでないもの）"]
[null,null,null,null,null,null,"7931","衣服裁縫修理業"]
[null,null,null,null,null,null,"7941","物品預り業"]
[null,null,null,null,null,null,"7951","火葬業"]
[null,null,null,null,null,null,"7952","墓地管理業"]
[null,null,null,null,null,null,"7961","葬儀業"]
[null,null,null,null,null,null,"7962","結婚式場業"]
[null,null,null,null,null,null,"7963","冠婚葬祭互助会"]
[null,null,null,null,null,null,"7991","食品賃加工業"]
[null,null,null,null,null,null,"7992","結婚相談業，結婚式場紹介業"]
[null,null,null,null,null,null,"7993","写真プリント,現像・焼付業"]
[null,null,null,null,null,null,"7999","他に分類されないその他の生活関連サービス業"]
[null,null,null,null,null,null,"8000","主として管理事務を行う本社等"]
[null,null,null,null,null,null,"8009","その他の管理，補助的経済活動を行う事業所"]
[null,null,null,null,null,null,"8011","映画館"]
[null,null,null,null,null,null,"8021","劇場"]
[null,null,null,null,null,null,"8022","興行場"]
[null,null,null,null,null,null,"8023","劇団"]
[null,null,null,null,null,null,"8024","楽団，舞踏団"]
[null,null,null,null,null,null,"8025","演芸・スポーツ等興行団"]
[null,null,null,null,null,null,"8031","競輪場"]
[null,null,null,null,null,null,"8032","競馬場"]
[null,null,null,null,null,null,"8033","自動車・モータボートの競走場"]
[null,null,null,null,null,null,"8034","競輪競技団"]
[null,null,null,null,null,null,"8035","競馬競技団"]
[null,null,null,null,null,null,"8036","自動車・モータボートの競技団"]
[null,null,null,null,null,null,"8041","スポーツ施設提供業（別掲を除く）"]
[null,null,null,null,null,null,"8042","体育館"]
[null,null,null,null,null,null,"8043","ゴルフ場"]
[null,null,null,null,null,null,"8044","ゴルフ練習場"]
[null,null,null,null,null,null,"8045","ボウリング場"]
[null,null,null,null,null,null,"8046","テニス場"]
[null,null,null,null,null,null,"8047","バッティング・テニス練習場"]
[null,null,null,null,null,null,"8048","フィットネスクラブ"]
[null,null,null,null,null,null,"8051","公園"]
[null,null,null,null,null,null,"8052","遊園地（テーマパークを除く）"]
[null,null,null,null,null,null,"8053","テーマパーク"]
[null,null,null,null,null,null,"8061","ビリヤード場"]
[null,null,null,null,null,null,"8062","囲碁・将棋所"]
[null,null,null,null,null,null,"8063","マージャンクラブ"]
[null,null,null,null,null,null,"8064","パチンコホール"]
[null,null,null,null,null,null,"8065","ゲームセンター"]
[null,null,null,null,null,null,"8069","その他の遊戯場"]
[null,null,null,null,null,null,"8091","ダンスホール"]
[null,null,null,null,null,null,"8092","マリーナ業"]
[null,null,null,null,null,null,"8093","遊漁船業"]
[null,null,null,null,null,null,"8094","芸ぎ業"]
[null,null,null,null,null,null,"8095","カラオケボックス業"]
[null,null,null,null,null,null,"8096","娯楽に附帯するサービス業"]
[null,null,null,null,null,null,"8099","他に分類されない娯楽業"]
[null,null,null,null,null,null,"8101","管理，補助的経済活動を行う事業所"]
[null,null,null,null,null,null,"8111","幼稚園"]
[null,null,null,null,null,null,"8121","小学校"]
[null,null,null,null,null,null,"8131","中学校"]
[null,null,null,null,null,null,"8141","高等学校"]
[null,null,null,null,null,null,"8142","中等教育学校"]
[null,null,null,null,null,null,"8151","特別支援学校"]
[null,null,null,null,null,null,"8161","大学"]
[null,null,null,null,null,null,"8162","短期大学"]
[null,null,null,null,null,null,"8163","高等専門学校"]
[null,null,null,null,null,null,"8171","専修学校"]
[null,null,null,null,null,null,"8172","各種学校"]
[null,null,null,null,null,null,"8181","学校教育支援機関"]
[null,null,null,null,null,null,"8191","幼保連携型認定こども園"]
[null,null,null,null,null,null,"8200","主として管理事務を行う本社等"]
[null,null,null,null,null,null,"8209","その他の管理，補助的経済活動を行う事業所"]
[null,null,null,null,null,null,"8211","公民館"]
[null,null,null,null,null,null,"8212","図書館"]
[null,null,null,null,null,null,"8213","博物館，美術館"]
[null,null,null,null,null,null,"8214","動物園，植物園，水族館"]
[null,null,null,null,null,null,"8215","青少年教育施設"]
[null,null,null,null,null,null,"8216","社会通信教育"]
[null,null,null,null,null,null,"8219","その他の社会教育"]
[null,null,null,null,null,null,"8221","職員教育施設・支援業"]
[null,null,null,null,null,null,"8222","職業訓練施設"]
[null,null,null,null,null,null,"8229","その他の職業・教育支援施設"]
[null,null,null,null,null,null,"8231","学習塾"]
[null,null,null,null,null,null,"8241","音楽教授業"]
[null,null,null,null,null,null,"8242","書道教授業"]
[null,null,null,null,null,null,"8243","生花・茶道教授業"]
[null,null,null,null,null,null,"8244","そろばん教授業"]
[null,null,null,null,null,null,"8245","外国語会話教授業"]
[null,null,null,null,null,null,"8246","スポーツ・健康教授業"]
[null,null,null,null,null,null,"8249","その他の教養・技能教授業"]
[null,null,null,null,null,null,"8299","他に分類されない教育，学習支援業"]
[null,null,null,null,null,null,"8300","主として管理事務を行う本社等"]
[null,null,null,null,null,null,"8309","その他の管理，補助的経済活動を行う事業所"]
[null,null,null,null,null,null,"8311","一般病院"]
[null,null,null,null,null,null,"8312","精神科病院"]
[null,null,null,null,null,null,"8321","有床診療所"]
[null,null,null,null,null,null,"8322","無床診療所"]
[null,null,null,null,null,null,"8331","歯科診療所"]
[null,null,null,null,null,null,"8341","助産所"]
[null,null,null,null,null,null,"8342","看護業"]
[null,null,null,null,null,null,"8351","あん摩マッサージ指圧師・はり師・きゅう師・柔道整復師の施術所"]
[null,null,null,null,null,null,"8359","その他の療術業"]
[null,null,null,null,null,null,"8361","歯科技工所"]
[null,null,null,null,null,null,"8369","その他の医療に附帯するサービス業"]
[null,null,null,null,null,null,"8400","主として管理事務を行う本社等"]
[null,null,null,null,null,null,"8409","その他の管理，補助的経済活動を行う事業所"]
[null,null,null,null,null,null,"8411","保健所"]
[null,null,null,null,null,null,"8421","結核健康相談施設"]
[null,null,null,null,null,null,"8422","精神保健相談施設"]
[null,null,null,null,null,null,"8423","母子健康相談施設"]
[null,null,null,null,null,null,"8429","その他の健康相談施設"]
[null,null,null,null,null,null,"8491","検疫所（動物検疫所，植物防疫所を除く）"]
[null,null,null,null,null,null,"8492","検査業"]
[null,null,null,null,null,null,"8493","消毒業"]
[null,null,null,null,null,null,"8499","他に分類されない保健衛生"]
[null,null,null,null,null,null,"8500","主として管理事務を行う本社等"]
[null,null,null,null,null,null,"8509","その他の管理，補助的経済活動を行う事業所"]
[null,null,null,null,null,null,"8511","社会保険事業団体"]
[null,null,null,null,null,null,"8521","福祉事務所"]
[null,null,null,null,null,null,"8531","保育所"]
[null,null,null,null,null,null,"8539","その他の児童福祉事業"]
[null,null,null,null,null,null,"8541","特別養護老人ホーム"]
[null,null,null,null,null,null,"8542","介護老人保健施設"]
[null,null,null,null,null,null,"8543","通所・短期入所介護事業"]
[null,null,null,null,null,null,"8544","訪問介護事業"]
[null,null,null,null,null,null,"8545","認知症老人グループホーム"]
[null,null,null,null,null,null,"8546","有料老人ホーム"]
[null,null,null,null,null,null,"8549","その他の老人福祉・介護事業"]
[null,null,null,null,null,null,"8551","居住支援事業"]
[null,null,null,null,null,null,"8559","その他の障害者福祉事業"]
[null,null,null,null,null,null,"8591","更生保護事業"]
[null,null,null,null,null,null,"8599","他に分類されない社会保険・社会福祉・介護事業"]
[null,null,null,null,null,null,"8601","管理，補助的経済活動を行う事業所"]
[null,null,null,null,null,null,"8611","郵便局"]
[null,null,null,null,null,null,"8621","簡易郵便局"]
[null,null,null,null,null,null,"8629","その他の郵便局受託業"]
[null,null,null,null,null,null,"8701","管理，補助的経済活動を行う事業所"]
[null,null,null,null,null,null,"8711","農業協同組合（他に分類されないもの）"]
[null,null,null,null,null,null,"8712","漁業協同組合（他に分類されないもの）"]
[null,null,null,null,null,null,"8713","水産加工業協同組合（他に分類されないもの）"]
[null,null,null,null,null,null,"8714","森林組合（他に分類されないもの）"]
[null,null,null,null,null,null,"8721","事業協同組合（他に分類されないもの）"]
[null,null,null,null,null,null,"8800","主として管理事務を行う本社等"]
[null,null,null,null,null,null,"8809","その他の管理，補助的経済活動を行う事業所"]
[null,null,null,null,null,null,"8811","し尿収集運搬業"]
[null,null,null,null,null,null,"8812","し尿処分業"]
[null,null,null,null,null,null,"8813","浄化槽清掃業"]
[null,null,null,null,null,null,"8814","浄化槽保守点検業"]
[null,null,null,null,null,null,"8815","ごみ収集運搬業"]
[null,null,null,null,null,null,"8816","ごみ処分業"]
[null,null,null,null,null,null,"8817","清掃事務所"]
[null,null,null,null,null,null,"8821","産業廃棄物収集運搬業"]
[null,null,null,null,null,null,"8822","産業廃棄物処分業"]
[null,null,null,null,null,null,"8823","特別管理産業廃棄物収集運搬業"]
[null,null,null,null,null,null,"8824","特別管理産業廃棄物処分業"]
[null,null,null,null,null,null,"8891","死亡獣畜取扱業"]
[null,null,null,null,null,null,"8899","他に分類されない廃棄物処理業"]
[null,null,null,null,null,null,"8901","管理，補助的経済活動を行う事業所"]
[null,null,null,null,null,null,"8911","自動車一般整備業"]
[null,null,null,null,null,null,"8919","その他の自動車整備業"]
[null,null,null,null,null,null,"9000","主として管理事務を行う本社等"]
[null,null,null,null,null,null,"9009","その他の管理，補助的経済活動を行う事業所"]
[null,null,null,null,null,null,"9011","一般機械修理業（建設・鉱山機械を除く）"]
[null,null,null,null,null,null,"9012","建設・鉱山機械整備業"]
[null,null,null,null,null,null,"9021","電気機械器具修理業"]
[null,null,null,null,null,null,"9031","表具業"]
[null,null,null,null,null,null,"9091","家具修理業"]
[null,null,null,null,null,null,"9092","時計修理業"]
[null,null,null,null,null,null,"9093","履物修理業"]
[null,null,null,null,null,null,"9094","かじ業"]
[null,null,null,null,null,null,"9099","他に分類されない修理業"]
[null,null,null,null,null,null,"9100","主として管理事務を行う本社等"]
[null,null,null,null,null,null,"9109","その他の管理，補助的経済活動を行う事業所"]
[null,null,null,null,null,null,"9111","職業紹介業"]
[null,null,null,null,null,null,"9121","労働者派遣業"]
[null,null,null,null,null,null,"9200","主として管理事務を行う本社等"]
[null,null,null,null,null,null,"9209","その他の管理，補助的経済活動を行う事業所"]
[null,null,null,null,null,null,"9211","速記・ワープロ入力業"]
[null,null,null,null,null,null,"9212","複写業"]
[null,null,null,null,null,null,"9221","ビルメンテナンス業"]
[null,null,null,null,null,null,"9229","その他の建物サービス業"]
[null,null,null,null,null,null,"9231","警備業"]
[null,null,null,null,null,null,"9291","ディスプレイ業"]
[null,null,null,null,null,null,"9292","産業用設備洗浄業"]
[null,null,null,null,null,null,"9293","看板書き業"]
[null,null,null,null,null,null,"9294","コールセンター業"]
[null,null,null,null,null,null,"9299","他に分類されないその他の事業サービス業"]
[null,null,null,null,null,null,"9311","実業団体"]
[null,null,null,null,null,null,"9312","同業団体"]
[null,null,null,null,null,null,"9321","労働団体"]
[null,null,null,null,null,null,"9331","学術団体"]
[null,null,null,null,null,null,"9332","文化団体"]
[null,null,null,null,null,null,"9341","政治団体"]
[null,null,null,null,null,null,"9399","他に分類されない非営利的団体"]
[null,null,null,null,null,null,"9411","神社，神道教会"]
[null,null,null,null,null,null,"9412","教派事務所"]
[null,null,null,null,null,null,"9421","寺院，仏教教会"]
[null,null,null,null,null,null,"9422","宗派事務所"]
[null,null,null,null,null,null,"9431","キリスト教教会，修道院"]
[null,null,null,null,null,null,"9432","教団事務所"]
[null,null,null,null,null,null,"9491","その他の宗教の教会"]
[null,null,null,null,null,null,"9499","その他の宗教の教団事務所"]
[null,null,null,null,null,null,"9501","管理，補助的経済活動を行う事業所"]
[null,null,null,null,null,null,"9511","集会場"]
[null,null,null,null,null,null,"9521","と畜場"]
[null,null,null,null,null,null,"9599","他に分類されないサービス業"]
[null,null,null,null,null,null,"9611","外国公館"]
[null,null,null,null,null,null,"9699","その他の外国公務"]
[null,null,null,null,null,null,"9711","立法機関"]
[null,null,null,null,null,null,"9721","司法機関"]
[null,null,null,null,null,null,"9731","行政機関"]
[null,null,null,null,null,null,"9811","都道府県機関"]
[null,null,null,null,null,null,"9821","市町村機関"]

{"sheet":"対策リスト","index":22,"n_rows":81,"n_cols":82,"rows_kept":81,"cut":false,"hidden":true,"merged":[]}
[null,null,null,null,null,null,null,null,null,null,null,null,null,null,null,null,null,null,null,null,null,null,null,null,null,null,"全選択項目",null,null,null,null,null,null,null,null,null,null,null,"選択対策","対策内容",null,"リスト候補",null,null,null,"第3年度選択項目","第2年度選択項目","第1年度選択項目",null,null,null,null,"全その他項目",null,null,null,null,null,null,null,null,null,null,null,"その他対策",null,null,"リスト候補",null,null,null,"第3年度その他項目","第2年度その他項目","第1年度その他項目","第3年度その他取組内容","第2年度その他取組内容","第1年度その他取組内容",null,"実施状況第3年度","実施状況第2年度","実施状況第1年度","実施状況第基準年度"]
["基本対策",null,null,"選択対策",null,null,"その他対策",null,null,null,null,null,null,null,null,null,null,null,null,null,null,null,null,null,null,1,{"$f":"'計画書② (取組）'!C21","v":0},{"$f":"IF(AA2<>0,ROW()-1,\"\")","v":""},{"$f":"RANK(AB2,$AB$2:$AB$81,1)","v":{"$error":"#VALUE!"}},null,null,null,null,null,null,null,null,1,"情報共有体制の整備","エネルギー使用量や温室効果ガス排出量の把握・分析結果等を適切に社内（市内事業所間）で共有している。",{"$f":"IF(ISERROR(MATCH(AM2,$AA$2:$AA$81,0)),ROW(),\"\")","v":2},{"$f":"IFERROR(INDIRECT(\"AM\"&SMALL($AO$2:$AO$26,ROW()-1)),\"\")","v":"情報共有体制の整備"},null,null,1,{"$f":"IFERROR(INDEX($AA$2:$AA$81,MATCH(AS2,$AC$2:$AC$81,0)),\"\")","v":""},{"$f":"IFERROR(INDEX($AA$2:$AA$61,MATCH(AS2,$AC$2:$AC$61,0)),\"\")","v":""},{"$f":"IFERROR(INDEX($AA$2:$AA$41,MATCH(AS2,$AC$2:$AC$41,0)),\"\")","v":""},null,null,null,1,{"$f":"IF('計画書② (取組）'!C40=\"\",\"\",'計画書② (取組）'!C40&\"‡\"&'計画書② (取組）'!D40)","v":""},{"$f":"IF(BA2<>\"\",ROW()-1,\"\")","v":""},{"$f":"RANK(BB2,$BB$2:$BB$41,1)","v":{"$error":"#VALUE!"}},{"$f":"'計画書② (取組）'!D40","v":0},{"$f":"LEFT(BA2,FIND(\"‡\",BA2)-1)","v":{"$error":"#VALUE!"}},null,null,null,1,{"$f":"IFERROR(INDEX($BE$2:$BE$41,MATCH(BI2,$BC$2:$BC$41,0)),\"\")","v":""},{"$f":"IFERROR(INDEX($BD$2:$BD$41,MATCH(BI2,$BC$2:$BC$41,0)),\"\")","v":""},null,"環境マネジメントシステムの導入",null,{"$f":"IF(ISERROR(MATCH(BM2,$BA$2:$BA$41,0)),ROW(),\"\")","v":2},{"$f":"IFERROR(INDIRECT(\"bM\"&SMALL($BO$2:$BO$26,ROW()-1)),\"\")","v":"環境マネジメントシステムの導入"},null,null,1,{"$f":"IFERROR(INDEX($BE$2:$BE$41,MATCH(BS2,$BC$2:$BC$41,0)),\"\")","v":""},{"$f":"IFERROR(INDEX($BE$2:$BE$41,MATCH(BS2,$BC$2:$BC$31,0)),\"\")","v":""},{"$f":"IFERROR(INDEX($BE$2:$BE$41,MATCH(BS2,$BC$2:$BC$21,0)),\"\")","v":""},{"$f":"IFERROR(INDEX($BD$2:$BD$41,MATCH(BS2,$BC$2:$BC$41,0)),\"\")","v":""},{"$f":"IFERROR(INDEX($BD$2:$BD$41,MATCH(BS2,$BC$2:$BC$31,0)),\"\")","v":""},{"$f":"IFERROR(INDEX($BD$2:$BD$41,MATCH(BS2,$BC$2:$BC$21,0)),\"\")","v":""},null,{"$f":"IF('報告書② 第3年度(取組）'!C47=\"\",\"\",'報告書② 第3年度(取組）'!H47&\"\")","v":""},{"$f":"IF('報告書② 第2年度(取組）'!C47=\"\",\"\",'報告書② 第2年度(取組）'!G47&\"\")","v":""},{"$f":"IF('報告書② 第1年度(取組）'!C47=\"\",\"\",'報告書② 第1年度(取組）'!F47&\"\")","v":""},{"$f":"IF('計画書② (取組）'!C40=\"\",\"\",'計画書② (取組）'!E40&\"\")","v":""}]
["エネルギー管理推進体制の整備","エネルギー管理推進体制が整備されている。エネルギー管理推進体制の中で、エネルギー管理が推進されている。",null,"情報共有体制の整備","エネルギー使用量や温室効果ガス排出量の把握・分析結果等を適切に社内（市内事業所間）で共有している。",null,"環境マネジメントシステムの導入",null,null,null,null,null,null,null,null,null,null,null,null,null,null,null,null,null,null,2,{"$f":"'計画書② (取組）'!C22","v":0},{"$f":"IF(AA3<>0,ROW()-1,\"\")","v":""},{"$f":"RANK(AB3,$AB$2:$AB$81,1)","v":{"$error":"#VALUE!"}},null,null,null,null,null,null,null,null,2,"エネルギー使用量の見える化（前年度比較）","エネルギー使用量や走行距離を計量し、グラフ化している。エネルギー使用量等を前年度と比較して変化の理由を分析している。",{"$f":"IF(ISERROR(MATCH(AM3,$AA$2:$AA$81,0)),ROW(),\"\")","v":3},{"$f":"IFERROR(INDIRECT(\"AM\"&SMALL($AO$2:$AO$26,ROW()-1)),\"\")","v":"エネルギー使用量の見える化（前年度比較）"},null,null,2,{"$f":"IFERROR(INDEX($AA$2:$AA$81,MATCH(AS3,$AC$2:$AC$81,0)),\"\")","v":""},{"$f":"IFERROR(INDEX($AA$2:$AA$61,MATCH(AS3,$AC$2:$AC$61,0)),\"\")","v":""},{"$f":"IFERROR(INDEX($AA$2:$AA$41,MATCH(AS3,$AC$2:$AC$41,0)),\"\")","v":""},null,null,null,2,{"$f":"IF('計画書② (取組）'!C41=\"\",\"\",'計画書② (取組）'!C41&\"‡\"&'計画書② (取組）'!D41)","v":""},{"$f":"IF(BA3<>\"\",ROW()-1,\"\")","v":""},{"$f":"RANK(BB3,$BB$2:$BB$41,1)","v":{"$error":"#VALUE!"}},{"$f":"'計画書② (取組）'!D41","v":0},{"$f":"LEFT(BA3,FIND(\"‡\",BA3)-1)","v":{"$error":"#VALUE!"}},null,null,null,2,{"$f":"IFERROR(INDEX($BE$2:$BE$41,MATCH(BI3,$BC$2:$BC$41,0)),\"\")","v":""},{"$f":"IFERROR(INDEX($BD$2:$BD$41,MATCH(BI3,$BC$2:$BC$41,0)),\"\")","v":""},2,"SBTやRE100等の国際的な気候変動イニシアティブなど脱炭素経営への取組",null,{"$f":"IF(ISERROR(MATCH(BM3,$BA$2:$BA$41,0)),ROW(),\"\")","v":3},{"$f":"IFERROR(INDIRECT(\"bM\"&SMALL($BO$2:$BO$26,ROW()-1)),\"\")","v":"SBTやRE100等の国際的な気候変動イニシアティブなど脱炭素経営への取組"},null,null,2,{"$f":"IFERROR(INDEX($BE$2:$BE$41,MATCH(BS3,$BC$2:$BC$41,0)),\"\")","v":""},{"$f":"IFERROR(INDEX($BE$2:$BE$41,MATCH(BS3,$BC$2:$BC$31,0)),\"\")","v":""},{"$f":"IFERROR(INDEX($BE$2:$BE$41,MATCH(BS3,$BC$2:$BC$21,0)),\"\")","v":""},{"$f":"IFERROR(INDEX($BD$2:$BD$41,MATCH(BS3,$BC$2:$BC$41,0)),\"\")","v":""},{"$f":"IFERROR(INDEX($BD$2:$BD$41,MATCH(BS3,$BC$2:$BC$31,0)),\"\")","v":""},{"$f":"IFERROR(INDEX($BD$2:$BD$41,MATCH(BS3,$BC$2:$BC$21,0)),\"\")","v":""},null,{"$f":"IF('報告書② 第3年度(取組）'!C48=\"\",\"\",'報告書② 第3年度(取組）'!H48&\"\")","v":""},{"$f":"IF('報告書② 第2年度(取組）'!C48=\"\",\"\",'報告書② 第2年度(取組）'!G48&\"\")","v":""},{"$f":"IF('報告書② 第1年度(取組）'!C48=\"\",\"\",'報告書② 第1年度(取組）'!F48&\"\")","v":""},{"$f":"IF('計画書② (取組）'!C41=\"\",\"\",'計画書② (取組）'!E41&\"\")","v":""}]
["省エネルギー教育の実施","省エネルギー、地球温暖化防止に関する研修、教育を定期的に実施し、実施記録を残している。",null,"エネルギー使用量の見える化（前年度比較）","エネルギー使用量や走行距離を計量し、グラフ化している。エネルギー使用量等を前年度と比較して変化の理由を分析している。",null,"SBTやRE100等の国際的な気候変動イニシアティブなど脱炭素経営への取組",null,null,null,null,null,null,null,null,null,null,null,null,null,null,null,null,null,null,3,{"$f":"'計画書② (取組）'!C23","v":0},"",{"$error":"#VALUE!"},null,null,null,null,null,null,null,null,3,"エネルギー使用量の見える化（分計による課題発見）","エネルギー使用量や走行距離を、車両別、エネルギー種類別に計量し、グラフ化しており、エネルギー使用量等の変化の理由を分析して、省エネ対策の検討に利用している。",4,"エネルギー使用量の見える化（分計による課題発見）",null,null,3,"","","",null,null,null,3,{"$f":"IF('計画書② (取組）'!C42=\"\",\"\",'計画書② (取組）'!C42&\"‡\"&'計画書② (取組）'!D42)","v":""},"",{"$f":"RANK(BB4,$BB$2:$BB$41,1)","v":{"$error":"#VALUE!"}},{"$f":"'計画書② (取組）'!D42","v":0},{"$error":"#VALUE!"},null,null,null,3,"","",3,"従業員の自動車利用の抑制、公共交通機関の利用促進",null,4,"従業員の自動車利用の抑制、公共交通機関の利用促進",null,null,3,"","","","","","",null,{"$f":"IF('報告書② 第3年度(取組）'!C49=\"\",\"\",'報告書② 第3年度(取組）'!H49&\"\")","v":""},{"$f":"IF('報告書② 第2年度(取組）'!C49=\"\",\"\",'報告書② 第2年度(取組）'!G49&\"\")","v":""},{"$f":"IF('報告書② 第1年度(取組）'!C49=\"\",\"\",'報告書② 第1年度(取組）'!F49&\"\")","v":""},{"$f":"IF('計画書② (取組）'!C42=\"\",\"\",'計画書② (取組）'!E42&\"\")","v":""}]
["エネルギー使用量の把握","エネルギー使用量や走行距離を車両別に定期的に把握・記録されている。",null,"エネルギー使用量の見える化（分計による課題発見）","エネルギー使用量や走行距離を、車両別、エネルギー種類別に計量し、グラフ化しており、エネルギー使用量等の変化の理由を分析して、省エネ対策の検討に利用している。",null,"従業員の自動車利用の抑制、公共交通機関の利用促進",null,null,null,null,null,null,null,null,null,null,null,null,null,null,null,null,null,null,4,{"$f":"'計画書② (取組）'!C24","v":0},"",{"$error":"#VALUE!"},null,null,null,null,null,null,null,null,4,"環境性能の良い車両の計画的導入","ハイブリッド自動車、天然ガス自動車、電気自動車等の環境性能の優れた車両を計画的に導入している",5,"環境性能の良い車両の計画的導入",null,null,4,"","","",null,null,null,4,{"$f":"IF('計画書② (取組）'!C43=\"\",\"\",'計画書② (取組）'!C43&\"‡\"&'計画書② (取組）'!D43)","v":""},"",{"$error":"#VALUE!"},{"$f":"'計画書② (取組）'!D43","v":0},{"$error":"#VALUE!"},null,null,null,4,"","",4,"環境教育・学習の実施（従業員以外を対象にしたもの）",null,5,"環境教育・学習の実施（従業員以外を対象にしたもの）",null,null,4,"","","","","","",null,{"$f":"IF('報告書② 第3年度(取組）'!C50=\"\",\"\",'報告書② 第3年度(取組）'!H50&\"\")","v":""},{"$f":"IF('報告書② 第2年度(取組）'!C50=\"\",\"\",'報告書② 第2年度(取組）'!G50&\"\")","v":""},{"$f":"IF('報告書② 第1年度(取組）'!C50=\"\",\"\",'報告書② 第1年度(取組）'!F50&\"\")","v":""},{"$f":"IF('計画書② (取組）'!C43=\"\",\"\",'計画書② (取組）'!E43&\"\")","v":""}]
["エコドライブ推進体制の整備","エコドライブ推進に関する責任者の設置、実践方法に関するマニュアルを作成するなど、推進体制を整備している。",null,"環境性能の良い車両の計画的導入","ハイブリッド自動車、天然ガス自動車、電気自動車等の環境性能の優れた車両を計画的に導入している。",null,"環境教育・学習の実施（従業員以外を対象にしたもの）",null,null,null,null,null,null,null,null,null,null,null,null,null,null,null,null,null,null,5,{"$f":"'計画書② (取組）'!C25","v":0},"",{"$error":"#VALUE!"},null,null,null,null,null,null,null,null,5,"燃費向上のための装置等の計画的導入","アイドリングストップ装置や低燃費タイヤなど、燃費向上のために必要な装置等を計画的に導入している",6,"燃費向上のための装置等の計画的導入",null,null,5,"","","",null,null,null,5,{"$f":"IF('計画書② (取組）'!C44=\"\",\"\",'計画書② (取組）'!C44&\"‡\"&'計画書② (取組）'!D44)","v":""},"",{"$error":"#VALUE!"},{"$f":"'計画書② (取組）'!D44","v":0},{"$error":"#VALUE!"},null,null,null,5,"","",5,"廃棄物削減対策の実施",null,6,"廃棄物削減対策の実施",null,null,5,"","","","","","",null,{"$f":"IF('報告書② 第3年度(取組）'!C51=\"\",\"\",'報告書② 第3年度(取組）'!H51&\"\")","v":""},{"$f":"IF('報告書② 第2年度(取組）'!C51=\"\",\"\",'報告書② 第2年度(取組）'!G51&\"\")","v":""},{"$f":"IF('報告書② 第1年度(取組）'!C51=\"\",\"\",'報告書② 第1年度(取組）'!F51&\"\")","v":""},{"$f":"IF('計画書② (取組）'!C44=\"\",\"\",'計画書② (取組）'!E44&\"\")","v":""}]
["エコドライブ教育の実施","車両を運転する全社員に対するエコドライブに関する研修、教育を定期的に実施している。",null,"燃費向上のための装置等の計画的導入","アイドリングストップ装置や低燃費タイヤなど、燃費向上のために必要な装置等を計画的に導入している。",null,"廃棄物削減対策の実施",null,null,null,null,null,null,null,null,null,null,null,null,null,null,null,null,null,null,6,{"$f":"'計画書② (取組）'!C26","v":0},"",{"$error":"#VALUE!"},null,null,null,null,null,null,null,null,6,"エコドライブの管理","デジタル式記録装置の活用等により、運転者・車種別等のエネルギー使用量を管理している。",7,"エコドライブの管理",null,null,6,"","","",null,null,null,6,{"$f":"IF('計画書② (取組）'!C45=\"\",\"\",'計画書② (取組）'!C45&\"‡\"&'計画書② (取組）'!D45)","v":""},"",{"$error":"#VALUE!"},{"$f":"'計画書② (取組）'!D45","v":0},{"$error":"#VALUE!"},null,null,null,6,"","",6,"森林の保全・緑化の推進",null,7,"森林の保全・緑化の推進",null,null,6,"","","","","","",null,{"$f":"IF('報告書② 第3年度(取組）'!C52=\"\",\"\",'報告書② 第3年度(取組）'!H52&\"\")","v":""},{"$f":"IF('報告書② 第2年度(取組）'!C52=\"\",\"\",'報告書② 第2年度(取組）'!G52&\"\")","v":""},{"$f":"IF('報告書② 第1年度(取組）'!C52=\"\",\"\",'報告書② 第1年度(取組）'!F52&\"\")","v":""},{"$f":"IF('計画書② (取組）'!C45=\"\",\"\",'計画書② (取組）'!E45&\"\")","v":""}]
["エコドライブ実践","エコドライブ10のすすめを実践し、チェックシート等に記録している。",null,"エコドライブの管理","デジタル式記録装置の活用等により、運転者・車種別等のエネルギー使用量を管理している。",null,"森林の保全・緑化の推進",null,null,null,null,null,null,null,null,null,null,null,null,null,null,null,null,null,null,7,{"$f":"'計画書② (取組）'!C27","v":0},"",{"$error":"#VALUE!"},null,null,null,null,null,null,null,null,7,"維持管理に関する教育","自動車の適正な維持管理に必要な知識や技術の習得のため、定期的に研修等を実施している。",8,"維持管理に関する教育",null,null,7,"","","",null,null,null,7,{"$f":"IF('計画書② (取組）'!C46=\"\",\"\",'計画書② (取組）'!C46&\"‡\"&'計画書② (取組）'!D46)","v":""},"",{"$error":"#VALUE!"},{"$f":"'計画書② (取組）'!D46","v":0},{"$error":"#VALUE!"},null,null,null,7,"","",7,"グリーン調達の実施",null,8,"グリーン調達の実施",null,null,7,"","","","","","",null,{"$f":"IF('報告書② 第3年度(取組）'!C53=\"\",\"\",'報告書② 第3年度(取組）'!H53&\"\")","v":""},{"$f":"IF('報告書② 第2年度(取組）'!C53=\"\",\"\",'報告書② 第2年度(取組）'!G53&\"\")","v":""},{"$f":"IF('報告書② 第1年度(取組）'!C53=\"\",\"\",'報告書② 第1年度(取組）'!F53&\"\")","v":""},{"$f":"IF('計画書② (取組）'!C46=\"\",\"\",'計画書② (取組）'!E46&\"\")","v":""}]
["車両の維持管理","車両の点検・整備に関する責任者の設置、マニュアルの作成等、自動車の維持管理体制が整備されている。",null,"維持管理に関する教育","自動車の適正な維持管理に必要な知識や技術の習得のため、定期的に研修等を実施している。",null,"グリーン調達の実施",null,null,null,null,null,null,null,null,null,null,null,null,null,null,null,null,null,null,8,{"$f":"'計画書② (取組）'!C28","v":0},"",{"$error":"#VALUE!"},null,null,null,null,null,null,null,null,8,"モーダルシフトの推進","車両、鉄道、船等の低排出量の輸送方法への変更を検討・実施している。",9,"モーダルシフトの推進",null,null,8,"","","",null,null,null,8,{"$f":"IF('計画書② (取組）'!C47=\"\",\"\",'計画書② (取組）'!C47&\"‡\"&'計画書② (取組）'!D47)","v":""},"",{"$error":"#VALUE!"},{"$f":"'計画書② (取組）'!D47","v":0},{"$error":"#VALUE!"},null,null,null,8,"","",8,"カーボンオフセットの実施",null,9,"カーボンオフセットの実施",null,null,8,"","","","","","",null,{"$f":"IF('報告書② 第3年度(取組）'!C54=\"\",\"\",'報告書② 第3年度(取組）'!H54&\"\")","v":""},{"$f":"IF('報告書② 第2年度(取組）'!C54=\"\",\"\",'報告書② 第2年度(取組）'!G54&\"\")","v":""},{"$f":"IF('報告書② 第1年度(取組）'!C54=\"\",\"\",'報告書② 第1年度(取組）'!F54&\"\")","v":""},{"$f":"IF('計画書② (取組）'!C47=\"\",\"\",'計画書② (取組）'!E47&\"\")","v":""}]
["車両の性能管理","日常及び定期的な保守・点検、修理が行われ、記録されている。",null,"モーダルシフトの推進","車両、鉄道、船等の低排出量の輸送方法への変更を検討・実施している。",null,"カーボンオフセットの実施",null,null,null,null,null,null,null,null,null,null,null,null,null,null,null,null,null,null,9,{"$f":"'計画書② (取組）'!C29","v":0},"",{"$error":"#VALUE!"},null,null,null,null,null,null,null,null,9,"搬出入車両のエコカー導入誘導","搬出入を行う者（外部輸送事業者を含む）の貨物自動車をエコカーに更新するよう働きかけを行っている。",10,"搬出入車両のエコカー導入誘導",null,null,9,"","","",null,null,null,9,{"$f":"IF('計画書② (取組）'!C48=\"\",\"\",'計画書② (取組）'!C48&\"‡\"&'計画書② (取組）'!D48)","v":""},"",{"$error":"#VALUE!"},{"$f":"'計画書② (取組）'!D48","v":0},{"$error":"#VALUE!"},null,null,null,9,"","",9,"ヒートアイランド対策の実施",null,10,"ヒートアイランド対策の実施",null,null,9,"","","","","","",null,{"$f":"IF('報告書② 第3年度(取組）'!C55=\"\",\"\",'報告書② 第3年度(取組）'!H55&\"\")","v":""},{"$f":"IF('報告書② 第2年度(取組）'!C55=\"\",\"\",'報告書② 第2年度(取組）'!G55&\"\")","v":""},{"$f":"IF('報告書② 第1年度(取組）'!C55=\"\",\"\",'報告書② 第1年度(取組）'!F55&\"\")","v":""},{"$f":"IF('計画書② (取組）'!C48=\"\",\"\",'計画書② (取組）'!E48&\"\")","v":""}]
["効率的なルート選定","事前に目的地までの効率的なルートを選定し、運転者に伝える仕組みが整備されている。",null,"搬出入車両のエコカー導入誘導","搬出入を行う者（外部輸送事業者を含む）の貨物自動車をエコカーに更新するよう働きかけを行っている。",null,"ヒートアイランド対策の実施",null,null,null,null,null,null,null,null,null,null,null,null,null,null,null,null,null,null,10,{"$f":"'計画書② (取組）'!C30","v":0},"",{"$error":"#VALUE!"},null,null,null,null,null,null,null,null,10,"関係者への普及啓発","荷主（顧客）、協力会社等の関係者に対して、地球温暖化対策に関する普及啓発（地球温暖化対策への協力依頼）を行っている。",11,"関係者への普及啓発",null,null,10,"","","",null,null,null,10,{"$f":"IF('計画書② (取組）'!C49=\"\",\"\",'計画書② (取組）'!C49&\"‡\"&'計画書② (取組）'!D49)","v":""},"",{"$error":"#VALUE!"},{"$f":"'計画書② (取組）'!D49","v":0},{"$error":"#VALUE!"},null,null,null,10,"","",10,"計画期間以前の温室効果ガスの大幅な削減",null,11,"計画期間以前の温室効果ガスの大幅な削減",null,null,10,"","","","","",""]
["効率的な自動車管理","輸送需要を把握し、目的や輸送量に応じた自動車を使用するなど、適切な車両管理を行っている。",null,"関係者への普及啓発","荷主（顧客）、協力会社等の関係者に対して、地球温暖化対策に関する普及啓発（地球温暖化対策への協力依頼）を行っている。",null,"計画期間以前の温室効果ガスの大幅な削減",null,null,null,null,null,null,null,null,null,null,null,null,null,null,null,null,null,null,11,{"$f":"'計画書② (取組）'!C31","v":0},"",{"$error":"#VALUE!"},null,null,null,null,null,null,null,null,11,"事業者連携による効率的な輸送推進","他の事業者と連携して、共同輸配送や共同運行など効率的な輸送を推進している。",12,"事業者連携による効率的な輸送推進",null,null,11,"","","",null,null,null,11,{"$f":"IF('報告書② 第1年度(取組）'!C121=\"\",\"\",'報告書② 第1年度(取組）'!C121&\"‡\"&'報告書② 第1年度(取組）'!D121)","v":""},"",{"$error":"#VALUE!"},{"$f":"'報告書② 第1年度(取組）'!D121","v":0},{"$error":"#VALUE!"},null,null,null,11,"","",11,"排出係数の小さい電気事業者の選択",null,12,"排出係数の小さい電気事業者の選択",null,null,11,"","","","","",""]
["照明器具の点灯時間管理","照明器具の点灯時間がルール化されている。不要な照明の使用や消し忘れをチェックする仕組みがある。センサー等による制御が導入されている。",null,"事業者連携による効率的な輸送推進","他の事業者と連携して、共同輸配送や共同運行など効率的な輸送を推進している。",null,"ＤＲ（デマンドレスポンス）の実施",null,null,null,null,null,null,null,null,null,null,null,null,null,null,null,null,null,null,12,{"$f":"'計画書② (取組）'!C32","v":0},"",{"$error":"#VALUE!"},null,null,null,null,null,null,null,null,12,"最適運行ルート選択","効率的な運行ルートを選択するため、カーナビゲーションシステム等を導入している。",13,"最適運行ルート選択",null,null,12,"","","",null,null,null,12,{"$f":"IF('報告書② 第1年度(取組）'!C122=\"\",\"\",'報告書② 第1年度(取組）'!C122&\"‡\"&'報告書② 第1年度(取組）'!D122)","v":""},"",{"$error":"#VALUE!"},{"$f":"'報告書② 第1年度(取組）'!D122","v":0},{"$error":"#VALUE!"},null,null,null,12,"","",12,"市が実施する環境関連事業への参画",null,13,"市が実施する環境関連事業への参画",null,null,12,"","","","","",""]
["事務所機器の待機電力管理","PC、OA機器等の事務所機器が省エネモードに設定されており、長時間不使用の場合には電源を切ることがルール化されている。PC、OA機器等の事務所機器がルールに従って運転されている。",null,"最適運行ルート選択","効率的な運行ルートを選択するため、カーナビゲーションシステム等を導入している。",null,"市が実施する環境関連事業への参画",null,null,null,null,null,null,null,null,null,null,null,null,null,null,null,null,null,null,13,{"$f":"'計画書② (取組）'!C33","v":0},"",{"$error":"#VALUE!"},null,null,null,null,null,null,null,null,13,"効率的な自動車運用のためのシステム導入","車両動態管理システムなど、輸送や配車効率の向上に資する情報システムを導入している。",14,"効率的な自動車運用のためのシステム導入",null,null,13,"","","",null,null,null,13,{"$f":"IF('報告書② 第1年度(取組）'!C123=\"\",\"\",'報告書② 第1年度(取組）'!C123&\"‡\"&'報告書② 第1年度(取組）'!D123)","v":""},"",{"$error":"#VALUE!"},{"$f":"'報告書② 第1年度(取組）'!D123","v":0},{"$error":"#VALUE!"},null,null,null,13,"","",13,"その他地球温暖化を防止する対策の実施",null,14,"その他地球温暖化を防止する対策の実施",null,null,13,"","","","","",""]
[null,null,{"$f":"RIGHT(B15,1)","v":""},"効率的な自動車運用のためのシステム導入","車両動態管理システムなど、輸送や配車効率の向上に資する情報システムを導入している。",null,"その他地球温暖化を防止する対策の実施",null,null,null,null,null,null,null,null,null,null,null,null,null,null,null,null,null,null,14,{"$f":"'計画書② (取組）'!C34","v":0},"",{"$error":"#VALUE!"},null,null,null,null,null,null,null,null,14,"効率的なルート選定","混雑する道路や時間帯を避けるための輸送計画を作成している。",15,"効率的なルート選定",null,null,14,"","","",null,null,null,14,{"$f":"IF('報告書② 第1年度(取組）'!C124=\"\",\"\",'報告書② 第1年度(取組）'!C124&\"‡\"&'報告書② 第1年度(取組）'!D124)","v":""},"",{"$error":"#VALUE!"},{"$f":"'報告書② 第1年度(取組）'!D124","v":0},{"$error":"#VALUE!"}]
[null,null,"","効率的なルート選定","混雑する道路や時間帯を避けるための輸送計画を作成している。",null,null,null,null,null,null,null,null,null,null,null,null,null,null,null,null,null,null,null,null,15,{"$f":"'計画書② (取組）'!C35","v":0},"",{"$error":"#VALUE!"},null,null,null,null,null,null,null,null,15,"空調設定温度の管理","空調設定温度が管理標準（管理マニュアル）で定められている。空調を使用している場所の温度が記録されている。",16,"空調設定温度の管理",null,null,15,"","","",null,null,null,15,{"$f":"IF('報告書② 第1年度(取組）'!C125=\"\",\"\",'報告書② 第1年度(取組）'!C125&\"‡\"&'報告書② 第1年度(取組）'!D125)","v":""},"",{"$error":"#VALUE!"},{"$f":"'報告書② 第1年度(取組）'!D125","v":0},{"$error":"#VALUE!"}]
[null,null,"","空調設定温度の管理","空調設定温度がルール化されている。空調を使用している場所の温度が記録されている。",null,null,null,null,null,null,null,null,null,null,null,null,null,null,null,null,null,null,null,null,16,null,"",{"$error":"#VALUE!"},null,null,null,null,null,null,null,null,16,null,null,"","",null,null,16,"","","",null,null,null,16,{"$f":"IF('報告書② 第1年度(取組）'!C126=\"\",\"\",'報告書② 第1年度(取組）'!C126&\"‡\"&'報告書② 第1年度(取組）'!D126)","v":""},"",{"$error":"#VALUE!"},{"$f":"'報告書② 第1年度(取組）'!D126","v":0},{"$error":"#VALUE!"}]
[null,null,"",null,"\u009e",{"$f":"RIGHT(E18,1)","v":"\u009e"},null,null,null,null,null,null,null,null,null,null,null,null,null,null,null,null,null,null,null,17,null,"",{"$error":"#VALUE!"},null,null,null,null,null,null,null,null,17,null,null,"","",null,null,17,"","","",null,null,null,17,{"$f":"IF('報告書② 第1年度(取組）'!C127=\"\",\"\",'報告書② 第1年度(取組）'!C127&\"‡\"&'報告書② 第1年度(取組）'!D127)","v":""},"",{"$error":"#VALUE!"},{"$f":"'報告書② 第1年度(取組）'!D127","v":0},{"$error":"#VALUE!"}]
[null,null,null,null,null,null,null,null,null,null,null,null,null,null,null,null,null,null,null,null,null,null,null,null,null,18,null,"",{"$error":"#VALUE!"},null,null,null,null,null,null,null,null,18,null,null,"","",null,null,18,"","","",null,null,null,18,{"$f":"IF('報告書② 第1年度(取組）'!C128=\"\",\"\",'報告書② 第1年度(取組）'!C128&\"‡\"&'報告書② 第1年度(取組）'!D128)","v":""},"",{"$error":"#VALUE!"},{"$f":"'報告書② 第1年度(取組）'!D128","v":0},{"$error":"#VALUE!"}]
[null,null,null,null,null,null,null,null,null,null,null,null,null,null,null,null,null,null,null,null,null,null,null,null,null,19,null,"",{"$error":"#VALUE!"},null,null,null,null,null,null,null,null,19,null,null,"","",null,null,19,"","","",null,null,null,19,{"$f":"IF('報告書② 第1年度(取組）'!C129=\"\",\"\",'報告書② 第1年度(取組）'!C129&\"‡\"&'報告書② 第1年度(取組）'!D129)","v":""},"",{"$error":"#VALUE!"},{"$f":"'報告書② 第1年度(取組）'!D129","v":0},{"$error":"#VALUE!"}]
[null,null,null,null,null,null,null,null,null,null,null,null,null,null,null,null,null,null,null,null,null,null,null,null,null,20,null,"",{"$error":"#VALUE!"},null,null,null,null,null,null,null,null,20,null,null,"","",null,null,20,"","","",null,null,null,20,{"$f":"IF('報告書② 第1年度(取組）'!C130=\"\",\"\",'報告書② 第1年度(取組）'!C130&\"‡\"&'報告書② 第1年度(取組）'!D130)","v":""},"",{"$error":"#VALUE!"},{"$f":"'報告書② 第1年度(取組）'!D130","v":0},{"$error":"#VALUE!"}]
[null,null,null,null,null,null,null,null,null,null,null,null,null,null,null,null,null,null,null,null,null,null,null,null,null,21,{"$f":"'報告書② 第1年度(取組）'!C91","v":0},"",{"$error":"#VALUE!"},null,null,null,null,null,null,null,null,21,null,null,"","",null,null,21,"","","",null,null,null,21,{"$f":"IF('報告書② 第2年度(取組）'!C121=\"\",\"\",'報告書② 第2年度(取組）'!C121&\"‡\"&'報告書② 第2年度(取組）'!D121)","v":""},"",{"$error":"#VALUE!"},{"$f":"'報告書② 第2年度(取組）'!D121","v":0},{"$error":"#VALUE!"}]
[null,null,null,null,null,null,null,null,null,null,null,null,null,null,null,null,null,null,null,null,null,null,null,null,null,22,{"$f":"'報告書② 第1年度(取組）'!C92","v":0},"",{"$error":"#VALUE!"},null,null,null,null,null,null,null,null,22,null,null,"","",null,null,22,"","","",null,null,null,22,{"$f":"IF('報告書② 第2年度(取組）'!C122=\"\",\"\",'報告書② 第2年度(取組）'!C122&\"‡\"&'報告書② 第2年度(取組）'!D122)","v":""},"",{"$error":"#VALUE!"},{"$f":"'報告書② 第2年度(取組）'!D122","v":0},{"$error":"#VALUE!"}]
[null,null,null,null,null,null,null,null,null,null,null,null,null,null,null,null,null,null,null,null,null,null,null,null,null,23,{"$f":"'報告書② 第1年度(取組）'!C93","v":0},"",{"$error":"#VALUE!"},null,null,null,null,null,null,null,null,23,null,null,"","",null,null,23,"","","",null,null,null,23,{"$f":"IF('報告書② 第2年度(取組）'!C123=\"\",\"\",'報告書② 第2年度(取組）'!C123&\"‡\"&'報告書② 第2年度(取組）'!D123)","v":""},"",{"$error":"#VALUE!"},{"$f":"'報告書② 第2年度(取組）'!D123","v":0},{"$error":"#VALUE!"}]
[null,null,null,null,null,null,null,null,null,null,null,null,null,null,null,null,null,null,null,null,null,null,null,null,null,24,{"$f":"'報告書② 第1年度(取組）'!C94","v":0},"",{"$error":"#VALUE!"},null,null,null,null,null,null,null,null,24,null,null,"","",null,null,24,"","","",null,null,null,24,{"$f":"IF('報告書② 第2年度(取組）'!C124=\"\",\"\",'報告書② 第2年度(取組）'!C124&\"‡\"&'報告書② 第2年度(取組）'!D124)","v":""},"",{"$error":"#VALUE!"},{"$f":"'報告書② 第2年度(取組）'!D124","v":0},{"$error":"#VALUE!"}]
[null,null,null,null,null,null,null,null,null,null,null,null,null,null,null,null,null,null,null,null,null,null,null,null,null,25,{"$f":"'報告書② 第1年度(取組）'!C95","v":0},"",{"$error":"#VALUE!"},null,null,null,null,null,null,null,null,25,null,null,"","",null,null,25,"","","",null,null,null,25,{"$f":"IF('報告書② 第2年度(取組）'!C125=\"\",\"\",'報告書② 第2年度(取組）'!C125&\"‡\"&'報告書② 第2年度(取組）'!D125)","v":""},"",{"$error":"#VALUE!"},{"$f":"'報告書② 第2年度(取組）'!D125","v":0},{"$error":"#VALUE!"}]
[null,null,null,null,null,null,null,null,null,null,null,null,null,null,null,null,null,null,null,null,null,null,null,null,null,26,{"$f":"'報告書② 第1年度(取組）'!C96","v":0},"",{"$error":"#VALUE!"},null,null,null,null,null,null,null,null,null,null,null,null,null,null,null,null,null,null,null,null,null,null,26,{"$f":"IF('報告書② 第2年度(取組）'!C126=\"\",\"\",'報告書② 第2年度(取組）'!C126&\"‡\"&'報告書② 第2年度(取組）'!D126)","v":""},"",{"$error":"#VALUE!"},{"$f":"'報告書② 第2年度(取組）'!D126","v":0},{"$error":"#VALUE!"}]
[null,null,null,null,null,null,null,null,null,null,null,null,null,null,null,null,null,null,null,null,null,null,null,null,null,27,{"$f":"'報告書② 第1年度(取組）'!C97","v":0},"",{"$error":"#VALUE!"},null,null,null,null,null,null,null,null,null,null,null,null,null,null,null,null,null,null,null,null,null,null,27,{"$f":"IF('報告書② 第2年度(取組）'!C127=\"\",\"\",'報告書② 第2年度(取組）'!C127&\"‡\"&'報告書② 第2年度(取組）'!D127)","v":""},"",{"$error":"#VALUE!"},{"$f":"'報告書② 第2年度(取組）'!D127","v":0},{"$error":"#VALUE!"}]
[null,null,null,null,null,null,null,null,null,null,null,null,null,null,null,null,null,null,null,null,null,null,null,null,null,28,{"$f":"'報告書② 第1年度(取組）'!C98","v":0},"",{"$error":"#VALUE!"},null,null,null,null,null,null,null,null,null,null,null,null,null,null,null,null,null,null,null,null,null,null,28,{"$f":"IF('報告書② 第2年度(取組）'!C128=\"\",\"\",'報告書② 第2年度(取組）'!C128&\"‡\"&'報告書② 第2年度(取組）'!D128)","v":""},"",{"$error":"#VALUE!"},{"$f":"'報告書② 第2年度(取組）'!D128","v":0},{"$error":"#VALUE!"}]
[null,null,null,null,null,null,null,null,null,null,null,null,null,null,null,null,null,null,null,null,null,null,null,null,null,29,{"$f":"'報告書② 第1年度(取組）'!C99","v":0},"",{"$error":"#VALUE!"},null,null,null,null,null,null,null,null,null,null,null,null,null,null,null,null,null,null,null,null,null,null,29,{"$f":"IF('報告書② 第2年度(取組）'!C129=\"\",\"\",'報告書② 第2年度(取組）'!C129&\"‡\"&'報告書② 第2年度(取組）'!D129)","v":""},"",{"$error":"#VALUE!"},{"$f":"'報告書② 第2年度(取組）'!D129","v":0},{"$error":"#VALUE!"}]
[null,null,null,null,null,null,null,null,null,null,null,null,null,null,null,null,null,null,null,null,null,null,null,null,null,30,{"$f":"'報告書② 第1年度(取組）'!C100","v":0},"",{"$error":"#VALUE!"},null,null,null,null,null,null,null,null,null,null,null,null,null,null,null,null,null,null,null,null,null,null,30,{"$f":"IF('報告書② 第2年度(取組）'!C130=\"\",\"\",'報告書② 第2年度(取組）'!C130&\"‡\"&'報告書② 第2年度(取組）'!D130)","v":""},"",{"$error":"#VALUE!"},{"$f":"'報告書② 第2年度(取組）'!D130","v":0},{"$error":"#VALUE!"}]
[null,null,null,null,null,null,null,null,null,null,null,null,null,null,null,null,null,null,null,null,null,null,null,null,null,31,{"$f":"'報告書② 第1年度(取組）'!C101","v":0},"",{"$error":"#VALUE!"},null,null,null,null,null,null,null,null,null,null,null,null,null,null,null,null,null,null,null,null,null,null,31,{"$f":"IF('報告書② 第3年度(取組）'!C121=\"\",\"\",'報告書② 第3年度(取組）'!C121&\"‡\"&'報告書② 第3年度(取組）'!D121)","v":""},"",{"$error":"#VALUE!"},{"$f":"'報告書② 第3年度(取組）'!D121","v":0},{"$error":"#VALUE!"}]
[null,null,null,null,null,null,null,null,null,null,null,null,null,null,null,null,null,null,null,null,null,null,null,null,null,32,{"$f":"'報告書② 第1年度(取組）'!C102","v":0},"",{"$error":"#VALUE!"},null,null,null,null,null,null,null,null,null,null,null,null,null,null,null,null,null,null,null,null,null,null,32,{"$f":"IF('報告書② 第3年度(取組）'!C122=\"\",\"\",'報告書② 第3年度(取組）'!C122&\"‡\"&'報告書② 第3年度(取組）'!D122)","v":""},"",{"$error":"#VALUE!"},{"$f":"'報告書② 第3年度(取組）'!D122","v":0},{"$error":"#VALUE!"}]
[null,null,null,null,null,null,null,null,null,null,null,null,null,null,null,null,null,null,null,null,null,null,null,null,null,33,{"$f":"'報告書② 第1年度(取組）'!C103","v":0},"",{"$error":"#VALUE!"},null,null,null,null,null,null,null,null,null,null,null,null,null,null,null,null,null,null,null,null,null,null,33,{"$f":"IF('報告書② 第3年度(取組）'!C123=\"\",\"\",'報告書② 第3年度(取組）'!C123&\"‡\"&'報告書② 第3年度(取組）'!D123)","v":""},"",{"$error":"#VALUE!"},{"$f":"'報告書② 第3年度(取組）'!D123","v":0},{"$error":"#VALUE!"}]
[null,null,null,null,null,null,null,null,null,null,null,null,null,null,null,null,null,null,null,null,null,null,null,null,null,34,{"$f":"'報告書② 第1年度(取組）'!C104","v":0},"",{"$error":"#VALUE!"},null,null,null,null,null,null,null,null,null,null,null,null,null,null,null,null,null,null,null,null,null,null,34,{"$f":"IF('報告書② 第3年度(取組）'!C124=\"\",\"\",'報告書② 第3年度(取組）'!C124&\"‡\"&'報告書② 第3年度(取組）'!D124)","v":""},"",{"$error":"#VALUE!"},{"$f":"'報告書② 第3年度(取組）'!D124","v":0},{"$error":"#VALUE!"}]
[null,null,null,null,null,null,null,null,null,null,null,null,null,null,null,null,null,null,null,null,null,null,null,null,null,35,{"$f":"'報告書② 第1年度(取組）'!C105","v":0},"",{"$error":"#VALUE!"},null,null,null,null,null,null,null,null,null,null,null,null,null,null,null,null,null,null,null,null,null,null,35,{"$f":"IF('報告書② 第3年度(取組）'!C125=\"\",\"\",'報告書② 第3年度(取組）'!C125&\"‡\"&'報告書② 第3年度(取組）'!D125)","v":""},"",{"$error":"#VALUE!"},{"$f":"'報告書② 第3年度(取組）'!D125","v":0},{"$error":"#VALUE!"}]
[null,null,null,null,null,null,null,null,null,null,null,null,null,null,null,null,null,null,null,null,null,null,null,null,null,36,null,"",{"$error":"#VALUE!"},null,null,null,null,null,null,null,null,null,null,null,null,null,null,null,null,null,null,null,null,null,null,36,{"$f":"IF('報告書② 第3年度(取組）'!C126=\"\",\"\",'報告書② 第3年度(取組）'!C126&\"‡\"&'報告書② 第3年度(取組）'!D126)","v":""},"",{"$error":"#VALUE!"},{"$f":"'報告書② 第3年度(取組）'!D126","v":0},{"$error":"#VALUE!"}]
[null,null,null,null,null,null,null,null,null,null,null,null,null,null,null,null,null,null,null,null,null,null,null,null,null,37,null,"",{"$error":"#VALUE!"},null,null,null,null,null,null,null,null,null,null,null,null,null,null,null,null,null,null,null,null,null,null,37,{"$f":"IF('報告書② 第3年度(取組）'!C127=\"\",\"\",'報告書② 第3年度(取組）'!C127&\"‡\"&'報告書② 第3年度(取組）'!D127)","v":""},"",{"$error":"#VALUE!"},{"$f":"'報告書② 第3年度(取組）'!D127","v":0},{"$error":"#VALUE!"}]
[null,null,null,null,null,null,null,null,null,null,null,null,null,null,null,null,null,null,null,null,null,null,null,null,null,38,null,"",{"$error":"#VALUE!"},null,null,null,null,null,null,null,null,null,null,null,null,null,null,null,null,null,null,null,null,null,null,38,{"$f":"IF('報告書② 第3年度(取組）'!C128=\"\",\"\",'報告書② 第3年度(取組）'!C128&\"‡\"&'報告書② 第3年度(取組）'!D128)","v":""},"",{"$error":"#VALUE!"},{"$f":"'報告書② 第3年度(取組）'!D128","v":0},{"$error":"#VALUE!"}]
[null,null,null,null,null,null,null,null,null,null,null,null,null,null,null,null,null,null,null,null,null,null,null,null,null,39,null,"",{"$error":"#VALUE!"},null,null,null,null,null,null,null,null,null,null,null,null,null,null,null,null,null,null,null,null,null,null,39,{"$f":"IF('報告書② 第3年度(取組）'!C129=\"\",\"\",'報告書② 第3年度(取組）'!C129&\"‡\"&'報告書② 第3年度(取組）'!D129)","v":""},"",{"$error":"#VALUE!"},{"$f":"'報告書② 第3年度(取組）'!D129","v":0},{"$error":"#VALUE!"}]
[null,null,null,null,null,null,null,null,null,null,null,null,null,null,null,null,null,null,null,null,null,null,null,null,null,40,null,"",{"$error":"#VALUE!"},null,null,null,null,null,null,null,null,null,null,null,null,null,null,null,null,null,null,null,null,null,null,40,{"$f":"IF('報告書② 第3年度(取組）'!C130=\"\",\"\",'報告書② 第3年度(取組）'!C130&\"‡\"&'報告書② 第3年度(取組）'!D130)","v":""},"",{"$error":"#VALUE!"},{"$f":"'報告書② 第3年度(取組）'!D130","v":0},{"$error":"#VALUE!"}]
[null,null,null,null,null,null,null,null,null,null,null,null,null,null,null,null,null,null,null,null,null,null,null,null,null,41,{"$f":"'報告書② 第2年度(取組）'!C91","v":0},"",{"$error":"#VALUE!"}]
[null,null,null,null,null,null,null,null,null,null,null,null,null,null,null,null,null,null,null,null,null,null,null,null,null,42,{"$f":"'報告書② 第2年度(取組）'!C92","v":0},"",{"$error":"#VALUE!"}]
[null,null,null,null,null,null,null,null,null,null,null,null,null,null,null,null,null,null,null,null,null,null,null,null,null,43,{"$f":"'報告書② 第2年度(取組）'!C93","v":0},"",{"$error":"#VALUE!"}]
[null,null,null,null,null,null,null,null,null,null,null,null,null,null,null,null,null,null,null,null,null,null,null,null,null,44,{"$f":"'報告書② 第2年度(取組）'!C94","v":0},"",{"$error":"#VALUE!"}]
[null,null,null,null,null,null,null,null,null,null,null,null,null,null,null,null,null,null,null,null,null,null,null,null,null,45,{"$f":"'報告書② 第2年度(取組）'!C95","v":0},"",{"$error":"#VALUE!"}]
[null,null,null,null,null,null,null,null,null,null,null,null,null,null,null,null,null,null,null,null,null,null,null,null,null,46,{"$f":"'報告書② 第2年度(取組）'!C96","v":0},"",{"$error":"#VALUE!"}]
[null,null,null,null,null,null,null,null,null,null,null,null,null,null,null,null,null,null,null,null,null,null,null,null,null,47,{"$f":"'報告書② 第2年度(取組）'!C97","v":0},"",{"$error":"#VALUE!"}]
[null,null,null,null,null,null,null,null,null,null,null,null,null,null,null,null,null,null,null,null,null,null,null,null,null,48,{"$f":"'報告書② 第2年度(取組）'!C98","v":0},"",{"$error":"#VALUE!"}]
[null,null,null,null,null,null,null,null,null,null,null,null,null,null,null,null,null,null,null,null,null,null,null,null,null,49,{"$f":"'報告書② 第2年度(取組）'!C99","v":0},"",{"$error":"#VALUE!"}]
[null,null,null,null,null,null,null,null,null,null,null,null,null,null,null,null,null,null,null,null,null,null,null,null,null,50,{"$f":"'報告書② 第2年度(取組）'!C100","v":0},"",{"$error":"#VALUE!"}]
[null,null,null,null,null,null,null,null,null,null,null,null,null,null,null,null,null,null,null,null,null,null,null,null,null,51,{"$f":"'報告書② 第2年度(取組）'!C101","v":0},"",{"$error":"#VALUE!"}]
[null,null,null,null,null,null,null,null,null,null,null,null,null,null,null,null,null,null,null,null,null,null,null,null,null,52,{"$f":"'報告書② 第2年度(取組）'!C102","v":0},"",{"$error":"#VALUE!"}]
[null,null,null,null,null,null,null,null,null,null,null,null,null,null,null,null,null,null,null,null,null,null,null,null,null,53,{"$f":"'報告書② 第2年度(取組）'!C103","v":0},"",{"$error":"#VALUE!"}]
[null,null,null,null,null,null,null,null,null,null,null,null,null,null,null,null,null,null,null,null,null,null,null,null,null,54,{"$f":"'報告書② 第2年度(取組）'!C104","v":0},"",{"$error":"#VALUE!"}]
[null,null,null,null,null,null,null,null,null,null,null,null,null,null,null,null,null,null,null,null,null,null,null,null,null,55,{"$f":"'報告書② 第2年度(取組）'!C105","v":0},"",{"$error":"#VALUE!"}]
[null,null,null,null,null,null,null,null,null,null,null,null,null,null,null,null,null,null,null,null,null,null,null,null,null,56,null,"",{"$error":"#VALUE!"}]
[null,null,null,null,null,null,null,null,null,null,null,null,null,null,null,null,null,null,null,null,null,null,null,null,null,57,null,"",{"$error":"#VALUE!"}]
[null,null,null,null,null,null,null,null,null,null,null,null,null,null,null,null,null,null,null,null,null,null,null,null,null,58,null,"",{"$error":"#VALUE!"}]
[null,null,null,null,null,null,null,null,null,null,null,null,null,null,null,null,null,null,null,null,null,null,null,null,null,59,null,"",{"$error":"#VALUE!"}]
[null,null,null,null,null,null,null,null,null,null,null,null,null,null,null,null,null,null,null,null,null,null,null,null,null,60,null,"",{"$error":"#VALUE!"}]
[null,null,null,null,null,null,null,null,null,null,null,null,null,null,null,null,null,null,null,null,null,null,null,null,null,61,{"$f":"'報告書② 第3年度(取組）'!C91","v":0},"",{"$error":"#VALUE!"}]
[null,null,null,null,null,null,null,null,null,null,null,null,null,null,null,null,null,null,null,null,null,null,null,null,null,62,{"$f":"'報告書② 第3年度(取組）'!C92","v":0},"",{"$error":"#VALUE!"}]
[null,null,null,null,null,null,null,null,null,null,null,null,null,null,null,null,null,null,null,null,null,null,null,null,null,63,{"$f":"'報告書② 第3年度(取組）'!C93","v":0},"",{"$error":"#VALUE!"}]
[null,null,null,null,null,null,null,null,null,null,null,null,null,null,null,null,null,null,null,null,null,null,null,null,null,64,{"$f":"'報告書② 第3年度(取組）'!C94","v":0},"",{"$error":"#VALUE!"}]
[null,null,null,null,null,null,null,null,null,null,null,null,null,null,null,null,null,null,null,null,null,null,null,null,null,65,{"$f":"'報告書② 第3年度(取組）'!C95","v":0},"",{"$error":"#VALUE!"}]
[null,null,null,null,null,null,null,null,null,null,null,null,null,null,null,null,null,null,null,null,null,null,null,null,null,66,{"$f":"'報告書② 第3年度(取組）'!C96","v":0},{"$f":"IF(AA67<>0,ROW()-1,\"\")","v":""},{"$f":"RANK(AB67,$AB$2:$AB$81,1)","v":{"$error":"#VALUE!"}}]
[null,null,null,null,null,null,null,null,null,null,null,null,null,null,null,null,null,null,null,null,null,null,null,null,null,67,{"$f":"'報告書② 第3年度(取組）'!C97","v":0},"",{"$error":"#VALUE!"}]
[null,null,null,null,null,null,null,null,null,null,null,null,null,null,null,null,null,null,null,null,null,null,null,null,null,68,{"$f":"'報告書② 第3年度(取組）'!C98","v":0},"",{"$error":"#VALUE!"}]
[null,null,null,null,null,null,null,null,null,null,null,null,null,null,null,null,null,null,null,null,null,null,null,null,null,69,{"$f":"'報告書② 第3年度(取組）'!C99","v":0},"",{"$error":"#VALUE!"}]
[null,null,null,null,null,null,null,null,null,null,null,null,null,null,null,null,null,null,null,null,null,null,null,null,null,70,{"$f":"'報告書② 第3年度(取組）'!C100","v":0},"",{"$error":"#VALUE!"}]
[null,null,null,null,null,null,null,null,null,null,null,null,null,null,null,null,null,null,null,null,null,null,null,null,null,71,{"$f":"'報告書② 第3年度(取組）'!C101","v":0},"",{"$error":"#VALUE!"}]
[null,null,null,null,null,null,null,null,null,null,null,null,null,null,null,null,null,null,null,null,null,null,null,null,null,72,{"$f":"'報告書② 第3年度(取組）'!C102","v":0},"",{"$error":"#VALUE!"}]
[null,null,null,null,null,null,null,null,null,null,null,null,null,null,null,null,null,null,null,null,null,null,null,null,null,73,{"$f":"'報告書② 第3年度(取組）'!C103","v":0},"",{"$error":"#VALUE!"}]
[null,null,null,null,null,null,null,null,null,null,null,null,null,null,null,null,null,null,null,null,null,null,null,null,null,74,{"$f":"'報告書② 第3年度(取組）'!C104","v":0},"",{"$error":"#VALUE!"}]
[null,null,null,null,null,null,null,null,null,null,null,null,null,null,null,null,null,null,null,null,null,null,null,null,null,75,{"$f":"'報告書② 第3年度(取組）'!C105","v":0},"",{"$error":"#VALUE!"}]
[null,null,null,null,null,null,null,null,null,null,null,null,null,null,null,null,null,null,null,null,null,null,null,null,null,76,null,"",{"$error":"#VALUE!"}]
[null,null,null,null,null,null,null,null,null,null,null,null,null,null,null,null,null,null,null,null,null,null,null,null,null,77,null,"",{"$error":"#VALUE!"}]
[null,null,null,null,null,null,null,null,null,null,null,null,null,null,null,null,null,null,null,null,null,null,null,null,null,78,null,"",{"$error":"#VALUE!"}]
[null,null,null,null,null,null,null,null,null,null,null,null,null,null,null,null,null,null,null,null,null,null,null,null,null,79,null,"",{"$error":"#VALUE!"}]
[null,null,null,null,null,null,null,null,null,null,null,null,null,null,null,null,null,null,null,null,null,null,null,null,null,80,null,"",{"$error":"#VALUE!"}]

{"sheet":"リスト1","index":23,"n_rows":289,"n_cols":25,"rows_kept":289,"cut":false,"hidden":true,"merged":[]}
["項目エクセル","元シート","元セル","転記先シート名","セル","値区分",null,null,null,null,"番号","通番"]
["整理番号","はじめに","S2","はじめに","S2",null,null,null,null,null,1,1]
["提出年月日1","はじめに","E5","はじめに","E5",null,null,null,null,null,2,2]
["提出年月日2","はじめに","G5","はじめに","G5",null,null,null,null,null,3,3]
["提出年月日3","はじめに","I5","はじめに","I5",null,null,null,null,null,4,4]
["法人の名称","はじめに","E6","はじめに","E6",null,null,null,null,null,5,5]
["法人の所在地","はじめに","E7","はじめに","E7",null,null,null,null,null,6,6]
["代表者の職・氏名","はじめに","E8","はじめに","E8",null,null,null,null,null,7,7]
["代理者の職・氏名","はじめに","E9","はじめに","E9",null,null,null,null,null,8,8]
["条例第２条第５号イ","はじめに","S10","はじめに","S10",null,null,null,null,null,9,9,null,null,null,null,null,null,null,null,null,null,null,9,9]
["条例第２条第５号ロ","はじめに","S11","はじめに","S11",null,null,null,null,null,10,10,null,null,null,null,null,null,null,null,null,null,null,10,10]
["条例第２条第５号ハ","はじめに","S12","はじめに","S12",null,null,null,null,null,11,11,null,null,null,null,null,null,null,null,null,null,null,11,11]
["一般事業者","はじめに","S13","はじめに","S13",null,null,null,null,null,12,12,null,null,null,null,null,null,null,null,null,null,null,12,12]
["事業所の名称","はじめに","E14","はじめに","E14",null,null,null,null,null,13,13]
["郵便番号1","はじめに","F15","はじめに","F15",null,null,null,null,null,14,14]
["郵便番号2","はじめに","H15","はじめに","H15",null,null,null,null,null,15,15]
["事業所の所在地","はじめに","E16","はじめに","E16",null,null,null,null,null,16,16]
["産業分類番号1","はじめに","E17","はじめに","E17",null,null,null,null,null,17,17]
["産業分類番号2","はじめに","F17","はじめに","F17",null,null,null,null,null,18,18]
["産業分類番号3","はじめに","G17","はじめに","G17",null,null,null,null,null,19,19]
["産業分類番号4","はじめに","H17","はじめに","H17",null,null,null,null,null,20,20]
["従業員数","はじめに","E19","はじめに","S2",null,null,null,null,null,21,21]
["延べ床面積","はじめに","E20","はじめに","S2",null,null,null,null,null,22,22]
["所属部署","はじめに","E21","はじめに","E21",null,null,null,null,null,23,23]
["郵便番号3","はじめに","F22","はじめに","F22",null,null,null,null,null,24,24]
["郵便番号4","はじめに","H22","はじめに","H22",null,null,null,null,null,25,25]
["住所","はじめに","E23","はじめに","E23",null,null,null,null,null,26,26]
["氏名","はじめに","E24","はじめに","E24",null,null,null,null,null,27,27]
["電話番号","はじめに","E25","はじめに","E25",null,null,null,null,null,28,28]
["FAX番号","はじめに","E26","はじめに","E26",null,null,null,null,null,29,29]
["Eメールアドレス","はじめに","E27","はじめに","E27",null,null,null,null,null,30,30]
["２．基本方針","計画書①（事業者概要・目標）","A13","計画書①（事業者概要・目標）","A13",null,null,null,null,null,1,27]
["３．組織体制","計画書①（事業者概要・目標）","A16","計画書①（事業者概要・目標）","A16",null,null,null,null,null,2,28]
["４．目標排出量","計画書①（事業者概要・目標）","H25","計画書①（事業者概要・目標）","H25",null,null,null,null,null,3,29]
["４．目標原単位","計画書①（事業者概要・目標）","M25","計画書①（事業者概要・目標）","M25",null,null,null,null,null,4,30]
["４．非化石エネルギー自動車割合","計画書①（事業者概要・目標）","M27","計画書①（事業者概要・目標）","M27",null,null,null,null,null,5,31]
["４．目標設置の考え方","計画書①（事業者概要・目標）","C28","計画書①（事業者概要・目標）","C28",null,null,null,null,null,6,32]
["５の１（基本対策）状況1","計画書② (取組）","E5","計画書② (取組）","E5",null,null,null,null,null,1,33]
["５の１（基本対策）状況2","計画書② (取組）","E6","計画書② (取組）","E6",null,null,null,null,null,2,34]
["５の１（基本対策）状況3","計画書② (取組）","E7","計画書② (取組）","E7",null,null,null,null,null,3,35]
["５の１（基本対策）状況4","計画書② (取組）","E8","計画書② (取組）","E8",null,null,null,null,null,4,36]
["５の１（基本対策）状況5","計画書② (取組）","E9","計画書② (取組）","E9",null,null,null,null,null,5,37]
["５の１（基本対策）状況6","計画書② (取組）","E10","計画書② (取組）","E10",null,null,null,null,null,6,38]
["５の１（基本対策）状況7","計画書② (取組）","E11","計画書② (取組）","E11",null,null,null,null,null,7,39]
["５の１（基本対策）状況8","計画書② (取組）","E12","計画書② (取組）","E12",null,null,null,null,null,8,40]
["５の１（基本対策）状況9","計画書② (取組）","E13","計画書② (取組）","E13",null,null,null,null,null,9,41]
["５の１（基本対策）状況10","計画書② (取組）","E14","計画書② (取組）","E14",null,null,null,null,null,10,42]
["５の１（基本対策）状況11","計画書② (取組）","E15","計画書② (取組）","E15",null,null,null,null,null,11,43]
["５の１（基本対策）状況12","計画書② (取組）","E16","計画書② (取組）","E16",null,null,null,null,null,12,44]
["５の１（基本対策）予定1","計画書② (取組）","F5","計画書② (取組）","F5",null,null,null,null,null,13,45]
["５の１（基本対策）予定2","計画書② (取組）","F6","計画書② (取組）","F6",null,null,null,null,null,14,46]
["５の１（基本対策）予定3","計画書② (取組）","F7","計画書② (取組）","F7",null,null,null,null,null,15,47]
["５の１（基本対策）予定4","計画書② (取組）","F8","計画書② (取組）","F8",null,null,null,null,null,16,48]
["５の１（基本対策）予定5","計画書② (取組）","F9","計画書② (取組）","F9",null,null,null,null,null,17,49]
["５の１（基本対策）予定6","計画書② (取組）","F10","計画書② (取組）","F10",null,null,null,null,null,18,50]
["５の１（基本対策）予定7","計画書② (取組）","F11","計画書② (取組）","F11",null,null,null,null,null,19,51]
["５の１（基本対策）予定8","計画書② (取組）","F12","計画書② (取組）","F12",null,null,null,null,null,20,52]
["５の１（基本対策）予定9","計画書② (取組）","F13","計画書② (取組）","F13",null,null,null,null,null,21,53]
["５の１（基本対策）予定10","計画書② (取組）","F14","計画書② (取組）","F14",null,null,null,null,null,22,54]
["５の１（基本対策）予定11","計画書② (取組）","F15","計画書② (取組）","F15",null,null,null,null,null,23,55]
["５の１（基本対策）予定12","計画書② (取組）","F16","計画書② (取組）","F16",null,null,null,null,null,24,56]
["５の２（選択対策）項目1","計画書② (取組）","C21","計画書② (取組）","C21",null,null,null,null,null,25,57]
["５の２（選択対策）項目2","計画書② (取組）","C22","計画書② (取組）","C22",null,null,null,null,null,26,58]
["５の２（選択対策）項目3","計画書② (取組）","C23","計画書② (取組）","C23",null,null,null,null,null,27,59]
["５の２（選択対策）項目4","計画書② (取組）","C24","計画書② (取組）","C24",null,null,null,null,null,28,60]
["５の２（選択対策）項目5","計画書② (取組）","C25","計画書② (取組）","C25",null,null,null,null,null,29,61]
["５の２（選択対策）項目6","計画書② (取組）","C26","計画書② (取組）","C26",null,null,null,null,null,30,62]
["５の２（選択対策）項目7","計画書② (取組）","C27","計画書② (取組）","C27",null,null,null,null,null,31,63]
["５の２（選択対策）項目8","計画書② (取組）","C28","計画書② (取組）","C28",null,null,null,null,null,32,64]
["５の２（選択対策）項目9","計画書② (取組）","C29","計画書② (取組）","C29",null,null,null,null,null,33,65]
["５の２（選択対策）項目10","計画書② (取組）","C30","計画書② (取組）","C30",null,null,null,null,null,34,66]
["５の２（選択対策）項目11","計画書② (取組）","C31","計画書② (取組）","C31",null,null,null,null,null,35,67]
["５の２（選択対策）項目12","計画書② (取組）","C32","計画書② (取組）","C32",null,null,null,null,null,36,68]
["５の２（選択対策）項目13","計画書② (取組）","C33","計画書② (取組）","C33",null,null,null,null,null,37,69]
["５の２（選択対策）項目14","計画書② (取組）","C34","計画書② (取組）","C34",null,null,null,null,null,38,70]
["５の２（選択対策）項目15","計画書② (取組）","C35","計画書② (取組）","C35",null,null,null,null,null,39,71]
["５の２（選択対策）状況1","計画書② (取組）","E21","計画書② (取組）","E21",null,null,null,null,null,40,72]
["５の２（選択対策）状況2","計画書② (取組）","E22","計画書② (取組）","E22",null,null,null,null,null,41,73]
["５の２（選択対策）状況3","計画書② (取組）","E23","計画書② (取組）","E23",null,null,null,null,null,42,74]
["５の２（選択対策）状況4","計画書② (取組）","E24","計画書② (取組）","E24",null,null,null,null,null,43,75]
["５の２（選択対策）状況5","計画書② (取組）","E25","計画書② (取組）","E25",null,null,null,null,null,44,76]
["５の２（選択対策）状況6","計画書② (取組）","E26","計画書② (取組）","E26",null,null,null,null,null,45,77]
["５の２（選択対策）状況7","計画書② (取組）","E27","計画書② (取組）","E27",null,null,null,null,null,46,78]
["５の２（選択対策）状況8","計画書② (取組）","E28","計画書② (取組）","E28",null,null,null,null,null,47,79]
["５の２（選択対策）状況9","計画書② (取組）","E29","計画書② (取組）","E29",null,null,null,null,null,48,80]
["５の２（選択対策）状況10","計画書② (取組）","E30","計画書② (取組）","E30",null,null,null,null,null,49,81]
["５の２（選択対策）状況11","計画書② (取組）","E31","計画書② (取組）","E31",null,null,null,null,null,50,82]
["５の２（選択対策）状況12","計画書② (取組）","E32","計画書② (取組）","E32",null,null,null,null,null,51,83]
["５の２（選択対策）状況13","計画書② (取組）","E33","計画書② (取組）","E33",null,null,null,null,null,52,84]
["５の２（選択対策）状況14","計画書② (取組）","E34","計画書② (取組）","E34",null,null,null,null,null,53,85]
["５の２（選択対策）状況15","計画書② (取組）","E35","計画書② (取組）","E35",null,null,null,null,null,54,86]
["５の２（選択対策）予定1","計画書② (取組）","F21","計画書② (取組）","F21",null,null,null,null,null,55,87]
["５の２（選択対策）予定2","計画書② (取組）","F22","計画書② (取組）","F22",null,null,null,null,null,56,88]
["５の２（選択対策）予定3","計画書② (取組）","F23","計画書② (取組）","F23",null,null,null,null,null,57,89]
["５の２（選択対策）予定4","計画書② (取組）","F24","計画書② (取組）","F24",null,null,null,null,null,58,90]
["５の２（選択対策）予定5","計画書② (取組）","F25","計画書② (取組）","F25",null,null,null,null,null,59,91]
["５の２（選択対策）予定6","計画書② (取組）","F26","計画書② (取組）","F26",null,null,null,null,null,60,92]
["５の２（選択対策）予定7","計画書② (取組）","F27","計画書② (取組）","F27",null,null,null,null,null,61,93]
["５の２（選択対策）予定8","計画書② (取組）","F28","計画書② (取組）","F28",null,null,null,null,null,62,94]
["５の２（選択対策）予定9","計画書② (取組）","F29","計画書② (取組）","F29",null,null,null,null,null,63,95]
["５の２（選択対策）予定10","計画書② (取組）","F30","計画書② (取組）","F30",null,null,null,null,null,64,96]
["５の２（選択対策）予定11","計画書② (取組）","F31","計画書② (取組）","F31",null,null,null,null,null,65,97]
["５の２（選択対策）予定12","計画書② (取組）","F32","計画書② (取組）","F32",null,null,null,null,null,66,98]
["５の２（選択対策）予定13","計画書② (取組）","F33","計画書② (取組）","F33",null,null,null,null,null,67,99]
["５の２（選択対策）予定14","計画書② (取組）","F34","計画書② (取組）","F34",null,null,null,null,null,68,100]
["５の２（選択対策）予定15","計画書② (取組）","F35","計画書② (取組）","F35",null,null,null,null,null,69,101]
["５の３（その他の対策）項目1","計画書② (取組）","C40","計画書② (取組）","C40",null,null,null,null,null,70,102]
["５の３（その他の対策）項目2","計画書② (取組）","C41","計画書② (取組）","C41",null,null,null,null,null,71,103]
["５の３（その他の対策）項目3","計画書② (取組）","C42","計画書② (取組）","C42",null,null,null,null,null,72,104]
["５の３（その他の対策）項目4","計画書② (取組）","C43","計画書② (取組）","C43",null,null,null,null,null,73,105]
["５の３（その他の対策）項目5","計画書② (取組）","C44","計画書② (取組）","C44",null,null,null,null,null,74,106]
["５の３（その他の対策）項目6","計画書② (取組）","C45","計画書② (取組）","C45",null,null,null,null,null,75,107]
["５の３（その他の対策）項目7","計画書② (取組）","C46","計画書② (取組）","C46",null,null,null,null,null,76,108]
["５の３（その他の対策）項目8","計画書② (取組）","C47","計画書② (取組）","C47",null,null,null,null,null,77,109]
["５の３（その他の対策）項目9","計画書② (取組）","C48","計画書② (取組）","C48",null,null,null,null,null,78,110]
["５の３（その他の対策）項目10","計画書② (取組）","C49","計画書② (取組）","C49",null,null,null,null,null,79,111]
["５の３（その他の対策）取組1","計画書② (取組）","D40","計画書② (取組）","D40",null,null,null,null,null,80,112]
["５の３（その他の対策）取組2","計画書② (取組）","D41","計画書② (取組）","D41",null,null,null,null,null,81,113]
["５の３（その他の対策）取組3","計画書② (取組）","D42","計画書② (取組）","D42",null,null,null,null,null,82,114]
["５の３（その他の対策）取組4","計画書② (取組）","D43","計画書② (取組）","D43",null,null,null,null,null,83,115]
["５の３（その他の対策）取組5","計画書② (取組）","D44","計画書② (取組）","D44",null,null,null,null,null,84,116]
["５の３（その他の対策）取組6","計画書② (取組）","D45","計画書② (取組）","D45",null,null,null,null,null,85,117]
["５の３（その他の対策）取組7","計画書② (取組）","D46","計画書② (取組）","D46",null,null,null,null,null,86,118]
["５の３（その他の対策）取組8","計画書② (取組）","D47","計画書② (取組）","D47",null,null,null,null,null,87,119]
["５の３（その他の対策）取組9","計画書② (取組）","D48","計画書② (取組）","D48",null,null,null,null,null,88,120]
["５の３（その他の対策）取組10","計画書② (取組）","D49","計画書② (取組）","D49",null,null,null,null,null,89,121]
["５の３（その他の対策）状況1","計画書② (取組）","E40","計画書② (取組）","E40",null,null,null,null,null,90,122]
["５の３（その他の対策）状況2","計画書② (取組）","E41","計画書② (取組）","E41",null,null,null,null,null,91,123]
["５の３（その他の対策）状況3","計画書② (取組）","E42","計画書② (取組）","E42",null,null,null,null,null,92,124]
["５の３（その他の対策）状況4","計画書② (取組）","E43","計画書② (取組）","E43",null,null,null,null,null,93,125]
["５の３（その他の対策）状況5","計画書② (取組）","E44","計画書② (取組）","E44",null,null,null,null,null,94,126]
["５の３（その他の対策）状況6","計画書② (取組）","E45","計画書② (取組）","E45",null,null,null,null,null,95,127]
["５の３（その他の対策）状況7","計画書② (取組）","E46","計画書② (取組）","E46",null,null,null,null,null,96,128]
["５の３（その他の対策）状況8","計画書② (取組）","E47","計画書② (取組）","E47",null,null,null,null,null,97,129]
["５の３（その他の対策）状況9","計画書② (取組）","E48","計画書② (取組）","E48",null,null,null,null,null,98,130]
["５の３（その他の対策）状況10","計画書② (取組）","E49","計画書② (取組）","E49",null,null,null,null,null,99,131]
["５の３（その他の対策）予定1","計画書② (取組）","F40","計画書② (取組）","F40",null,null,null,null,null,100,132]
["５の３（その他の対策）予定2","計画書② (取組）","F41","計画書② (取組）","F41",null,null,null,null,null,101,133]
["５の３（その他の対策）予定3","計画書② (取組）","F42","計画書② (取組）","F42",null,null,null,null,null,102,134]
["５の３（その他の対策）予定4","計画書② (取組）","F43","計画書② (取組）","F43",null,null,null,null,null,103,135]
["５の３（その他の対策）予定5","計画書② (取組）","F44","計画書② (取組）","F44",null,null,null,null,null,104,136]
["５の３（その他の対策）予定6","計画書② (取組）","F45","計画書② (取組）","F45",null,null,null,null,null,105,137]
["５の３（その他の対策）予定7","計画書② (取組）","F46","計画書② (取組）","F46",null,null,null,null,null,106,138]
["５の３（その他の対策）予定8","計画書② (取組）","F47","計画書② (取組）","F47",null,null,null,null,null,107,139]
["５の３（その他の対策）予定9","計画書② (取組）","F48","計画書② (取組）","F48",null,null,null,null,null,108,140]
["５の３（その他の対策）予定10","計画書② (取組）","F49","計画書② (取組）","F49",null,null,null,null,null,109,141]
["参考１（詳細）対策1","計画書③（任意記載）","B4","計画書③（任意記載）","B4",null,null,null,null,null,1,142]
["参考１（詳細）対策2","計画書③（任意記載）","B5","計画書③（任意記載）","B5",null,null,null,null,null,2,143]
["参考１（詳細）対策3","計画書③（任意記載）","B6","計画書③（任意記載）","B6",null,null,null,null,null,3,144]
["参考１（詳細）対策4","計画書③（任意記載）","B7","計画書③（任意記載）","B7",null,null,null,null,null,4,145]
["参考１（詳細）対策5","計画書③（任意記載）","B8","計画書③（任意記載）","B8",null,null,null,null,null,5,146]
["参考１（詳細）対策6","計画書③（任意記載）","B9","計画書③（任意記載）","B9",null,null,null,null,null,6,147]
["参考１（詳細）対策7","計画書③（任意記載）","B10","計画書③（任意記載）","B10",null,null,null,null,null,7,148]
["参考１（詳細）対策8","計画書③（任意記載）","B11","計画書③（任意記載）","B11",null,null,null,null,null,8,149]
["参考１（詳細）対策9","計画書③（任意記載）","B12","計画書③（任意記載）","B12",null,null,null,null,null,9,150]
["参考１（詳細）対策10","計画書③（任意記載）","B13","計画書③（任意記載）","B13",null,null,null,null,null,10,151]
["参考１（詳細）実施年度1","計画書③（任意記載）","C4","計画書③（任意記載）","C4",null,null,null,null,null,11,152]
["参考１（詳細）実施年度2","計画書③（任意記載）","C5","計画書③（任意記載）","C5",null,null,null,null,null,12,153]
["参考１（詳細）実施年度3","計画書③（任意記載）","C6","計画書③（任意記載）","C6",null,null,null,null,null,13,154]
["参考１（詳細）実施年度4","計画書③（任意記載）","C7","計画書③（任意記載）","C7",null,null,null,null,null,14,155]
["参考１（詳細）実施年度5","計画書③（任意記載）","C8","計画書③（任意記載）","C8",null,null,null,null,null,15,156]
["参考１（詳細）実施年度6","計画書③（任意記載）","C9","計画書③（任意記載）","C9",null,null,null,null,null,16,157]
["参考１（詳細）実施年度7","計画書③（任意記載）","C10","計画書③（任意記載）","C10",null,null,null,null,null,17,158]
["参考１（詳細）実施年度8","計画書③（任意記載）","C11","計画書③（任意記載）","C11",null,null,null,null,null,18,159]
["参考１（詳細）実施年度9","計画書③（任意記載）","C12","計画書③（任意記載）","C12",null,null,null,null,null,19,160]
["参考１（詳細）実施年度10","計画書③（任意記載）","C13","計画書③（任意記載）","C13",null,null,null,null,null,20,161]
["参考１（詳細）推計削減量1","計画書③（任意記載）","D4","計画書③（任意記載）","D4",null,null,null,null,null,21,162]
["参考１（詳細）推計削減量2","計画書③（任意記載）","D5","計画書③（任意記載）","D5",null,null,null,null,null,22,163]
["参考１（詳細）推計削減量3","計画書③（任意記載）","D6","計画書③（任意記載）","D6",null,null,null,null,null,23,164]
["参考１（詳細）推計削減量4","計画書③（任意記載）","D7","計画書③（任意記載）","D7",null,null,null,null,null,24,165]
["参考１（詳細）推計削減量5","計画書③（任意記載）","D8","計画書③（任意記載）","D8",null,null,null,null,null,25,166]
["参考１（詳細）推計削減量6","計画書③（任意記載）","D9","計画書③（任意記載）","D9",null,null,null,null,null,26,167]
["参考１（詳細）推計削減量7","計画書③（任意記載）","D10","計画書③（任意記載）","D10",null,null,null,null,null,27,168]
["参考１（詳細）推計削減量8","計画書③（任意記載）","D11","計画書③（任意記載）","D11",null,null,null,null,null,28,169]
["参考１（詳細）推計削減量9","計画書③（任意記載）","D12","計画書③（任意記載）","D12",null,null,null,null,null,29,170]
["参考１（詳細）推計削減量10","計画書③（任意記載）","D13","計画書③（任意記載）","D13",null,null,null,null,null,30,171]
["参考２（詳細）対策1","計画書③（任意記載）","B17","計画書③（任意記載）","B17",null,null,null,null,null,31,172]
["参考２（詳細）対策2","計画書③（任意記載）","B18","計画書③（任意記載）","B18",null,null,null,null,null,32,173]
["参考２（詳細）対策3","計画書③（任意記載）","B19","計画書③（任意記載）","B19",null,null,null,null,null,33,174]
["参考２（詳細）対策4","計画書③（任意記載）","B20","計画書③（任意記載）","B20",null,null,null,null,null,34,175]
["参考２（詳細）対策5","計画書③（任意記載）","B21","計画書③（任意記載）","B21",null,null,null,null,null,35,176]
["参考２（詳細）対策6","計画書③（任意記載）","B22","計画書③（任意記載）","B22",null,null,null,null,null,36,177]
["参考２（詳細）対策7","計画書③（任意記載）","B23","計画書③（任意記載）","B23",null,null,null,null,null,37,178]
["参考２（詳細）対策8","計画書③（任意記載）","B24","計画書③（任意記載）","B24",null,null,null,null,null,38,179]
["参考２（詳細）対策9","計画書③（任意記載）","B25","計画書③（任意記載）","B25",null,null,null,null,null,39,180]
["参考２（詳細）対策10","計画書③（任意記載）","B26","計画書③（任意記載）","B26",null,null,null,null,null,40,181]
["参考２（詳細）実施年度1","計画書③（任意記載）","C17","計画書③（任意記載）","C17",null,null,null,null,null,41,182]
["参考２（詳細）実施年度2","計画書③（任意記載）","C18","計画書③（任意記載）","C18",null,null,null,null,null,42,183]
["参考２（詳細）実施年度3","計画書③（任意記載）","C19","計画書③（任意記載）","C19",null,null,null,null,null,43,184]
["参考２（詳細）実施年度4","計画書③（任意記載）","C20","計画書③（任意記載）","C20",null,null,null,null,null,44,185]
["参考２（詳細）実施年度5","計画書③（任意記載）","C21","計画書③（任意記載）","C21",null,null,null,null,null,45,186]
["参考２（詳細）実施年度6","計画書③（任意記載）","C22","計画書③（任意記載）","C22",null,null,null,null,null,46,187]
["参考２（詳細）実施年度7","計画書③（任意記載）","C23","計画書③（任意記載）","C23",null,null,null,null,null,47,188]
["参考２（詳細）実施年度8","計画書③（任意記載）","C24","計画書③（任意記載）","C24",null,null,null,null,null,48,189]
["参考２（詳細）実施年度9","計画書③（任意記載）","C25","計画書③（任意記載）","C25",null,null,null,null,null,49,190]
["参考２（詳細）実施年度10","計画書③（任意記載）","C26","計画書③（任意記載）","C26",null,null,null,null,null,50,191]
["参考２（詳細）推計削減量1","計画書③（任意記載）","D17","計画書③（任意記載）","D17",null,null,null,null,null,51,192]
["参考２（詳細）推計削減量2","計画書③（任意記載）","D18","計画書③（任意記載）","D18",null,null,null,null,null,52,193]
["参考２（詳細）推計削減量3","計画書③（任意記載）","D19","計画書③（任意記載）","D19",null,null,null,null,null,53,194]
["参考２（詳細）推計削減量4","計画書③（任意記載）","D20","計画書③（任意記載）","D20",null,null,null,null,null,54,195]
["参考２（詳細）推計削減量5","計画書③（任意記載）","D21","計画書③（任意記載）","D21",null,null,null,null,null,55,196]
["参考２（詳細）推計削減量6","計画書③（任意記載）","D22","計画書③（任意記載）","D22",null,null,null,null,null,56,197]
["参考２（詳細）推計削減量7","計画書③（任意記載）","D23","計画書③（任意記載）","D23",null,null,null,null,null,57,198]
["参考２（詳細）推計削減量8","計画書③（任意記載）","D24","計画書③（任意記載）","D24",null,null,null,null,null,58,199]
["参考２（詳細）推計削減量9","計画書③（任意記載）","D25","計画書③（任意記載）","D25",null,null,null,null,null,59,200]
["参考２（詳細）推計削減量10","計画書③（任意記載）","D26","計画書③（任意記載）","D26",null,null,null,null,null,60,201]
["使用量_揮発油（ガソリン）","事業所排出量内訳 (基準年度)","E5","事業所排出量内訳 (基準年度)","E6",null,null,null,null,null,1,202]
["使用量_軽油","事業所排出量内訳 (基準年度)","E6","事業所排出量内訳 (基準年度)","E7",null,null,null,null,null,2,203]
["使用量_液化石油ガス (LPG)","事業所排出量内訳 (基準年度)","E7","事業所排出量内訳 (基準年度)","E8",null,null,null,null,null,3,204]
["使用量_液化天然ガス (LNG)","事業所排出量内訳 (基準年度)","E8","事業所排出量内訳 (基準年度)","E9",null,null,null,null,null,4,205]
["使用量_都市ガス（CNG含む）","事業所排出量内訳 (基準年度)","E9","事業所排出量内訳 (基準年度)","E10",null,null,null,null,null,5,206]
["使用量_その他（）","事業所排出量内訳 (基準年度)","E10","事業所排出量内訳 (基準年度)","E11",null,null,null,null,null,6,207]
["使用量_水素","事業所排出量内訳 (基準年度)","E11","事業所排出量内訳 (基準年度)","E12",null,null,null,null,null,7,208]
["外部供給量_揮発油（ガソリン）","事業所排出量内訳 (基準年度)","F5","事業所排出量内訳 (基準年度)","F6",null,null,null,null,null,8,209]
["外部供給量_軽油","事業所排出量内訳 (基準年度)","F6","事業所排出量内訳 (基準年度)","F7",null,null,null,null,null,9,210]
["外部供給量_液化石油ガス (LPG)","事業所排出量内訳 (基準年度)","F7","事業所排出量内訳 (基準年度)","F8",null,null,null,null,null,10,211]
["外部供給量_液化天然ガス (LNG)","事業所排出量内訳 (基準年度)","F8","事業所排出量内訳 (基準年度)","F9",null,null,null,null,null,11,212]
["外部供給量_都市ガス（CNG含む）","事業所排出量内訳 (基準年度)","F9","事業所排出量内訳 (基準年度)","F10",null,null,null,null,null,12,213]
["外部供給量_その他の燃料（）","事業所排出量内訳 (基準年度)","F10","事業所排出量内訳 (基準年度)","F11",null,null,null,null,null,13,214]
["外部供給量_水素","事業所排出量内訳 (基準年度)","F11","事業所排出量内訳 (基準年度)","F12",null,null,null,null,null,14,215]
["単位_その他の燃料（）","事業所排出量内訳 (基準年度)","H10","事業所排出量内訳 (基準年度)","H11",null,null,null,null,null,15,216]
["熱量_その他の燃料（）","事業所排出量内訳 (基準年度)","I10","事業所排出量内訳 (基準年度)","I11",null,null,null,null,null,16,217]
["排出量_その他の燃料（）","事業所排出量内訳 (基準年度)","J10","事業所排出量内訳 (基準年度)","J11",null,null,null,null,null,17,218]
["名称_その他の燃料（）","事業所排出量内訳 (基準年度)","L10","事業所排出量内訳 (基準年度)","Q22",null,null,null,null,null,18,219]
["換算係数_その他の燃料（）","事業所排出量内訳 (基準年度)","M10","事業所排出量内訳 (基準年度)","R22",null,null,null,null,null,19,220]
["排出係数_その他の燃料（）","事業所排出量内訳 (基準年度)","N10","事業所排出量内訳 (基準年度)","S22",null,null,null,null,null,20,221]
["非エネルギー起源二酸化炭素（CO2）","事業所排出量内訳 (基準年度)","E25","事業所排出量内訳 (基準年度)","E26",null,null,null,null,null,21,222]
["メタン（CH4）","事業所排出量内訳 (基準年度)","E26","事業所排出量内訳 (基準年度)","E27",null,null,null,null,null,22,223]
["一酸化二窒素（N2O）","事業所排出量内訳 (基準年度)","E27","事業所排出量内訳 (基準年度)","E28",null,null,null,null,null,23,224]
["ハイドロフルオロカーボン（HFC）","事業所排出量内訳 (基準年度)","E28","事業所排出量内訳 (基準年度)","E29",null,null,null,null,null,24,225]
["パーフルオロカーボン（PFC）","事業所排出量内訳 (基準年度)","E29","事業所排出量内訳 (基準年度)","E30",null,null,null,null,null,25,226]
["六フッ化硫黄（SF6）","事業所排出量内訳 (基準年度)","E30","事業所排出量内訳 (基準年度)","E31",null,null,null,null,null,26,227]
["三フッ化窒素（NF3）","事業所排出量内訳 (基準年度)","E31","事業所排出量内訳 (基準年度)","E32",null,null,null,null,null,27,228]
["電気事業者名１","事業所排出量内訳 (基準年度)","L22","事業所排出量内訳 (基準年度)","Q26",null,null,null,null,null,28,229]
["電気事業者名２","事業所排出量内訳 (基準年度)","L23","事業所排出量内訳 (基準年度)","Q27",null,null,null,null,null,29,230]
["電気事業者名３","事業所排出量内訳 (基準年度)","L24","事業所排出量内訳 (基準年度)","Q28",null,null,null,null,null,30,231]
["電気事業者名４","事業所排出量内訳 (基準年度)","L25","事業所排出量内訳 (基準年度)","Q29",null,null,null,null,null,31,232]
["電気事業者名５","事業所排出量内訳 (基準年度)","L26","事業所排出量内訳 (基準年度)","Q30",null,null,null,null,null,32,233]
["昼間買電量(千kWh)１","事業所排出量内訳 (基準年度)","M22","事業所排出量内訳 (基準年度)","R26",null,null,null,null,null,33,234]
["昼間買電量(千kWh)２","事業所排出量内訳 (基準年度)","M23","事業所排出量内訳 (基準年度)","R27",null,null,null,null,null,34,235]
["昼間買電量(千kWh)３","事業所排出量内訳 (基準年度)","M24","事業所排出量内訳 (基準年度)","R28",null,null,null,null,null,35,236]
["昼間買電量(千kWh)４","事業所排出量内訳 (基準年度)","M25","事業所排出量内訳 (基準年度)","R29",null,null,null,null,null,36,237]
["昼間買電量(千kWh)５","事業所排出量内訳 (基準年度)","M26","事業所排出量内訳 (基準年度)","R30",null,null,null,null,null,37,238]
["夜間買電量(千kWh)１","事業所排出量内訳 (基準年度)","N22","事業所排出量内訳 (基準年度)","S26",null,null,null,null,null,38,239]
["夜間買電量(千kWh)２","事業所排出量内訳 (基準年度)","N23","事業所排出量内訳 (基準年度)","S27",null,null,null,null,null,39,240]
["夜間買電量(千kWh)３","事業所排出量内訳 (基準年度)","N24","事業所排出量内訳 (基準年度)","S28",null,null,null,null,null,40,241]
["夜間買電量(千kWh)４","事業所排出量内訳 (基準年度)","N25","事業所排出量内訳 (基準年度)","S29",null,null,null,null,null,41,242]
["夜間買電量(千kWh)５","事業所排出量内訳 (基準年度)","N26","事業所排出量内訳 (基準年度)","S30",null,null,null,null,null,42,243]
["電気事業者_排出係数１","事業所排出量内訳 (基準年度)","O22","事業所排出量内訳 (基準年度)","T26",null,null,null,null,null,43,244]
["電気事業者_排出係数２","事業所排出量内訳 (基準年度)","O23","事業所排出量内訳 (基準年度)","T27",null,null,null,null,null,44,245]
["電気事業者_排出係数３","事業所排出量内訳 (基準年度)","O24","事業所排出量内訳 (基準年度)","T28",null,null,null,null,null,45,246]
["電気事業者_排出係数４","事業所排出量内訳 (基準年度)","O25","事業所排出量内訳 (基準年度)","T29",null,null,null,null,null,46,247]
["電気事業者_排出係数５","事業所排出量内訳 (基準年度)","O26","事業所排出量内訳 (基準年度)","T30",null,null,null,null,null,47,248]
["その他買電１","事業所排出量内訳 (基準年度)","L35","事業所排出量内訳 (基準年度)","Q35",null,null,null,null,null,48,249]
["その他買電２","事業所排出量内訳 (基準年度)","L36","事業所排出量内訳 (基準年度)","Q36",null,null,null,null,null,49,250]
["その他買電３","事業所排出量内訳 (基準年度)","L37","事業所排出量内訳 (基準年度)","Q37",null,null,null,null,null,50,251]
["その他買電４","事業所排出量内訳 (基準年度)","L38","事業所排出量内訳 (基準年度)","Q38",null,null,null,null,null,51,252]
["その他買電５","事業所排出量内訳 (基準年度)","L39","事業所排出量内訳 (基準年度)","Q39",null,null,null,null,null,52,253]
["その他買電_買電量(千kWh)１","事業所排出量内訳 (基準年度)","M35","事業所排出量内訳 (基準年度)","R35",null,null,null,null,null,53,254]
["その他買電_買電量(千kWh)２","事業所排出量内訳 (基準年度)","M36","事業所排出量内訳 (基準年度)","R36",null,null,null,null,null,54,255]
["その他買電_買電量(千kWh)３","事業所排出量内訳 (基準年度)","M37","事業所排出量内訳 (基準年度)","R37",null,null,null,null,null,55,256]
["その他買電_買電量(千kWh)４","事業所排出量内訳 (基準年度)","M38","事業所排出量内訳 (基準年度)","R38",null,null,null,null,null,56,257]
["その他買電_買電量(千kWh)５","事業所排出量内訳 (基準年度)","M39","事業所排出量内訳 (基準年度)","R39",null,null,null,null,null,57,258]
["その他買電_排出係数(tCO2/千kWh)１","事業所排出量内訳 (基準年度)","N35","事業所排出量内訳 (基準年度)","S35",null,null,null,null,null,58,259]
["その他買電_排出係数(tCO2/千kWh)２","事業所排出量内訳 (基準年度)","N36","事業所排出量内訳 (基準年度)","S36",null,null,null,null,null,59,260]
["その他買電_排出係数(tCO2/千kWh)３","事業所排出量内訳 (基準年度)","N37","事業所排出量内訳 (基準年度)","S37",null,null,null,null,null,60,261]
["その他買電_排出係数(tCO2/千kWh)４","事業所排出量内訳 (基準年度)","N38","事業所排出量内訳 (基準年度)","S38",null,null,null,null,null,61,262]
["その他買電_排出係数(tCO2/千kWh)５","事業所排出量内訳 (基準年度)","N39","事業所排出量内訳 (基準年度)","S39",null,null,null,null,null,62,263]
["クレジット等の種類１","事業所排出量内訳 (基準年度)","C36","事業所排出量内訳 (基準年度)","C38",null,null,null,null,null,63,264]
["クレジット等の種類２","事業所排出量内訳 (基準年度)","C37","事業所排出量内訳 (基準年度)","C39",null,null,null,null,null,64,265]
["クレジット等の種類３","事業所排出量内訳 (基準年度)","C38","事業所排出量内訳 (基準年度)","C40",null,null,null,null,null,65,266]
["クレジット等の種類４","事業所排出量内訳 (基準年度)","C39","事業所排出量内訳 (基準年度)","C41",null,null,null,null,null,66,267]
["クレジット等の種類５","事業所排出量内訳 (基準年度)","C40","事業所排出量内訳 (基準年度)","C42",null,null,null,null,null,67,268]
["クレジット等の種類６","事業所排出量内訳 (基準年度)","C41","事業所排出量内訳 (基準年度)","C43",null,null,null,null,null,68,269]
["クレジット等の種類７","事業所排出量内訳 (基準年度)","C42","事業所排出量内訳 (基準年度)","C44",null,null,null,null,null,69,270]
["クレジット等の削減量(t-CO2)１","事業所排出量内訳 (基準年度)","E36","事業所排出量内訳 (基準年度)","E38",null,null,null,null,null,70,271]
["クレジット等の削減量(t-CO2)２","事業所排出量内訳 (基準年度)","E37","事業所排出量内訳 (基準年度)","E39",null,null,null,null,null,71,272]
["クレジット等の削減量(t-CO2)３","事業所排出量内訳 (基準年度)","E38","事業所排出量内訳 (基準年度)","E40",null,null,null,null,null,72,273]
["クレジット等の削減量(t-CO2)４","事業所排出量内訳 (基準年度)","E39","事業所排出量内訳 (基準年度)","E41",null,null,null,null,null,73,274]
["クレジット等の削減量(t-CO2)５","事業所排出量内訳 (基準年度)","E40","事業所排出量内訳 (基準年度)","E42",null,null,null,null,null,74,275]
["クレジット等の削減量(t-CO2)６","事業所排出量内訳 (基準年度)","E41","事業所排出量内訳 (基準年度)","E43",null,null,null,null,null,75,276]
["クレジット等の削減量(t-CO2)７","事業所排出量内訳 (基準年度)","E42","事業所排出量内訳 (基準年度)","E44",null,null,null,null,null,76,277]
["原単位の名称","事業所排出量内訳 (基準年度)","D47","事業所排出量内訳 (基準年度)","D50",null,null,null,null,null,77,278]
["原単位の単位","事業所排出量内訳 (基準年度)","D48","事業所排出量内訳 (基準年度)","D51",null,null,null,null,null,78,279]
["原単位の数値","事業所排出量内訳 (基準年度)","D49","事業所排出量内訳 (基準年度)","D52",null,null,null,null,null,79,280]
["トラック","事業所排出量内訳 (基準年度)","E53","事業所排出量内訳 (基準年度)","D58",null,null,null,null,null,80,281]
["バス","事業所排出量内訳 (基準年度)","E54","事業所排出量内訳 (基準年度)","D61",null,null,null,null,null,81,282]
["タクシー","事業所排出量内訳 (基準年度)","E55","事業所排出量内訳 (基準年度)","D64",null,null,null,null,null,82,283]
["一般車両","事業所排出量内訳 (基準年度)","E56","事業所排出量内訳 (基準年度)","D66",null,null,null,null,null,83,284]